Workbook

Sheet Hoja4
B2: D A T O S D E L A E M P R E S A
B3: Nombre o denominación o razón social | H3: R.F.C. | J3: C.U.R.P.
B4: carlos baez medina | H4: BAMC791005K70
B6: Calle, Numero y colonia | H6: Código Postal | I6: Municipio o delegación | K6: Entidad Federativa
B7: CALLE 21 AV 41 | D7: NUMERO | E7: 3907 | F7: COLONIA: | G7: PARAISO | H7: 94650 | I7: CORDOBA | K7: VERACRUZ
I8: R e g i m e n I n t e r m e d i o.
E9: Patrocinado por | H9: M E N U
E18: D I R E C C I O N | H18: Soporte técnico exclusivamente pir el chat de fiscalistasbm
E20: AVENIDA 2 ESQUINA CALLE 7 ALTOS 1
E21: COLONIA CENTRO CORDOBA, VER. C.P. 94500 | H21: Este archivo elabora los calculos del Impuesto Sobre la Renta asi como los del La Tasas Unica y el Impuesto Al Valos Agregado Tomando ComoBase La Relacion de Ingresos Y Egresos que permite la ley, el archivo calcula de manera automatica los calculos antes mensionados de manera mensual, y lleba el control de los proveedores que sirven de base para la elaboracion de la diot asi como un resumen de los gastos detallados por concepto.
E22: Teléfono: 271 71 2 80 35 CEL:
E23: Consultoria.bm.y.asociados@gmail.com
E24: HORARIOS DE 9:00 AM A 2:00 PM Y DE 4:00 PM A 7.00 PM
E25: www.fiscalistasbm.mex.tl
E26: EJERCICIO | F26: 2012 | G26: Se prohíbe la reproducción total o parcial de esta obra, así como su distribución sin el permiso por escrito de su autor.
B27: ® Todos los derechos reservados.

Sheet Captura
A1: Registros | D1: INICIO | G1: Sumas: | H1: =SUM(H5:H500) -> 29000 | I1: 0 | J1: 0 | K1: 0 | L1: 0 | M1: 0 | N1: 0 | O1: 0 | P1: 0 | Q1: 0 | R1: 0 | S1: 0 | T1: 0
A2: =COUNTA(A5:A500) -> 12
A3: 1 | B3: 2 | C3: 3 | D3: 4 | E3: 5 | F3: 6 | G3: 7 | H3: 8 | I3: 9 | J3: 10 | K3: 11 | L3: 12 | M3: 13 | N3: 14 | O3: 15 | P3: 16 | Q3: 17 | R3: 18 | S3: 19 | T3: 20
A4: TIPO DE TERCERO | B4: TIPO DE OPERACIÓN | C4: RFC | D4: NÚMERO DE ID FISCAL | E4: NOMBRE DEL EXTRANJERO | F4: PAÍS DE RESIDENCIA | G4: NACIONALIDAD | H4: VALOR DE LOS ACTOS O ACTIVIDADES PAGADOS A LA TASA DEL 16% DE IVA | I4: IMPORTE DEL IVA NO ACREDITABLE DE LOS VALORES AL 16% | J4: VALOR DE LOS ACTOS O ACTIVIDADES PAGADOS A LA TASA DEL 10% DE IVA | K4: IMPORTE DEL IVA NO ACREDITABLE DE LOS VALORES AL 10% | L4: VALOR DE LOS ACTOS EN IMPORTACION DE BIENES AL 16% | M4: IMPORTE DEL IVA NO ACREDITABLE DE IMPORTACION AL 16% | N4: VALOR DE ACTOS O ACTIVIDADES DE IMPORTACION AL 10% | O4: IMPORTE DEL IVA NO ACREDITABLE POR LA IMPORTACION AL 10% | P4: VALOR DE LOS ACTOS O ACTIVIDADES DE IMPORTACION EXENTOS | Q4: VALOR DE LOS ACTOS O ACTIVIDADES A LA TASA DEL 0% | R4: VALOR DE LOS ACTOS O ACTIVIDADES EXENTOS | S4: IVA RETENIDO POR EL CONTRIBUYENTE | T4: IVA CORRESPONDIENTE A DEVOLUCIONES DESCUENTOS Y BONIFICACIONES
A5: 04 | B5: 85 | C5: AOF870529IU7 | H5: 307
A6: 04 | B6: 85 | C6: ASA880118BU4 | H6: 37
A7: 04 | B7: 85 | C7: BMN930209927 | H7: 36
A8: 04 | B8: 85 | C8: FRS9011212V4 | H8: 3000
A9: 04 | B9: 85 | C9: FSA821114GH3 | H9: 60
A10: 04 | B10: 85 | C10: KSI971002542 | H10: 827
A11: 04 | B11: 85 | C11: MSA690908GJ1 | H11: 194
A12: 04 | B12: 85 | C12: MSR960725R37 | H12: 150
A13: 04 | B13: 85 | C13: NWM9709244W4 | H13: 22875
A14: 04 | B14: 85 | C14: PLN851008U33 | H14: 239
A15: 04 | B15: 85 | C15: RDI841003QJ4 | H15: 517
A16: 04 | B16: 85 | C16: TME840315K76 | H16: 758

Sheet Tipos
B2: TIPOS DE TERCEROS O DE PROVEEDORES
B3: TERCERO | C3: CLAVE | D3: TIPO DE OPERACIÓN
B5: 04 Nacional | C5: 04 | D5: 03, 06, 85
B6: 05 Extranjero | C6: 05 | D6: 03, 85
B7: 15 Global | C7: 15 | D7: 03, 06, 85
B9: TIPOS DE OPERACIIONES
B10: OPERACIÓN | C10: CLAVE | D10: TIPO DE TERCERO
B12: 03 Prestación de Servicios Profesionales | C12: 03 | D12: 04, 05, 15
B13: 06 Arrendamiento de Inmuebles | C13: 06 | D13: 04, 15
B14: 85 Otros | C14: 85 | D14: 04, 05, 15
B16: PAISES
B17: CLAVE | D17: PAIS
B19: AD | D19: Principado de Andorra AD
B20: AE | D20: Emiratos Arabes Unidos AE
B21: AF | D21: Afganistán AF
B22: AG | D22: Antigua y Bermuda AG
B23: AI | D23: Isla Anguilla AI
B24: AL | D24: República de Albania AL
B25: AN | D25: Antillas Neerlandesas AN
B26: AO | D26: República de Angola AO
B27: AQ | D27: Antártica AQ
B28: AR | D28: Argentina AR
B29: AS | D29: Samoa Americana AS
B30: AT | D30: Austria AT
B31: AU | D31: Australia AU
B32: AW | D32: Aruba AW
B33: AX | D33: Ascensión AX
B34: AZ | D34: Islas Azores AZ
B35: BB | D35: Barbados BB
B36: BD | D36: Bangladesh BD
B37: BE | D37: Bélgica BE
B38: BF | D38: Burkina Faso BF
B39: BG | D39: Bulgaria BG
B40: BH | D40: Estado de Bahrein BH
B41: BI | D41: Burundi BI
B42: BJ | D42: Benin BJ
B43: BL | D43: Belice BL
B44: BM | D44: Bermudas BM
B45: BN | D45: Brunei Darussalam BN
B46: BO | D46: Bolivia BO
B47: BR | D47: Brasil BR
B48: BS | D48: Commonwealth de las Bahamas BS
B49: BT | D49: Buthan BT
B50: BU | D50: Burma BU
B51: BV | D51: Isla Bouvet BV
B52: BW | D52: Botswana BW
B53: BY | D53: Bielorrusia BY
B54: CA | D54: Canadá CA
B55: CC | D55: Isla de Cocos o Kelling CC
B56: CD | D56: Islas Canarias CD
B57: CE | D57: Isla de Christmas CE
B58: CF | D58: República Centro Africana CF
B59: CG | D59: Congo CG
B60: CH | D60: Suiza CH
B61: CI | D61: Costa de Marfil CI
B62: CK | D62: Islas Cook CK
B63: CL | D63: Chile CL
B64: CM | D64: Camerún CM
B65: CN | D65: China CN
B66: CO | D66: Colombia CO
B67: CP | D67: Campione D’Italia CP
B68: CR | D68: República de Costa Rica CR
B69: CS | D69: República Checa y República Eslovaca CS
B70: CU | D70: Cuba CU
B71: CV | D71: República de Cabo Verde CV
B72: CX | D72: Isla de Navidad CX
B73: CY | D73: República de Chipre CY
B74: DD | D74: Alemania DD
B75: DJ | D75: República de Djibouti DJ
B76: DK | D76: Dinamarca DK
B77: DM | D77: República Dominicana DM
B78: DN | D78: Commonwealth de Dominica DN
B79: DZ | D79: Argelia DZ
B80: EC | D80: Ecuador EC
B81: EG | D81: Egipto EG
B82: EH | D82: Sahara del Oeste EH
B83: EO | D83: Estado Independiente de Samoa Occidental EO
B84: ES | D84: España ES
B85: ET | D85: Etiopía ET
B86: FI | D86: Finlandia FI
B87: FJ | D87: Fiji FJ
B88: FK | D88: Islas Malvinas FK
B89: FM | D89: Micronesia FM
B90: FO | D90: Islas Faroe FO
B91: FR | D91: Francia FR
B92: GA | D92: Gabón GA
B93: GB | D93: Gran Bretaña (Reino Unido) GB
B94: GD | D94: Granada GD
B95: GF | D95: Guyana Francesa GF
B96: GH | D96: Ghana GH
B97: GI | D97: Gibraltar GI
B98: GJ | D98: Groenlandia GJ
B99: GM | D99: Gambia GM
B100: GN | D100: Guinea GN
B101: GP | D101: Guadalupe GP
B102: GQ | D102: Guinea Ecuatorial GQ
B103: GR | D103: Grecia GR
B104: GT | D104: Guatemala GT
B105: GU | D105: Guam GU
B106: GW | D106: Guinea Bissau GW
B107: GY | D107: República de Guyana GY
B108: GZ | D108: Islas de Guernesey, Jersey, Alderney, Isla Great Sar,
D109: Herm, Little Sark, Berchou, Jethou, Lihou (Islas del Canal)
B110: HK | D110: Hong Kong HK
B111: HM | D111: Islas Heard and Mc Donald HM
B112: HN | D112: República de Honduras HN
B113: HT | D113: Haití HT
B114: HU | D114: Hungría HU
B115: ID | D115: Indonesia ID
B116: IE | D116: Irlanda IE
B117: IH | D117: Isla del Hombre IH
B118: IL | D118: Israel IL
B119: IN | D119: India IN
B120: IO | D120: Territorio Británico en el Océano Indico IO
B121: IP | D121: Islas Pacífico IP
B122: IQ | D122: Iraq IQ
B123: IR | D123: Irán IR
B124: IS | D124: Islandia IS
B125: IT | D125: Italia IT
B126: JM | D126: Jamaica JM
B127: JO | D127: Reino Hachemita de Jordania JO
B128: JP | D128: Japón JP
B129: KE | D129: Kenia KE
B130: KH | D130: Campuchea Democrática KH
B131: KI | D131: Kiribati KI
B132: KM | D132: Comoros KM
B133: KN | D133: San Kitts KN
B134: KP | D134: República Democrática de Corea KP
B135: KR | D135: República de Corea KR
B136: KW | D136: Estado de Kuwait KW
B137: KY | D137: Islas Caimán KY
B138: LA | D138: República Democrática de Laos LA
B139: LB | D139: Líbano LB
B140: LC | D140: Santa Lucía LC
B141: LI | D141: Principado de Liechtenstein LI
B142: LK | D142: República Socialista Democrática de Sri Lanka LK
B143: LN | D143: Labuán LN
B144: LR | D144: República de Liberia LR
B145: LS | D145: Lesotho LS
B146: LU | D146: Gran Ducado de Luxemburgo LU
B147: LY | D147: Libia LY
B148: MA | D148: Marruecos MA
B149: MC | D149: Principado de Mónaco MC
B150: MD | D150: Madeira MD
B151: MG | D151: Madagascar MG
B152: MH | D152: República de las Islas Marshall MH
B153: ML | D153: Malí ML
B154: MN | D154: Mongolia MN
B155: MO | D155: Macao MO
B156: MP | D156: Islas Marianas del Noreste MP
B157: MQ | D157: Martinica MQ
B158: MR | D158: Mauritania MR
B159: MS | D159: Monserrat MS
B160: MT | D160: Malta MT
B161: MU | D161: República de Mauricio MU
B162: MV | D162: República de Maldivas MV
B163: MW | D163: Malawi MW
B164: MY | D164: Malasia MY
B165: MZ | D165: Mozambique MZ
B166: NA | D166: República de Namibia NA
B167: NC | D167: Nueva Caledonia NC
B168: NE | D168: Níger NE
B169: NF | D169: Isla de Norfolk NF
B170: NG | D170: Nigeria NG
B171: NI | D171: Nicaragua NI
B172: NL | D172: Holanda NL
B173: NO | D173: Noruega NO
B174: NP | D174: Nepal NP
B175: NR | D175: República de Nauru NR
B176: NT | D176: Zona Neutral NT
B177: UN | D177: Niue NU
B178: NV | D178: Nevis NV
B179: NZ | D179: Nueva Zelandia NZ
B180: OM | D180: Sultanía de Omán OM
B181: PA | D181: República de Panamá PA
B182: PE | D182: Perú PE
B183: PF | D183: Polinesia Francesa PF
B184: PG | D184: Papúa Nueva Guinea PG
B185: PH | D185: Filipinas PH
B186: PK | D186: Pakistán PK
B187: PL | D187: Polonia PL
B188: PM | D188: Isla de San Pedro y Miguelón PM
B189: PN | D189: Pitcairn PN
B190: PR | D190: Estado Libre Asociado de Puerto Rico PR
B191: PT | D191: Portugal PT
B192: PU | D192: Patau PU
B193: PW | D193: Palau PW
B194: PY | D194: Paraguay PY
B195: QA | D195: Estado de Quatar QA
B196: QB | D196: Isla Qeshm QB
B197: RE | D197: Reunión RE
B198: RO | D198: Rumania RO
B199: RW | D199: Rhuanda RW
B200: SA | D200: Arabia Saudita SA
B201: SB | D201: Islas Salomón SB
B202: SC | D202: Seychelles Islas SC
B203: SD | D203: Sudán SD
B204: SE | D204: Suecia SE
B205: SG | D205: Singapur SG
B206: SH | D206: Santa Elena SH
... 53 more rows

Sheet Instrucciones
B2: INSTRUCCIONES
B4: 1. Elaborar este modelo de archivo en Excel
B6: Número | C6: Proveedor | D6: Operación | E6: RFC | S6: TOTAL
G7: IVA | H7: Actividades | J7: IVA Pagado | L7: Actividades | N7: Actividades | P7: IVA Retenido | R7: IVA Dev,
G8: ACREDITADO | H8: 0.15 | J8: No Acred 15% | L8: 0 | N8: Exentos | P8: por Nosotros | R8: Descto s/Comp
B11: 1 | C11: 04 | D11: 85 | E11: AACE580904JXA | H11: 1200 | S11: =SUM(H11:P11) -> 1200
B12: =+B11+1 -> 2 | C12: 04 | D12: 85 | E12: ARA970829GQ0 | H12: 90 | S12: 90
B13: 3 | C13: 04 | D13: 85 | E13: CFE370814QI0 | H13: 418 | S13: 418
B14: 4 | C14: 04 | D14: 85 | E14: FNI970829JR9 | H14: 276 | S14: 276
B15: 5 | C15: 04 | D15: 85 | E15: GNM9712017P7 | H15: 145 | S15: 145
B16: 6 | C16: 04 | D16: 85 | E16: GNP9211244P0 | H16: 9049 | S16: 9049
B17: 7 | C17: 04 | D17: 85 | E17: RORE580421NG4 | H17: 440 | S17: 440
B18: 8 | C18: 04 | D18: 85 | E18: RVI020718PFA | H18: 442 | S18: 442
B19: 9 | C19: 04 | D19: 85 | E19: SFU990615MP3 | H19: 2112 | S19: 2112
B20: 10 | C20: 04 | D20: 85 | E20: SIME420427DU9 | H20: 348 | S20: 348
B21: 11 | C21: 04 | D21: 85 | E21: VPE890308S52 | H21: 230 | S21: 230
E23: Verificación | G23: =+H23*0.15 -> 2212.5 | H23: =SUM(H11:H21) -> 14750 | J23: =SUM(J11:J21) -> 0 | L23: =SUM(L11:L21) -> 0 | N23: =SUM(N11:N21) -> 0 | P23: =SUM(P11:P21) -> 0 | R23: =SUM(R11:R21) -> 0 | S23: =SUM(S11:S21) -> 14750
B25: DECLARACION: | D25: NORMAL | E25: COMPLEMENT
B27: Archivo en C: | D27: DEM-09
B28: Programa DIOT | D28: 2009-001 | E28: 2009-005
B29: Archivo enviado | D29: C9000000 | E29: C9000351
B30: Folio Recibido | D30: 8180375 | E30: C9990375
B31: Fecha Recibido | D31: 2009-02-17 | E31: 2009-03-21
B33: Proveedor | C33: Cve
B34: Nacional | C34: 04
B35: Extranjero | C35: 05
B36: Global | C36: 15
B37: Operación | D37: Cve
B38: Servicios Profesionales | D38: 03
B39: Arrendamiento | D39: 06
B40: Otros | D40: 85
D42: CARGA BATCH: | G42: Al abrir la Carga Batch - DIOT COMPLETA, aparecerá una ventana señalando "Habilitar Macros"
G43: dar click para habiliar macros. El archivo soporta 500 registros.
G44: La Carga Batch parece sencilla; sin embargo, no debe efectuarse ninguna mdificación en su estructura.
G45: IMPORTANTE: No dejar lineas sin datos en la columna A y siguientes por utilizar.
D47: ARCHIVO: | G47: La clave de RFC deberá anotarse sin guiones u otros caracteres.
G48: Las cantidades de las columnas H a R y otras que se agreguen de acuerdo a las necesidades,
G49: deberán estar redondeadas a 0 sin centavos o decimales.
E51: 1 | G51: Fórmula para redondear: | L51: 1119.85 | N51: (Celda H4)
G52: =REDONDEAR(L46,0) | L52: =ROUND(L51,0) -> 1120 | N52: (Celda H4)
G53: COPIAR Y PEGAR VALORES (Celda L47 a L48) | L53: 1120 | N53: (Celda H4)
G54: DISMINUIR DECIMALES (En su caso)
E56: 2 | G56: El archivo generado en Excel (renglones del 4 al 14 y colummnas en color azul),
G57: se copiara y pegará en la Carga Batch, cuidando que las columnas coincidan con sus encabezados.
E59: 3 | G59: Se señalarán las características de las columnas 1 y 2 en la Carga Batch, utilizando el botón de la
G60: Carga Batch. Si son todas iguales se podrá utilizar COPIAR y PEGAR VALORES.
E62: 4 | G62: Al terminar de llenar las columnas en la Carga Batch, dar clik en "GENERAR ARCHIVO"
E64: 5 | G64: Tomar nota del nombre del archivo y su ubicación en "Mi PC".
E66: 6 | G66: Abrir el programa "DIOT COMPLETA" (08 ó 09).
E68: 7 | G68: Página tres (3): Dar clik en "HERRAMIENTAS" y luego en "IMPORTAR DECLARACION".
G69: Al abrirse la ventana se agregará el "ARCHIVO GENERADO".
E71: 8 | G71: Dar click en "ACEPTAR" para validar la importación.
G72: Si existen errores, como pudiera ser la duplicidad de un proveedor, el programa no importará el archivo.
E74: 9 | G74: Terminada la importación del archivo, aparece una ventana para guardar el archivo o cancelar.
E76: 10 | G76: Al optar por "cancelar", aparece una nueva ventana: Dar click en "cancelar" para terminar el proceso.
E78: 11 | G78: Validar la declaración (ü) y crear (encriptar) el archivo para envío (□).
B80: DUDAS : rcardenas44@prodigy.net.mx

Sheet PRESENTACION
I2: =+Hoja4!B4 -> carlos baez medina
I4: =CONCATENATE(Hoja4!E26," ",Hoja4!F26) -> EJERCICIO 2012
H6: REGIMEN INTERMEDIO | O6: REGIMEN INTERMEDIO | W6: INGRESOS Y GASTOS NO CONSIDERADOS PARA IETU
D7: M E N U | H7: CALCULO RAPIDO ISR | O7: CALCULO RAPIDO IETU
D10: F o r m a t o s | I10: I N G R E S O S | K10: 9200 | Q10: Ingresos percibidos en el periodo | S10: =+K10-Y10-Y12 -> 9200 | W10: INGRESOS NO CONSIDERADOS PARA IETU
D12: FORMATO 2% SOBRE NOMINA | G12: (-) | I12: D E D U C C I O N E S | K12: 2000 | O12: (-) | Q12: Deducciones autorizadas por la LIETU pagadas en el mismo periodo | S12: =+K12-Y14-Y16 -> 2000 | W12: INGRESOS PENDIENTE DE PAGO COBRADOS EN EL PERIODO
D14: FORMATO SEFIPLAN | G14: (=) | I14: B A S E G R A V A B L E | K14: =+K10-K12 -> 7200 | O14: (-) | Q14: Deducción adicional por inversiones nuevas Sept-Dic 2007 | S14: 0 | W14: GASTOS NO CONSIDERADOS PARA IETU
D16: FORMATO BANCOS | G16: (+) | I16: LIMITE INFERIOR | K16: =IF(K14>0,VLOOKUP(K14,TARIFAS!A7:D15,1),0) -> 4210.42 | O16: (=) | Q16: Base gravable del IETU | S16: =+S10-S12-S14 -> 7200 | W16: GASTOS PENDIENTE DE PAGO EN EL PERIODO
D18: TARIFAS | G18: (=) | I18: EXEDENTE DEL LIMITE INFERIOR | K18: =+K14-K16 -> 2989.58 | O18: (x) | Q18: Tasa * | S18: 0.175 | W18: ACUMULADO DE PAGOS DE ISR PERIODOS ANTERIORES
G20: (x) | I20: % DE LIMITE INFERIOR | K20: =IF(K14>0,VLOOKUP(K14,TARIFAS!A8:D16,4)%,0) -> 0.1088 | O20: (=) | Q20: IETU mensual determinado | S20: =+S16*S18 -> 1260
D22: Calculos Fiscalez | G22: (=) | I22: IMPUESTO MARGINAL | K22: =+K18*K20 -> 325.266304 | O22: (-) | Q22: Crédito fiscal (deducciones superiores a los ingresos) | S22: 0
D24: CALCULO DEL ISR SAT-SEFIPLAN | G24: (+) | I24: CUOTA FIJA | K24: =IF(K14>0,VLOOKUP(K14,TARIFAS!A7:D15,3),0) -> 247.23 | O24: (-) | Q24: Acreditamiento por salarios y aportaciones de seguridad social | S24: 0
D26: CALCULO DE ISR SEMESTRAL | G26: (=) | I26: IMPUESTO ART 113 | K26: =+K22+K24 -> 572.496304 | O26: (-) | Q26: Crédito fiscal por inversiones de 1998 a 2007 | S26: 0
D28: CALCULO DEL IVA | G28: (-) | I28: PAGOS PROVICIONALES | O28: (-) | Q28: Otros créditos fiscales | S28: 0
D30: CALCULO DE LA IETU | G30: (=) | I30: IMPUESTO DETERMINADO | K30: =+K26-K28 -> 572.496304 | O30: (-) | Q30: ISR propio pagado con anterioridad en el mismo ejerc. incluido el del mes que declara | S30: =+K30+Y18 -> 572.496304
D32: CALCULO DE IDE | O32: (-) | Q32: ISR retenido del mismo periodo por el que se efectúa el pago provisional | S32: 0
D34: CALCULO DEL 2% SOBRE NOMINA | O34: (=) | Q34: IETU a pagar | S34: =+S20-S22-S24-S26-S28-S30 -> 687.503696
D36: PAGOS REFERENCIADOS | O36: (-) | Q36: Pagos provisionales del IETU pagados con anterioridad en el mismo ejercicio | S36: 0
D38: RETENCIONES CON TERCEROS | I38: REGIMEN INTERMEDIO | O38: (=) | Q38: IETU a cargo | S38: =+S34-S36 -> 687.503696
I40: CALCULO RAPIDO IVA
D43: A u x i l i a r e s
D45: GASTOS NO CONSIDERADOS PARA EL IETU | I45: IVA POR PAGAR | K45: =+K10*0.16 -> 1472
D47: ACUMULADO DE PAGOS PROVISIONALES | I47: IVA ACREDITABLE | K47: =+K12*0.16 -> 320
D49: GASTOS POR CUENTA | I49: IVA DETERMINADO | K49: =+K45-K47 -> 1152
D51: PROVEEDORES | I51: IVA A FAVOR DE PERIODOS ANTERIORES | K51: 0
D53: CEDULA DE INGRESOS Y EGRESOS | I53: IVA A CARGO O A FAVOR | K53: =+K49-K51 -> 1152
D55: AUXILIAR DE DEPOSITOS
D57: RELACION DE INGRESOS
D59: RELACION DE EGRESOS
D61: INGRESOS DIARIOS
D63: CATALOGO CLIENTES Y PROVEEDORES

Sheet TARIFAS
A1: PRESENTACION | E1: TABLA02 | I1: TABLA03 | M1: TABLA04 | Q1: TABLA05 | U1: TABLA06
A2: 2012-01-01 | E2: =DATE(YEAR(A2),MONTH(A2)+1,1) -> 2012-02-01 | I2: =DATE(YEAR(E2),MONTH(E2)+1,1) -> 2012-03-01 | M2: =DATE(YEAR(I2),MONTH(I2)+1,1) -> 2012-04-01 | Q2: =DATE(YEAR(M2),MONTH(M2)+1,1) -> 2012-05-01 | U2: =DATE(YEAR(Q2),MONTH(Q2)+1,1) -> 2012-06-01
A3: TARIFA ART 113 | E3: TARIFA ART 113 | I3: TARIFA ART 113 | M3: TARIFA ART 113 | Q3: TARIFA ART 113 | U3: TARIFA ART 113
A4: Límite | B4: Límite | C4: Cuota | D4: Porcentaje para aplicar | E4: Límite | F4: Límite | G4: Cuota | H4: Porcentaje para aplicar | I4: Límite | J4: Límite | K4: Cuota | L4: Porcentaje para aplicar | M4: Límite | N4: Límite | O4: Cuota | P4: Porcentaje para aplicar | Q4: Límite | R4: Límite | S4: Cuota | T4: Porcentaje para aplicar | U4: Límite | V4: Límite | W4: Cuota | X4: Porcentaje para aplicar
A5: inferior | B5: superior | C5: fija | D5: sobre el excedente L. I. | E5: inferior | F5: superior | G5: fija | H5: sobre el excedente L. I. | I5: inferior | J5: superior | K5: fija | L5: sobre el excedente L. I. | M5: inferior | N5: superior | O5: fija | P5: sobre el excedente L. I. | Q5: inferior | R5: superior | S5: fija | T5: sobre el excedente L. I. | U5: inferior | V5: superior | W5: fija | X5: sobre el excedente L. I.
A6: $ | B6: $ | C6: $ | D6: % | E6: $ | F6: $ | G6: $ | H6: % | I6: $ | J6: $ | K6: $ | L6: % | M6: $ | N6: $ | O6: $ | P6: % | Q6: $ | R6: $ | S6: $ | T6: % | U6: $ | V6: $ | W6: $ | X6: %
A8: 0.01 | B8: 496.07 | C8: 0 | D8: 1.92 | E8: =+A8 -> 0.01 | F8: =$B8*MONTH(E$2) -> 992.14 | G8: =+$C8*MONTH(E$2) -> 0 | H8: =+D8 -> 1.92 | I8: =+E8 -> 0.01 | J8: =$B8*MONTH(I$2) -> 1488.21 | K8: =+$C8*MONTH(I$2) -> 0 | L8: =+H8 -> 1.92 | M8: =+I8 -> 0.01 | N8: =$B8*MONTH(M$2) -> 1984.28 | O8: =+$C8*MONTH(M$2) -> 0 | P8: =+L8 -> 1.92 | Q8: =+M8 -> 0.01 | R8: =$B8*MONTH(Q$2) -> 2480.35 | S8: =+$C8*MONTH(Q$2) -> 0 | T8: =+P8 -> 1.92 | U8: =+Q8 -> 0.01 | V8: =$B8*MONTH(U$2) -> 2976.42 | W8: =+$C8*MONTH(U$2) -> 0 | X8: =+T8 -> 1.92
A9: 496.08 | B9: 4210.41 | C9: 9.52 | D9: 6.4 | E9: =+F8+0.01 -> 992.15 | F9: =$B9*MONTH(E$2) -> 8420.82 | G9: =+$C9*MONTH(E$2) -> 19.04 | H9: =+D9 -> 6.4 | I9: =+J8+0.01 -> 1488.22 | J9: =$B9*MONTH(I$2) -> 12631.23 | K9: =+$C9*MONTH(I$2) -> 28.56 | L9: =+H9 -> 6.4 | M9: =+N8+0.01 -> 1984.29 | N9: =$B9*MONTH(M$2) -> 16841.64 | O9: =+$C9*MONTH(M$2) -> 38.08 | P9: =+L9 -> 6.4 | Q9: =+R8+0.01 -> 2480.36 | R9: =$B9*MONTH(Q$2) -> 21052.05 | S9: =+$C9*MONTH(Q$2) -> 47.6 | T9: =+P9 -> 6.4 | U9: =+V8+0.01 -> 2976.43 | V9: =$B9*MONTH(U$2) -> 25262.46 | W9: =+$C9*MONTH(U$2) -> 57.12 | X9: =+T9 -> 6.4
A10: 4210.42 | B10: 7399.42 | C10: 247.23 | D10: 10.88 | E10: =+F9+0.01 -> 8420.83 | F10: 14798.84 | G10: 494.46 | H10: 10.88 | I10: =+J9+0.01 -> 12631.24 | J10: 22198.26 | K10: 741.69 | L10: 10.88 | M10: =+N9+0.01 -> 16841.65 | N10: 29597.68 | O10: 988.92 | P10: 10.88 | Q10: =+R9+0.01 -> 21052.06 | R10: 36997.1 | S10: 1236.15 | T10: 10.88 | U10: =+V9+0.01 -> 25262.47 | V10: 44396.52 | W10: 1483.38 | X10: 10.88
A11: 7399.43 | B11: 8601.5 | C11: 594.24 | D11: 16 | E11: 14798.85 | F11: 17203 | G11: 1188.48 | H11: 16 | I11: 22198.27 | J11: 25804.5 | K11: 1782.72 | L11: 16 | M11: 29597.69 | N11: 34406 | O11: 2376.96 | P11: 16 | Q11: 36997.11 | R11: 43007.5 | S11: 2971.2 | T11: 16 | U11: 44396.53 | V11: 51609 | W11: 3565.44 | X11: 16
A12: 8601.51 | B12: 10298.35 | C12: 786.55 | D12: 17.92 | E12: 17203.01 | F12: =$B12*MONTH(E$2) -> 20596.7 | G12: 1573.1 | H12: 17.92 | I12: 25804.51 | J12: 30895.05 | K12: 2359.65 | L12: 17.92 | M12: 34406.01 | N12: 41193.4 | O12: 3146.2 | P12: 17.92 | Q12: 43007.51 | R12: 51491.75 | S12: 3932.75 | T12: 17.92 | U12: 51609.01 | V12: 61790.1 | W12: 4719.3 | X12: 17.92
A13: 10298.36 | B13: 20770.29 | C13: 1090.62 | D13: 21.36 | E13: 20596.71 | F13: 41540.58 | G13: 2181.24 | H13: 21.36 | I13: 30895.06 | J13: 62310.87 | K13: 3271.86 | L13: 21.36 | M13: 41193.41 | N13: 83081.16 | O13: 4362.48 | P13: 21.36 | Q13: 51491.76 | R13: 103851.45 | S13: 5453.1 | T13: 21.36 | U13: 61790.11 | V13: 124621.74 | W13: 6543.72 | X13: 21.36
A14: 20770.3 | B14: 32736.83 | C14: 3327.42 | D14: 23.52 | E14: 41540.59 | F14: 65473.66 | G14: 6654.84 | H14: 23.52 | I14: 62310.88 | J14: 98210.49 | K14: 9982.26 | L14: 23.52 | M14: 83081.17 | N14: 130947.32 | O14: 13309.68 | P14: 23.52 | Q14: 103851.46 | R14: 163684.15 | S14: 16637.1 | T14: 23.52 | U14: 124621.75 | V14: 196420.98 | W14: 19964.52 | X14: 23.52
A15: 32736.84 | B15: En adelante | C15: 5805.2 | D15: 30 | E15: 65473.67 | F15: En adelante | G15: 11610.4 | H15: 30 | I15: 98210.5 | J15: En adelante | K15: 17415.6 | L15: 30 | M15: 130947.33 | N15: En adelante | O15: 23220.8 | P15: 30 | Q15: 163684.16 | R15: En adelante | S15: 29026 | T15: 30 | U15: 196420.99 | V15: En adelante | W15: 34831.2 | X15: 30
A20: TABLA07 | E20: TABLA08 | I20: TABLA09 | M20: TABLA10 | Q20: TABLA11 | U20: TABLA12
A21: =DATE(YEAR(U2),MONTH(U2)+1,1) -> 2012-07-01 | E21: =DATE(YEAR(A21),MONTH(A21)+1,1) -> 2012-08-01 | I21: =DATE(YEAR(E21),MONTH(E21)+1,1) -> 2012-09-01 | M21: =DATE(YEAR(I21),MONTH(I21)+1,1) -> 2012-10-01 | Q21: =DATE(YEAR(M21),MONTH(M21)+1,1) -> 2012-11-01 | U21: =DATE(YEAR(Q21),MONTH(Q21)+1,1) -> 2012-12-01
A22: TARIFA ART 113 | E22: TARIFA ART 113 | I22: TARIFA ART 113 | M22: TARIFA ART 113 | Q22: TARIFA ART 113 | U22: TARIFA ART 113
A23: Límite | B23: Límite | C23: Cuota | D23: Porcentaje para aplicar | E23: Límite | F23: Límite | G23: Cuota | H23: Porcentaje para aplicar | I23: Límite | J23: Límite | K23: Cuota | L23: Porcentaje para aplicar | M23: Límite | N23: Límite | O23: Cuota | P23: Porcentaje para aplicar | Q23: Límite | R23: Límite | S23: Cuota | T23: Porcentaje para aplicar | U23: Límite | V23: Límite | W23: Cuota | X23: Porcentaje para aplicar
A24: inferior | B24: superior | C24: fija | D24: sobre el excedente L. I. | E24: inferior | F24: superior | G24: fija | H24: sobre el excedente L. I. | I24: inferior | J24: superior | K24: fija | L24: sobre el excedente L. I. | M24: inferior | N24: superior | O24: fija | P24: sobre el excedente L. I. | Q24: inferior | R24: superior | S24: fija | T24: sobre el excedente L. I. | U24: inferior | V24: superior | W24: fija | X24: sobre el excedente L. I.
A25: $ | B25: $ | C25: $ | D25: % | E25: $ | F25: $ | G25: $ | H25: % | I25: $ | J25: $ | K25: $ | L25: % | M25: $ | N25: $ | O25: $ | P25: % | Q25: $ | R25: $ | S25: $ | T25: % | U25: $ | V25: $ | W25: $ | X25: %
A27: 0.01 | B27: 3472.49 | C27: 0 | D27: 1.92 | E27: 0.01 | F27: 3968.56 | G27: 0 | H27: 1.92 | I27: 0.01 | J27: 4464.63 | K27: 0 | L27: 1.92 | M27: 0.01 | N27: 4960.7 | O27: 0 | P27: 1.92 | Q27: 0.01 | R27: 5456.77 | S27: 0 | T27: 1.92 | U27: 0.01 | V27: 5952.84 | W27: 0 | X27: 1.92
A28: 3472.5 | B28: 29472.87 | C28: 66.64 | D28: 6.4 | E28: 3968.57 | F28: 33683.28 | G28: 76.16 | H28: 6.4 | I28: 4464.64 | J28: 37893.69 | K28: 85.68 | L28: 6.4 | M28: 4960.71 | N28: 42104.1 | O28: 95.2 | P28: 6.4 | Q28: 5456.78 | R28: 46314.51 | S28: 104.72 | T28: 6.4 | U28: 5952.85 | V28: 50524.92 | W28: 114.24 | X28: 6.4
A29: 29472.88 | B29: 51795.94 | C29: 1730.61 | D29: 10.88 | E29: 33683.29 | F29: 59195.36 | G29: 1977.84 | H29: 10.88 | I29: 37893.7 | J29: 66594.78 | K29: 2225.07 | L29: 10.88 | M29: 42104.11 | N29: 73994.2 | O29: 2472.3 | P29: 10.88 | Q29: 46314.52 | R29: 81393.62 | S29: 2719.53 | T29: 10.88 | U29: 50524.93 | V29: 88793.04 | W29: 2966.76 | X29: 10.88
A30: 51795.95 | B30: 60210.5 | C30: 4159.68 | D30: 16 | E30: 59195.37 | F30: 68812 | G30: 4753.92 | H30: 16 | I30: 66594.79 | J30: 77413.5 | K30: 5348.16 | L30: 16 | M30: 73994.21 | N30: 86015 | O30: 5942.4 | P30: 16 | Q30: 81393.63 | R30: 94616.5 | S30: 6536.64 | T30: 16 | U30: 88793.05 | V30: 103218 | W30: 7130.88 | X30: 16
A31: 60210.51 | B31: 72088.45 | C31: 5505.85 | D31: 17.92 | E31: 68812.01 | F31: 82386.8 | G31: 6292.4 | H31: 17.92 | I31: 77413.51 | J31: 92685.15 | K31: 7078.95 | L31: 17.92 | M31: 86015.01 | N31: 102983.5 | O31: 7865.5 | P31: 17.92 | Q31: 94616.51 | R31: 113281.85 | S31: 8652.05 | T31: 17.92 | U31: 103218.01 | V31: 123580.2 | W31: 9438.6 | X31: 17.92
A32: 72088.46 | B32: 145392.03 | C32: 7634.34 | D32: 21.36 | E32: 82386.81 | F32: 166162.32 | G32: 8724.96 | H32: 21.36 | I32: 92685.16 | J32: 186932.61 | K32: 9815.58 | L32: 21.36 | M32: 102983.51 | N32: 207702.9 | O32: 10906.2 | P32: 21.36 | Q32: 113281.86 | R32: 228473.19 | S32: 11996.82 | T32: 21.36 | U32: 123580.21 | V32: 249243.48 | W32: 13087.44 | X32: 21.36
A33: 145392.04 | B33: 229157.81 | C33: 22248.1 | D33: 23.52 | E33: 166162.33 | F33: 261894.64 | G33: 26619.36 | H33: 23.52 | I33: 186932.62 | J33: 294631.47 | K33: 28604.7 | L33: 23.52 | M33: 207702.91 | N33: 327368.3 | O33: 31783 | P33: 23.52 | Q33: 228473.2 | R33: 360105.13 | S33: 34961.3 | T33: 23.52 | U33: 249243.49 | V33: 392841.96 | W33: 38139.6 | X33: 23.52
A34: 229157.82 | B34: En adelante | C34: 40636.4 | D34: 30 | E34: 261894.65 | F34: En adelante | G34: 49135.6 | H34: 30 | I34: 294631.48 | J34: En adelante | K34: 52246.8 | L34: 30 | M34: 327368.31 | N34: En adelante | O34: 58052 | P34: 30 | Q34: 360105.14 | R34: En adelante | S34: 63857.2 | T34: 30 | U34: 392841.97 | V34: En adelante | W34: 69662.4 | X34: 30

Sheet CATALOGO
A1: CLIENTES | C1: PRESENTACION | E1: PROVEEDORES | K1: INGRESOS DIARIOS | N1: TIPO DE DEPOSITO
A2: NUM DEL CLIENTE | B2: CLIENTE | E2: NUMERO DEL PROVEEDOR | F2: CLIENTE | G2: R.F.C | H2: NUM DE CTA | I2: CUENTA | K2: NUM DEL CLIENTE | L2: CLIENTE | N2: CODIGO | O2: TIPO DE DEPOSITO
A3: 001 | B3: ARABELA S.A. DE C.V. | C3: ARA900710AX8 | E3: 001 | F3: CARLOS | H3: 001 | K3: 001 | N3: 001 | O3: DEPOSITO EN EFECTIVO
A4: 002 | E4: 002 | H4: 002 | K4: 002 | N4: 002 | O4: DEPOSITO CON DOCUMENTOS
A5: 003 | E5: 003 | H5: 003 | K5: 003 | N5: 003 | O5: DEPOSITO CON TRANSFERENCIA
A6: 004 | E6: 004 | H6: 004 | K6: 004 | N6: 004
A7: 005 | E7: 005 | H7: 005 | K7: 005
A8: 006 | E8: 006 | H8: 006 | K8: 006
A9: 007 | E9: 007 | H9: 007 | K9: 007
A10: 008 | E10: 008 | H10: 008 | K10: 008
A11: 009 | E11: 009 | H11: 009 | K11: 009
A12: 010 | E12: 010 | H12: 010 | K12: 010
A13: 011 | E13: 011 | H13: 011 | K13: 011
A14: 012 | E14: 012 | H14: 012 | K14: 012
A15: 013 | E15: 013 | H15: 013 | K15: 013
A16: 014 | E16: 014 | H16: 014 | K16: 014
A17: 015 | E17: 015 | H17: 015 | K17: 015
A18: 016 | E18: 016 | H18: 016 | K18: 016
A19: 017 | E19: 017 | K19: 017
A20: 018 | E20: 018
A21: 019 | E21: 019
A22: 020 | E22: 020
A23: 021 | E23: 021
A24: 022 | E24: 022
A25: 023 | E25: 023
A26: 024 | E26: 024
A27: 025 | E27: 025
A28: 026 | E28: 026
A29: 027 | E29: 027
A30: 028 | E30: 028
A31: 029 | E31: 029
A32: 030 | E32: 030
A33: 031 | E33: 031
A34: 032 | E34: 032
A35: 033 | E35: 033
A36: 034 | E36: 034
A37: 035 | E37: 035
A38: 036 | E38: 036
A39: 037 | E39: 037
A40: 038 | E40: 038
A41: 039 | E41: 039
A42: 040 | E42: 040
A43: 041 | E43: 041
A44: 042 | E44: 042
A45: 043 | E45: 043
A46: 044 | E46: 044
A47: 045 | E47: 045
A48: 046 | E48: 046
A49: 047 | E49: 047
A50: 048 | E50: 048
A51: 049 | E51: 049
A52: 050 | E52: 050
A53: 051 | E53: 051
A54: 052 | E54: 052
A55: 053 | E55: 053
A56: 054 | E56: 054
A57: 055 | E57: 055
A58: 056 | E58: 056
A59: 057 | E59: 057
A60: 058 | E60: 058
A61: 059 | E61: 059
A62: 060 | E62: 060
A63: 061 | E63: 061
A64: 062 | E64: 062
A65: 063 | E65: 063
A66: 064 | E66: 064
A67: 065 | E67: 065
A68: 066 | E68: 066
A69: 067 | E69: 067
A70: 068 | E70: 068
A71: 069 | E71: 069
A72: 070 | E72: 070
A73: 071 | E73: 071
A74: 072 | E74: 072
A75: 073 | E75: 073
A76: 074 | E76: 074
A77: 075 | E77: 075
A78: 076 | E78: 076
A79: 077 | E79: 077
A80: 078 | E80: 078
A81: 079 | E81: 079
A82: 080 | E82: 080
A83: 081 | E83: 081
A84: 082 | E84: 082
A85: 083 | E85: 083
A86: 084 | E86: 084
A87: 085 | E87: 085
A88: 086 | E88: 086
A89: 087 | E89: 087
A90: 088 | E90: 088
A91: 089 | E91: 089
A92: 090 | E92: 090
A93: 091 | E93: 091
A94: 092 | E94: 092
A95: 093 | E95: 093
A96: 094 | E96: 094
A97: 095 | E97: 095
A98: 096 | E98: 096
A99: 097 | E99: 097
A100: 098 | E100: 098
A101: 099 | E101: 099
A102: 100 | E102: 100
A103: 101 | E103: 101
A104: 102 | E104: 102
A105: 103 | E105: 103
A106: 104 | E106: 104
A107: 105 | E107: 105
A108: 106 | E108: 106
A109: 107 | E109: 107
A110: 108 | E110: 108
A111: 109 | E111: 109
A112: 110 | E112: 110
A113: 111 | E113: 111
A114: 112 | E114: 112
A115: 113 | E115: 113
A116: 114 | E116: 114
A117: 115 | E117: 115
A118: 116 | E118: 116
A119: 117 | E119: 117
A120: 118 | E120: 118
A121: 119 | E121: 119
A122: 120 | E122: 120
A123: 121 | E123: 121
A124: 122 | E124: 122
A125: 123 | E125: 123
A126: 124 | E126: 124
A127: 125 | E127: 125
A128: 126 | E128: 126
A129: 127 | E129: 127
A130: 128 | E130: 128
A131: 129 | E131: 129
A132: 130 | E132: 130
A133: 131 | E133: 131
A134: 132 | E134: 132
A135: 133 | E135: 133
A136: 134 | E136: 134
A137: 135 | E137: 135
A138: 136 | E138: 136
A139: 137 | E139: 137
A140: 138 | E140: 138
A141: 139 | E141: 139
A142: 140 | E142: 140
A143: 141 | E143: 141
A144: 142 | E144: 142
A145: 143 | E145: 143
A146: 144 | E146: 144
A147: 145 | E147: 145
A148: 146 | E148: 146
A149: 147 | E149: 147
A150: 148 | E150: 148
A151: 149 | E151: 149
A152: 150 | E152: 150
A153: 151 | E153: 151
A154: 152 | E154: 152
A155: 153 | E155: 153
A156: 154 | E156: 154
A157: 155 | E157: 155
A158: 156 | E158: 156
A159: 157 | E159: 157
A160: 158 | E160: 158
A161: 159
A162: 160
A163: 161
A164: 162
A165: 163
A166: 164
A167: 165
A168: 166
A169: 167
A170: 168
A171: 169
A172: 170
A173: 171
A174: 172
A175: 173
A176: 174
A177: 175
A178: 176
A179: 177
A180: 178
A181: 179
A182: 180
A183: 181
A184: 182
A185: 183
A186: 184
A187: 185
A188: 186
A189: 187
A190: 188
A191: 189
A192: 190
A193: 191
A194: 192
A195: 193
A196: 194
A197: 195
A198: 196
A199: 197
A200: 198
... 144 more rows

Sheet INGRESOS DIARIOS
D1: PRESENTACION
D3: =+Hoja4!B4 -> carlos baez medina
D5: =+Hoja4!H4 -> BAMC791005K70
D7: VENTAS DIARIAS
K8: INGRESOS
A9: NOTA DE VENTA | B9: FECHA | C9: No clie | D9: CLIENTE | E9: UNIDAD | F9: OPERADOR | G9: PESO | H9: CUOTA UNITARIA | I9: IMPORTE | J9: IVA 16% | K9: EXENTOS DE IVA | L9: GRAVADOS | M9: FECHA PAGO | N9: MES FISCAL | P9: MES CORRESPONDIENTE | Q9: OBSEVACIONES
C10: 001 | D10: =VLOOKUP(C10,CATALOGO!$A$3:$B$66,2) -> ARABELA S.A. DE C.V. | I10: =SUM((L10/1.15)+K10) -> 0 | N10: =IF(M10<>0,DATE(M10>0,MONTH(M10),1),"") ->  | O10: =IF(#REF!<>0,DATE(#REF!>0,MONTH(#REF!),1),"") ->  | P10: =IF(B10<>0,DATE(B10>0,MONTH(B10),1),"") -> 
C11: 003 | D11: =VLOOKUP(C11,CATALOGO!$A$3:$B$66,2) -> 0 | I11: =SUM((L11/1.15)+K11) -> 0 | N11: =IF(M11<>0,DATE(M11>0,MONTH(M11),1),"") ->  | P11: =IF(B11<>0,DATE(B11>0,MONTH(B11),1),"") -> 
C12: 002 | D12: =VLOOKUP(C12,CATALOGO!$A$3:$B$66,2) -> 0 | I12: 0
C13: 001 | D13: =VLOOKUP(C13,CATALOGO!$A$3:$B$66,2) -> ARABELA S.A. DE C.V. | I13: 0
C14: 004 | D14: =VLOOKUP(C14,CATALOGO!$A$3:$B$66,2) -> 0 | I14: 0
C15: 005 | D15: =VLOOKUP(C15,CATALOGO!$A$3:$B$66,2) -> 0 | I15: 0
C16: 006 | D16: =VLOOKUP(C16,CATALOGO!$A$3:$B$66,2) -> 0 | I16: 0
C17: 007 | D17: =VLOOKUP(C17,CATALOGO!$A$3:$B$66,2) -> 0 | I17: 0
C18: 008 | D18: =VLOOKUP(C18,CATALOGO!$A$3:$B$66,2) -> 0 | I18: 0
C19: 009 | D19: =VLOOKUP(C19,CATALOGO!$A$3:$B$66,2) -> 0 | I19: 0
C20: 010 | D20: =VLOOKUP(C20,CATALOGO!$A$3:$B$66,2) -> 0 | I20: 0
C21: 012 | D21: =VLOOKUP(C21,CATALOGO!$A$3:$B$66,2) -> 0 | I21: 0
C22: 013 | D22: =VLOOKUP(C22,CATALOGO!$A$3:$B$66,2) -> 0 | I22: 0
C23: 014 | D23: =VLOOKUP(C23,CATALOGO!$A$3:$B$66,2) -> 0 | I23: 0
C24: 007 | D24: =VLOOKUP(C24,CATALOGO!$A$3:$B$66,2) -> 0 | I24: 0
C25: 007 | D25: =VLOOKUP(C25,CATALOGO!$A$3:$B$66,2) -> 0 | I25: 0
C26: 016 | D26: =VLOOKUP(C26,CATALOGO!$A$3:$B$66,2) -> 0 | I26: 0
C27: 018 | D27: =VLOOKUP(C27,CATALOGO!$A$3:$B$66,2) -> 0 | I27: 0
C28: 019 | D28: =VLOOKUP(C28,CATALOGO!$A$3:$B$66,2) -> 0 | I28: 0
C29: 012 | D29: =VLOOKUP(C29,CATALOGO!$A$3:$B$66,2) -> 0 | I29: 0
C30: 021 | D30: =VLOOKUP(C30,CATALOGO!$A$3:$B$66,2) -> 0 | I30: 0
D31: =VLOOKUP(C31,CATALOGO!$A$3:$B$66,2) ->  | I31: 0 | J31: =+(L31)/1.16*0.16 -> 0
D32: =VLOOKUP(C32,CATALOGO!$A$3:$B$66,2) ->  | I32: 0 | J32: 0
D33: =VLOOKUP(C33,CATALOGO!$A$3:$B$66,2) ->  | I33: 0 | J33: 0
D34: =VLOOKUP(C34,CATALOGO!$A$3:$B$66,2) ->  | I34: 0 | J34: 0
D35: =VLOOKUP(C35,CATALOGO!$A$3:$B$66,2) ->  | I35: 0 | J35: 0
D36: =VLOOKUP(C36,CATALOGO!$A$3:$B$66,2) ->  | I36: 0 | J36: 0
D37: =VLOOKUP(C37,CATALOGO!$A$3:$B$66,2) ->  | I37: 0 | J37: 0
D38: =VLOOKUP(C38,CATALOGO!$A$3:$B$66,2) ->  | I38: 0 | J38: 0
D39: =VLOOKUP(C39,CATALOGO!$A$3:$B$66,2) ->  | I39: 0 | J39: 0
D40: =VLOOKUP(C40,CATALOGO!$A$3:$B$66,2) ->  | I40: 0 | J40: 0
D41: =VLOOKUP(C41,CATALOGO!$A$3:$B$66,2) ->  | I41: 0 | J41: 0
D42: =VLOOKUP(C42,CATALOGO!$A$3:$B$66,2) ->  | I42: 0 | J42: 0
D43: =VLOOKUP(C43,CATALOGO!$A$3:$B$66,2) ->  | I43: 0 | J43: 0
D44: =VLOOKUP(C44,CATALOGO!$A$3:$B$66,2) ->  | I44: 0 | J44: 0
D45: =VLOOKUP(C45,CATALOGO!$A$3:$B$66,2) ->  | I45: 0 | J45: 0
D46: =VLOOKUP(C46,CATALOGO!$A$3:$B$66,2) ->  | I46: 0 | J46: 0
D47: =VLOOKUP(C47,CATALOGO!$A$3:$B$66,2) ->  | I47: 0 | J47: 0
D48: =VLOOKUP(C48,CATALOGO!$A$3:$B$66,2) ->  | I48: 0 | J48: 0
D49: =VLOOKUP(C49,CATALOGO!$A$3:$B$66,2) ->  | I49: 0 | J49: 0
D50: =VLOOKUP(C50,CATALOGO!$A$3:$B$66,2) ->  | I50: 0 | J50: 0
D51: =VLOOKUP(C51,CATALOGO!$A$3:$B$66,2) ->  | I51: 0 | J51: 0
D52: =VLOOKUP(C52,CATALOGO!$A$3:$B$66,2) ->  | I52: 0 | J52: 0
D53: =VLOOKUP(C53,CATALOGO!$A$3:$B$66,2) ->  | I53: 0 | J53: 0
D54: =VLOOKUP(C54,CATALOGO!$A$3:$B$66,2) ->  | I54: 0 | J54: 0
D55: =VLOOKUP(C55,CATALOGO!$A$3:$B$66,2) ->  | I55: 0 | J55: 0
D56: =VLOOKUP(C56,CATALOGO!$A$3:$B$66,2) ->  | I56: 0 | J56: 0
D57: =VLOOKUP(C57,CATALOGO!$A$3:$B$66,2) ->  | I57: 0 | J57: 0
D58: =VLOOKUP(C58,CATALOGO!$A$3:$B$66,2) ->  | I58: 0 | J58: 0
D59: =VLOOKUP(C59,CATALOGO!$A$3:$B$66,2) ->  | I59: 0 | J59: 0
D60: =VLOOKUP(C60,CATALOGO!$A$3:$B$66,2) ->  | I60: 0 | J60: 0
D61: =VLOOKUP(C61,CATALOGO!$A$3:$B$66,2) ->  | I61: 0 | J61: 0
D62: =VLOOKUP(C62,CATALOGO!$A$3:$B$66,2) ->  | I62: 0 | J62: 0
D63: =VLOOKUP(C63,CATALOGO!$A$3:$B$66,2) ->  | I63: 0 | J63: 0
D64: =VLOOKUP(C64,CATALOGO!$A$3:$B$66,2) ->  | I64: 0 | J64: 0
D65: =VLOOKUP(C65,CATALOGO!$A$3:$B$66,2) ->  | I65: 0 | J65: 0
D66: =VLOOKUP(C66,CATALOGO!$A$3:$B$66,2) ->  | I66: =SUM((L66/1.15)+K66) -> 0 | J66: 0
D67: =VLOOKUP(C67,CATALOGO!$A$3:$B$66,2) ->  | I67: 0 | J67: 0
D68: =VLOOKUP(C68,CATALOGO!$A$3:$B$66,2) ->  | I68: 0 | J68: 0
D69: =VLOOKUP(C69,CATALOGO!$A$3:$B$66,2) ->  | I69: 0 | J69: 0
D70: =VLOOKUP(C70,CATALOGO!$A$3:$B$66,2) ->  | I70: 0 | J70: 0
D71: =VLOOKUP(C71,CATALOGO!$A$3:$B$66,2) ->  | I71: 0 | J71: 0
D72: =VLOOKUP(C72,CATALOGO!$A$3:$B$66,2) ->  | I72: 0 | J72: 0
D73: =VLOOKUP(C73,CATALOGO!$A$3:$B$66,2) ->  | I73: 0 | J73: 0
D74: =VLOOKUP(C74,CATALOGO!$A$3:$B$66,2) ->  | I74: 0 | J74: 0
D75: =VLOOKUP(C75,CATALOGO!$A$3:$B$66,2) ->  | I75: =SUM((L75/1.15)+K75) -> 0 | J75: 0 | N75: =IF(M75<>0,DATE(M75>0,MONTH(M75),1),"") ->  | P75: =IF(B75<>0,DATE(B75>0,MONTH(B75),1),"") -> 
D76: =VLOOKUP(C76,CATALOGO!$A$3:$B$66,2) ->  | I76: 0 | J76: =+(L76)/1.16*0.16 -> 0
D77: =VLOOKUP(C77,CATALOGO!$A$3:$B$66,2) ->  | I77: 0 | J77: 0
D78: =VLOOKUP(C78,CATALOGO!$A$3:$B$66,2) ->  | I78: 0 | J78: 0
D79: =VLOOKUP(C79,CATALOGO!$A$3:$B$66,2) ->  | I79: 0 | J79: 0
D80: =VLOOKUP(C80,CATALOGO!$A$3:$B$66,2) ->  | I80: 0 | J80: 0
D81: =VLOOKUP(C81,CATALOGO!$A$3:$B$66,2) ->  | I81: 0 | J81: 0
D82: =VLOOKUP(C82,CATALOGO!$A$3:$B$66,2) ->  | I82: 0 | J82: 0
D83: =VLOOKUP(C83,CATALOGO!$A$3:$B$66,2) ->  | I83: 0 | J83: 0
D84: =VLOOKUP(C84,CATALOGO!$A$3:$B$66,2) ->  | I84: 0 | J84: 0
D85: =VLOOKUP(C85,CATALOGO!$A$3:$B$66,2) ->  | I85: 0 | J85: 0
D86: =VLOOKUP(C86,CATALOGO!$A$3:$B$66,2) ->  | I86: 0 | J86: 0
D87: =VLOOKUP(C87,CATALOGO!$A$3:$B$66,2) ->  | I87: 0 | J87: 0
D88: =VLOOKUP(C88,CATALOGO!$A$3:$B$66,2) ->  | I88: 0 | J88: 0
D89: =VLOOKUP(C89,CATALOGO!$A$3:$B$66,2) ->  | I89: 0 | J89: 0
D90: =VLOOKUP(C90,CATALOGO!$A$3:$B$66,2) ->  | I90: 0 | J90: 0
D91: =VLOOKUP(C91,CATALOGO!$A$3:$B$66,2) ->  | I91: 0 | J91: 0
D92: =VLOOKUP(C92,CATALOGO!$A$3:$B$66,2) ->  | I92: 0 | J92: 0
D93: =VLOOKUP(C93,CATALOGO!$A$3:$B$66,2) ->  | I93: 0 | J93: 0
D94: =VLOOKUP(C94,CATALOGO!$A$3:$B$66,2) ->  | I94: 0 | J94: 0
D95: =VLOOKUP(C95,CATALOGO!$A$3:$B$66,2) ->  | I95: 0 | J95: 0
D96: =VLOOKUP(C96,CATALOGO!$A$3:$B$66,2) ->  | I96: 0 | J96: 0
D97: =VLOOKUP(C97,CATALOGO!$A$3:$B$66,2) ->  | I97: 0 | J97: 0
D98: =VLOOKUP(C98,CATALOGO!$A$3:$B$66,2) ->  | I98: 0 | J98: 0
D99: =VLOOKUP(C99,CATALOGO!$A$3:$B$66,2) ->  | I99: 0 | J99: 0
D100: =VLOOKUP(C100,CATALOGO!$A$3:$B$66,2) ->  | I100: 0 | J100: 0
D101: =VLOOKUP(C101,CATALOGO!$A$3:$B$66,2) ->  | I101: 0 | J101: 0
D102: =VLOOKUP(C102,CATALOGO!$A$3:$B$66,2) ->  | I102: 0 | J102: 0
D103: =VLOOKUP(C103,CATALOGO!$A$3:$B$66,2) ->  | I103: 0 | J103: 0
D104: =VLOOKUP(C104,CATALOGO!$A$3:$B$66,2) ->  | I104: 0 | J104: 0
D105: =VLOOKUP(C105,CATALOGO!$A$3:$B$66,2) ->  | I105: 0 | J105: 0
D106: =VLOOKUP(C106,CATALOGO!$A$3:$B$66,2) ->  | I106: 0 | J106: 0
D107: =VLOOKUP(C107,CATALOGO!$A$3:$B$66,2) ->  | I107: 0 | J107: 0
D108: =VLOOKUP(C108,CATALOGO!$A$3:$B$66,2) ->  | I108: 0 | J108: 0
D109: =VLOOKUP(C109,CATALOGO!$A$3:$B$66,2) ->  | I109: 0 | J109: 0
D110: =VLOOKUP(C110,CATALOGO!$A$3:$B$66,2) ->  | I110: 0 | J110: 0
D111: =VLOOKUP(C111,CATALOGO!$A$3:$B$66,2) ->  | I111: 0 | J111: 0
D112: =VLOOKUP(C112,CATALOGO!$A$3:$B$66,2) ->  | I112: 0 | J112: 0
D113: =VLOOKUP(C113,CATALOGO!$A$3:$B$66,2) ->  | I113: 0 | J113: 0
D114: =VLOOKUP(C114,CATALOGO!$A$3:$B$66,2) ->  | I114: 0 | J114: 0
D115: =VLOOKUP(C115,CATALOGO!$A$3:$B$66,2) ->  | I115: 0 | J115: 0
D116: =VLOOKUP(C116,CATALOGO!$A$3:$B$66,2) ->  | I116: 0 | J116: 0
D117: =VLOOKUP(C117,CATALOGO!$A$3:$B$66,2) ->  | I117: 0 | J117: 0
D118: =VLOOKUP(C118,CATALOGO!$A$3:$B$66,2) ->  | I118: 0 | J118: 0
D119: =VLOOKUP(C119,CATALOGO!$A$3:$B$66,2) ->  | I119: 0 | J119: 0
D120: =VLOOKUP(C120,CATALOGO!$A$3:$B$66,2) ->  | I120: 0 | J120: 0
D121: =VLOOKUP(C121,CATALOGO!$A$3:$B$66,2) ->  | I121: 0 | J121: 0
D122: =VLOOKUP(C122,CATALOGO!$A$3:$B$66,2) ->  | I122: 0 | J122: 0
D123: =VLOOKUP(C123,CATALOGO!$A$3:$B$66,2) ->  | I123: 0 | J123: 0
D124: =VLOOKUP(C124,CATALOGO!$A$3:$B$66,2) ->  | I124: 0 | J124: 0
D125: =VLOOKUP(C125,CATALOGO!$A$3:$B$66,2) ->  | I125: 0 | J125: 0
D126: =VLOOKUP(C126,CATALOGO!$A$3:$B$66,2) ->  | I126: 0 | J126: 0
D127: =VLOOKUP(C127,CATALOGO!$A$3:$B$66,2) ->  | I127: 0 | J127: 0
D128: =VLOOKUP(C128,CATALOGO!$A$3:$B$66,2) ->  | I128: 0 | J128: 0
D129: =VLOOKUP(C129,CATALOGO!$A$3:$B$66,2) ->  | I129: 0 | J129: 0
D130: =VLOOKUP(C130,CATALOGO!$A$3:$B$66,2) ->  | I130: 0 | J130: 0
D131: =VLOOKUP(C131,CATALOGO!$A$3:$B$66,2) ->  | I131: 0 | J131: 0
D132: =VLOOKUP(C132,CATALOGO!$A$3:$B$66,2) ->  | I132: 0 | J132: 0
D133: =VLOOKUP(C133,CATALOGO!$A$3:$B$66,2) ->  | I133: 0 | J133: 0
D134: =VLOOKUP(C134,CATALOGO!$A$3:$B$66,2) ->  | I134: 0 | J134: 0
D135: =VLOOKUP(C135,CATALOGO!$A$3:$B$66,2) ->  | I135: 0 | J135: 0
D136: =VLOOKUP(C136,CATALOGO!$A$3:$B$66,2) ->  | I136: 0 | J136: 0
D137: =VLOOKUP(C137,CATALOGO!$A$3:$B$66,2) ->  | I137: 0 | J137: 0
D138: =VLOOKUP(C138,CATALOGO!$A$3:$B$66,2) ->  | I138: 0 | J138: 0
D139: =VLOOKUP(C139,CATALOGO!$A$3:$B$66,2) ->  | I139: =SUM((L139/1.15)+K139) -> 0 | J139: 0 | N139: =IF(M139<>0,DATE(M139>0,MONTH(M139),1),"") ->  | P139: =IF(B139<>0,DATE(B139>0,MONTH(B139),1),"") -> 
D140: =VLOOKUP(C140,CATALOGO!$A$3:$B$66,2) ->  | I140: 0 | J140: =+(L140)/1.16*0.16 -> 0
D141: =VLOOKUP(C141,CATALOGO!$A$3:$B$66,2) ->  | I141: 0 | J141: 0
D142: =VLOOKUP(C142,CATALOGO!$A$3:$B$66,2) ->  | I142: 0 | J142: 0
D143: =VLOOKUP(C143,CATALOGO!$A$3:$B$66,2) ->  | I143: 0 | J143: 0
D144: =VLOOKUP(C144,CATALOGO!$A$3:$B$66,2) ->  | I144: 0 | J144: 0
D145: =VLOOKUP(C145,CATALOGO!$A$3:$B$66,2) ->  | I145: 0 | J145: 0
D146: =VLOOKUP(C146,CATALOGO!$A$3:$B$66,2) ->  | I146: 0 | J146: 0
D147: =VLOOKUP(C147,CATALOGO!$A$3:$B$66,2) ->  | I147: 0 | J147: 0
D148: =VLOOKUP(C148,CATALOGO!$A$3:$B$66,2) ->  | I148: 0 | J148: 0
D149: =VLOOKUP(C149,CATALOGO!$A$3:$B$66,2) ->  | I149: 0 | J149: 0
D150: =VLOOKUP(C150,CATALOGO!$A$3:$B$66,2) ->  | I150: 0 | J150: 0
D151: =VLOOKUP(C151,CATALOGO!$A$3:$B$66,2) ->  | I151: 0 | J151: 0
D152: =VLOOKUP(C152,CATALOGO!$A$3:$B$66,2) ->  | I152: 0 | J152: 0
D153: =VLOOKUP(C153,CATALOGO!$A$3:$B$66,2) ->  | I153: 0 | J153: 0
D154: =VLOOKUP(C154,CATALOGO!$A$3:$B$66,2) ->  | I154: 0 | J154: 0
D155: =VLOOKUP(C155,CATALOGO!$A$3:$B$66,2) ->  | I155: 0 | J155: 0
D156: =VLOOKUP(C156,CATALOGO!$A$3:$B$66,2) ->  | I156: 0 | J156: 0
D157: =VLOOKUP(C157,CATALOGO!$A$3:$B$66,2) ->  | I157: 0 | J157: 0
D158: =VLOOKUP(C158,CATALOGO!$A$3:$B$66,2) ->  | I158: 0 | J158: 0
D159: =VLOOKUP(C159,CATALOGO!$A$3:$B$66,2) ->  | I159: 0 | J159: 0
D160: =VLOOKUP(C160,CATALOGO!$A$3:$B$66,2) ->  | I160: 0 | J160: 0
D161: =VLOOKUP(C161,CATALOGO!$A$3:$B$66,2) ->  | I161: 0 | J161: 0
D162: =VLOOKUP(C162,CATALOGO!$A$3:$B$66,2) ->  | I162: 0 | J162: 0
D163: =VLOOKUP(C163,CATALOGO!$A$3:$B$66,2) ->  | I163: 0 | J163: 0
D164: =VLOOKUP(C164,CATALOGO!$A$3:$B$66,2) ->  | I164: 0 | J164: 0
D165: =VLOOKUP(C165,CATALOGO!$A$3:$B$66,2) ->  | I165: 0 | J165: 0
D166: =VLOOKUP(C166,CATALOGO!$A$3:$B$66,2) ->  | I166: 0 | J166: 0
D167: =VLOOKUP(C167,CATALOGO!$A$3:$B$66,2) ->  | I167: 0 | J167: 0
D168: =VLOOKUP(C168,CATALOGO!$A$3:$B$66,2) ->  | I168: 0 | J168: 0
D169: =VLOOKUP(C169,CATALOGO!$A$3:$B$66,2) ->  | I169: 0 | J169: 0
D170: =VLOOKUP(C170,CATALOGO!$A$3:$B$66,2) ->  | I170: 0 | J170: 0
D171: =VLOOKUP(C171,CATALOGO!$A$3:$B$66,2) ->  | I171: 0 | J171: 0
D172: =VLOOKUP(C172,CATALOGO!$A$3:$B$66,2) ->  | I172: 0 | J172: 0
D173: =VLOOKUP(C173,CATALOGO!$A$3:$B$66,2) ->  | I173: 0 | J173: 0
D174: =VLOOKUP(C174,CATALOGO!$A$3:$B$66,2) ->  | I174: 0 | J174: 0
D175: =VLOOKUP(C175,CATALOGO!$A$3:$B$66,2) ->  | I175: 0 | J175: 0
D176: =VLOOKUP(C176,CATALOGO!$A$3:$B$66,2) ->  | I176: 0 | J176: 0
D177: =VLOOKUP(C177,CATALOGO!$A$3:$B$66,2) ->  | I177: 0 | J177: 0
D178: =VLOOKUP(C178,CATALOGO!$A$3:$B$66,2) ->  | I178: 0 | J178: 0
D179: =VLOOKUP(C179,CATALOGO!$A$3:$B$66,2) ->  | I179: 0 | J179: 0
D180: =VLOOKUP(C180,CATALOGO!$A$3:$B$66,2) ->  | I180: 0 | J180: 0
D181: =VLOOKUP(C181,CATALOGO!$A$3:$B$66,2) ->  | I181: 0 | J181: 0
D182: =VLOOKUP(C182,CATALOGO!$A$3:$B$66,2) ->  | I182: 0 | J182: 0
D183: =VLOOKUP(C183,CATALOGO!$A$3:$B$66,2) ->  | I183: 0 | J183: 0
D184: =VLOOKUP(C184,CATALOGO!$A$3:$B$66,2) ->  | I184: 0 | J184: 0
D185: =VLOOKUP(C185,CATALOGO!$A$3:$B$66,2) ->  | I185: 0 | J185: 0
D186: =VLOOKUP(C186,CATALOGO!$A$3:$B$66,2) ->  | I186: 0 | J186: 0
D187: =VLOOKUP(C187,CATALOGO!$A$3:$B$66,2) ->  | I187: 0 | J187: 0
D188: =VLOOKUP(C188,CATALOGO!$A$3:$B$66,2) ->  | I188: 0 | J188: 0
D189: =VLOOKUP(C189,CATALOGO!$A$3:$B$66,2) ->  | I189: 0 | J189: 0
D190: =VLOOKUP(C190,CATALOGO!$A$3:$B$66,2) ->  | I190: 0 | J190: 0
D191: =VLOOKUP(C191,CATALOGO!$A$3:$B$66,2) ->  | I191: 0 | J191: 0
D192: =VLOOKUP(C192,CATALOGO!$A$3:$B$66,2) ->  | I192: 0 | J192: 0
D193: =VLOOKUP(C193,CATALOGO!$A$3:$B$66,2) ->  | I193: 0 | J193: 0
D194: =VLOOKUP(C194,CATALOGO!$A$3:$B$66,2) ->  | I194: 0 | J194: 0
D195: =VLOOKUP(C195,CATALOGO!$A$3:$B$66,2) ->  | I195: 0 | J195: 0
D196: =VLOOKUP(C196,CATALOGO!$A$3:$B$66,2) ->  | I196: 0 | J196: 0
D197: =VLOOKUP(C197,CATALOGO!$A$3:$B$66,2) ->  | I197: 0 | J197: 0
D198: =VLOOKUP(C198,CATALOGO!$A$3:$B$66,2) ->  | I198: 0 | J198: 0
D199: =VLOOKUP(C199,CATALOGO!$A$3:$B$66,2) ->  | I199: 0 | J199: 0
D200: =VLOOKUP(C200,CATALOGO!$A$3:$B$66,2) ->  | I200: 0 | J200: 0
D201: =VLOOKUP(C201,CATALOGO!$A$3:$B$66,2) ->  | I201: 0 | J201: 0
D202: =VLOOKUP(C202,CATALOGO!$A$3:$B$66,2) ->  | I202: 0 | J202: 0
D203: =VLOOKUP(C203,CATALOGO!$A$3:$B$66,2) ->  | I203: =SUM((L203/1.15)+K203) -> 0 | J203: 0 | N203: =IF(M203<>0,DATE(M203>0,MONTH(M203),1),"") ->  | P203: =IF(B203<>0,DATE(B203>0,MONTH(B203),1),"") -> 
... 4294 more rows

Sheet INGRESOS FACT
D1: PRESENTACION
D3: =+Hoja4!B4 -> carlos baez medina
D5: =+Hoja4!H4 -> BAMC791005K70
D7: CONSECUTIVO DE FACTURAS
G9: INGRESOS
A10: FACTURA | B10: FECHA | C10: No clie | D10: CLIENTE | E10: UNIDAD | F10: OPERADOR | G10: EXENTOS DE IVA | H10: GRAVADOS | I10: IMPORTE | J10: IVA | K10: 0.1 | L10: iva retenido 10% | M10: 0.1 | N10: isr retenido 10% | O10: TOTAL | P10: FECHA PAGO | Q10: MES FISCAL | S10: AÑO | T10: MES CORRESPONDIENTE | U10: OBSEVACIONES
A11: 1 | C11: 001 | D11: =VLOOKUP(C11,CATALOGO!$A$3:$B$60000,2) -> ARABELA S.A. DE C.V. | H11: 950000 | I11: =+H11+G11 -> 950000 | J11: =+H11*16% -> 152000 | L11: =IF(K11=10%,(H11*10%),0) -> 0 | N11: =IF(K11=10%,(H11*10%),0) -> 0 | O11: =SUM(J11+I11-L11-N11) -> 1102000 | P11: 2012-01-01 | Q11: =IF(P11<>0,DATE(P11>0,MONTH(P11),1),"") -> 1901-01-01 | S11: =IF(B11>0,DATE(YEAR(B11),1,1),"") ->  | T11: =IF(B11<>0,DATE(B11>0,MONTH(B11),1),"") -> 
A12: =+A11+1 -> 2 | C12: 0 | D12: =VLOOKUP(C12,CATALOGO!$A$3:$B$60000,2) ->  | H12: 81000 | I12: 81000 | J12: 12960 | O12: 93960 | P12: 2012-02-01 | Q12: 1901-02-01 | S12: =IF(B12>0,DATE(YEAR(B12),1,1),"") ->  | T12: =IF(B12<>0,DATE(B12>0,MONTH(B12),1),"") -> 
A13: 3 | C13: 0 | D13: =VLOOKUP(C13,CATALOGO!$A$3:$B$60000,2) ->  | H13: 36300 | I13: 36300 | J13: 5808 | L13: 0 | N13: 0 | O13: 42108 | P13: 2012-03-01 | Q13: 1901-03-01
A14: 4 | C14: 0 | D14: =VLOOKUP(C14,CATALOGO!$A$3:$B$60000,2) ->  | H14: 4900 | I14: 4900 | J14: 784 | L14: 0 | N14: 0 | O14: 5684 | P14: 2012-04-01 | Q14: 1901-04-01
A15: 5 | C15: 0 | D15: =VLOOKUP(C15,CATALOGO!$A$3:$B$60000,2) ->  | H15: 789000 | I15: 789000 | J15: 126240 | L15: 0 | N15: 0 | O15: 915240 | P15: 2012-05-01 | Q15: 1901-05-01
A16: 6 | C16: 0 | D16: =VLOOKUP(C16,CATALOGO!$A$3:$B$60000,2) ->  | H16: =+H15+20 -> 789020 | I16: 789020 | J16: 126243.2 | L16: 0 | N16: 0 | O16: 915263.2 | P16: 2012-06-01 | Q16: 1901-06-01
A17: 10 | C17: 0 | D17: =VLOOKUP(C17,CATALOGO!$A$3:$B$60000,2) ->  | H17: =+H16-300 -> 788720 | I17: 788720 | J17: 126195.2 | L17: 0 | N17: 0 | O17: 914915.2 | P17: 2012-07-01 | Q17: 1901-07-01
A18: 14 | C18: 0 | D18: =VLOOKUP(C18,CATALOGO!$A$3:$B$60000,2) ->  | I18: 0 | J18: 0 | L18: 0 | N18: 0 | O18: 0 | P18: 2012-08-01 | Q18: 1901-08-01
A19: 15 | C19: 0 | D19: =VLOOKUP(C19,CATALOGO!$A$3:$B$60000,2) ->  | I19: 0 | J19: 0 | L19: 0 | N19: 0 | O19: 0 | P19: 2012-09-01 | Q19: 1901-09-01
A20: 19 | C20: 0 | D20: =VLOOKUP(C20,CATALOGO!$A$3:$B$60000,2) ->  | I20: 0 | J20: 0 | L20: 0 | N20: 0 | O20: 0 | P20: 2012-10-01 | Q20: 1901-10-01
A21: 20 | C21: 0 | D21: =VLOOKUP(C21,CATALOGO!$A$3:$B$60000,2) ->  | I21: 0 | J21: 0 | L21: 0 | N21: 0 | O21: 0 | P21: 2012-11-01 | Q21: 1901-11-01
A22: 24 | C22: 0 | D22: =VLOOKUP(C22,CATALOGO!$A$3:$B$60000,2) ->  | I22: 0 | J22: 0 | L22: 0 | N22: 0 | O22: 0 | P22: 2012-12-01 | Q22: 1901-12-01
A23: 25 | C23: 0 | D23: =VLOOKUP(C23,CATALOGO!$A$3:$B$60000,2) ->  | I23: 0 | J23: 0 | L23: 0 | N23: 0 | O23: 0
A24: 26 | C24: 0 | D24: =VLOOKUP(C24,CATALOGO!$A$3:$B$60000,2) ->  | I24: 0 | J24: 0 | L24: 0 | N24: 0 | O24: 0
A25: 27 | C25: 0 | D25: =VLOOKUP(C25,CATALOGO!$A$3:$B$60000,2) ->  | I25: 0 | J25: 0 | L25: 0 | N25: 0 | O25: 0
A26: 29 | C26: 0 | D26: =VLOOKUP(C26,CATALOGO!$A$3:$B$60000,2) ->  | I26: 0 | J26: 0 | L26: 0 | N26: 0 | O26: 0
A27: 32 | C27: 0 | D27: =VLOOKUP(C27,CATALOGO!$A$3:$B$60000,2) ->  | I27: 0 | J27: 0 | L27: 0 | N27: 0 | O27: 0
A28: 38 | C28: 0 | D28: =VLOOKUP(C28,CATALOGO!$A$3:$B$60000,2) ->  | I28: 0 | J28: 0 | L28: 0 | N28: 0 | O28: 0
A29: 39 | C29: 0 | D29: =VLOOKUP(C29,CATALOGO!$A$3:$B$60000,2) ->  | I29: 0 | J29: 0 | L29: 0 | N29: 0 | O29: 0
A30: 40 | C30: 0 | D30: =VLOOKUP(C30,CATALOGO!$A$3:$B$60000,2) ->  | I30: 0 | J30: 0 | L30: 0 | N30: 0 | O30: 0
A31: 43 | C31: 0 | D31: =VLOOKUP(C31,CATALOGO!$A$3:$B$60000,2) ->  | I31: 0 | J31: 0 | L31: 0 | N31: 0 | O31: 0
A32: 45 | D32: =VLOOKUP(C32,CATALOGO!$A$3:$B$60000,2) ->  | I32: 0 | J32: 0 | L32: 0 | N32: 0 | O32: 0
A33: =+A32+1 -> 46 | D33: =VLOOKUP(C33,CATALOGO!$A$3:$B$60000,2) ->  | I33: 0 | J33: 0 | L33: 0 | N33: 0 | O33: 0
A34: 47 | D34: =VLOOKUP(C34,CATALOGO!$A$3:$B$60000,2) ->  | I34: 0 | J34: 0 | L34: 0 | N34: 0 | O34: 0
A35: 48 | D35: =VLOOKUP(C35,CATALOGO!$A$3:$B$60000,2) ->  | I35: 0 | J35: 0 | L35: 0 | N35: 0 | O35: 0
A36: 49 | D36: =VLOOKUP(C36,CATALOGO!$A$3:$B$60000,2) ->  | I36: 0 | J36: 0 | L36: 0 | N36: 0 | O36: 0
A37: 50 | D37: =VLOOKUP(C37,[2]CATALOGO!$A$3:$B$60000,2) ->  | I37: 0 | J37: 0 | L37: 0 | N37: 0 | O37: 0
A38: 51 | D38: =VLOOKUP(C38,[2]CATALOGO!$A$3:$B$60000,2) ->  | I38: 0 | J38: 0 | L38: 0 | N38: 0 | O38: 0
A39: 789 | D39: =VLOOKUP(C39,[2]CATALOGO!$A$3:$B$60000,2) ->  | I39: 0 | J39: 0 | L39: 0 | N39: 0 | O39: 0
A40: =+A39+1 -> 790 | D40: =VLOOKUP(C40,[2]CATALOGO!$A$3:$B$60000,2) ->  | I40: 0 | J40: 0 | L40: 0 | N40: 0 | O40: 0
A41: =+A40+1 -> 791 | D41: =VLOOKUP(C41,[2]CATALOGO!$A$3:$B$60000,2) ->  | I41: 0 | J41: 0 | L41: 0 | N41: 0 | O41: 0
A42: 771 | D42: =VLOOKUP(C42,[2]CATALOGO!$A$3:$B$60000,2) ->  | I42: 0 | J42: 0 | L42: 0 | N42: 0 | O42: 0
A43: 778 | D43: =VLOOKUP(C43,[2]CATALOGO!$A$3:$B$60000,2) ->  | I43: 0 | J43: 0 | L43: 0 | N43: 0 | O43: 0
A44: 794 | D44: =VLOOKUP(C44,[2]CATALOGO!$A$3:$B$60000,2) ->  | I44: 0 | J44: 0 | L44: 0 | N44: 0 | O44: 0
A45: 792 | D45: =VLOOKUP(C45,[2]CATALOGO!$A$3:$B$60000,2) ->  | I45: 0 | J45: 0 | L45: 0 | N45: 0 | O45: 0
A46: =+A45+1 -> 793 | D46: =VLOOKUP(C46,[2]CATALOGO!$A$3:$B$60000,2) ->  | I46: 0 | J46: 0 | L46: 0 | N46: 0 | O46: 0
A47: =+A46+1 -> 794 | D47: =VLOOKUP(C47,[2]CATALOGO!$A$3:$B$60000,2) ->  | I47: 0 | J47: 0 | L47: 0 | N47: 0 | O47: 0
A48: =+A47+1 -> 795 | D48: =VLOOKUP(C48,[2]CATALOGO!$A$3:$B$60000,2) ->  | I48: 0 | J48: 0 | L48: 0 | N48: 0 | O48: 0
A49: =+A48+1 -> 796 | D49: =VLOOKUP(C49,[2]CATALOGO!$A$3:$B$60000,2) ->  | I49: 0 | J49: 0 | L49: 0 | N49: 0 | O49: 0
A50: 803 | D50: =VLOOKUP(C50,[2]CATALOGO!$A$3:$B$60000,2) ->  | I50: 0 | J50: 0 | L50: 0 | N50: 0 | O50: 0
A51: =+A50+1 -> 804 | D51: =VLOOKUP(C51,[2]CATALOGO!$A$3:$B$60000,2) ->  | I51: 0 | J51: 0 | L51: 0 | N51: 0 | O51: 0
A52: =+A51+1 -> 805 | D52: =VLOOKUP(C52,[2]CATALOGO!$A$3:$B$60000,2) ->  | I52: 0 | J52: 0 | L52: 0 | N52: 0 | O52: 0
A53: =+A52+1 -> 806 | D53: =VLOOKUP(C53,CATALOGO!$A$3:$B$60000,2) ->  | I53: =+H53+G53 -> 0 | J53: =+H53*16% -> 0 | L53: =IF(K53=10%,(H53*10%),0) -> 0 | N53: =IF(K53=10%,(H53*10%),0) -> 0 | O53: =SUM(J53+I53-L53-N53) -> 0 | Q53: =IF(P53<>0,DATE(P53>0,MONTH(P53),1),"") ->  | S53: =IF(B53>0,DATE(YEAR(B53),1,1),"") ->  | T53: =IF(B53<>0,DATE(B53>0,MONTH(B53),1),"") -> 
A54: 840 | D54: =VLOOKUP(C54,CATALOGO!$A$3:$B$60000,2) ->  | I54: 0 | J54: 0 | L54: 0 | N54: 0 | O54: 0
A55: 841 | D55: =VLOOKUP(C55,CATALOGO!$A$3:$B$60000,2) ->  | I55: 0 | J55: 0 | L55: 0 | N55: 0 | O55: 0
A56: 846 | D56: =VLOOKUP(C56,CATALOGO!$A$3:$B$60000,2) ->  | I56: 0 | J56: 0 | L56: 0 | N56: 0 | O56: 0
A57: 847 | D57: =VLOOKUP(C57,CATALOGO!$A$3:$B$60000,2) ->  | I57: 0 | J57: 0 | L57: 0 | N57: 0 | O57: 0
A58: 848 | D58: =VLOOKUP(C58,CATALOGO!$A$3:$B$60000,2) ->  | I58: 0 | J58: 0 | L58: 0 | N58: 0 | O58: 0
A59: 849 | D59: =VLOOKUP(C59,CATALOGO!$A$3:$B$60000,2) ->  | I59: 0 | J59: 0 | L59: 0 | N59: 0 | O59: 0
A60: 850 | D60: =VLOOKUP(C60,CATALOGO!$A$3:$B$60000,2) ->  | I60: 0 | J60: 0 | L60: 0 | N60: 0 | O60: 0
A61: 851 | D61: =VLOOKUP(C61,CATALOGO!$A$3:$B$60000,2) ->  | I61: 0 | J61: 0 | L61: 0 | N61: 0 | O61: 0
A62: 852 | D62: =VLOOKUP(C62,CATALOGO!$A$3:$B$60000,2) ->  | I62: 0 | J62: 0 | L62: 0 | N62: 0 | O62: 0
A63: 853 | D63: =VLOOKUP(C63,CATALOGO!$A$3:$B$60000,2) ->  | I63: 0 | J63: 0 | L63: 0 | N63: 0 | O63: 0
A64: 854 | D64: =VLOOKUP(C64,CATALOGO!$A$3:$B$60000,2) ->  | I64: 0 | J64: 0 | L64: 0 | N64: 0 | O64: 0
A65: 855 | D65: =VLOOKUP(C65,CATALOGO!$A$3:$B$60000,2) ->  | I65: 0 | J65: 0 | L65: 0 | N65: 0 | O65: 0
A66: 856 | D66: =VLOOKUP(C66,CATALOGO!$A$3:$B$60000,2) ->  | I66: 0 | J66: 0 | L66: 0 | N66: 0 | O66: 0
A67: 857 | D67: =VLOOKUP(C67,CATALOGO!$A$3:$B$60000,2) ->  | I67: 0 | J67: 0 | L67: 0 | N67: 0 | O67: 0
A68: 858 | D68: =VLOOKUP(C68,CATALOGO!$A$3:$B$60000,2) ->  | I68: 0 | J68: 0 | L68: 0 | N68: 0 | O68: 0
A69: 859 | D69: =VLOOKUP(C69,CATALOGO!$A$3:$B$60000,2) ->  | I69: 0 | J69: 0 | L69: 0 | N69: 0 | O69: 0
A70: 860 | D70: =VLOOKUP(C70,CATALOGO!$A$3:$B$60000,2) ->  | I70: 0 | J70: 0 | L70: 0 | N70: 0 | O70: 0
A71: 861 | D71: =VLOOKUP(C71,CATALOGO!$A$3:$B$60000,2) ->  | I71: 0 | J71: 0 | L71: 0 | N71: 0 | O71: 0
A72: 862 | D72: =VLOOKUP(C72,CATALOGO!$A$3:$B$60000,2) ->  | I72: 0 | J72: 0 | L72: 0 | N72: 0 | O72: 0
A73: 863 | D73: =VLOOKUP(C73,CATALOGO!$A$3:$B$60000,2) ->  | I73: 0 | J73: 0 | L73: 0 | N73: 0 | O73: 0
A74: 864 | D74: =VLOOKUP(C74,CATALOGO!$A$3:$B$60000,2) ->  | I74: 0 | J74: 0 | L74: 0 | N74: 0 | O74: 0
A75: 865 | D75: =VLOOKUP(C75,CATALOGO!$A$3:$B$60000,2) ->  | I75: 0 | J75: 0 | L75: 0 | N75: 0 | O75: 0
A76: 866 | D76: =VLOOKUP(C76,CATALOGO!$A$3:$B$60000,2) ->  | I76: 0 | J76: =+H76*16% -> 0 | L76: =IF(K76=10%,(H76*10%),0) -> 0 | N76: 0 | O76: =SUM(J76+I76-L76-N76) -> 0
A77: 867 | D77: =VLOOKUP(C77,CATALOGO!$A$3:$B$60000,2) ->  | I77: =+H77+G77 -> 0 | J77: 0 | L77: 0 | N77: =IF(K77=10%,(H77*10%),0) -> 0 | O77: 0 | Q77: =IF(P77<>0,DATE(P77>0,MONTH(P77),1),"") ->  | S77: =IF(B77>0,DATE(YEAR(B77),1,1),"") ->  | T77: =IF(B77<>0,DATE(B77>0,MONTH(B77),1),"") -> 
A78: 868 | D78: =VLOOKUP(C78,CATALOGO!$A$3:$B$60000,2) ->  | I78: 0 | J78: 0 | L78: 0 | N78: 0 | O78: 0
A79: =+A78+1 -> 869 | D79: =VLOOKUP(C79,CATALOGO!$A$3:$B$60000,2) ->  | I79: 0 | J79: 0 | L79: 0 | N79: 0 | O79: 0
A80: 870 | D80: =VLOOKUP(C80,CATALOGO!$A$3:$B$60000,2) ->  | I80: 0 | J80: 0 | L80: 0 | N80: 0 | O80: 0
A81: 871 | D81: =VLOOKUP(C81,CATALOGO!$A$3:$B$60000,2) ->  | I81: 0 | J81: 0 | L81: 0 | N81: 0 | O81: 0
A82: 872 | D82: =VLOOKUP(C82,CATALOGO!$A$3:$B$60000,2) ->  | I82: 0 | J82: 0 | L82: 0 | N82: 0 | O82: 0
A83: 873 | D83: =VLOOKUP(C83,CATALOGO!$A$3:$B$60000,2) ->  | I83: =+H83+G83 -> 0 | J83: 0 | L83: 0 | N83: 0 | O83: 0
A84: 874 | D84: =VLOOKUP(C84,CATALOGO!$A$3:$B$60000,2) ->  | I84: =+H84+G84 -> 0 | J84: 0 | L84: 0 | N84: 0 | O84: 0
A85: 875 | D85: =VLOOKUP(C85,CATALOGO!$A$3:$B$60000,2) ->  | I85: =+H85+G85 -> 0 | J85: 0 | L85: 0 | N85: 0 | O85: 0
A86: 876 | D86: =VLOOKUP(C86,CATALOGO!$A$3:$B$60000,2) ->  | I86: 0 | J86: 0 | L86: 0 | N86: 0 | O86: 0
A87: 877 | D87: =VLOOKUP(C87,CATALOGO!$A$3:$B$60000,2) ->  | I87: 0 | J87: 0 | L87: 0 | N87: 0 | O87: 0
A88: 878 | D88: =VLOOKUP(C88,CATALOGO!$A$3:$B$60000,2) ->  | I88: 0 | J88: 0 | L88: 0 | N88: 0 | O88: 0
A89: 879 | D89: =VLOOKUP(C89,CATALOGO!$A$3:$B$60000,2) ->  | I89: 0 | J89: 0 | L89: 0 | N89: 0 | O89: 0
A90: 880 | D90: =VLOOKUP(C90,CATALOGO!$A$3:$B$60000,2) ->  | I90: 0 | J90: 0 | L90: 0 | N90: 0 | O90: 0
A91: 881 | D91: =VLOOKUP(C91,CATALOGO!$A$3:$B$60000,2) ->  | I91: 0 | J91: 0 | L91: 0 | N91: 0 | O91: 0
A92: 882 | D92: =VLOOKUP(C92,CATALOGO!$A$3:$B$60000,2) ->  | I92: 0 | J92: 0 | L92: 0 | N92: 0 | O92: 0
A93: 883 | D93: =VLOOKUP(C93,CATALOGO!$A$3:$B$60000,2) ->  | I93: 0 | J93: 0 | L93: 0 | N93: 0 | O93: 0
A94: 884 | D94: =VLOOKUP(C94,CATALOGO!$A$3:$B$60000,2) ->  | I94: 0 | J94: 0 | L94: 0 | N94: 0 | O94: 0
A95: 885 | D95: =VLOOKUP(C95,CATALOGO!$A$3:$B$60000,2) ->  | I95: 0 | J95: 0 | L95: 0 | N95: 0 | O95: 0
A96: 886 | D96: =VLOOKUP(C96,CATALOGO!$A$3:$B$60000,2) ->  | I96: 0 | J96: 0 | L96: 0 | N96: 0 | O96: 0
A97: 887 | D97: =VLOOKUP(C97,CATALOGO!$A$3:$B$60000,2) ->  | I97: 0 | J97: 0 | L97: 0 | N97: 0 | O97: 0
A98: 888 | D98: =VLOOKUP(C98,CATALOGO!$A$3:$B$60000,2) ->  | I98: 0 | J98: 0 | L98: 0 | N98: 0 | O98: 0
A99: 889 | D99: =VLOOKUP(C99,CATALOGO!$A$3:$B$60000,2) ->  | I99: 0 | J99: 0 | L99: 0 | N99: 0 | O99: 0
A100: 890 | D100: =VLOOKUP(C100,CATALOGO!$A$3:$B$60000,2) ->  | I100: 0 | J100: 0 | L100: 0 | N100: 0 | O100: 0
A101: 891 | D101: =VLOOKUP(C101,CATALOGO!$A$3:$B$60000,2) ->  | I101: 0 | J101: 0 | L101: 0 | N101: 0 | O101: 0
A102: 892 | D102: =VLOOKUP(C102,CATALOGO!$A$3:$B$60000,2) ->  | I102: 0 | J102: 0 | L102: 0 | N102: 0 | O102: 0
A103: 893 | D103: =VLOOKUP(C103,CATALOGO!$A$3:$B$60000,2) ->  | I103: 0 | J103: 0 | L103: 0 | N103: 0 | O103: 0
A104: 894 | D104: =VLOOKUP(C104,CATALOGO!$A$3:$B$60000,2) ->  | I104: 0 | J104: 0 | L104: 0 | N104: 0 | O104: 0
A105: 895 | D105: =VLOOKUP(C105,CATALOGO!$A$3:$B$60000,2) ->  | I105: 0 | J105: 0 | L105: 0 | N105: 0 | O105: 0
A106: 896 | D106: =VLOOKUP(C106,CATALOGO!$A$3:$B$60000,2) ->  | I106: 0 | J106: 0 | L106: 0 | N106: 0 | O106: 0
A107: 897 | D107: =VLOOKUP(C107,CATALOGO!$A$3:$B$60000,2) ->  | I107: 0 | J107: 0 | L107: 0 | N107: 0 | O107: 0
A108: 898 | D108: =VLOOKUP(C108,CATALOGO!$A$3:$B$60000,2) ->  | I108: 0 | J108: 0 | L108: =IF(K108=10%,(H108*10%),0) -> 0 | N108: 0 | O108: =SUM(J108+I108-L108-N108) -> 0
A109: 899 | D109: =VLOOKUP(C109,CATALOGO!$A$3:$B$60000,2) ->  | I109: 0 | J109: 0 | L109: 0 | N109: =IF(K109=10%,(H109*10%),0) -> 0 | O109: 0 | S109: =IF(B109>0,DATE(YEAR(B109),1,1),"") ->  | T109: =IF(B109<>0,DATE(B109>0,MONTH(B109),1),"") -> 
A110: 900 | D110: =VLOOKUP(C110,CATALOGO!$A$3:$B$60000,2) ->  | I110: 0 | J110: 0 | L110: 0 | N110: 0 | O110: 0
A111: 901 | D111: =VLOOKUP(C111,CATALOGO!$A$3:$B$60000,2) ->  | I111: 0 | J111: 0 | L111: 0 | N111: 0 | O111: 0
A112: 902 | D112: =VLOOKUP(C112,CATALOGO!$A$3:$B$60000,2) ->  | I112: 0 | J112: 0 | L112: 0 | N112: 0 | O112: 0
A113: 903 | D113: =VLOOKUP(C113,CATALOGO!$A$3:$B$60000,2) ->  | I113: 0 | J113: 0 | L113: 0 | N113: 0 | O113: 0
A114: 904 | D114: =VLOOKUP(C114,CATALOGO!$A$3:$B$60000,2) ->  | I114: 0 | J114: 0 | L114: 0 | N114: 0 | O114: 0
A115: 905 | D115: =VLOOKUP(C115,CATALOGO!$A$3:$B$60000,2) ->  | I115: 0 | J115: 0 | L115: 0 | N115: 0 | O115: 0
A116: 906 | D116: =VLOOKUP(C116,CATALOGO!$A$3:$B$60000,2) ->  | I116: 0 | J116: 0 | L116: 0 | N116: 0 | O116: 0
A117: 907 | D117: =VLOOKUP(C117,CATALOGO!$A$3:$B$60000,2) ->  | I117: 0 | J117: 0 | L117: 0 | N117: 0 | O117: 0
A118: 908 | D118: =VLOOKUP(C118,CATALOGO!$A$3:$B$60000,2) ->  | I118: 0 | J118: 0 | L118: 0 | N118: 0 | O118: 0
A119: 909 | D119: =VLOOKUP(C119,CATALOGO!$A$3:$B$60000,2) ->  | I119: 0 | J119: 0 | L119: 0 | N119: 0 | O119: 0
A120: 910 | D120: =VLOOKUP(C120,CATALOGO!$A$3:$B$60000,2) ->  | I120: 0 | J120: 0 | L120: 0 | N120: 0 | O120: 0
A121: 911 | D121: =VLOOKUP(C121,CATALOGO!$A$3:$B$60000,2) ->  | I121: 0 | J121: 0 | L121: 0 | N121: 0 | O121: 0
A122: 912 | D122: =VLOOKUP(C122,CATALOGO!$A$3:$B$60000,2) ->  | I122: 0 | J122: 0 | L122: 0 | N122: 0 | O122: 0
A123: 913 | D123: =VLOOKUP(C123,CATALOGO!$A$3:$B$60000,2) ->  | I123: 0 | J123: 0 | L123: 0 | N123: 0 | O123: 0
A124: 914 | D124: =VLOOKUP(C124,CATALOGO!$A$3:$B$60000,2) ->  | I124: 0 | J124: 0 | L124: 0 | N124: 0 | O124: 0
A125: 915 | D125: =VLOOKUP(C125,CATALOGO!$A$3:$B$60000,2) ->  | I125: 0 | J125: 0 | L125: 0 | N125: 0 | O125: 0
A126: 916 | D126: =VLOOKUP(C126,CATALOGO!$A$3:$B$60000,2) ->  | I126: 0 | J126: 0 | L126: 0 | N126: 0 | O126: 0
A127: 917 | D127: =VLOOKUP(C127,CATALOGO!$A$3:$B$60000,2) ->  | I127: 0 | J127: 0 | L127: 0 | N127: 0 | O127: 0
A128: 918 | D128: =VLOOKUP(C128,CATALOGO!$A$3:$B$60000,2) ->  | I128: 0 | J128: 0 | L128: 0 | N128: 0 | O128: 0
A129: 919 | D129: =VLOOKUP(C129,CATALOGO!$A$3:$B$60000,2) ->  | I129: 0 | J129: 0 | L129: 0 | N129: 0 | O129: 0
A130: 920 | D130: =VLOOKUP(C130,CATALOGO!$A$3:$B$60000,2) ->  | I130: 0 | J130: 0 | L130: 0 | N130: 0 | O130: 0
A131: 921 | D131: =VLOOKUP(C131,CATALOGO!$A$3:$B$60000,2) ->  | I131: 0 | J131: 0 | L131: 0 | N131: 0 | O131: 0
A132: 922 | D132: =VLOOKUP(C132,CATALOGO!$A$3:$B$60000,2) ->  | I132: 0 | J132: 0 | L132: 0 | N132: 0 | O132: 0
A133: 923 | D133: =VLOOKUP(C133,CATALOGO!$A$3:$B$60000,2) ->  | I133: 0 | J133: 0 | L133: 0 | N133: 0 | O133: 0
A134: 924 | D134: =VLOOKUP(C134,CATALOGO!$A$3:$B$60000,2) ->  | I134: 0 | J134: 0 | L134: 0 | N134: 0 | O134: 0
A135: 925 | D135: =VLOOKUP(C135,CATALOGO!$A$3:$B$60000,2) ->  | I135: 0 | J135: 0 | L135: 0 | N135: 0 | O135: 0
A136: 926 | D136: =VLOOKUP(C136,CATALOGO!$A$3:$B$60000,2) ->  | I136: 0 | J136: 0 | L136: 0 | N136: 0 | O136: 0
A137: 927 | D137: =VLOOKUP(C137,CATALOGO!$A$3:$B$60000,2) ->  | I137: 0 | J137: 0 | L137: 0 | N137: 0 | O137: 0
A138: 928 | D138: =VLOOKUP(C138,CATALOGO!$A$3:$B$60000,2) ->  | I138: 0 | J138: 0 | L138: 0 | N138: 0 | O138: 0
A139: 929 | D139: =VLOOKUP(C139,CATALOGO!$A$3:$B$60000,2) ->  | I139: 0 | J139: 0 | L139: =IF(K139=10%,(H139*10%),0) -> 0 | N139: =IF(K139=10%,(H139*10%),0) -> 0 | O139: =SUM(J139+I139-L139-N139) -> 0 | S139: =IF(B139>0,DATE(YEAR(B139),1,1),"") ->  | T139: =IF(B139<>0,DATE(B139>0,MONTH(B139),1),"") -> 
A140: 930 | D140: =VLOOKUP(C140,CATALOGO!$A$3:$B$60000,2) ->  | I140: 0 | J140: =+H140*16% -> 0 | L140: =IF(K140=10%,(H140*10%),0) -> 0 | N140: =IF(K140=10%,(H140*10%),0) -> 0 | O140: =SUM(J140+I140-L140-N140) -> 0 | S140: =IF(B140>0,DATE(YEAR(B140),1,1),"") ->  | T140: =IF(B140<>0,DATE(B140>0,MONTH(B140),1),"") -> 
A141: 931 | D141: =VLOOKUP(C141,CATALOGO!$A$3:$B$60000,2) ->  | I141: =+H141+G141 -> 0 | J141: 0 | L141: =IF(K141=10%,(H141*10%),0) -> 0 | N141: =IF(K141=10%,(H141*10%),0) -> 0 | O141: =SUM(J141+I141-L141-N141) -> 0 | Q141: =IF(P141<>0,DATE(P141>0,MONTH(P141),1),"") ->  | S141: =IF(B141>0,DATE(YEAR(B141),1,1),"") ->  | T141: =IF(B141<>0,DATE(B141>0,MONTH(B141),1),"") -> 
A142: 932 | D142: =VLOOKUP(C142,CATALOGO!$A$3:$B$60000,2) ->  | I142: 0 | J142: 0 | L142: 0 | N142: 0 | O142: 0
A143: =+A142+1 -> 933 | D143: =VLOOKUP(C143,CATALOGO!$A$3:$B$60000,2) ->  | I143: 0 | J143: 0 | L143: 0 | N143: 0 | O143: 0
A144: 934 | D144: =VLOOKUP(C144,CATALOGO!$A$3:$B$60000,2) ->  | I144: 0 | J144: 0 | L144: 0 | N144: 0 | O144: 0
A145: 935 | D145: =VLOOKUP(C145,CATALOGO!$A$3:$B$60000,2) ->  | I145: 0 | J145: 0 | L145: 0 | N145: 0 | O145: 0
A146: 936 | D146: =VLOOKUP(C146,CATALOGO!$A$3:$B$60000,2) ->  | I146: 0 | J146: 0 | L146: 0 | N146: 0 | O146: 0
A147: 937 | D147: =VLOOKUP(C147,CATALOGO!$A$3:$B$60000,2) ->  | I147: 0 | J147: 0 | L147: 0 | N147: 0 | O147: 0
A148: 938 | D148: =VLOOKUP(C148,CATALOGO!$A$3:$B$60000,2) ->  | I148: 0 | J148: 0 | L148: 0 | N148: 0 | O148: 0
A149: 939 | D149: =VLOOKUP(C149,CATALOGO!$A$3:$B$60000,2) ->  | I149: 0 | J149: 0 | L149: 0 | N149: 0 | O149: 0
A150: 940 | D150: =VLOOKUP(C150,CATALOGO!$A$3:$B$60000,2) ->  | I150: 0 | J150: 0 | L150: 0 | N150: 0 | O150: 0
A151: 941 | D151: =VLOOKUP(C151,CATALOGO!$A$3:$B$60000,2) ->  | I151: 0 | J151: 0 | L151: 0 | N151: 0 | O151: 0
A152: 942 | D152: =VLOOKUP(C152,CATALOGO!$A$3:$B$60000,2) ->  | I152: 0 | J152: 0 | L152: 0 | N152: 0 | O152: 0
A153: 943 | D153: =VLOOKUP(C153,CATALOGO!$A$3:$B$60000,2) ->  | I153: 0 | J153: 0 | L153: 0 | N153: 0 | O153: 0
A154: 944 | D154: =VLOOKUP(C154,CATALOGO!$A$3:$B$60000,2) ->  | I154: 0 | J154: 0 | L154: 0 | N154: 0 | O154: 0
A155: 945 | D155: =VLOOKUP(C155,CATALOGO!$A$3:$B$60000,2) ->  | I155: 0 | J155: 0 | L155: 0 | N155: 0 | O155: 0
A156: 946 | D156: =VLOOKUP(C156,CATALOGO!$A$3:$B$60000,2) ->  | I156: 0 | J156: 0 | L156: 0 | N156: 0 | O156: 0
A157: 947 | D157: =VLOOKUP(C157,CATALOGO!$A$3:$B$60000,2) ->  | I157: 0 | J157: 0 | L157: 0 | N157: 0 | O157: 0
A158: 948 | D158: =VLOOKUP(C158,CATALOGO!$A$3:$B$60000,2) ->  | I158: 0 | J158: 0 | L158: 0 | N158: 0 | O158: 0
A159: 949 | D159: =VLOOKUP(C159,CATALOGO!$A$3:$B$60000,2) ->  | I159: 0 | J159: 0 | L159: 0 | N159: 0 | O159: 0
A160: 950 | D160: =VLOOKUP(C160,CATALOGO!$A$3:$B$60000,2) ->  | I160: 0 | J160: 0 | L160: 0 | N160: 0 | O160: 0
A161: 951 | D161: =VLOOKUP(C161,CATALOGO!$A$3:$B$60000,2) ->  | I161: 0 | J161: 0 | L161: 0 | N161: 0 | O161: 0
A162: 952 | D162: =VLOOKUP(C162,CATALOGO!$A$3:$B$60000,2) ->  | I162: 0 | J162: 0 | L162: 0 | N162: 0 | O162: 0
A163: 953 | D163: =VLOOKUP(C163,CATALOGO!$A$3:$B$60000,2) ->  | I163: 0 | J163: 0 | L163: 0 | N163: 0 | O163: 0
A164: 954 | D164: =VLOOKUP(C164,CATALOGO!$A$3:$B$60000,2) ->  | I164: 0 | J164: 0 | L164: 0 | N164: 0 | O164: 0
A165: 955 | D165: =VLOOKUP(C165,CATALOGO!$A$3:$B$60000,2) ->  | I165: 0 | J165: 0 | L165: 0 | N165: 0 | O165: 0
A166: 956 | D166: =VLOOKUP(C166,CATALOGO!$A$3:$B$60000,2) ->  | I166: 0 | J166: 0 | L166: 0 | N166: 0 | O166: 0
A167: 957 | D167: =VLOOKUP(C167,CATALOGO!$A$3:$B$60000,2) ->  | I167: 0 | J167: 0 | L167: 0 | N167: 0 | O167: 0
A168: 958 | D168: =VLOOKUP(C168,CATALOGO!$A$3:$B$60000,2) ->  | I168: 0 | J168: 0 | L168: 0 | N168: 0 | O168: 0
A169: 959 | D169: =VLOOKUP(C169,CATALOGO!$A$3:$B$60000,2) ->  | I169: 0 | J169: 0 | L169: 0 | N169: 0 | O169: 0
A170: 960 | D170: =VLOOKUP(C170,CATALOGO!$A$3:$B$60000,2) ->  | I170: 0 | J170: 0 | L170: 0 | N170: 0 | O170: 0
A171: 961 | D171: =VLOOKUP(C171,CATALOGO!$A$3:$B$60000,2) ->  | I171: 0 | J171: 0 | L171: 0 | N171: 0 | O171: 0
A172: 962 | D172: =VLOOKUP(C172,CATALOGO!$A$3:$B$60000,2) ->  | I172: 0 | J172: 0 | L172: 0 | N172: 0 | O172: 0
A173: 963 | D173: =VLOOKUP(C173,CATALOGO!$A$3:$B$60000,2) ->  | I173: 0 | J173: 0 | L173: 0 | N173: 0 | O173: 0
A174: 964 | D174: =VLOOKUP(C174,CATALOGO!$A$3:$B$60000,2) ->  | I174: 0 | J174: 0 | L174: 0 | N174: 0 | O174: 0
A175: 965 | D175: =VLOOKUP(C175,CATALOGO!$A$3:$B$60000,2) ->  | I175: 0 | J175: 0 | L175: 0 | N175: 0 | O175: 0
A176: 966 | D176: =VLOOKUP(C176,CATALOGO!$A$3:$B$60000,2) ->  | I176: 0 | J176: 0 | L176: 0 | N176: 0 | O176: 0
A177: 967 | D177: =VLOOKUP(C177,CATALOGO!$A$3:$B$60000,2) ->  | I177: 0 | J177: 0 | L177: 0 | N177: 0 | O177: 0
A178: 968 | D178: =VLOOKUP(C178,CATALOGO!$A$3:$B$60000,2) ->  | I178: 0 | J178: 0 | L178: 0 | N178: 0 | O178: 0
A179: 969 | D179: =VLOOKUP(C179,CATALOGO!$A$3:$B$60000,2) ->  | I179: =+H179+G179 -> 0 | J179: 0 | L179: 0 | N179: 0 | O179: 0
A180: 970 | D180: =VLOOKUP(C180,CATALOGO!$A$3:$B$60000,2) ->  | I180: 0 | J180: 0 | L180: 0 | N180: 0 | O180: 0
A181: 971 | D181: =VLOOKUP(C181,CATALOGO!$A$3:$B$60000,2) ->  | I181: 0 | J181: 0 | L181: 0 | N181: 0 | O181: 0
A182: 972 | D182: =VLOOKUP(C182,CATALOGO!$A$3:$B$60000,2) ->  | I182: 0 | J182: 0 | L182: 0 | N182: 0 | O182: 0
A183: 973 | D183: =VLOOKUP(C183,CATALOGO!$A$3:$B$60000,2) ->  | I183: 0 | J183: 0 | L183: 0 | N183: 0 | O183: 0
A184: 974 | D184: =VLOOKUP(C184,CATALOGO!$A$3:$B$60000,2) ->  | I184: 0 | J184: 0 | L184: 0 | N184: 0 | O184: 0
A185: 975 | D185: =VLOOKUP(C185,CATALOGO!$A$3:$B$60000,2) ->  | I185: 0 | J185: 0 | L185: 0 | N185: 0 | O185: 0
A186: 976 | D186: =VLOOKUP(C186,CATALOGO!$A$3:$B$60000,2) ->  | I186: 0 | J186: 0 | L186: 0 | N186: 0 | O186: 0
A187: 977 | D187: =VLOOKUP(C187,CATALOGO!$A$3:$B$60000,2) ->  | I187: 0 | J187: 0 | L187: 0 | N187: 0 | O187: 0
A188: 978 | D188: =VLOOKUP(C188,CATALOGO!$A$3:$B$60000,2) ->  | I188: 0 | J188: 0 | L188: 0 | N188: 0 | O188: 0
A189: 979 | D189: =VLOOKUP(C189,CATALOGO!$A$3:$B$60000,2) ->  | I189: 0 | J189: 0 | L189: 0 | N189: 0 | O189: 0
A190: 980 | D190: =VLOOKUP(C190,CATALOGO!$A$3:$B$60000,2) ->  | I190: 0 | J190: 0 | L190: 0 | N190: 0 | O190: 0
A191: 981 | D191: =VLOOKUP(C191,CATALOGO!$A$3:$B$60000,2) ->  | I191: 0 | J191: 0 | L191: 0 | N191: 0 | O191: 0
A192: 982 | D192: =VLOOKUP(C192,CATALOGO!$A$3:$B$60000,2) ->  | I192: 0 | J192: 0 | L192: 0 | N192: 0 | O192: 0
A193: 983 | D193: =VLOOKUP(C193,CATALOGO!$A$3:$B$60000,2) ->  | I193: 0 | J193: 0 | L193: 0 | N193: 0 | O193: 0
A194: 984 | D194: =VLOOKUP(C194,CATALOGO!$A$3:$B$60000,2) ->  | I194: 0 | J194: 0 | L194: 0 | N194: 0 | O194: 0
A195: 985 | D195: =VLOOKUP(C195,CATALOGO!$A$3:$B$60000,2) ->  | I195: 0 | J195: 0 | L195: 0 | N195: 0 | O195: 0
A196: 986 | D196: =VLOOKUP(C196,CATALOGO!$A$3:$B$60000,2) ->  | I196: 0 | J196: 0 | L196: 0 | N196: 0 | O196: 0
A197: 987 | D197: =VLOOKUP(C197,CATALOGO!$A$3:$B$60000,2) ->  | I197: 0 | J197: 0 | L197: 0 | N197: 0 | O197: 0
A198: 988 | D198: =VLOOKUP(C198,CATALOGO!$A$3:$B$60000,2) ->  | I198: 0 | J198: 0 | L198: 0 | N198: 0 | O198: 0
A199: 989 | D199: =VLOOKUP(C199,CATALOGO!$A$3:$B$60000,2) ->  | I199: 0 | J199: 0 | L199: 0 | N199: 0 | O199: 0
A200: 990 | D200: =VLOOKUP(C200,CATALOGO!$A$3:$B$60000,2) ->  | I200: 0 | J200: 0 | L200: 0 | N200: 0 | O200: 0
A201: 991 | D201: =VLOOKUP(C201,CATALOGO!$A$3:$B$60000,2) ->  | I201: 0 | J201: 0 | L201: 0 | N201: 0 | O201: 0
A202: 992 | D202: =VLOOKUP(C202,CATALOGO!$A$3:$B$60000,2) ->  | I202: 0 | J202: 0 | L202: 0 | N202: 0 | O202: 0
A203: 993 | D203: =VLOOKUP(C203,CATALOGO!$A$3:$B$60000,2) ->  | I203: 0 | J203: 0 | L203: 0 | N203: 0 | O203: 0
A204: 994 | D204: =VLOOKUP(C204,CATALOGO!$A$3:$B$60000,2) ->  | I204: 0 | J204: =+H204*16% -> 0 | L204: 0 | N204: 0 | O204: 0
... 4294 more rows

Sheet EGRESOS
E1: PRESENTACION
A3: =+Hoja4!B4 -> carlos baez medina
A4: EJERCICIO FISCAL DEL 2012
A5: RELACION DE COMPRAS (GASTOS) MENSUALES
K7: COMPRAS (GASTOS) | M7: C O M P R A S | O7: DESCUENTOS Y BONIFICASIONES
A8: FACTURA | B8: FECHA | C8: No PROV | E8: PROVEEDOR | F8: UNIDAD | G8: OPERADOR | H8: PESO | I8: NUM DE CTA | J8: CUENTA | K8: EXENTOS DE IVA | L8: GRAVADOS DE IVA | M8: COMPRAS TASA 0% | N8: COMPRAS TASA 16% | O8: DESCUENTOS 0% | P8: DESCUENTOS 16% | Q8: IVA DE DESCIENTOS | R8: RETENSIONES ISPT | S8: IMPORTE | T8: IVA | U8: TOTAL | V8: RET ISR | W8: ISR 10% | X8: RET IVA | Y8: IVA 10% | Z8: RET OVA | AA8: IVA 4% | AB8: FECHA PAGO | AC8: MES FISCAL | AE8: MES CORRESPONDIENTE | AF8: AÑO | AG8: OBSEVACIONES
C9: 001 | D9: =IF(C9>"000",1,0) -> 1 | E9: =VLOOKUP(C9,CATALOGO!$E$3:$F$60000,2) -> CARLOS | J9: =VLOOKUP(I9,[3]CATALOGO!$G$3:$H$60000,2) ->  | L9: 800000 | Q9: =+P9*0.15 -> 0 | S9: =+K9+L9+M9+N9-O9-P9-R9 -> 800000 | T9: =SUM(L9*16%,N9*16%)-Q9 -> 128000 | U9: =+S9+T9 -> 928000 | W9: =IF(V9="SI",SUM(L9*10%),0) -> 0 | Y9: =IF(X9="SI",SUM(L9*10%),0) -> 0 | AA9: =IF(Z9="SI",SUM(L9*4%),0) -> 0 | AB9: 2012-01-01 | AC9: =IF(AB9<>0,DATE(AB9>0,MONTH(AB9),1),"") -> 1901-01-01 | AE9: =IF(B9>0,DATE(YEAR(B9),MONTH(B9),1),"") ->  | AF9: =IF(B9>0,DATE(YEAR(B9),1,1),"") -> 
D10: 0 | E10: =VLOOKUP(C10,CATALOGO!$E$3:$F$60000,2) ->  | J10: =VLOOKUP(I10,[3]CATALOGO!$G$3:$H$60000,2) ->  | N10: =+L9+50000 -> 850000 | Q10: =+P10*0.15 -> 0 | S10: 850000 | T10: =SUM(L10*16%,N10*16%)-Q10 -> 136000 | U10: =+S10+T10 -> 986000 | W10: 0 | Y10: 0 | AA10: 0 | AB10: 2012-02-01 | AC10: =IF(AB10<>0,DATE(AB10>0,MONTH(AB10),1),"") -> 1901-02-01 | AE10: =IF(B10>0,DATE(YEAR(B10),MONTH(B10),1),"") -> 
D11: 0 | E11: =VLOOKUP(C11,CATALOGO!$E$3:$F$60000,2) ->  | J11: =VLOOKUP(I11,[3]CATALOGO!$G$3:$H$60000,2) ->  | L11: =+L9+30000 -> 830000 | Q11: =+P11*0.15 -> 0 | S11: 830000 | T11: =SUM(L11*16%,N11*16%)-Q11 -> 132800 | U11: =+S11+T11 -> 962800 | W11: 0 | Y11: 0 | AA11: 0 | AB11: 2012-03-01 | AC11: 1901-03-01 | AE11: =IF(B11>0,DATE(YEAR(B11),MONTH(B11),1),"") -> 
D12: 0 | E12: =VLOOKUP(C12,CATALOGO!$E$3:$F$60000,2) ->  | J12: =VLOOKUP(I12,[3]CATALOGO!$G$3:$H$60000,2) ->  | Q12: =+P12*0.15 -> 0 | S12: 0 | T12: =SUM(L12*16%,N12*16%)-Q12 -> 0 | U12: =+S12+T12 -> 0 | W12: 0 | Y12: 0 | AA12: 0 | AB12: 2012-04-01 | AC12: 1901-04-01 | AD12: =IF(#REF!<>0,DATE(#REF!>0,MONTH(#REF!),1),"") ->  | AE12: =IF(B12>0,DATE(YEAR(B12),MONTH(B12),1),"") -> 
D13: 0 | E13: =VLOOKUP(C13,CATALOGO!$E$3:$F$60000,2) ->  | J13: =VLOOKUP(I13,[3]CATALOGO!$G$3:$H$60000,2) ->  | Q13: =+P13*0.15 -> 0 | S13: 0 | T13: =SUM(L13*16%,N13*16%)-Q13 -> 0 | U13: 0 | W13: 0 | Y13: 0 | AA13: 0 | AB13: 2012-05-01 | AC13: 1901-05-01 | AE13: =IF(B13>0,DATE(YEAR(B13),MONTH(B13),1),"") -> 
D14: 0 | E14: =VLOOKUP(C14,CATALOGO!$E$3:$F$60000,2) ->  | J14: =VLOOKUP(I14,[3]CATALOGO!$G$3:$H$60000,2) ->  | S14: 0 | T14: 0 | U14: 0 | W14: 0 | Y14: 0 | AA14: 0 | AB14: 2012-06-01 | AC14: 1901-06-01 | AE14: enero
D15: 0 | E15: =VLOOKUP(C15,CATALOGO!$E$3:$F$60000,2) ->  | J15: =VLOOKUP(I15,[3]CATALOGO!$G$3:$H$60000,2) ->  | Q15: =+P15*0.15 -> 0 | S15: 0 | T15: 0 | U15: 0 | W15: 0 | Y15: 0 | AA15: 0 | AB15: 2012-07-01 | AC15: 1901-07-01 | AE15: =IF(B15>0,DATE(YEAR(B15),MONTH(B15),1),"") -> 
D16: 0 | E16: =VLOOKUP(C16,CATALOGO!$E$3:$F$60000,2) ->  | J16: =VLOOKUP(I16,[3]CATALOGO!$G$3:$H$60000,2) ->  | Q16: 0 | S16: 0 | T16: 0 | U16: 0 | W16: 0 | Y16: 0 | AA16: 0 | AB16: 2012-08-01 | AC16: 1901-08-01
D17: 0 | E17: =VLOOKUP(C17,CATALOGO!$E$3:$F$60000,2) ->  | J17: =VLOOKUP(I17,[3]CATALOGO!$G$3:$H$60000,2) ->  | Q17: 0 | S17: 0 | T17: 0 | U17: 0 | W17: 0 | Y17: 0 | AA17: 0 | AB17: 2012-09-01 | AC17: 1901-09-01
D18: 0 | E18: =VLOOKUP(C18,CATALOGO!$E$3:$F$60000,2) ->  | J18: =VLOOKUP(I18,[3]CATALOGO!$G$3:$H$60000,2) ->  | Q18: 0 | S18: 0 | T18: 0 | U18: 0 | W18: 0 | Y18: 0 | AA18: 0 | AB18: 2012-10-01 | AC18: 1901-10-01
D19: 0 | E19: =VLOOKUP(C19,CATALOGO!$E$3:$F$60000,2) ->  | J19: =VLOOKUP(I19,[3]CATALOGO!$G$3:$H$60000,2) ->  | Q19: 0 | S19: 0 | T19: 0 | U19: 0 | W19: 0 | Y19: 0 | AA19: 0 | AB19: 2012-11-01 | AC19: 1901-11-01
D20: 0 | E20: =VLOOKUP(C20,CATALOGO!$E$3:$F$60000,2) ->  | J20: =VLOOKUP(I20,[3]CATALOGO!$G$3:$H$60000,2) ->  | Q20: 0 | S20: 0 | T20: 0 | U20: 0 | W20: 0 | Y20: 0 | AA20: 0 | AB20: 2012-12-01 | AC20: 1901-12-01
D21: 0 | E21: =VLOOKUP(C21,CATALOGO!$E$3:$F$60000,2) ->  | J21: =VLOOKUP(I21,[3]CATALOGO!$G$3:$H$60000,2) ->  | Q21: 0 | S21: 0 | T21: =SUM(L21*16%,N21*16%)-Q21 -> 0 | U21: 0 | W21: 0 | Y21: 0 | AA21: 0
D22: 0 | E22: =VLOOKUP(C22,CATALOGO!$E$3:$F$60000,2) ->  | J22: =VLOOKUP(I22,[3]CATALOGO!$G$3:$H$60000,2) ->  | Q22: 0 | S22: 0 | T22: 0 | U22: =+S22+T22 -> 0 | W22: 0 | Y22: 0 | AA22: 0
D23: 0 | E23: =VLOOKUP(C23,CATALOGO!$E$3:$F$60000,2) ->  | J23: =VLOOKUP(I23,[3]CATALOGO!$G$3:$H$60000,2) ->  | Q23: 0 | S23: 0 | T23: 0 | U23: 0 | W23: 0 | Y23: 0 | AA23: 0
D24: 0 | E24: =VLOOKUP(C24,CATALOGO!$E$3:$F$60000,2) ->  | J24: =VLOOKUP(I24,[3]CATALOGO!$G$3:$H$60000,2) ->  | Q24: 0 | S24: 0 | T24: 0 | U24: 0 | W24: 0 | Y24: 0 | AA24: 0
D25: 0 | E25: =VLOOKUP(C25,CATALOGO!$E$3:$F$60000,2) ->  | J25: =VLOOKUP(I25,[3]CATALOGO!$G$3:$H$60000,2) ->  | Q25: 0 | S25: 0 | T25: 0 | U25: 0 | W25: 0 | Y25: 0 | AA25: 0
D26: 0 | E26: =VLOOKUP(C26,CATALOGO!$E$3:$F$60000,2) ->  | J26: =VLOOKUP(I26,[3]CATALOGO!$G$3:$H$60000,2) ->  | Q26: 0 | S26: 0 | T26: 0 | U26: 0 | W26: 0 | Y26: 0 | AA26: 0
D27: 0 | E27: =VLOOKUP(C27,CATALOGO!$E$3:$F$60000,2) ->  | J27: =VLOOKUP(I27,CATALOGO!$H$3:$I$60000,2) ->  | Q27: 0 | S27: 0 | T27: 0 | U27: 0 | W27: 0 | Y27: 0 | AA27: 0 | AC27: =IF(AB27<>0,DATE(AB27>0,MONTH(AB27),1),"") -> 
D28: 0 | E28: =VLOOKUP(C28,CATALOGO!$E$3:$F$60000,2) ->  | J28: =VLOOKUP(I28,CATALOGO!$H$3:$I$60000,2) ->  | Q28: 0 | S28: 0 | T28: 0 | U28: 0 | W28: 0 | Y28: 0 | AA28: 0
D29: 0 | E29: =VLOOKUP(C29,CATALOGO!$E$3:$F$60000,2) ->  | J29: =VLOOKUP(I29,CATALOGO!$H$3:$I$60000,2) ->  | Q29: 0 | S29: 0 | T29: 0 | U29: 0 | W29: 0 | Y29: 0 | AA29: 0
D30: 0 | E30: =VLOOKUP(C30,CATALOGO!$E$3:$F$60000,2) ->  | J30: =VLOOKUP(I30,CATALOGO!$H$3:$I$60000,2) ->  | Q30: 0 | S30: 0 | T30: 0 | U30: 0 | W30: 0 | Y30: 0 | AA30: 0
D31: 0 | E31: =VLOOKUP(C31,CATALOGO!$E$3:$F$60000,2) ->  | J31: =VLOOKUP(I31,CATALOGO!$H$3:$I$60000,2) ->  | Q31: 0 | S31: 0 | T31: 0 | U31: 0 | W31: 0 | Y31: 0 | AA31: 0
D32: 0 | E32: =VLOOKUP(C32,CATALOGO!$E$3:$F$60000,2) ->  | J32: =VLOOKUP(I32,CATALOGO!$H$3:$I$60000,2) ->  | Q32: 0 | S32: 0 | U32: 0 | W32: 0 | Y32: 0 | AA32: 0
D33: 0 | E33: =VLOOKUP(C33,CATALOGO!$E$3:$F$60000,2) ->  | J33: =VLOOKUP(I33,CATALOGO!$H$3:$I$60000,2) ->  | Q33: 0 | S33: 0 | T33: =SUM(L33*16%,N33*16%)-Q33 -> 0 | U33: 0 | W33: 0 | Y33: 0 | AA33: 0
D34: 0 | E34: =VLOOKUP(C34,CATALOGO!$E$3:$F$60000,2) ->  | J34: =VLOOKUP(I34,CATALOGO!$H$3:$I$60000,2) ->  | Q34: 0 | S34: 0 | U34: 0 | W34: 0 | Y34: 0 | AA34: 0
D35: 0 | E35: =VLOOKUP(C35,CATALOGO!$E$3:$F$60000,2) ->  | J35: =VLOOKUP(I35,CATALOGO!$H$3:$I$60000,2) ->  | Q35: 0 | S35: 0 | T35: =SUM(L35*16%,N35*16%)-Q35 -> 0 | U35: 0 | W35: 0 | Y35: 0 | AA35: 0
D36: 0 | E36: =VLOOKUP(C36,CATALOGO!$E$3:$F$60000,2) ->  | J36: =VLOOKUP(I36,CATALOGO!$H$3:$I$60000,2) ->  | Q36: 0 | S36: 0 | T36: 0 | U36: 0 | W36: 0 | Y36: 0 | AA36: 0
D37: 0 | E37: =VLOOKUP(C37,CATALOGO!$E$3:$F$60000,2) ->  | J37: =VLOOKUP(I37,CATALOGO!$H$3:$I$60000,2) ->  | Q37: 0 | S37: 0 | T37: 0 | U37: 0 | W37: 0 | Y37: 0 | AA37: 0
D38: 0 | E38: =VLOOKUP(C38,CATALOGO!$E$3:$F$60000,2) ->  | J38: =VLOOKUP(I38,CATALOGO!$H$3:$I$60000,2) ->  | Q38: 0 | S38: 0 | T38: 0 | U38: 0 | W38: 0 | Y38: 0 | AA38: 0
D39: 0 | E39: =VLOOKUP(C39,CATALOGO!$E$3:$F$60000,2) ->  | J39: =VLOOKUP(I39,CATALOGO!$H$3:$I$60000,2) ->  | Q39: 0 | S39: 0 | T39: 0 | U39: 0 | W39: 0 | Y39: 0 | AA39: 0
D40: 0 | E40: =VLOOKUP(C40,CATALOGO!$E$3:$F$60000,2) ->  | J40: =VLOOKUP(I40,CATALOGO!$H$3:$I$60000,2) ->  | Q40: 0 | S40: 0 | T40: 0 | U40: 0 | W40: 0 | Y40: 0 | AA40: 0
D41: =IF(C41>"000",1,0) -> 0 | E41: =VLOOKUP(C41,CATALOGO!$E$3:$F$60000,2) ->  | J41: =VLOOKUP(I41,CATALOGO!$H$3:$I$60000,2) ->  | Q41: 0 | S41: 0 | T41: 0 | U41: 0 | W41: 0 | Y41: 0 | AA41: 0 | AF41: =IF(B41>0,DATE(YEAR(B41),1,1),"") -> 
D42: 0 | E42: =VLOOKUP(C42,CATALOGO!$E$3:$F$60000,2) ->  | J42: =VLOOKUP(I42,CATALOGO!$H$3:$I$60000,2) ->  | Q42: 0 | S42: =+K42+L42+M42+N42-O42-P42-R42 -> 0 | T42: 0 | U42: 0 | W42: 0 | Y42: 0 | AA42: 0
D43: 0 | E43: =VLOOKUP(C43,CATALOGO!$E$3:$F$60000,2) ->  | J43: =VLOOKUP(I43,CATALOGO!$H$3:$I$60000,2) ->  | O43: 0 | Q43: 0 | S43: 0 | T43: 0 | U43: 0 | W43: 0 | Y43: 0 | AA43: 0
D44: 0 | E44: =VLOOKUP(C44,CATALOGO!$E$3:$F$60000,2) ->  | J44: =VLOOKUP(I44,CATALOGO!$H$3:$I$60000,2) ->  | Q44: 0 | S44: 0 | U44: 0 | W44: 0 | Y44: 0 | AA44: 0
D45: 0 | E45: =VLOOKUP(C45,CATALOGO!$E$3:$F$60000,2) ->  | J45: =VLOOKUP(I45,CATALOGO!$H$3:$I$60000,2) ->  | Q45: 0 | S45: 0 | U45: 0 | W45: 0 | Y45: 0 | AA45: 0
D46: 0 | E46: =VLOOKUP(C46,CATALOGO!$E$3:$F$60000,2) ->  | J46: =VLOOKUP(I46,CATALOGO!$H$3:$I$60000,2) ->  | Q46: 0 | S46: 0 | T46: =SUM(L46*16%,N46*16%)-Q46 -> 0 | U46: 0 | W46: 0 | Y46: 0 | AA46: 0
D47: 0 | E47: =VLOOKUP(C47,CATALOGO!$E$3:$F$60000,2) ->  | J47: =VLOOKUP(I47,CATALOGO!$H$3:$I$60000,2) ->  | Q47: 0 | S47: 0 | U47: 0 | W47: 0 | Y47: 0 | AA47: 0 | AE47: =IF(B47>0,DATE(YEAR(B47),MONTH(B47),1),"") -> 
D48: 0 | E48: =VLOOKUP(C48,CATALOGO!$E$3:$F$60000,2) ->  | J48: =VLOOKUP(I48,CATALOGO!$H$3:$I$60000,2) ->  | Q48: 0 | S48: 0 | U48: 0 | W48: 0 | Y48: 0 | AA48: 0
D49: 0 | E49: =VLOOKUP(C49,CATALOGO!$E$3:$F$60000,2) ->  | J49: =VLOOKUP(I49,CATALOGO!$H$3:$I$60000,2) ->  | Q49: 0 | S49: 0 | T49: =SUM(L49*16%,N49*16%)-Q49 -> 0 | U49: 0 | W49: 0 | Y49: 0 | AA49: 0
D50: 0 | E50: =VLOOKUP(C50,CATALOGO!$E$3:$F$60000,2) ->  | J50: =VLOOKUP(I50,CATALOGO!$H$3:$I$60000,2) ->  | Q50: 0 | S50: 0 | U50: 0 | W50: 0 | Y50: 0 | AA50: 0
D51: 0 | E51: =VLOOKUP(C51,CATALOGO!$E$3:$F$60000,2) ->  | J51: =VLOOKUP(I51,CATALOGO!$H$3:$I$60000,2) ->  | Q51: 0 | S51: 0 | T51: =SUM(L51*16%,N51*16%)-Q51 -> 0 | U51: 0 | W51: 0 | Y51: 0 | AA51: 0
D52: 0 | E52: =VLOOKUP(C52,CATALOGO!$E$3:$F$60000,2) ->  | J52: =VLOOKUP(I52,CATALOGO!$H$3:$I$60000,2) ->  | Q52: 0 | S52: 0 | U52: 0 | W52: 0 | Y52: 0 | AA52: 0
D53: 0 | E53: =VLOOKUP(C53,CATALOGO!$E$3:$F$60000,2) ->  | J53: =VLOOKUP(I53,CATALOGO!$H$3:$I$60000,2) ->  | Q53: 0 | S53: 0 | U53: 0 | W53: 0 | Y53: 0 | AA53: 0
D54: 0 | E54: =VLOOKUP(C54,CATALOGO!$E$3:$F$60000,2) ->  | J54: =VLOOKUP(I54,CATALOGO!$H$3:$I$60000,2) ->  | Q54: 0 | S54: 0 | W54: 0 | Y54: 0 | AA54: 0
D55: 0 | E55: =VLOOKUP(C55,CATALOGO!$E$3:$F$60000,2) ->  | J55: =VLOOKUP(I55,CATALOGO!$H$3:$I$60000,2) ->  | Q55: 0 | S55: 0 | T55: =SUM(L55*16%,N55*16%)-Q55 -> 0 | U55: =+S55+T55 -> 0 | W55: 0 | Y55: 0 | AA55: 0
D56: 0 | E56: =VLOOKUP(C56,CATALOGO!$E$3:$F$60000,2) ->  | J56: =VLOOKUP(I56,CATALOGO!$H$3:$I$60000,2) ->  | Q56: 0 | S56: 0 | T56: 0 | U56: 0 | W56: 0 | Y56: 0 | AA56: 0
D57: 0 | E57: =VLOOKUP(C57,CATALOGO!$E$3:$F$60000,2) ->  | J57: =VLOOKUP(I57,CATALOGO!$H$3:$I$60000,2) ->  | Q57: 0 | S57: 0 | T57: 0 | U57: 0 | W57: 0 | Y57: 0 | AA57: 0
D58: 0 | E58: =VLOOKUP(C58,CATALOGO!$E$3:$F$60000,2) ->  | J58: =VLOOKUP(I58,CATALOGO!$H$3:$I$60000,2) ->  | Q58: 0 | S58: 0 | T58: 0 | U58: 0 | W58: 0 | Y58: 0 | AA58: 0
D59: 0 | E59: =VLOOKUP(C59,CATALOGO!$E$3:$F$60000,2) ->  | J59: =VLOOKUP(I59,CATALOGO!$H$3:$I$60000,2) ->  | Q59: 0 | S59: 0 | T59: 0 | U59: 0 | W59: 0 | Y59: 0 | AA59: 0
D60: 0 | E60: =VLOOKUP(C60,CATALOGO!$E$3:$F$60000,2) ->  | J60: =VLOOKUP(I60,CATALOGO!$H$3:$I$60000,2) ->  | Q60: 0 | S60: 0 | T60: 0 | U60: 0 | W60: 0 | Y60: 0 | AA60: 0
D61: 0 | E61: =VLOOKUP(C61,CATALOGO!$E$3:$F$60000,2) ->  | J61: =VLOOKUP(I61,CATALOGO!$H$3:$I$60000,2) ->  | Q61: 0 | S61: 0 | T61: 0 | W61: 0 | Y61: 0 | AA61: 0 | AF61: =IF(B61>0,DATE(YEAR(B61),1,1),"") -> 
D62: 0 | E62: =VLOOKUP(C62,CATALOGO!$E$3:$F$60000,2) ->  | J62: =VLOOKUP(I62,CATALOGO!$H$3:$I$60000,2) ->  | Q62: 0 | S62: 0 | T62: 0 | W62: 0 | Y62: 0 | AA62: 0
D63: 0 | E63: =VLOOKUP(C63,CATALOGO!$E$3:$F$60000,2) ->  | J63: =VLOOKUP(I63,CATALOGO!$H$3:$I$60000,2) ->  | Q63: 0 | S63: 0 | T63: 0 | U63: =+S63+T63 -> 0 | W63: 0 | Y63: 0 | AA63: 0
D64: 0 | E64: =VLOOKUP(C64,CATALOGO!$E$3:$F$60000,2) ->  | J64: =VLOOKUP(I64,CATALOGO!$H$3:$I$60000,2) ->  | Q64: 0 | S64: 0 | T64: 0 | U64: 0 | W64: 0 | Y64: 0 | AA64: 0
D65: 0 | E65: =VLOOKUP(C65,CATALOGO!$E$3:$F$60000,2) ->  | Q65: 0 | S65: 0 | T65: 0 | W65: 0 | Y65: 0 | AA65: 0
D66: 0 | E66: =VLOOKUP(C66,CATALOGO!$E$3:$F$60000,2) ->  | J66: =VLOOKUP(I66,CATALOGO!$H$3:$I$60000,2) ->  | Q66: 0 | S66: 0 | T66: 0 | U66: 0 | W66: 0 | Y66: 0 | AA66: 0
D67: 0 | E67: =VLOOKUP(C67,CATALOGO!$E$3:$F$60000,2) ->  | J67: =VLOOKUP(I67,CATALOGO!$H$3:$I$60000,2) ->  | Q67: 0 | S67: 0 | T67: 0 | U67: 0 | W67: 0 | Y67: 0 | AA67: 0
D68: 0 | E68: =VLOOKUP(C68,CATALOGO!$E$3:$F$60000,2) ->  | J68: =VLOOKUP(I68,CATALOGO!$H$3:$I$60000,2) ->  | Q68: 0 | S68: 0 | T68: 0 | U68: 0 | W68: 0 | Y68: 0 | AA68: 0 | AD68: =IF(AC68<>0,DATE(AC68>0,MONTH(AC68),1),"") -> 
D69: 0 | E69: =VLOOKUP(C69,CATALOGO!$E$3:$F$60000,2) ->  | J69: =VLOOKUP(I69,CATALOGO!$H$3:$I$60000,2) ->  | Q69: 0 | S69: 0 | U69: 0 | W69: 0 | Y69: 0 | AA69: 0 | AE69: =IF(B69>0,DATE(YEAR(B69),MONTH(B69),1),"") ->  | AF69: =IF(B69>0,DATE(YEAR(B69),1,1),"") -> 
D70: 0 | E70: =VLOOKUP(C70,CATALOGO!$E$3:$F$60000,2) ->  | J70: =VLOOKUP(I70,CATALOGO!$H$3:$I$60000,2) ->  | Q70: 0 | S70: 0 | U70: 0 | W70: 0 | Y70: 0 | AA70: 0 | AF70: =IF(B70>0,DATE(YEAR(B70),1,1),"") -> 
D71: 0 | E71: =VLOOKUP(C71,CATALOGO!$E$3:$F$60000,2) ->  | J71: =VLOOKUP(I71,CATALOGO!$H$3:$I$60000,2) ->  | Q71: 0 | S71: 0 | T71: =SUM(L71*16%,N71*16%)-Q71 -> 0 | U71: 0 | W71: 0 | Y71: 0 | AA71: 0
D72: 0 | E72: =VLOOKUP(C72,CATALOGO!$E$3:$F$60000,2) ->  | J72: =VLOOKUP(I72,CATALOGO!$H$3:$I$60000,2) ->  | Q72: 0 | S72: 0 | W72: 0 | Y72: 0 | AA72: 0
D73: =IF(C73>"000",1,0) -> 0 | E73: =VLOOKUP(C73,CATALOGO!$E$3:$F$60000,2) ->  | J73: =VLOOKUP(I73,CATALOGO!$H$3:$I$60000,2) ->  | Q73: 0 | S73: 0 | T73: =SUM(L73*16%,N73*16%)-Q73 -> 0 | U73: =+S73+T73 -> 0 | W73: =IF(V73="SI",SUM(L73*10%),0) -> 0 | Y73: =IF(X73="SI",SUM(L73*10%),0) -> 0 | AA73: =IF(Z73="SI",SUM(L73*4%),0) -> 0 | AC73: =IF(AB73<>0,DATE(AB73>0,MONTH(AB73),1),"") -> 
D74: =IF(C74>"000",1,0) -> 0 | E74: =VLOOKUP(C74,CATALOGO!$E$3:$F$60000,2) ->  | J74: =VLOOKUP(I74,CATALOGO!$H$3:$I$60000,2) ->  | Q74: 0 | S74: =+K74+L74+M74+N74-O74-P74-R74 -> 0 | T74: 0 | U74: 0 | W74: 0 | Y74: 0 | AA74: 0 | AF74: =IF(B74>0,DATE(YEAR(B74),1,1),"") -> 
D75: =IF(A75>"000",1,0) -> 0 | E75: =VLOOKUP(C75,CATALOGO!$E$3:$F$60000,2) ->  | J75: =VLOOKUP(I75,CATALOGO!$H$3:$I$60000,2) ->  | Q75: 0 | S75: 0 | T75: 0 | U75: 0 | W75: 0 | Y75: 0 | AA75: 0
D76: =IF(C76>"000",1,0) -> 0 | E76: =VLOOKUP(C76,CATALOGO!$E$3:$F$60000,2) ->  | J76: =VLOOKUP(I76,CATALOGO!$H$3:$I$60000,2) ->  | Q76: 0 | S76: 0 | T76: 0 | U76: 0 | W76: 0 | Y76: 0 | AA76: 0
D77: 0 | E77: =VLOOKUP(C77,CATALOGO!$E$3:$F$60000,2) ->  | J77: =VLOOKUP(I77,CATALOGO!$H$3:$I$60000,2) ->  | Q77: 0 | S77: 0 | T77: 0 | U77: 0 | W77: 0 | Y77: 0 | AA77: 0
D78: 0 | E78: =VLOOKUP(C78,CATALOGO!$E$3:$F$60000,2) ->  | J78: =VLOOKUP(I78,CATALOGO!$H$3:$I$60000,2) ->  | Q78: 0 | S78: 0 | T78: 0 | U78: 0 | W78: 0 | Y78: 0 | AA78: 0
D79: 0 | E79: =VLOOKUP(C79,CATALOGO!$E$3:$F$60000,2) ->  | J79: =VLOOKUP(I79,CATALOGO!$H$3:$I$60000,2) ->  | Q79: =+P79*0.15 -> 0 | S79: 0 | T79: 0 | U79: 0 | W79: 0 | Y79: 0 | AA79: 0
D80: 0 | E80: =VLOOKUP(C80,CATALOGO!$E$3:$F$60000,2) ->  | J80: =VLOOKUP(I80,CATALOGO!$H$3:$I$60000,2) ->  | Q80: 0 | S80: 0 | T80: 0 | U80: 0 | W80: 0 | Y80: 0 | AA80: 0
D81: 0 | E81: =VLOOKUP(C81,CATALOGO!$E$3:$F$60000,2) ->  | J81: =VLOOKUP(I81,CATALOGO!$H$3:$I$60000,2) ->  | Q81: 0 | S81: 0 | T81: 0 | U81: 0 | W81: 0 | Y81: 0 | AA81: 0
D82: 0 | E82: =VLOOKUP(C82,CATALOGO!$E$3:$F$60000,2) ->  | J82: =VLOOKUP(I82,CATALOGO!$H$3:$I$60000,2) ->  | Q82: 0 | S82: 0 | T82: 0 | U82: 0 | W82: 0 | Y82: 0 | AA82: 0
D83: 0 | E83: =VLOOKUP(C83,CATALOGO!$E$3:$F$60000,2) ->  | J83: =VLOOKUP(I83,CATALOGO!$H$3:$I$60000,2) ->  | Q83: 0 | S83: 0 | T83: 0 | U83: 0 | W83: 0 | Y83: 0 | AA83: 0
D84: 0 | E84: =VLOOKUP(C84,CATALOGO!$E$3:$F$60000,2) ->  | J84: =VLOOKUP(I84,CATALOGO!$H$3:$I$60000,2) ->  | Q84: 0 | S84: 0 | T84: 0 | U84: 0 | W84: 0 | Y84: 0 | AA84: 0
D85: 0 | E85: =VLOOKUP(C85,CATALOGO!$E$3:$F$60000,2) ->  | J85: =VLOOKUP(I85,CATALOGO!$H$3:$I$60000,2) ->  | Q85: 0 | S85: 0 | T85: 0 | U85: 0 | W85: 0 | Y85: 0 | AA85: 0
D86: 0 | E86: =VLOOKUP(C86,CATALOGO!$E$3:$F$60000,2) ->  | J86: =VLOOKUP(I86,CATALOGO!$H$3:$I$60000,2) ->  | Q86: 0 | S86: 0 | T86: 0 | U86: 0 | W86: 0 | Y86: 0 | AA86: 0
D87: 0 | E87: =VLOOKUP(C87,CATALOGO!$E$3:$F$60000,2) ->  | J87: =VLOOKUP(I87,CATALOGO!$H$3:$I$60000,2) ->  | Q87: 0 | S87: =+K87+L87+M87+N87-O87-P87-R87 -> 0 | T87: =SUM(L87*16%,N87*16%)-Q87 -> 0 | U87: =+S87+T87 -> 0 | W87: 0 | Y87: 0 | AA87: 0
D88: 0 | E88: =VLOOKUP(C88,CATALOGO!$E$3:$F$60000,2) ->  | J88: =VLOOKUP(I88,CATALOGO!$H$3:$I$60000,2) ->  | Q88: 0 | S88: 0 | T88: 0 | U88: 0 | W88: 0 | Y88: 0 | AA88: 0
D89: 0 | E89: =VLOOKUP(C89,CATALOGO!$E$3:$F$60000,2) ->  | J89: =VLOOKUP(I89,CATALOGO!$H$3:$I$60000,2) ->  | Q89: 0 | S89: 0 | T89: 0 | U89: 0 | W89: 0 | Y89: 0 | AA89: 0
D90: 0 | E90: =VLOOKUP(C90,CATALOGO!$E$3:$F$60000,2) ->  | J90: =VLOOKUP(I90,CATALOGO!$H$3:$I$60000,2) ->  | Q90: 0 | S90: 0 | T90: 0 | U90: 0 | W90: 0 | Y90: 0 | AA90: 0
D91: 0 | E91: =VLOOKUP(C91,CATALOGO!$E$3:$F$60000,2) ->  | J91: =VLOOKUP(I91,CATALOGO!$H$3:$I$60000,2) ->  | Q91: 0 | S91: 0 | T91: 0 | U91: 0 | W91: 0 | Y91: 0 | AA91: 0
D92: 0 | E92: =VLOOKUP(C92,CATALOGO!$E$3:$F$60000,2) ->  | J92: =VLOOKUP(I92,CATALOGO!$H$3:$I$60000,2) ->  | Q92: 0 | S92: 0 | T92: 0 | U92: 0 | W92: 0 | Y92: 0 | AA92: 0
D93: 0 | E93: =VLOOKUP(C93,CATALOGO!$E$3:$F$60000,2) ->  | J93: =VLOOKUP(I93,CATALOGO!$H$3:$I$60000,2) ->  | Q93: 0 | S93: 0 | T93: 0 | U93: 0 | W93: 0 | Y93: 0 | AA93: 0
D94: 0 | E94: =VLOOKUP(C94,CATALOGO!$E$3:$F$60000,2) ->  | J94: =VLOOKUP(I94,CATALOGO!$H$3:$I$60000,2) ->  | Q94: 0 | S94: 0 | T94: 0 | U94: 0 | W94: 0 | Y94: 0 | AA94: 0
D95: 0 | E95: =VLOOKUP(C95,CATALOGO!$E$3:$F$60000,2) ->  | J95: =VLOOKUP(I95,CATALOGO!$H$3:$I$60000,2) ->  | Q95: 0 | S95: 0 | T95: 0 | U95: 0 | W95: 0 | Y95: 0 | AA95: 0
D96: 0 | E96: =VLOOKUP(C96,CATALOGO!$E$3:$F$60000,2) ->  | J96: =VLOOKUP(I96,CATALOGO!$H$3:$I$60000,2) ->  | Q96: 0 | S96: 0 | T96: 0 | U96: 0 | W96: 0 | Y96: 0 | AA96: 0
D97: 0 | E97: =VLOOKUP(C97,CATALOGO!$E$3:$F$60000,2) ->  | J97: =VLOOKUP(I97,CATALOGO!$H$3:$I$60000,2) ->  | Q97: 0 | S97: 0 | T97: 0 | U97: 0 | W97: 0 | Y97: 0 | AA97: 0
D98: 0 | E98: =VLOOKUP(C98,CATALOGO!$E$3:$F$60000,2) ->  | J98: =VLOOKUP(I98,CATALOGO!$H$3:$I$60000,2) ->  | Q98: 0 | S98: 0 | T98: 0 | U98: 0 | W98: 0 | Y98: 0 | AA98: 0
D99: 0 | E99: =VLOOKUP(C99,CATALOGO!$E$3:$F$60000,2) ->  | J99: =VLOOKUP(I99,CATALOGO!$H$3:$I$60000,2) ->  | Q99: 0 | S99: 0 | T99: 0 | U99: 0 | W99: 0 | Y99: 0 | AA99: 0
D100: 0 | E100: =VLOOKUP(C100,CATALOGO!$E$3:$F$60000,2) ->  | J100: =VLOOKUP(I100,CATALOGO!$H$3:$I$60000,2) ->  | Q100: 0 | S100: 0 | T100: 0 | U100: 0 | W100: 0 | Y100: 0 | AA100: 0
D101: 0 | E101: =VLOOKUP(C101,CATALOGO!$E$3:$F$60000,2) ->  | J101: =VLOOKUP(I101,CATALOGO!$H$3:$I$60000,2) ->  | Q101: 0 | S101: 0 | T101: 0 | U101: 0 | W101: 0 | Y101: 0 | AA101: 0
D102: 0 | E102: =VLOOKUP(C102,CATALOGO!$E$3:$F$60000,2) ->  | J102: =VLOOKUP(I102,CATALOGO!$H$3:$I$60000,2) ->  | Q102: 0 | S102: 0 | T102: 0 | U102: 0 | W102: 0 | Y102: 0 | AA102: 0
D103: 0 | E103: =VLOOKUP(C103,CATALOGO!$E$3:$F$60000,2) ->  | J103: =VLOOKUP(I103,CATALOGO!$H$3:$I$60000,2) ->  | Q103: 0 | S103: 0 | T103: 0 | U103: 0 | W103: 0 | Y103: 0 | AA103: 0
D104: 0 | E104: =VLOOKUP(C104,CATALOGO!$E$3:$F$60000,2) ->  | J104: =VLOOKUP(I104,CATALOGO!$H$3:$I$60000,2) ->  | Q104: 0 | S104: 0 | T104: 0 | U104: 0 | W104: 0 | Y104: 0 | AA104: 0
D105: 0 | E105: =VLOOKUP(C105,CATALOGO!$E$3:$F$60000,2) ->  | J105: =VLOOKUP(I105,CATALOGO!$H$3:$I$60000,2) ->  | Q105: 0 | S105: 0 | T105: 0 | U105: 0 | W105: 0 | Y105: 0 | AA105: 0
D106: 0 | E106: =VLOOKUP(C106,CATALOGO!$E$3:$F$60000,2) ->  | J106: =VLOOKUP(I106,CATALOGO!$H$3:$I$60000,2) ->  | Q106: 0 | S106: 0 | T106: 0 | U106: 0 | W106: 0 | Y106: 0 | AA106: 0
D107: 0 | E107: =VLOOKUP(C107,CATALOGO!$E$3:$F$60000,2) ->  | J107: =VLOOKUP(I107,CATALOGO!$H$3:$I$60000,2) ->  | Q107: 0 | S107: 0 | T107: 0 | U107: 0 | W107: 0 | Y107: 0 | AA107: 0
D108: 0 | E108: =VLOOKUP(C108,CATALOGO!$E$3:$F$60000,2) ->  | J108: =VLOOKUP(I108,CATALOGO!$H$3:$I$60000,2) ->  | Q108: 0 | S108: 0 | T108: 0 | U108: 0 | W108: 0 | Y108: 0 | AA108: 0
D109: 0 | E109: =VLOOKUP(C109,CATALOGO!$E$3:$F$60000,2) ->  | J109: =VLOOKUP(I109,CATALOGO!$H$3:$I$60000,2) ->  | Q109: 0 | S109: 0 | T109: 0 | U109: 0 | W109: 0 | Y109: 0 | AA109: 0
D110: 0 | E110: =VLOOKUP(C110,CATALOGO!$E$3:$F$60000,2) ->  | J110: =VLOOKUP(I110,CATALOGO!$H$3:$I$60000,2) ->  | Q110: 0 | S110: 0 | T110: 0 | U110: 0 | W110: 0 | Y110: 0 | AA110: 0
D111: 0 | E111: =VLOOKUP(C111,CATALOGO!$E$3:$F$60000,2) ->  | J111: =VLOOKUP(I111,CATALOGO!$H$3:$I$60000,2) ->  | Q111: 0 | S111: 0 | T111: 0 | U111: 0 | W111: 0 | Y111: 0 | AA111: 0
D112: 0 | E112: =VLOOKUP(C112,CATALOGO!$E$3:$F$60000,2) ->  | J112: =VLOOKUP(I112,CATALOGO!$H$3:$I$60000,2) ->  | Q112: 0 | S112: 0 | T112: 0 | U112: 0 | W112: 0 | Y112: 0 | AA112: 0
D113: 0 | E113: =VLOOKUP(C113,CATALOGO!$E$3:$F$60000,2) ->  | J113: =VLOOKUP(I113,CATALOGO!$H$3:$I$60000,2) ->  | Q113: 0 | S113: 0 | T113: 0 | U113: 0 | W113: 0 | Y113: 0 | AA113: 0
D114: 0 | E114: =VLOOKUP(C114,CATALOGO!$E$3:$F$60000,2) ->  | J114: =VLOOKUP(I114,CATALOGO!$H$3:$I$60000,2) ->  | Q114: 0 | S114: 0 | T114: 0 | U114: 0 | W114: 0 | Y114: 0 | AA114: 0
D115: 0 | E115: =VLOOKUP(C115,CATALOGO!$E$3:$F$60000,2) ->  | J115: =VLOOKUP(I115,CATALOGO!$H$3:$I$60000,2) ->  | Q115: 0 | S115: 0 | T115: 0 | U115: 0 | W115: 0 | Y115: 0 | AA115: 0
D116: 0 | E116: =VLOOKUP(C116,CATALOGO!$E$3:$F$60000,2) ->  | J116: =VLOOKUP(I116,CATALOGO!$H$3:$I$60000,2) ->  | Q116: 0 | S116: 0 | T116: 0 | U116: 0 | W116: 0 | Y116: 0 | AA116: 0
D117: 0 | J117: =VLOOKUP(I117,CATALOGO!$H$3:$I$60000,2) ->  | Q117: 0 | S117: 0 | T117: 0 | U117: 0 | W117: 0 | Y117: 0 | AA117: 0
D118: 0 | J118: =VLOOKUP(I118,CATALOGO!$H$3:$I$60000,2) ->  | Q118: 0 | S118: 0 | T118: 0 | U118: 0 | W118: 0 | Y118: 0 | AA118: 0
D119: 0 | J119: =VLOOKUP(I119,CATALOGO!$H$3:$I$60000,2) ->  | Q119: 0 | S119: 0 | T119: 0 | U119: 0 | W119: 0 | Y119: 0 | AA119: 0
D120: 0 | J120: =VLOOKUP(I120,CATALOGO!$H$3:$I$60000,2) ->  | Q120: 0 | S120: 0 | T120: 0 | U120: 0 | W120: 0 | Y120: 0 | AA120: 0
D121: 0 | J121: =VLOOKUP(I121,CATALOGO!$H$3:$I$60000,2) ->  | Q121: 0 | S121: 0 | T121: 0 | U121: 0 | W121: 0 | Y121: 0 | AA121: 0
D122: 0 | J122: =VLOOKUP(I122,CATALOGO!$H$3:$I$60000,2) ->  | Q122: 0 | S122: 0 | T122: 0 | U122: 0 | W122: 0 | Y122: 0 | AA122: 0
D123: 0 | E123: =VLOOKUP(C123,CATALOGO!$E$3:$F$60000,2) ->  | J123: =VLOOKUP(I123,CATALOGO!$H$3:$I$60000,2) ->  | Q123: 0 | S123: 0 | T123: 0 | U123: 0 | W123: 0 | Y123: 0 | AA123: 0
D124: 0 | E124: =VLOOKUP(C124,CATALOGO!$E$3:$F$60000,2) ->  | J124: =VLOOKUP(I124,CATALOGO!$H$3:$I$60000,2) ->  | Q124: 0 | S124: 0 | T124: 0 | U124: 0 | W124: 0 | Y124: 0 | AA124: 0
D125: 0 | E125: =VLOOKUP(C125,CATALOGO!$E$3:$F$60000,2) ->  | J125: =VLOOKUP(I125,CATALOGO!$H$3:$I$60000,2) ->  | Q125: 0 | S125: 0 | T125: 0 | U125: 0 | W125: 0 | Y125: 0 | AA125: 0
D126: 0 | E126: =VLOOKUP(C126,CATALOGO!$E$3:$F$60000,2) ->  | J126: =VLOOKUP(I126,CATALOGO!$H$3:$I$60000,2) ->  | Q126: 0 | S126: 0 | T126: 0 | U126: 0 | W126: 0 | Y126: 0 | AA126: 0
D127: 0 | E127: =VLOOKUP(C127,CATALOGO!$E$3:$F$60000,2) ->  | J127: =VLOOKUP(I127,CATALOGO!$H$3:$I$60000,2) ->  | Q127: 0 | S127: 0 | T127: 0 | U127: 0 | W127: 0 | Y127: 0 | AA127: 0
D128: 0 | E128: =VLOOKUP(C128,CATALOGO!$E$3:$F$60000,2) ->  | J128: =VLOOKUP(I128,CATALOGO!$H$3:$I$60000,2) ->  | Q128: 0 | S128: 0 | T128: 0 | U128: 0 | W128: 0 | Y128: 0 | AA128: 0
D129: 0 | E129: =VLOOKUP(C129,CATALOGO!$E$3:$F$60000,2) ->  | J129: =VLOOKUP(I129,CATALOGO!$H$3:$I$60000,2) ->  | Q129: 0 | S129: 0 | T129: 0 | U129: 0 | W129: 0 | Y129: 0 | AA129: 0
D130: 0 | E130: =VLOOKUP(C130,CATALOGO!$E$3:$F$60000,2) ->  | J130: =VLOOKUP(I130,CATALOGO!$H$3:$I$60000,2) ->  | Q130: 0 | S130: 0 | T130: 0 | U130: 0 | W130: 0 | Y130: 0 | AA130: 0
D131: 0 | E131: =VLOOKUP(C131,CATALOGO!$E$3:$F$60000,2) ->  | J131: =VLOOKUP(I131,CATALOGO!$H$3:$I$60000,2) ->  | Q131: 0 | S131: 0 | T131: 0 | U131: 0 | W131: 0 | Y131: 0 | AA131: 0 | AE131: =IF(B131>0,DATE(YEAR(B131),MONTH(B131),1),"") -> 
D132: 0 | E132: =VLOOKUP(C132,CATALOGO!$E$3:$F$60000,2) ->  | J132: =VLOOKUP(I132,CATALOGO!$H$3:$I$60000,2) ->  | Q132: 0 | S132: 0 | T132: 0 | U132: 0 | W132: 0 | Y132: 0 | AA132: 0
D133: 0 | E133: =VLOOKUP(C133,CATALOGO!$E$3:$F$60000,2) ->  | J133: =VLOOKUP(I133,CATALOGO!$H$3:$I$60000,2) ->  | Q133: 0 | S133: 0 | T133: 0 | U133: 0 | W133: 0 | Y133: 0 | AA133: 0
D134: 0 | E134: =VLOOKUP(C134,CATALOGO!$E$3:$F$60000,2) ->  | J134: =VLOOKUP(I134,CATALOGO!$H$3:$I$60000,2) ->  | Q134: 0 | S134: 0 | T134: 0 | U134: 0 | W134: 0 | Y134: 0 | AA134: 0
D135: 0 | E135: =VLOOKUP(C135,CATALOGO!$E$3:$F$60000,2) ->  | J135: =VLOOKUP(I135,CATALOGO!$H$3:$I$60000,2) ->  | Q135: 0 | S135: 0 | T135: 0 | U135: 0 | W135: =IF(V135="SI",SUM(L135*10%),0) -> 0 | Y135: =IF(X135="SI",SUM(L135*10%),0) -> 0 | AA135: =IF(Z135="SI",SUM(L135*4%),0) -> 0 | AC135: =IF(AB135<>0,DATE(AB135>0,MONTH(AB135),1),"") -> 
D136: 0 | E136: =VLOOKUP(C136,CATALOGO!$E$3:$F$60000,2) ->  | J136: =VLOOKUP(I136,CATALOGO!$H$3:$I$60000,2) ->  | Q136: 0 | S136: 0 | T136: 0 | U136: 0 | W136: 0 | Y136: 0 | AA136: 0 | AF136: =IF(B136>0,DATE(YEAR(B136),1,1),"") -> 
D137: 0 | E137: =VLOOKUP(C137,CATALOGO!$E$3:$F$60000,2) ->  | J137: =VLOOKUP(I137,CATALOGO!$H$3:$I$60000,2) ->  | Q137: 0 | S137: 0 | T137: 0 | U137: 0 | W137: 0 | Y137: 0 | AA137: 0
D138: =IF(C138>"000",1,0) -> 0 | E138: =VLOOKUP(C138,CATALOGO!$E$3:$F$60000,2) ->  | J138: =VLOOKUP(I138,CATALOGO!$H$3:$I$60000,2) ->  | Q138: 0 | S138: 0 | T138: 0 | U138: 0 | W138: 0 | Y138: 0 | AA138: 0
D139: 0 | E139: =VLOOKUP(C139,CATALOGO!$E$3:$F$60000,2) ->  | J139: =VLOOKUP(I139,CATALOGO!$H$3:$I$60000,2) ->  | Q139: 0 | S139: 0 | T139: 0 | U139: 0 | W139: 0 | Y139: 0 | AA139: 0
D140: 0 | E140: =VLOOKUP(C140,CATALOGO!$E$3:$F$60000,2) ->  | J140: =VLOOKUP(I140,CATALOGO!$H$3:$I$60000,2) ->  | Q140: 0 | S140: 0 | T140: 0 | U140: 0 | W140: 0 | Y140: 0 | AA140: 0
D141: 0 | E141: =VLOOKUP(C141,CATALOGO!$E$3:$F$60000,2) ->  | J141: =VLOOKUP(I141,CATALOGO!$H$3:$I$60000,2) ->  | Q141: =+P141*0.15 -> 0 | S141: 0 | T141: 0 | U141: 0 | W141: 0 | Y141: 0 | AA141: 0
D142: 0 | E142: =VLOOKUP(C142,CATALOGO!$E$3:$F$60000,2) ->  | J142: =VLOOKUP(I142,CATALOGO!$H$3:$I$60000,2) ->  | Q142: 0 | S142: 0 | T142: 0 | U142: 0 | W142: 0 | Y142: 0 | AA142: 0
D143: 0 | E143: =VLOOKUP(C143,CATALOGO!$E$3:$F$60000,2) ->  | J143: =VLOOKUP(I143,CATALOGO!$H$3:$I$60000,2) ->  | Q143: 0 | S143: 0 | T143: 0 | U143: 0 | W143: 0 | Y143: 0 | AA143: 0
D144: 0 | E144: =VLOOKUP(C144,CATALOGO!$E$3:$F$60000,2) ->  | J144: =VLOOKUP(I144,CATALOGO!$H$3:$I$60000,2) ->  | Q144: 0 | S144: 0 | T144: 0 | U144: 0 | W144: 0 | Y144: 0 | AA144: 0
D145: 0 | E145: =VLOOKUP(C145,CATALOGO!$E$3:$F$60000,2) ->  | J145: =VLOOKUP(I145,CATALOGO!$H$3:$I$60000,2) ->  | Q145: 0 | S145: 0 | T145: 0 | U145: 0 | W145: 0 | Y145: 0 | AA145: 0
D146: 0 | E146: =VLOOKUP(C146,CATALOGO!$E$3:$F$60000,2) ->  | J146: =VLOOKUP(I146,CATALOGO!$H$3:$I$60000,2) ->  | Q146: 0 | S146: 0 | T146: 0 | U146: 0 | W146: 0 | Y146: 0 | AA146: 0
D147: 0 | E147: =VLOOKUP(C147,CATALOGO!$E$3:$F$60000,2) ->  | J147: =VLOOKUP(I147,CATALOGO!$H$3:$I$60000,2) ->  | Q147: 0 | S147: 0 | T147: 0 | U147: 0 | W147: 0 | Y147: 0 | AA147: 0
D148: 0 | E148: =VLOOKUP(C148,CATALOGO!$E$3:$F$60000,2) ->  | J148: =VLOOKUP(I148,CATALOGO!$H$3:$I$60000,2) ->  | Q148: 0 | S148: 0 | T148: 0 | U148: 0 | W148: 0 | Y148: 0 | AA148: 0
D149: 0 | E149: =VLOOKUP(C149,CATALOGO!$E$3:$F$60000,2) ->  | J149: =VLOOKUP(I149,CATALOGO!$H$3:$I$60000,2) ->  | Q149: 0 | S149: 0 | T149: 0 | U149: 0 | W149: 0 | Y149: 0 | AA149: 0
D150: 0 | E150: =VLOOKUP(C150,CATALOGO!$E$3:$F$60000,2) ->  | J150: =VLOOKUP(I150,CATALOGO!$H$3:$I$60000,2) ->  | Q150: 0 | S150: 0 | T150: 0 | U150: 0 | W150: 0 | Y150: 0 | AA150: 0
D151: 0 | E151: =VLOOKUP(C151,CATALOGO!$E$3:$F$60000,2) ->  | J151: =VLOOKUP(I151,CATALOGO!$H$3:$I$60000,2) ->  | Q151: 0 | S151: =+K151+L151+M151+N151-O151-P151-R151 -> 0 | T151: =SUM(L151*16%,N151*16%)-Q151 -> 0 | U151: =+S151+T151 -> 0 | W151: 0 | Y151: 0 | AA151: 0
D152: 0 | E152: =VLOOKUP(C152,CATALOGO!$E$3:$F$60000,2) ->  | J152: =VLOOKUP(I152,CATALOGO!$H$3:$I$60000,2) ->  | Q152: 0 | S152: 0 | T152: 0 | U152: 0 | W152: 0 | Y152: 0 | AA152: 0
D153: 0 | E153: =VLOOKUP(C153,CATALOGO!$E$3:$F$60000,2) ->  | J153: =VLOOKUP(I153,CATALOGO!$H$3:$I$60000,2) ->  | Q153: 0 | S153: 0 | T153: 0 | U153: 0 | W153: 0 | Y153: 0 | AA153: 0
D154: 0 | E154: =VLOOKUP(C154,CATALOGO!$E$3:$F$60000,2) ->  | J154: =VLOOKUP(I154,CATALOGO!$H$3:$I$60000,2) ->  | Q154: 0 | S154: 0 | T154: 0 | U154: 0 | W154: 0 | Y154: 0 | AA154: 0
D155: 0 | E155: =VLOOKUP(C155,CATALOGO!$E$3:$F$60000,2) ->  | J155: =VLOOKUP(I155,CATALOGO!$H$3:$I$60000,2) ->  | Q155: 0 | S155: 0 | T155: 0 | U155: 0 | W155: 0 | Y155: 0 | AA155: 0
D156: 0 | E156: =VLOOKUP(C156,CATALOGO!$E$3:$F$60000,2) ->  | J156: =VLOOKUP(I156,CATALOGO!$H$3:$I$60000,2) ->  | Q156: 0 | S156: 0 | T156: 0 | U156: 0 | W156: 0 | Y156: 0 | AA156: 0
D157: 0 | E157: =VLOOKUP(C157,CATALOGO!$E$3:$F$60000,2) ->  | J157: =VLOOKUP(I157,CATALOGO!$H$3:$I$60000,2) ->  | Q157: 0 | S157: 0 | T157: 0 | U157: 0 | W157: 0 | Y157: 0 | AA157: 0
D158: 0 | E158: =VLOOKUP(C158,CATALOGO!$E$3:$F$60000,2) ->  | J158: =VLOOKUP(I158,CATALOGO!$H$3:$I$60000,2) ->  | Q158: 0 | S158: 0 | T158: 0 | U158: 0 | W158: 0 | Y158: 0 | AA158: 0
D159: 0 | E159: =VLOOKUP(C159,CATALOGO!$E$3:$F$60000,2) ->  | J159: =VLOOKUP(I159,CATALOGO!$H$3:$I$60000,2) ->  | Q159: 0 | S159: 0 | T159: 0 | U159: 0 | W159: 0 | Y159: 0 | AA159: 0
D160: 0 | E160: =VLOOKUP(C160,CATALOGO!$E$3:$F$60000,2) ->  | J160: =VLOOKUP(I160,CATALOGO!$H$3:$I$60000,2) ->  | Q160: 0 | S160: 0 | T160: 0 | U160: 0 | W160: 0 | Y160: 0 | AA160: 0
D161: 0 | E161: =VLOOKUP(C161,CATALOGO!$E$3:$F$60000,2) ->  | J161: =VLOOKUP(I161,CATALOGO!$H$3:$I$60000,2) ->  | Q161: 0 | S161: 0 | T161: 0 | U161: 0 | W161: 0 | Y161: 0 | AA161: 0
D162: 0 | E162: =VLOOKUP(C162,CATALOGO!$E$3:$F$60000,2) ->  | J162: =VLOOKUP(I162,CATALOGO!$H$3:$I$60000,2) ->  | Q162: 0 | S162: 0 | T162: 0 | U162: 0 | W162: 0 | Y162: 0 | AA162: 0
D163: 0 | E163: =VLOOKUP(C163,CATALOGO!$E$3:$F$60000,2) ->  | J163: =VLOOKUP(I163,CATALOGO!$H$3:$I$60000,2) ->  | Q163: 0 | S163: 0 | T163: 0 | U163: 0 | W163: 0 | Y163: 0 | AA163: 0
D164: 0 | E164: =VLOOKUP(C164,CATALOGO!$E$3:$F$60000,2) ->  | J164: =VLOOKUP(I164,CATALOGO!$H$3:$I$60000,2) ->  | Q164: 0 | S164: 0 | T164: 0 | U164: 0 | W164: 0 | Y164: 0 | AA164: 0
D165: 0 | E165: =VLOOKUP(C165,CATALOGO!$E$3:$F$60000,2) ->  | J165: =VLOOKUP(I165,CATALOGO!$H$3:$I$60000,2) ->  | Q165: 0 | S165: 0 | T165: 0 | U165: 0 | W165: 0 | Y165: 0 | AA165: 0
D166: 0 | E166: =VLOOKUP(C166,CATALOGO!$E$3:$F$60000,2) ->  | J166: =VLOOKUP(I166,CATALOGO!$H$3:$I$60000,2) ->  | Q166: 0 | S166: 0 | T166: 0 | U166: 0 | W166: 0 | Y166: 0 | AA166: 0
D167: 0 | E167: =VLOOKUP(C167,CATALOGO!$E$3:$F$60000,2) ->  | J167: =VLOOKUP(I167,CATALOGO!$H$3:$I$60000,2) ->  | Q167: 0 | S167: 0 | T167: 0 | U167: 0 | W167: 0 | Y167: 0 | AA167: 0
D168: 0 | E168: =VLOOKUP(C168,CATALOGO!$E$3:$F$60000,2) ->  | J168: =VLOOKUP(I168,CATALOGO!$H$3:$I$60000,2) ->  | Q168: 0 | S168: 0 | T168: 0 | U168: 0 | W168: 0 | Y168: 0 | AA168: 0
D169: 0 | E169: =VLOOKUP(C169,CATALOGO!$E$3:$F$60000,2) ->  | J169: =VLOOKUP(I169,CATALOGO!$H$3:$I$60000,2) ->  | Q169: 0 | S169: 0 | T169: 0 | U169: 0 | W169: 0 | Y169: 0 | AA169: 0
D170: 0 | E170: =VLOOKUP(C170,CATALOGO!$E$3:$F$60000,2) ->  | J170: =VLOOKUP(I170,CATALOGO!$H$3:$I$60000,2) ->  | Q170: 0 | S170: 0 | T170: 0 | U170: 0 | W170: 0 | Y170: 0 | AA170: 0
D171: 0 | E171: =VLOOKUP(C171,CATALOGO!$E$3:$F$60000,2) ->  | J171: =VLOOKUP(I171,CATALOGO!$H$3:$I$60000,2) ->  | Q171: 0 | S171: 0 | T171: 0 | U171: 0 | W171: 0 | Y171: 0 | AA171: 0
D172: 0 | E172: =VLOOKUP(C172,CATALOGO!$E$3:$F$60000,2) ->  | J172: =VLOOKUP(I172,CATALOGO!$H$3:$I$60000,2) ->  | Q172: 0 | S172: 0 | T172: 0 | U172: 0 | W172: 0 | Y172: 0 | AA172: 0
D173: 0 | E173: =VLOOKUP(C173,CATALOGO!$E$3:$F$60000,2) ->  | J173: =VLOOKUP(I173,CATALOGO!$H$3:$I$60000,2) ->  | Q173: 0 | S173: 0 | T173: 0 | U173: 0 | W173: 0 | Y173: 0 | AA173: 0
D174: 0 | E174: =VLOOKUP(C174,CATALOGO!$E$3:$F$60000,2) ->  | J174: =VLOOKUP(I174,CATALOGO!$H$3:$I$60000,2) ->  | Q174: 0 | S174: 0 | T174: 0 | U174: 0 | W174: 0 | Y174: 0 | AA174: 0
D175: 0 | E175: =VLOOKUP(C175,CATALOGO!$E$3:$F$60000,2) ->  | J175: =VLOOKUP(I175,CATALOGO!$H$3:$I$60000,2) ->  | Q175: 0 | S175: 0 | T175: 0 | U175: 0 | W175: 0 | Y175: 0 | AA175: 0
D176: 0 | E176: =VLOOKUP(C176,CATALOGO!$E$3:$F$60000,2) ->  | J176: =VLOOKUP(I176,CATALOGO!$H$3:$I$60000,2) ->  | Q176: 0 | S176: 0 | T176: 0 | U176: 0 | W176: 0 | Y176: 0 | AA176: 0
D177: 0 | E177: =VLOOKUP(C177,CATALOGO!$E$3:$F$60000,2) ->  | J177: =VLOOKUP(I177,CATALOGO!$H$3:$I$60000,2) ->  | Q177: 0 | S177: 0 | T177: 0 | U177: 0 | W177: 0 | Y177: 0 | AA177: 0
D178: 0 | E178: =VLOOKUP(C178,CATALOGO!$E$3:$F$60000,2) ->  | J178: =VLOOKUP(I178,CATALOGO!$H$3:$I$60000,2) ->  | Q178: 0 | S178: 0 | T178: 0 | U178: 0 | W178: 0 | Y178: 0 | AA178: 0
D179: 0 | E179: =VLOOKUP(C179,CATALOGO!$E$3:$F$60000,2) ->  | J179: =VLOOKUP(I179,CATALOGO!$H$3:$I$60000,2) ->  | Q179: 0 | S179: 0 | T179: 0 | U179: 0 | W179: 0 | Y179: 0 | AA179: 0
D180: 0 | E180: =VLOOKUP(C180,CATALOGO!$E$3:$F$60000,2) ->  | J180: =VLOOKUP(I180,CATALOGO!$H$3:$I$60000,2) ->  | Q180: 0 | S180: 0 | T180: 0 | U180: 0 | W180: 0 | Y180: 0 | AA180: 0
D181: 0 | E181: =VLOOKUP(C181,CATALOGO!$E$3:$F$60000,2) ->  | J181: =VLOOKUP(I181,CATALOGO!$H$3:$I$60000,2) ->  | Q181: 0 | S181: 0 | T181: 0 | U181: 0 | W181: 0 | Y181: 0 | AA181: 0
D182: 0 | E182: =VLOOKUP(C182,CATALOGO!$E$3:$F$60000,2) ->  | J182: =VLOOKUP(I182,CATALOGO!$H$3:$I$60000,2) ->  | Q182: 0 | S182: 0 | T182: 0 | U182: 0 | W182: 0 | Y182: 0 | AA182: 0
D183: 0 | E183: =VLOOKUP(C183,CATALOGO!$E$3:$F$60000,2) ->  | J183: =VLOOKUP(I183,CATALOGO!$H$3:$I$60000,2) ->  | Q183: 0 | S183: 0 | T183: 0 | U183: 0 | W183: 0 | Y183: 0 | AA183: 0
D184: 0 | E184: =VLOOKUP(C184,CATALOGO!$E$3:$F$60000,2) ->  | J184: =VLOOKUP(I184,CATALOGO!$H$3:$I$60000,2) ->  | Q184: 0 | S184: 0 | T184: 0 | U184: 0 | W184: 0 | Y184: 0 | AA184: 0
D185: 0 | E185: =VLOOKUP(C185,CATALOGO!$E$3:$F$60000,2) ->  | J185: =VLOOKUP(I185,CATALOGO!$H$3:$I$60000,2) ->  | Q185: 0 | S185: 0 | T185: 0 | U185: 0 | W185: 0 | Y185: 0 | AA185: 0
D186: 0 | E186: =VLOOKUP(C186,CATALOGO!$E$3:$F$60000,2) ->  | J186: =VLOOKUP(I186,CATALOGO!$H$3:$I$60000,2) ->  | Q186: 0 | S186: 0 | T186: 0 | U186: 0 | W186: 0 | Y186: 0 | AA186: 0
D187: 0 | E187: =VLOOKUP(C187,CATALOGO!$E$3:$F$60000,2) ->  | J187: =VLOOKUP(I187,CATALOGO!$H$3:$I$60000,2) ->  | Q187: 0 | S187: 0 | T187: 0 | U187: 0 | W187: 0 | Y187: 0 | AA187: 0
D188: 0 | E188: =VLOOKUP(C188,CATALOGO!$E$3:$F$60000,2) ->  | J188: =VLOOKUP(I188,CATALOGO!$H$3:$I$60000,2) ->  | Q188: 0 | S188: 0 | T188: 0 | U188: 0 | W188: 0 | Y188: 0 | AA188: 0
D189: 0 | E189: =VLOOKUP(C189,CATALOGO!$E$3:$F$60000,2) ->  | J189: =VLOOKUP(I189,CATALOGO!$H$3:$I$60000,2) ->  | Q189: 0 | S189: 0 | T189: 0 | U189: 0 | W189: 0 | Y189: 0 | AA189: 0
D190: 0 | E190: =VLOOKUP(C190,CATALOGO!$E$3:$F$60000,2) ->  | J190: =VLOOKUP(I190,CATALOGO!$H$3:$I$60000,2) ->  | Q190: 0 | S190: 0 | T190: 0 | U190: 0 | W190: 0 | Y190: 0 | AA190: 0
D191: 0 | E191: =VLOOKUP(C191,CATALOGO!$E$3:$F$60000,2) ->  | J191: =VLOOKUP(I191,CATALOGO!$H$3:$I$60000,2) ->  | Q191: 0 | S191: 0 | T191: 0 | U191: 0 | W191: 0 | Y191: 0 | AA191: 0
D192: 0 | E192: =VLOOKUP(C192,CATALOGO!$E$3:$F$60000,2) ->  | J192: =VLOOKUP(I192,CATALOGO!$H$3:$I$60000,2) ->  | Q192: 0 | S192: 0 | T192: 0 | U192: 0 | W192: 0 | Y192: 0 | AA192: 0
D193: 0 | E193: =VLOOKUP(C193,CATALOGO!$E$3:$F$60000,2) ->  | J193: =VLOOKUP(I193,CATALOGO!$H$3:$I$60000,2) ->  | Q193: 0 | S193: 0 | T193: 0 | U193: 0 | W193: 0 | Y193: 0 | AA193: 0
D194: 0 | E194: =VLOOKUP(C194,CATALOGO!$E$3:$F$60000,2) ->  | J194: =VLOOKUP(I194,CATALOGO!$H$3:$I$60000,2) ->  | Q194: 0 | S194: 0 | T194: 0 | U194: 0 | W194: 0 | Y194: 0 | AA194: 0
D195: 0 | E195: =VLOOKUP(C195,CATALOGO!$E$3:$F$60000,2) ->  | J195: =VLOOKUP(I195,CATALOGO!$H$3:$I$60000,2) ->  | Q195: 0 | S195: =+K195+L195+M195+N195-O195-P195-R195 -> 0 | T195: =SUM(L195*16%,N195*16%)-Q195 -> 0 | U195: =+S195+T195 -> 0 | W195: 0 | Y195: 0 | AA195: 0 | AE195: =IF(B195>0,DATE(YEAR(B195),MONTH(B195),1),"") -> 
D196: 0 | E196: =VLOOKUP(C196,CATALOGO!$E$3:$F$60000,2) ->  | J196: =VLOOKUP(I196,CATALOGO!$H$3:$I$60000,2) ->  | Q196: 0 | S196: 0 | T196: 0 | U196: 0 | W196: 0 | Y196: 0 | AA196: 0
D197: 0 | E197: =VLOOKUP(C197,CATALOGO!$E$3:$F$60000,2) ->  | J197: =VLOOKUP(I197,CATALOGO!$H$3:$I$60000,2) ->  | Q197: 0 | S197: 0 | T197: 0 | U197: 0 | W197: 0 | Y197: 0 | AA197: 0
D198: 0 | E198: =VLOOKUP(C198,CATALOGO!$E$3:$F$60000,2) ->  | J198: =VLOOKUP(I198,CATALOGO!$H$3:$I$60000,2) ->  | Q198: 0 | S198: 0 | T198: 0 | U198: 0 | W198: 0 | Y198: 0 | AA198: 0
D199: 0 | E199: =VLOOKUP(C199,CATALOGO!$E$3:$F$60000,2) ->  | J199: =VLOOKUP(I199,CATALOGO!$H$3:$I$60000,2) ->  | Q199: 0 | S199: 0 | T199: 0 | U199: 0 | W199: =IF(V199="SI",SUM(L199*10%),0) -> 0 | Y199: =IF(X199="SI",SUM(L199*10%),0) -> 0 | AA199: =IF(Z199="SI",SUM(L199*4%),0) -> 0 | AC199: =IF(AB199<>0,DATE(AB199>0,MONTH(AB199),1),"") -> 
D200: 0 | E200: =VLOOKUP(C200,CATALOGO!$E$3:$F$60000,2) ->  | J200: =VLOOKUP(I200,CATALOGO!$H$3:$I$60000,2) ->  | Q200: 0 | S200: 0 | T200: 0 | U200: 0 | W200: 0 | Y200: 0 | AA200: 0 | AF200: =IF(B200>0,DATE(YEAR(B200),1,1),"") -> 
D201: 0 | E201: =VLOOKUP(C201,CATALOGO!$E$3:$F$60000,2) ->  | J201: =VLOOKUP(I201,CATALOGO!$H$3:$I$60000,2) ->  | Q201: 0 | S201: 0 | T201: 0 | U201: 0 | W201: 0 | Y201: 0 | AA201: 0
D202: =IF(C202>"000",1,0) -> 0 | E202: =VLOOKUP(C202,CATALOGO!$E$3:$F$60000,2) ->  | J202: =VLOOKUP(I202,CATALOGO!$H$3:$I$60000,2) ->  | Q202: 0 | S202: 0 | T202: 0 | U202: 0 | W202: 0 | Y202: 0 | AA202: 0
... 2046 more rows

Sheet Hoja1
C1: PRESENTACION
A2: =+Hoja4!B4 -> carlos baez medina
A3: CEDULA DE RETENSIONES POR PAGAR 2012
D5: 1901-01-01 | E5: 1901-02-01 | F5: 1901-03-01 | G5: 1901-04-01 | H5: 1901-05-01 | I5: 1901-06-01 | J5: 1901-07-01 | K5: 1901-08-01 | L5: 1901-09-01 | M5: 1901-10-01 | N5: 1901-11-01 | O5: 1901-12-01
A7: Concepto | D7: ENERO | E7: FEBRERO | F7: MARZO | G7: ABRIL | H7: MAYO | I7: JUNIO | J7: JULIO | K7: AGOSTO | L7: SEPTIEMBRE | M7: OCTUBRE | N7: NOVIEMBRE | O7: DICIEMBRE | P7: TOTAL GRAL
A9: 0 | C9: SUELDOS Y SALARIOS | D9: =IF($A$9>0,SUMPRODUCT(--(EGRESOS!$I$9:$I$12998=$A$9),--(EGRESOS!$AC$9:$AC$12998=D5),(EGRESOS!$S$9:$S$12998)),0) -> 0 | E9: =IF($A$9>0,SUMPRODUCT(--(EGRESOS!$I$9:$I$12998=$A$9),--(EGRESOS!$AC$9:$AC$12998=E5),(EGRESOS!$S$9:$S$12998)),0) -> 0 | F9: =IF($A$9>0,SUMPRODUCT(--(EGRESOS!$I$9:$I$12998=$A$9),--(EGRESOS!$AC$9:$AC$12998=F5),(EGRESOS!$S$9:$S$12998)),0) -> 0 | G9: =IF($A$9>0,SUMPRODUCT(--(EGRESOS!$I$9:$I$12998=$A$9),--(EGRESOS!$AC$9:$AC$12998=G5),(EGRESOS!$S$9:$S$12998)),0) -> 0 | H9: =IF($A$9>0,SUMPRODUCT(--(EGRESOS!$I$9:$I$12998=$A$9),--(EGRESOS!$AC$9:$AC$12998=H5),(EGRESOS!$S$9:$S$12998)),0) -> 0 | I9: =IF($A$9>0,SUMPRODUCT(--(EGRESOS!$I$9:$I$12998=$A$9),--(EGRESOS!$AC$9:$AC$12998=I5),(EGRESOS!$S$9:$S$12998)),0) -> 0 | J9: =IF($A$9>0,SUMPRODUCT(--(EGRESOS!$I$9:$I$12998=$A$9),--(EGRESOS!$AC$9:$AC$12998=J5),(EGRESOS!$S$9:$S$12998)),0) -> 0 | K9: =IF($A$9>0,SUMPRODUCT(--(EGRESOS!$I$9:$I$12998=$A$9),--(EGRESOS!$AC$9:$AC$12998=K5),(EGRESOS!$S$9:$S$12998)),0) -> 0 | L9: =IF($A$9>0,SUMPRODUCT(--(EGRESOS!$I$9:$I$12998=$A$9),--(EGRESOS!$AC$9:$AC$12998=L5),(EGRESOS!$S$9:$S$12998)),0) -> 0 | M9: =IF($A$9>0,SUMPRODUCT(--(EGRESOS!$I$9:$I$12998=$A$9),--(EGRESOS!$AC$9:$AC$12998=M5),(EGRESOS!$S$9:$S$12998)),0) -> 0 | N9: =IF($A$9>0,SUMPRODUCT(--(EGRESOS!$I$9:$I$12998=$A$9),--(EGRESOS!$AC$9:$AC$12998=N5),(EGRESOS!$S$9:$S$12998)),0) -> 0 | O9: =IF($A$9>0,SUMPRODUCT(--(EGRESOS!$I$9:$I$12998=$A$9),--(EGRESOS!$AC$9:$AC$12998=O5),(EGRESOS!$S$9:$S$12998)),0) -> 0 | P9: =SUM(D9:O9) -> 0
A10: 002 | C10: Retensiones ISPT | D10: =IF($A$10>0,SUMPRODUCT(--(EGRESOS!$I$9:$I$12998=$A$10),--(EGRESOS!$AC$9:$AC$12998=D5),(EGRESOS!$R$9:$R$12998)),0) -> 0 | E10: =IF($A$10>0,SUMPRODUCT(--(EGRESOS!$I$9:$I$12998=$A$10),--(EGRESOS!$AC$9:$AC$12998=E5),(EGRESOS!$R$9:$R$12998)),0) -> 0 | F10: =IF($A$10>0,SUMPRODUCT(--(EGRESOS!$I$9:$I$12998=$A$10),--(EGRESOS!$AC$9:$AC$12998=F5),(EGRESOS!$R$9:$R$12998)),0) -> 0 | G10: =IF($A$10>0,SUMPRODUCT(--(EGRESOS!$I$9:$I$12998=$A$10),--(EGRESOS!$AC$9:$AC$12998=G5),(EGRESOS!$R$9:$R$12998)),0) -> 0 | H10: =IF($A$10>0,SUMPRODUCT(--(EGRESOS!$I$9:$I$12998=$A$10),--(EGRESOS!$AC$9:$AC$12998=H5),(EGRESOS!$R$9:$R$12998)),0) -> 0 | I10: =IF($A$10>0,SUMPRODUCT(--(EGRESOS!$I$9:$I$12998=$A$10),--(EGRESOS!$AC$9:$AC$12998=I5),(EGRESOS!$R$9:$R$12998)),0) -> 0 | J10: =IF($A$10>0,SUMPRODUCT(--(EGRESOS!$I$9:$I$12998=$A$10),--(EGRESOS!$AC$9:$AC$12998=J5),(EGRESOS!$R$9:$R$12998)),0) -> 0 | K10: =IF($A$10>0,SUMPRODUCT(--(EGRESOS!$I$9:$I$12998=$A$10),--(EGRESOS!$AC$9:$AC$12998=K5),(EGRESOS!$R$9:$R$12998)),0) -> 0 | L10: =IF($A$10>0,SUMPRODUCT(--(EGRESOS!$I$9:$I$12998=$A$10),--(EGRESOS!$AC$9:$AC$12998=L5),(EGRESOS!$R$9:$R$12998)),0) -> 0 | M10: =IF($A$10>0,SUMPRODUCT(--(EGRESOS!$I$9:$I$12998=$A$10),--(EGRESOS!$AC$9:$AC$12998=M5),(EGRESOS!$R$9:$R$12998)),0) -> 0 | N10: =IF($A$10>0,SUMPRODUCT(--(EGRESOS!$I$9:$I$12998=$A$10),--(EGRESOS!$AC$9:$AC$12998=N5),(EGRESOS!$R$9:$R$12998)),0) -> 0 | O10: =IF($A$10>0,SUMPRODUCT(--(EGRESOS!$I$9:$I$12998=$A$10),--(EGRESOS!$AC$9:$AC$12998=O5),(EGRESOS!$R$9:$R$12998)),0) -> 0 | P10: =SUM(D10:O10) -> 0
C12: TOTAL PAGADO | D12: =+D9-D10 -> 0 | E12: 0 | F12: 0 | G12: 0 | H12: 0 | I12: 0 | J12: 0 | K12: 0 | L12: 0 | M12: 0 | N12: 0 | O12: 0 | P12: =SUM(D12:O12) -> 0
C16: RETENSIONES POR PAGAR
C17: CONCEPTO | D17: RETENSIONES POR PAGAR | E17: ACTUALIZACIONES | F17: RECARGOS | G17: TOTAL A PAGAR
C19: ENERO | D19: =+D10 -> 0 | G19: =SUM(D19+E19+F19) -> 0
C20: FEBRERO | D20: =+E10 -> 0 | G20: =SUM(D20+E20+F20) -> 0
C21: MARZO | D21: =+F10 -> 0 | G21: 0
C22: ABRIL | D22: =+G10 -> 0 | G22: 0
C23: MAYO | D23: =+H10 -> 0 | G23: 0
C24: JUNIO | D24: =+I10 -> 0 | G24: 0
C25: JULIO | D25: =+J10 -> 0 | G25: 0
C26: AGOSTO | D26: =+K10 -> 0 | G26: 0
C27: SEPTIEMBRE | D27: =+L10 -> 0 | G27: 0
C28: OCTUBRE | D28: =+M10 -> 0 | G28: 0
C29: NOVIEMBRE | D29: =+N10 -> 0 | G29: 0
C30: DICIEMBRE | D30: =+O10 -> 0 | G30: 0
C32: TOTAL PAGADO | D32: =SUM(D19:D31) -> 0 | E32: =SUM(E19:E31) -> 0 | F32: =SUM(F19:F31) -> 0 | G32: =SUM(G19:G31) -> 0

Sheet PROVEEDORES
B1: PROVEEDORES ANUALES | P1: PRESENTACION
A2: =+LLENAR!F2 -> carlos baez medina
A3: CONCENTRADO DE PROVEEDORES
B5: MES | D5: 1901-01-01
B7: AÑO | D7: 2012
H8: COMPRAS (GASTOS) | J8: COPRAS | L8: DESCUENTOS
A9: NUM DEL PROVEEDOR | B9: PROVEEDOR | D9: R.F.C | E9: DIRECCION | F9: TELEFONO | G9: MOVIMIENTOS | H9: INGRESOS EXENTOS | I9: INGRESOS GRAVADOS | J9: TASA0% | K9: TASA 16% | L9: DESCUENTOS 0% | M9: DESCUENTOS 15% | N9: IVA DE DESCUENTO | O9: IMPORTE | P9: IVA | Q9: TOTAL
A10: 001 | B10: =VLOOKUP(A10,CATALOGO!$E$3:$F$13000,2) -> CARLOS | D10: =IF(A10>0,VLOOKUP(A10,CATALOGO!$E$3:$G$13000,3),"") -> 0 | G10: =IF(A10>0,SUMPRODUCT(--(EGRESOS!$C$9:$C$12998=A10),--(EGRESOS!$AC$9:$AC$12998=$D$5),(EGRESOS!$D$9:$D$12998)),0) -> 1 | H10: =IF(A10>0,SUMPRODUCT(--(EGRESOS!$C$9:$C$12998=A10),--(EGRESOS!$AC$9:$AC$12998=$D$5),(EGRESOS!$K$9:$K$12998)),0) -> 0 | I10: =IF(A10>0,SUMPRODUCT(--(EGRESOS!$C$9:$C$12998=A10),--(EGRESOS!$AC$9:$AC$12998=$D$5),(EGRESOS!$L$9:$L$12998)),0) -> 800000 | J10: =IF(A10>0,SUMPRODUCT(--(EGRESOS!$C$9:$C$12998=A10),--(EGRESOS!$AC$9:$AC$12998=$D$5),(EGRESOS!$M$9:$M$12998)),0) -> 0 | K10: =IF(A10>0,SUMPRODUCT(--(EGRESOS!$C$9:$C$12998=A10),--(EGRESOS!$AC$9:$AC$12998=$D$5),(EGRESOS!$N$9:$N$12998)),0) -> 0 | L10: =IF(A10>0,SUMPRODUCT(--(EGRESOS!$C$9:$C$12998=A10),--(EGRESOS!$AC$9:$AC$12998=$D$5),(EGRESOS!$O$9:$O$12998)),0) -> 0 | M10: =IF(A10>0,SUMPRODUCT(--(EGRESOS!$C$9:$C$12998=A10),--(EGRESOS!$AC$9:$AC$12998=$D$5),(EGRESOS!$P$9:$P$12998)),0) -> 0 | N10: =IF(A10>0,SUMPRODUCT(--(EGRESOS!$C$9:$C$12998=A10),--(EGRESOS!$AC$9:$AC$12998=$D$5),(EGRESOS!$Q$9:$Q$12998)),0) -> 0 | O10: =+H10+I10+J10+K10-L10-M10 -> 800000 | P10: =IF(A10>0,SUMPRODUCT(--(EGRESOS!$C$9:$C$12998=A10),--(EGRESOS!$AC$9:$AC$12998=$D$5),(EGRESOS!$T$9:$T$12998)),0) -> 128000 | Q10: =IF(O10>0,+(O10+P10),0) -> 928000
A11: 002 | B11: =VLOOKUP(A11,CATALOGO!$E$3:$F$13000,2) -> 0 | D11: =IF(A11>0,VLOOKUP(A11,CATALOGO!$E$3:$G$13000,3),"") -> 0 | G11: =IF(A11>0,SUMPRODUCT(--(EGRESOS!$C$9:$C$12998=A11),--(EGRESOS!$AC$9:$AC$12998=$D$5),(EGRESOS!$D$9:$D$12998)),0) -> 0 | H11: =IF(A11>0,SUMPRODUCT(--(EGRESOS!$C$9:$C$12998=A11),--(EGRESOS!$AC$9:$AC$12998=$D$5),(EGRESOS!$K$9:$K$12998)),0) -> 0 | I11: =IF(A11>0,SUMPRODUCT(--(EGRESOS!$C$9:$C$12998=A11),--(EGRESOS!$AC$9:$AC$12998=$D$5),(EGRESOS!$L$9:$L$12998)),0) -> 0 | J11: =IF(A11>0,SUMPRODUCT(--(EGRESOS!$C$9:$C$12998=A11),--(EGRESOS!$AC$9:$AC$12998=$D$5),(EGRESOS!$M$9:$M$12998)),0) -> 0 | K11: =IF(A11>0,SUMPRODUCT(--(EGRESOS!$C$9:$C$12998=A11),--(EGRESOS!$AC$9:$AC$12998=$D$5),(EGRESOS!$N$9:$N$12998)),0) -> 0 | L11: =IF(A11>0,SUMPRODUCT(--(EGRESOS!$C$9:$C$12998=A11),--(EGRESOS!$AC$9:$AC$12998=$D$5),(EGRESOS!$O$9:$O$12998)),0) -> 0 | M11: =IF(A11>0,SUMPRODUCT(--(EGRESOS!$C$9:$C$12998=A11),--(EGRESOS!$AC$9:$AC$12998=$D$5),(EGRESOS!$P$9:$P$12998)),0) -> 0 | N11: =IF(A11>0,SUMPRODUCT(--(EGRESOS!$C$9:$C$12998=A11),--(EGRESOS!$AC$9:$AC$12998=$D$5),(EGRESOS!$Q$9:$Q$12998)),0) -> 0 | O11: =+H11+I11+J11+K11-L11-M11 -> 0 | P11: =IF(A11>0,SUMPRODUCT(--(EGRESOS!$C$9:$C$12998=A11),--(EGRESOS!$AC$9:$AC$12998=$D$5),(EGRESOS!$T$9:$T$12998)),0) -> 0 | Q11: =IF(O11>0,+(O11+P11),0) -> 0 | S11: 1901-01-01
A12: 003 | B12: =VLOOKUP(A12,CATALOGO!$E$3:$F$13000,2) -> 0 | D12: =IF(A12>0,VLOOKUP(A12,CATALOGO!$E$3:$G$13000,3),"") -> 0 | G12: =IF(A12>0,SUMPRODUCT(--(EGRESOS!$C$9:$C$12998=A12),--(EGRESOS!$AC$9:$AC$12998=$D$5),(EGRESOS!$D$9:$D$12998)),0) -> 0 | H12: =IF(A12>0,SUMPRODUCT(--(EGRESOS!$C$9:$C$12998=A12),--(EGRESOS!$AC$9:$AC$12998=$D$5),(EGRESOS!$K$9:$K$12998)),0) -> 0 | I12: =IF(A12>0,SUMPRODUCT(--(EGRESOS!$C$9:$C$12998=A12),--(EGRESOS!$AC$9:$AC$12998=$D$5),(EGRESOS!$L$9:$L$12998)),0) -> 0 | J12: =IF(A12>0,SUMPRODUCT(--(EGRESOS!$C$9:$C$12998=A12),--(EGRESOS!$AC$9:$AC$12998=$D$5),(EGRESOS!$M$9:$M$12998)),0) -> 0 | K12: =IF(A12>0,SUMPRODUCT(--(EGRESOS!$C$9:$C$12998=A12),--(EGRESOS!$AC$9:$AC$12998=$D$5),(EGRESOS!$N$9:$N$12998)),0) -> 0 | L12: =IF(A12>0,SUMPRODUCT(--(EGRESOS!$C$9:$C$12998=A12),--(EGRESOS!$AC$9:$AC$12998=$D$5),(EGRESOS!$O$9:$O$12998)),0) -> 0 | M12: =IF(A12>0,SUMPRODUCT(--(EGRESOS!$C$9:$C$12998=A12),--(EGRESOS!$AC$9:$AC$12998=$D$5),(EGRESOS!$P$9:$P$12998)),0) -> 0 | N12: =IF(A12>0,SUMPRODUCT(--(EGRESOS!$C$9:$C$12998=A12),--(EGRESOS!$AC$9:$AC$12998=$D$5),(EGRESOS!$Q$9:$Q$12998)),0) -> 0 | O12: 0 | P12: =IF(A12>0,SUMPRODUCT(--(EGRESOS!$C$9:$C$12998=A12),--(EGRESOS!$AC$9:$AC$12998=$D$5),(EGRESOS!$T$9:$T$12998)),0) -> 0 | Q12: 0 | S12: 1901-02-01
A13: 004 | B13: =VLOOKUP(A13,CATALOGO!$E$3:$F$13000,2) -> 0 | D13: =IF(A13>0,VLOOKUP(A13,CATALOGO!$E$3:$G$13000,3),"") -> 0 | G13: =IF(A13>0,SUMPRODUCT(--(EGRESOS!$C$9:$C$12998=A13),--(EGRESOS!$AC$9:$AC$12998=$D$5),(EGRESOS!$D$9:$D$12998)),0) -> 0 | H13: =IF(A13>0,SUMPRODUCT(--(EGRESOS!$C$9:$C$12998=A13),--(EGRESOS!$AC$9:$AC$12998=$D$5),(EGRESOS!$K$9:$K$12998)),0) -> 0 | I13: =IF(A13>0,SUMPRODUCT(--(EGRESOS!$C$9:$C$12998=A13),--(EGRESOS!$AC$9:$AC$12998=$D$5),(EGRESOS!$L$9:$L$12998)),0) -> 0 | J13: =IF(A13>0,SUMPRODUCT(--(EGRESOS!$C$9:$C$12998=A13),--(EGRESOS!$AC$9:$AC$12998=$D$5),(EGRESOS!$M$9:$M$12998)),0) -> 0 | K13: =IF(A13>0,SUMPRODUCT(--(EGRESOS!$C$9:$C$12998=A13),--(EGRESOS!$AC$9:$AC$12998=$D$5),(EGRESOS!$N$9:$N$12998)),0) -> 0 | L13: =IF(A13>0,SUMPRODUCT(--(EGRESOS!$C$9:$C$12998=A13),--(EGRESOS!$AC$9:$AC$12998=$D$5),(EGRESOS!$O$9:$O$12998)),0) -> 0 | M13: =IF(A13>0,SUMPRODUCT(--(EGRESOS!$C$9:$C$12998=A13),--(EGRESOS!$AC$9:$AC$12998=$D$5),(EGRESOS!$P$9:$P$12998)),0) -> 0 | N13: =IF(A13>0,SUMPRODUCT(--(EGRESOS!$C$9:$C$12998=A13),--(EGRESOS!$AC$9:$AC$12998=$D$5),(EGRESOS!$Q$9:$Q$12998)),0) -> 0 | O13: 0 | P13: =IF(A13>0,SUMPRODUCT(--(EGRESOS!$C$9:$C$12998=A13),--(EGRESOS!$AC$9:$AC$12998=$D$5),(EGRESOS!$T$9:$T$12998)),0) -> 0 | Q13: 0 | S13: 1901-03-01
A14: 005 | B14: =VLOOKUP(A14,CATALOGO!$E$3:$F$13000,2) -> 0 | D14: =IF(A14>0,VLOOKUP(A14,CATALOGO!$E$3:$G$13000,3),"") -> 0 | G14: =IF(A14>0,SUMPRODUCT(--(EGRESOS!$C$9:$C$12998=A14),--(EGRESOS!$AC$9:$AC$12998=$D$5),(EGRESOS!$D$9:$D$12998)),0) -> 0 | H14: =IF(A14>0,SUMPRODUCT(--(EGRESOS!$C$9:$C$12998=A14),--(EGRESOS!$AC$9:$AC$12998=$D$5),(EGRESOS!$K$9:$K$12998)),0) -> 0 | I14: =IF(A14>0,SUMPRODUCT(--(EGRESOS!$C$9:$C$12998=A14),--(EGRESOS!$AC$9:$AC$12998=$D$5),(EGRESOS!$L$9:$L$12998)),0) -> 0 | J14: =IF(A14>0,SUMPRODUCT(--(EGRESOS!$C$9:$C$12998=A14),--(EGRESOS!$AC$9:$AC$12998=$D$5),(EGRESOS!$M$9:$M$12998)),0) -> 0 | K14: =IF(A14>0,SUMPRODUCT(--(EGRESOS!$C$9:$C$12998=A14),--(EGRESOS!$AC$9:$AC$12998=$D$5),(EGRESOS!$N$9:$N$12998)),0) -> 0 | L14: =IF(A14>0,SUMPRODUCT(--(EGRESOS!$C$9:$C$12998=A14),--(EGRESOS!$AC$9:$AC$12998=$D$5),(EGRESOS!$O$9:$O$12998)),0) -> 0 | M14: =IF(A14>0,SUMPRODUCT(--(EGRESOS!$C$9:$C$12998=A14),--(EGRESOS!$AC$9:$AC$12998=$D$5),(EGRESOS!$P$9:$P$12998)),0) -> 0 | N14: =IF(A14>0,SUMPRODUCT(--(EGRESOS!$C$9:$C$12998=A14),--(EGRESOS!$AC$9:$AC$12998=$D$5),(EGRESOS!$Q$9:$Q$12998)),0) -> 0 | O14: 0 | P14: =IF(A14>0,SUMPRODUCT(--(EGRESOS!$C$9:$C$12998=A14),--(EGRESOS!$AC$9:$AC$12998=$D$5),(EGRESOS!$T$9:$T$12998)),0) -> 0 | Q14: 0 | S14: 1901-04-01
A15: 006 | B15: =VLOOKUP(A15,CATALOGO!$E$3:$F$13000,2) -> 0 | D15: =IF(A15>0,VLOOKUP(A15,CATALOGO!$E$3:$G$13000,3),"") -> 0 | G15: =IF(A15>0,SUMPRODUCT(--(EGRESOS!$C$9:$C$12998=A15),--(EGRESOS!$AC$9:$AC$12998=$D$5),(EGRESOS!$D$9:$D$12998)),0) -> 0 | H15: =IF(A15>0,SUMPRODUCT(--(EGRESOS!$C$9:$C$12998=A15),--(EGRESOS!$AC$9:$AC$12998=$D$5),(EGRESOS!$K$9:$K$12998)),0) -> 0 | I15: =IF(A15>0,SUMPRODUCT(--(EGRESOS!$C$9:$C$12998=A15),--(EGRESOS!$AC$9:$AC$12998=$D$5),(EGRESOS!$L$9:$L$12998)),0) -> 0 | J15: =IF(A15>0,SUMPRODUCT(--(EGRESOS!$C$9:$C$12998=A15),--(EGRESOS!$AC$9:$AC$12998=$D$5),(EGRESOS!$M$9:$M$12998)),0) -> 0 | K15: =IF(A15>0,SUMPRODUCT(--(EGRESOS!$C$9:$C$12998=A15),--(EGRESOS!$AC$9:$AC$12998=$D$5),(EGRESOS!$N$9:$N$12998)),0) -> 0 | L15: =IF(A15>0,SUMPRODUCT(--(EGRESOS!$C$9:$C$12998=A15),--(EGRESOS!$AC$9:$AC$12998=$D$5),(EGRESOS!$O$9:$O$12998)),0) -> 0 | M15: =IF(A15>0,SUMPRODUCT(--(EGRESOS!$C$9:$C$12998=A15),--(EGRESOS!$AC$9:$AC$12998=$D$5),(EGRESOS!$P$9:$P$12998)),0) -> 0 | N15: =IF(A15>0,SUMPRODUCT(--(EGRESOS!$C$9:$C$12998=A15),--(EGRESOS!$AC$9:$AC$12998=$D$5),(EGRESOS!$Q$9:$Q$12998)),0) -> 0 | O15: 0 | P15: =IF(A15>0,SUMPRODUCT(--(EGRESOS!$C$9:$C$12998=A15),--(EGRESOS!$AC$9:$AC$12998=$D$5),(EGRESOS!$T$9:$T$12998)),0) -> 0 | Q15: 0 | S15: 1901-05-01
A16: 007 | B16: =VLOOKUP(A16,CATALOGO!$E$3:$F$13000,2) -> 0 | D16: =IF(A16>0,VLOOKUP(A16,CATALOGO!$E$3:$G$13000,3),"") -> 0 | G16: =IF(A16>0,SUMPRODUCT(--(EGRESOS!$C$9:$C$12998=A16),--(EGRESOS!$AC$9:$AC$12998=$D$5),(EGRESOS!$D$9:$D$12998)),0) -> 0 | H16: =IF(A16>0,SUMPRODUCT(--(EGRESOS!$C$9:$C$12998=A16),--(EGRESOS!$AC$9:$AC$12998=$D$5),(EGRESOS!$K$9:$K$12998)),0) -> 0 | I16: =IF(A16>0,SUMPRODUCT(--(EGRESOS!$C$9:$C$12998=A16),--(EGRESOS!$AC$9:$AC$12998=$D$5),(EGRESOS!$L$9:$L$12998)),0) -> 0 | J16: =IF(A16>0,SUMPRODUCT(--(EGRESOS!$C$9:$C$12998=A16),--(EGRESOS!$AC$9:$AC$12998=$D$5),(EGRESOS!$M$9:$M$12998)),0) -> 0 | K16: =IF(A16>0,SUMPRODUCT(--(EGRESOS!$C$9:$C$12998=A16),--(EGRESOS!$AC$9:$AC$12998=$D$5),(EGRESOS!$N$9:$N$12998)),0) -> 0 | L16: =IF(A16>0,SUMPRODUCT(--(EGRESOS!$C$9:$C$12998=A16),--(EGRESOS!$AC$9:$AC$12998=$D$5),(EGRESOS!$O$9:$O$12998)),0) -> 0 | M16: =IF(A16>0,SUMPRODUCT(--(EGRESOS!$C$9:$C$12998=A16),--(EGRESOS!$AC$9:$AC$12998=$D$5),(EGRESOS!$P$9:$P$12998)),0) -> 0 | N16: =IF(A16>0,SUMPRODUCT(--(EGRESOS!$C$9:$C$12998=A16),--(EGRESOS!$AC$9:$AC$12998=$D$5),(EGRESOS!$Q$9:$Q$12998)),0) -> 0 | O16: 0 | P16: =IF(A16>0,SUMPRODUCT(--(EGRESOS!$C$9:$C$12998=A16),--(EGRESOS!$AC$9:$AC$12998=$D$5),(EGRESOS!$T$9:$T$12998)),0) -> 0 | Q16: 0 | S16: 1901-06-01
A17: 008 | B17: =VLOOKUP(A17,CATALOGO!$E$3:$F$13000,2) -> 0 | D17: =IF(A17>0,VLOOKUP(A17,CATALOGO!$E$3:$G$13000,3),"") -> 0 | G17: =IF(A17>0,SUMPRODUCT(--(EGRESOS!$C$9:$C$12998=A17),--(EGRESOS!$AC$9:$AC$12998=$D$5),(EGRESOS!$D$9:$D$12998)),0) -> 0 | H17: =IF(A17>0,SUMPRODUCT(--(EGRESOS!$C$9:$C$12998=A17),--(EGRESOS!$AC$9:$AC$12998=$D$5),(EGRESOS!$K$9:$K$12998)),0) -> 0 | I17: =IF(A17>0,SUMPRODUCT(--(EGRESOS!$C$9:$C$12998=A17),--(EGRESOS!$AC$9:$AC$12998=$D$5),(EGRESOS!$L$9:$L$12998)),0) -> 0 | J17: =IF(A17>0,SUMPRODUCT(--(EGRESOS!$C$9:$C$12998=A17),--(EGRESOS!$AC$9:$AC$12998=$D$5),(EGRESOS!$M$9:$M$12998)),0) -> 0 | K17: =IF(A17>0,SUMPRODUCT(--(EGRESOS!$C$9:$C$12998=A17),--(EGRESOS!$AC$9:$AC$12998=$D$5),(EGRESOS!$N$9:$N$12998)),0) -> 0 | L17: =IF(A17>0,SUMPRODUCT(--(EGRESOS!$C$9:$C$12998=A17),--(EGRESOS!$AC$9:$AC$12998=$D$5),(EGRESOS!$O$9:$O$12998)),0) -> 0 | M17: =IF(A17>0,SUMPRODUCT(--(EGRESOS!$C$9:$C$12998=A17),--(EGRESOS!$AC$9:$AC$12998=$D$5),(EGRESOS!$P$9:$P$12998)),0) -> 0 | N17: =IF(A17>0,SUMPRODUCT(--(EGRESOS!$C$9:$C$12998=A17),--(EGRESOS!$AC$9:$AC$12998=$D$5),(EGRESOS!$Q$9:$Q$12998)),0) -> 0 | O17: 0 | P17: =IF(A17>0,SUMPRODUCT(--(EGRESOS!$C$9:$C$12998=A17),--(EGRESOS!$AC$9:$AC$12998=$D$5),(EGRESOS!$T$9:$T$12998)),0) -> 0 | Q17: 0 | S17: 1901-07-01
A18: 009 | B18: =VLOOKUP(A18,CATALOGO!$E$3:$F$13000,2) -> 0 | D18: =IF(A18>0,VLOOKUP(A18,CATALOGO!$E$3:$G$13000,3),"") -> 0 | G18: =IF(A18>0,SUMPRODUCT(--(EGRESOS!$C$9:$C$12998=A18),--(EGRESOS!$AC$9:$AC$12998=$D$5),(EGRESOS!$D$9:$D$12998)),0) -> 0 | H18: =IF(A18>0,SUMPRODUCT(--(EGRESOS!$C$9:$C$12998=A18),--(EGRESOS!$AC$9:$AC$12998=$D$5),(EGRESOS!$K$9:$K$12998)),0) -> 0 | I18: =IF(A18>0,SUMPRODUCT(--(EGRESOS!$C$9:$C$12998=A18),--(EGRESOS!$AC$9:$AC$12998=$D$5),(EGRESOS!$L$9:$L$12998)),0) -> 0 | J18: =IF(A18>0,SUMPRODUCT(--(EGRESOS!$C$9:$C$12998=A18),--(EGRESOS!$AC$9:$AC$12998=$D$5),(EGRESOS!$M$9:$M$12998)),0) -> 0 | K18: =IF(A18>0,SUMPRODUCT(--(EGRESOS!$C$9:$C$12998=A18),--(EGRESOS!$AC$9:$AC$12998=$D$5),(EGRESOS!$N$9:$N$12998)),0) -> 0 | L18: =IF(A18>0,SUMPRODUCT(--(EGRESOS!$C$9:$C$12998=A18),--(EGRESOS!$AC$9:$AC$12998=$D$5),(EGRESOS!$O$9:$O$12998)),0) -> 0 | M18: =IF(A18>0,SUMPRODUCT(--(EGRESOS!$C$9:$C$12998=A18),--(EGRESOS!$AC$9:$AC$12998=$D$5),(EGRESOS!$P$9:$P$12998)),0) -> 0 | N18: =IF(A18>0,SUMPRODUCT(--(EGRESOS!$C$9:$C$12998=A18),--(EGRESOS!$AC$9:$AC$12998=$D$5),(EGRESOS!$Q$9:$Q$12998)),0) -> 0 | O18: 0 | P18: =IF(A18>0,SUMPRODUCT(--(EGRESOS!$C$9:$C$12998=A18),--(EGRESOS!$AC$9:$AC$12998=$D$5),(EGRESOS!$T$9:$T$12998)),0) -> 0 | Q18: 0 | S18: 1901-08-01
A19: 010 | B19: =VLOOKUP(A19,CATALOGO!$E$3:$F$13000,2) -> 0 | D19: =IF(A19>0,VLOOKUP(A19,CATALOGO!$E$3:$G$13000,3),"") -> 0 | G19: =IF(A19>0,SUMPRODUCT(--(EGRESOS!$C$9:$C$12998=A19),--(EGRESOS!$AC$9:$AC$12998=$D$5),(EGRESOS!$D$9:$D$12998)),0) -> 0 | H19: =IF(A19>0,SUMPRODUCT(--(EGRESOS!$C$9:$C$12998=A19),--(EGRESOS!$AC$9:$AC$12998=$D$5),(EGRESOS!$K$9:$K$12998)),0) -> 0 | I19: =IF(A19>0,SUMPRODUCT(--(EGRESOS!$C$9:$C$12998=A19),--(EGRESOS!$AC$9:$AC$12998=$D$5),(EGRESOS!$L$9:$L$12998)),0) -> 0 | J19: =IF(A19>0,SUMPRODUCT(--(EGRESOS!$C$9:$C$12998=A19),--(EGRESOS!$AC$9:$AC$12998=$D$5),(EGRESOS!$M$9:$M$12998)),0) -> 0 | K19: =IF(A19>0,SUMPRODUCT(--(EGRESOS!$C$9:$C$12998=A19),--(EGRESOS!$AC$9:$AC$12998=$D$5),(EGRESOS!$N$9:$N$12998)),0) -> 0 | L19: =IF(A19>0,SUMPRODUCT(--(EGRESOS!$C$9:$C$12998=A19),--(EGRESOS!$AC$9:$AC$12998=$D$5),(EGRESOS!$O$9:$O$12998)),0) -> 0 | M19: =IF(A19>0,SUMPRODUCT(--(EGRESOS!$C$9:$C$12998=A19),--(EGRESOS!$AC$9:$AC$12998=$D$5),(EGRESOS!$P$9:$P$12998)),0) -> 0 | N19: =IF(A19>0,SUMPRODUCT(--(EGRESOS!$C$9:$C$12998=A19),--(EGRESOS!$AC$9:$AC$12998=$D$5),(EGRESOS!$Q$9:$Q$12998)),0) -> 0 | O19: 0 | P19: =IF(A19>0,SUMPRODUCT(--(EGRESOS!$C$9:$C$12998=A19),--(EGRESOS!$AC$9:$AC$12998=$D$5),(EGRESOS!$T$9:$T$12998)),0) -> 0 | Q19: 0 | S19: 1901-09-01
A20: 011 | B20: =VLOOKUP(A20,CATALOGO!$E$3:$F$13000,2) -> 0 | D20: =IF(A20>0,VLOOKUP(A20,CATALOGO!$E$3:$G$13000,3),"") -> 0 | G20: =IF(A20>0,SUMPRODUCT(--(EGRESOS!$C$9:$C$12998=A20),--(EGRESOS!$AC$9:$AC$12998=$D$5),(EGRESOS!$D$9:$D$12998)),0) -> 0 | H20: =IF(A20>0,SUMPRODUCT(--(EGRESOS!$C$9:$C$12998=A20),--(EGRESOS!$AC$9:$AC$12998=$D$5),(EGRESOS!$K$9:$K$12998)),0) -> 0 | I20: =IF(A20>0,SUMPRODUCT(--(EGRESOS!$C$9:$C$12998=A20),--(EGRESOS!$AC$9:$AC$12998=$D$5),(EGRESOS!$L$9:$L$12998)),0) -> 0 | J20: =IF(A20>0,SUMPRODUCT(--(EGRESOS!$C$9:$C$12998=A20),--(EGRESOS!$AC$9:$AC$12998=$D$5),(EGRESOS!$M$9:$M$12998)),0) -> 0 | K20: =IF(A20>0,SUMPRODUCT(--(EGRESOS!$C$9:$C$12998=A20),--(EGRESOS!$AC$9:$AC$12998=$D$5),(EGRESOS!$N$9:$N$12998)),0) -> 0 | L20: =IF(A20>0,SUMPRODUCT(--(EGRESOS!$C$9:$C$12998=A20),--(EGRESOS!$AC$9:$AC$12998=$D$5),(EGRESOS!$O$9:$O$12998)),0) -> 0 | M20: =IF(A20>0,SUMPRODUCT(--(EGRESOS!$C$9:$C$12998=A20),--(EGRESOS!$AC$9:$AC$12998=$D$5),(EGRESOS!$P$9:$P$12998)),0) -> 0 | N20: =IF(A20>0,SUMPRODUCT(--(EGRESOS!$C$9:$C$12998=A20),--(EGRESOS!$AC$9:$AC$12998=$D$5),(EGRESOS!$Q$9:$Q$12998)),0) -> 0 | O20: 0 | P20: =IF(A20>0,SUMPRODUCT(--(EGRESOS!$C$9:$C$12998=A20),--(EGRESOS!$AC$9:$AC$12998=$D$5),(EGRESOS!$T$9:$T$12998)),0) -> 0 | Q20: 0 | S20: 1901-10-01
A21: 012 | B21: =VLOOKUP(A21,CATALOGO!$E$3:$F$13000,2) -> 0 | D21: =IF(A21>0,VLOOKUP(A21,CATALOGO!$E$3:$G$13000,3),"") -> 0 | G21: =IF(A21>0,SUMPRODUCT(--(EGRESOS!$C$9:$C$12998=A21),--(EGRESOS!$AC$9:$AC$12998=$D$5),(EGRESOS!$D$9:$D$12998)),0) -> 0 | H21: =IF(A21>0,SUMPRODUCT(--(EGRESOS!$C$9:$C$12998=A21),--(EGRESOS!$AC$9:$AC$12998=$D$5),(EGRESOS!$K$9:$K$12998)),0) -> 0 | I21: =IF(A21>0,SUMPRODUCT(--(EGRESOS!$C$9:$C$12998=A21),--(EGRESOS!$AC$9:$AC$12998=$D$5),(EGRESOS!$L$9:$L$12998)),0) -> 0 | J21: =IF(A21>0,SUMPRODUCT(--(EGRESOS!$C$9:$C$12998=A21),--(EGRESOS!$AC$9:$AC$12998=$D$5),(EGRESOS!$M$9:$M$12998)),0) -> 0 | K21: =IF(A21>0,SUMPRODUCT(--(EGRESOS!$C$9:$C$12998=A21),--(EGRESOS!$AC$9:$AC$12998=$D$5),(EGRESOS!$N$9:$N$12998)),0) -> 0 | L21: =IF(A21>0,SUMPRODUCT(--(EGRESOS!$C$9:$C$12998=A21),--(EGRESOS!$AC$9:$AC$12998=$D$5),(EGRESOS!$O$9:$O$12998)),0) -> 0 | M21: =IF(A21>0,SUMPRODUCT(--(EGRESOS!$C$9:$C$12998=A21),--(EGRESOS!$AC$9:$AC$12998=$D$5),(EGRESOS!$P$9:$P$12998)),0) -> 0 | N21: =IF(A21>0,SUMPRODUCT(--(EGRESOS!$C$9:$C$12998=A21),--(EGRESOS!$AC$9:$AC$12998=$D$5),(EGRESOS!$Q$9:$Q$12998)),0) -> 0 | O21: 0 | P21: =IF(A21>0,SUMPRODUCT(--(EGRESOS!$C$9:$C$12998=A21),--(EGRESOS!$AC$9:$AC$12998=$D$5),(EGRESOS!$T$9:$T$12998)),0) -> 0 | Q21: 0 | S21: 1901-11-01
A22: 013 | B22: =VLOOKUP(A22,CATALOGO!$E$3:$F$13000,2) -> 0 | D22: =IF(A22>0,VLOOKUP(A22,CATALOGO!$E$3:$G$13000,3),"") -> 0 | G22: =IF(A22>0,SUMPRODUCT(--(EGRESOS!$C$9:$C$12998=A22),--(EGRESOS!$AC$9:$AC$12998=$D$5),(EGRESOS!$D$9:$D$12998)),0) -> 0 | H22: =IF(A22>0,SUMPRODUCT(--(EGRESOS!$C$9:$C$12998=A22),--(EGRESOS!$AC$9:$AC$12998=$D$5),(EGRESOS!$K$9:$K$12998)),0) -> 0 | I22: =IF(A22>0,SUMPRODUCT(--(EGRESOS!$C$9:$C$12998=A22),--(EGRESOS!$AC$9:$AC$12998=$D$5),(EGRESOS!$L$9:$L$12998)),0) -> 0 | J22: =IF(A22>0,SUMPRODUCT(--(EGRESOS!$C$9:$C$12998=A22),--(EGRESOS!$AC$9:$AC$12998=$D$5),(EGRESOS!$M$9:$M$12998)),0) -> 0 | K22: =IF(A22>0,SUMPRODUCT(--(EGRESOS!$C$9:$C$12998=A22),--(EGRESOS!$AC$9:$AC$12998=$D$5),(EGRESOS!$N$9:$N$12998)),0) -> 0 | L22: =IF(A22>0,SUMPRODUCT(--(EGRESOS!$C$9:$C$12998=A22),--(EGRESOS!$AC$9:$AC$12998=$D$5),(EGRESOS!$O$9:$O$12998)),0) -> 0 | M22: =IF(A22>0,SUMPRODUCT(--(EGRESOS!$C$9:$C$12998=A22),--(EGRESOS!$AC$9:$AC$12998=$D$5),(EGRESOS!$P$9:$P$12998)),0) -> 0 | N22: =IF(A22>0,SUMPRODUCT(--(EGRESOS!$C$9:$C$12998=A22),--(EGRESOS!$AC$9:$AC$12998=$D$5),(EGRESOS!$Q$9:$Q$12998)),0) -> 0 | O22: 0 | P22: =IF(A22>0,SUMPRODUCT(--(EGRESOS!$C$9:$C$12998=A22),--(EGRESOS!$AC$9:$AC$12998=$D$5),(EGRESOS!$T$9:$T$12998)),0) -> 0 | Q22: 0 | S22: 1901-12-01
A23: 014 | B23: =VLOOKUP(A23,CATALOGO!$E$3:$F$13000,2) -> 0 | D23: =IF(A23>0,VLOOKUP(A23,CATALOGO!$E$3:$G$13000,3),"") -> 0 | G23: =IF(A23>0,SUMPRODUCT(--(EGRESOS!$C$9:$C$12998=A23),--(EGRESOS!$AC$9:$AC$12998=$D$5),(EGRESOS!$D$9:$D$12998)),0) -> 0 | H23: =IF(A23>0,SUMPRODUCT(--(EGRESOS!$C$9:$C$12998=A23),--(EGRESOS!$AC$9:$AC$12998=$D$5),(EGRESOS!$K$9:$K$12998)),0) -> 0 | I23: =IF(A23>0,SUMPRODUCT(--(EGRESOS!$C$9:$C$12998=A23),--(EGRESOS!$AC$9:$AC$12998=$D$5),(EGRESOS!$L$9:$L$12998)),0) -> 0 | J23: =IF(A23>0,SUMPRODUCT(--(EGRESOS!$C$9:$C$12998=A23),--(EGRESOS!$AC$9:$AC$12998=$D$5),(EGRESOS!$M$9:$M$12998)),0) -> 0 | K23: =IF(A23>0,SUMPRODUCT(--(EGRESOS!$C$9:$C$12998=A23),--(EGRESOS!$AC$9:$AC$12998=$D$5),(EGRESOS!$N$9:$N$12998)),0) -> 0 | L23: =IF(A23>0,SUMPRODUCT(--(EGRESOS!$C$9:$C$12998=A23),--(EGRESOS!$AC$9:$AC$12998=$D$5),(EGRESOS!$O$9:$O$12998)),0) -> 0 | M23: =IF(A23>0,SUMPRODUCT(--(EGRESOS!$C$9:$C$12998=A23),--(EGRESOS!$AC$9:$AC$12998=$D$5),(EGRESOS!$P$9:$P$12998)),0) -> 0 | N23: =IF(A23>0,SUMPRODUCT(--(EGRESOS!$C$9:$C$12998=A23),--(EGRESOS!$AC$9:$AC$12998=$D$5),(EGRESOS!$Q$9:$Q$12998)),0) -> 0 | O23: 0 | P23: =IF(A23>0,SUMPRODUCT(--(EGRESOS!$C$9:$C$12998=A23),--(EGRESOS!$AC$9:$AC$12998=$D$5),(EGRESOS!$T$9:$T$12998)),0) -> 0 | Q23: 0
A24: 015 | B24: =VLOOKUP(A24,CATALOGO!$E$3:$F$13000,2) -> 0 | D24: =IF(A24>0,VLOOKUP(A24,CATALOGO!$E$3:$G$13000,3),"") -> 0 | G24: =IF(A24>0,SUMPRODUCT(--(EGRESOS!$C$9:$C$12998=A24),--(EGRESOS!$AC$9:$AC$12998=$D$5),(EGRESOS!$D$9:$D$12998)),0) -> 0 | H24: =IF(A24>0,SUMPRODUCT(--(EGRESOS!$C$9:$C$12998=A24),--(EGRESOS!$AC$9:$AC$12998=$D$5),(EGRESOS!$K$9:$K$12998)),0) -> 0 | I24: =IF(A24>0,SUMPRODUCT(--(EGRESOS!$C$9:$C$12998=A24),--(EGRESOS!$AC$9:$AC$12998=$D$5),(EGRESOS!$L$9:$L$12998)),0) -> 0 | J24: =IF(A24>0,SUMPRODUCT(--(EGRESOS!$C$9:$C$12998=A24),--(EGRESOS!$AC$9:$AC$12998=$D$5),(EGRESOS!$M$9:$M$12998)),0) -> 0 | K24: =IF(A24>0,SUMPRODUCT(--(EGRESOS!$C$9:$C$12998=A24),--(EGRESOS!$AC$9:$AC$12998=$D$5),(EGRESOS!$N$9:$N$12998)),0) -> 0 | L24: =IF(A24>0,SUMPRODUCT(--(EGRESOS!$C$9:$C$12998=A24),--(EGRESOS!$AC$9:$AC$12998=$D$5),(EGRESOS!$O$9:$O$12998)),0) -> 0 | M24: =IF(A24>0,SUMPRODUCT(--(EGRESOS!$C$9:$C$12998=A24),--(EGRESOS!$AC$9:$AC$12998=$D$5),(EGRESOS!$P$9:$P$12998)),0) -> 0 | N24: =IF(A24>0,SUMPRODUCT(--(EGRESOS!$C$9:$C$12998=A24),--(EGRESOS!$AC$9:$AC$12998=$D$5),(EGRESOS!$Q$9:$Q$12998)),0) -> 0 | O24: 0 | P24: =IF(A24>0,SUMPRODUCT(--(EGRESOS!$C$9:$C$12998=A24),--(EGRESOS!$AC$9:$AC$12998=$D$5),(EGRESOS!$T$9:$T$12998)),0) -> 0 | Q24: 0
A25: 016 | B25: =VLOOKUP(A25,CATALOGO!$E$3:$F$13000,2) -> 0 | D25: =IF(A25>0,VLOOKUP(A25,CATALOGO!$E$3:$G$13000,3),"") -> 0 | G25: =IF(A25>0,SUMPRODUCT(--(EGRESOS!$C$9:$C$12998=A25),--(EGRESOS!$AC$9:$AC$12998=$D$5),(EGRESOS!$D$9:$D$12998)),0) -> 0 | H25: =IF(A25>0,SUMPRODUCT(--(EGRESOS!$C$9:$C$12998=A25),--(EGRESOS!$AC$9:$AC$12998=$D$5),(EGRESOS!$K$9:$K$12998)),0) -> 0 | I25: =IF(A25>0,SUMPRODUCT(--(EGRESOS!$C$9:$C$12998=A25),--(EGRESOS!$AC$9:$AC$12998=$D$5),(EGRESOS!$L$9:$L$12998)),0) -> 0 | J25: =IF(A25>0,SUMPRODUCT(--(EGRESOS!$C$9:$C$12998=A25),--(EGRESOS!$AC$9:$AC$12998=$D$5),(EGRESOS!$M$9:$M$12998)),0) -> 0 | K25: =IF(A25>0,SUMPRODUCT(--(EGRESOS!$C$9:$C$12998=A25),--(EGRESOS!$AC$9:$AC$12998=$D$5),(EGRESOS!$N$9:$N$12998)),0) -> 0 | L25: =IF(A25>0,SUMPRODUCT(--(EGRESOS!$C$9:$C$12998=A25),--(EGRESOS!$AC$9:$AC$12998=$D$5),(EGRESOS!$O$9:$O$12998)),0) -> 0 | M25: =IF(A25>0,SUMPRODUCT(--(EGRESOS!$C$9:$C$12998=A25),--(EGRESOS!$AC$9:$AC$12998=$D$5),(EGRESOS!$P$9:$P$12998)),0) -> 0 | N25: =IF(A25>0,SUMPRODUCT(--(EGRESOS!$C$9:$C$12998=A25),--(EGRESOS!$AC$9:$AC$12998=$D$5),(EGRESOS!$Q$9:$Q$12998)),0) -> 0 | O25: 0 | P25: =IF(A25>0,SUMPRODUCT(--(EGRESOS!$C$9:$C$12998=A25),--(EGRESOS!$AC$9:$AC$12998=$D$5),(EGRESOS!$T$9:$T$12998)),0) -> 0 | Q25: 0
A26: 017 | B26: =VLOOKUP(A26,CATALOGO!$E$3:$F$13000,2) -> 0 | D26: =IF(A26>0,VLOOKUP(A26,CATALOGO!$E$3:$G$13000,3),"") -> 0 | G26: =IF(A26>0,SUMPRODUCT(--(EGRESOS!$C$9:$C$12998=A26),--(EGRESOS!$AC$9:$AC$12998=$D$5),(EGRESOS!$D$9:$D$12998)),0) -> 0 | H26: =IF(A26>0,SUMPRODUCT(--(EGRESOS!$C$9:$C$12998=A26),--(EGRESOS!$AC$9:$AC$12998=$D$5),(EGRESOS!$K$9:$K$12998)),0) -> 0 | I26: =IF(A26>0,SUMPRODUCT(--(EGRESOS!$C$9:$C$12998=A26),--(EGRESOS!$AC$9:$AC$12998=$D$5),(EGRESOS!$L$9:$L$12998)),0) -> 0 | J26: =IF(A26>0,SUMPRODUCT(--(EGRESOS!$C$9:$C$12998=A26),--(EGRESOS!$AC$9:$AC$12998=$D$5),(EGRESOS!$M$9:$M$12998)),0) -> 0 | K26: =IF(A26>0,SUMPRODUCT(--(EGRESOS!$C$9:$C$12998=A26),--(EGRESOS!$AC$9:$AC$12998=$D$5),(EGRESOS!$N$9:$N$12998)),0) -> 0 | L26: =IF(A26>0,SUMPRODUCT(--(EGRESOS!$C$9:$C$12998=A26),--(EGRESOS!$AC$9:$AC$12998=$D$5),(EGRESOS!$O$9:$O$12998)),0) -> 0 | M26: =IF(A26>0,SUMPRODUCT(--(EGRESOS!$C$9:$C$12998=A26),--(EGRESOS!$AC$9:$AC$12998=$D$5),(EGRESOS!$P$9:$P$12998)),0) -> 0 | N26: =IF(A26>0,SUMPRODUCT(--(EGRESOS!$C$9:$C$12998=A26),--(EGRESOS!$AC$9:$AC$12998=$D$5),(EGRESOS!$Q$9:$Q$12998)),0) -> 0 | O26: 0 | P26: =IF(A26>0,SUMPRODUCT(--(EGRESOS!$C$9:$C$12998=A26),--(EGRESOS!$AC$9:$AC$12998=$D$5),(EGRESOS!$T$9:$T$12998)),0) -> 0 | Q26: 0
A27: 018 | B27: =VLOOKUP(A27,CATALOGO!$E$3:$F$13000,2) -> 0 | D27: =IF(A27>0,VLOOKUP(A27,CATALOGO!$E$3:$G$13000,3),"") -> 0 | G27: =IF(A27>0,SUMPRODUCT(--(EGRESOS!$C$9:$C$12998=A27),--(EGRESOS!$AC$9:$AC$12998=$D$5),(EGRESOS!$D$9:$D$12998)),0) -> 0 | H27: =IF(A27>0,SUMPRODUCT(--(EGRESOS!$C$9:$C$12998=A27),--(EGRESOS!$AC$9:$AC$12998=$D$5),(EGRESOS!$K$9:$K$12998)),0) -> 0 | I27: =IF(A27>0,SUMPRODUCT(--(EGRESOS!$C$9:$C$12998=A27),--(EGRESOS!$AC$9:$AC$12998=$D$5),(EGRESOS!$L$9:$L$12998)),0) -> 0 | J27: =IF(A27>0,SUMPRODUCT(--(EGRESOS!$C$9:$C$12998=A27),--(EGRESOS!$AC$9:$AC$12998=$D$5),(EGRESOS!$M$9:$M$12998)),0) -> 0 | K27: =IF(A27>0,SUMPRODUCT(--(EGRESOS!$C$9:$C$12998=A27),--(EGRESOS!$AC$9:$AC$12998=$D$5),(EGRESOS!$N$9:$N$12998)),0) -> 0 | L27: =IF(A27>0,SUMPRODUCT(--(EGRESOS!$C$9:$C$12998=A27),--(EGRESOS!$AC$9:$AC$12998=$D$5),(EGRESOS!$O$9:$O$12998)),0) -> 0 | M27: =IF(A27>0,SUMPRODUCT(--(EGRESOS!$C$9:$C$12998=A27),--(EGRESOS!$AC$9:$AC$12998=$D$5),(EGRESOS!$P$9:$P$12998)),0) -> 0 | N27: =IF(A27>0,SUMPRODUCT(--(EGRESOS!$C$9:$C$12998=A27),--(EGRESOS!$AC$9:$AC$12998=$D$5),(EGRESOS!$Q$9:$Q$12998)),0) -> 0 | O27: 0 | P27: =IF(A27>0,SUMPRODUCT(--(EGRESOS!$C$9:$C$12998=A27),--(EGRESOS!$AC$9:$AC$12998=$D$5),(EGRESOS!$T$9:$T$12998)),0) -> 0 | Q27: 0
A28: 019 | B28: =VLOOKUP(A28,CATALOGO!$E$3:$F$13000,2) -> 0 | D28: =IF(A28>0,VLOOKUP(A28,CATALOGO!$E$3:$G$13000,3),"") -> 0 | G28: =IF(A28>0,SUMPRODUCT(--(EGRESOS!$C$9:$C$12998=A28),--(EGRESOS!$AC$9:$AC$12998=$D$5),(EGRESOS!$D$9:$D$12998)),0) -> 0 | H28: =IF(A28>0,SUMPRODUCT(--(EGRESOS!$C$9:$C$12998=A28),--(EGRESOS!$AC$9:$AC$12998=$D$5),(EGRESOS!$K$9:$K$12998)),0) -> 0 | I28: =IF(A28>0,SUMPRODUCT(--(EGRESOS!$C$9:$C$12998=A28),--(EGRESOS!$AC$9:$AC$12998=$D$5),(EGRESOS!$L$9:$L$12998)),0) -> 0 | J28: =IF(A28>0,SUMPRODUCT(--(EGRESOS!$C$9:$C$12998=A28),--(EGRESOS!$AC$9:$AC$12998=$D$5),(EGRESOS!$M$9:$M$12998)),0) -> 0 | K28: =IF(A28>0,SUMPRODUCT(--(EGRESOS!$C$9:$C$12998=A28),--(EGRESOS!$AC$9:$AC$12998=$D$5),(EGRESOS!$N$9:$N$12998)),0) -> 0 | L28: =IF(A28>0,SUMPRODUCT(--(EGRESOS!$C$9:$C$12998=A28),--(EGRESOS!$AC$9:$AC$12998=$D$5),(EGRESOS!$O$9:$O$12998)),0) -> 0 | M28: =IF(A28>0,SUMPRODUCT(--(EGRESOS!$C$9:$C$12998=A28),--(EGRESOS!$AC$9:$AC$12998=$D$5),(EGRESOS!$P$9:$P$12998)),0) -> 0 | N28: =IF(A28>0,SUMPRODUCT(--(EGRESOS!$C$9:$C$12998=A28),--(EGRESOS!$AC$9:$AC$12998=$D$5),(EGRESOS!$Q$9:$Q$12998)),0) -> 0 | O28: 0 | P28: =IF(A28>0,SUMPRODUCT(--(EGRESOS!$C$9:$C$12998=A28),--(EGRESOS!$AC$9:$AC$12998=$D$5),(EGRESOS!$T$9:$T$12998)),0) -> 0 | Q28: 0
A29: 020 | B29: =VLOOKUP(A29,CATALOGO!$E$3:$F$13000,2) -> 0 | D29: =IF(A29>0,VLOOKUP(A29,CATALOGO!$E$3:$G$13000,3),"") -> 0 | G29: =IF(A29>0,SUMPRODUCT(--(EGRESOS!$C$9:$C$12998=A29),--(EGRESOS!$AC$9:$AC$12998=$D$5),(EGRESOS!$D$9:$D$12998)),0) -> 0 | H29: =IF(A29>0,SUMPRODUCT(--(EGRESOS!$C$9:$C$12998=A29),--(EGRESOS!$AC$9:$AC$12998=$D$5),(EGRESOS!$K$9:$K$12998)),0) -> 0 | I29: =IF(A29>0,SUMPRODUCT(--(EGRESOS!$C$9:$C$12998=A29),--(EGRESOS!$AC$9:$AC$12998=$D$5),(EGRESOS!$L$9:$L$12998)),0) -> 0 | J29: =IF(A29>0,SUMPRODUCT(--(EGRESOS!$C$9:$C$12998=A29),--(EGRESOS!$AC$9:$AC$12998=$D$5),(EGRESOS!$M$9:$M$12998)),0) -> 0 | K29: =IF(A29>0,SUMPRODUCT(--(EGRESOS!$C$9:$C$12998=A29),--(EGRESOS!$AC$9:$AC$12998=$D$5),(EGRESOS!$N$9:$N$12998)),0) -> 0 | L29: =IF(A29>0,SUMPRODUCT(--(EGRESOS!$C$9:$C$12998=A29),--(EGRESOS!$AC$9:$AC$12998=$D$5),(EGRESOS!$O$9:$O$12998)),0) -> 0 | M29: =IF(A29>0,SUMPRODUCT(--(EGRESOS!$C$9:$C$12998=A29),--(EGRESOS!$AC$9:$AC$12998=$D$5),(EGRESOS!$P$9:$P$12998)),0) -> 0 | N29: =IF(A29>0,SUMPRODUCT(--(EGRESOS!$C$9:$C$12998=A29),--(EGRESOS!$AC$9:$AC$12998=$D$5),(EGRESOS!$Q$9:$Q$12998)),0) -> 0 | O29: 0 | P29: =IF(A29>0,SUMPRODUCT(--(EGRESOS!$C$9:$C$12998=A29),--(EGRESOS!$AC$9:$AC$12998=$D$5),(EGRESOS!$T$9:$T$12998)),0) -> 0 | Q29: 0
A30: 021 | B30: =VLOOKUP(A30,CATALOGO!$E$3:$F$13000,2) -> 0 | D30: =IF(A30>0,VLOOKUP(A30,CATALOGO!$E$3:$G$13000,3),"") -> 0 | G30: =IF(A30>0,SUMPRODUCT(--(EGRESOS!$C$9:$C$12998=A30),--(EGRESOS!$AC$9:$AC$12998=$D$5),(EGRESOS!$D$9:$D$12998)),0) -> 0 | H30: =IF(A30>0,SUMPRODUCT(--(EGRESOS!$C$9:$C$12998=A30),--(EGRESOS!$AC$9:$AC$12998=$D$5),(EGRESOS!$K$9:$K$12998)),0) -> 0 | I30: =IF(A30>0,SUMPRODUCT(--(EGRESOS!$C$9:$C$12998=A30),--(EGRESOS!$AC$9:$AC$12998=$D$5),(EGRESOS!$L$9:$L$12998)),0) -> 0 | J30: =IF(A30>0,SUMPRODUCT(--(EGRESOS!$C$9:$C$12998=A30),--(EGRESOS!$AC$9:$AC$12998=$D$5),(EGRESOS!$M$9:$M$12998)),0) -> 0 | K30: =IF(A30>0,SUMPRODUCT(--(EGRESOS!$C$9:$C$12998=A30),--(EGRESOS!$AC$9:$AC$12998=$D$5),(EGRESOS!$N$9:$N$12998)),0) -> 0 | L30: =IF(A30>0,SUMPRODUCT(--(EGRESOS!$C$9:$C$12998=A30),--(EGRESOS!$AC$9:$AC$12998=$D$5),(EGRESOS!$O$9:$O$12998)),0) -> 0 | M30: =IF(A30>0,SUMPRODUCT(--(EGRESOS!$C$9:$C$12998=A30),--(EGRESOS!$AC$9:$AC$12998=$D$5),(EGRESOS!$P$9:$P$12998)),0) -> 0 | N30: =IF(A30>0,SUMPRODUCT(--(EGRESOS!$C$9:$C$12998=A30),--(EGRESOS!$AC$9:$AC$12998=$D$5),(EGRESOS!$Q$9:$Q$12998)),0) -> 0 | O30: 0 | P30: =IF(A30>0,SUMPRODUCT(--(EGRESOS!$C$9:$C$12998=A30),--(EGRESOS!$AC$9:$AC$12998=$D$5),(EGRESOS!$T$9:$T$12998)),0) -> 0 | Q30: 0
A31: 022 | B31: =VLOOKUP(A31,CATALOGO!$E$3:$F$13000,2) -> 0 | D31: =IF(A31>0,VLOOKUP(A31,CATALOGO!$E$3:$G$13000,3),"") -> 0 | G31: =IF(A31>0,SUMPRODUCT(--(EGRESOS!$C$9:$C$12998=A31),--(EGRESOS!$AC$9:$AC$12998=$D$5),(EGRESOS!$D$9:$D$12998)),0) -> 0 | H31: =IF(A31>0,SUMPRODUCT(--(EGRESOS!$C$9:$C$12998=A31),--(EGRESOS!$AC$9:$AC$12998=$D$5),(EGRESOS!$K$9:$K$12998)),0) -> 0 | I31: =IF(A31>0,SUMPRODUCT(--(EGRESOS!$C$9:$C$12998=A31),--(EGRESOS!$AC$9:$AC$12998=$D$5),(EGRESOS!$L$9:$L$12998)),0) -> 0 | J31: =IF(A31>0,SUMPRODUCT(--(EGRESOS!$C$9:$C$12998=A31),--(EGRESOS!$AC$9:$AC$12998=$D$5),(EGRESOS!$M$9:$M$12998)),0) -> 0 | K31: =IF(A31>0,SUMPRODUCT(--(EGRESOS!$C$9:$C$12998=A31),--(EGRESOS!$AC$9:$AC$12998=$D$5),(EGRESOS!$N$9:$N$12998)),0) -> 0 | L31: =IF(A31>0,SUMPRODUCT(--(EGRESOS!$C$9:$C$12998=A31),--(EGRESOS!$AC$9:$AC$12998=$D$5),(EGRESOS!$O$9:$O$12998)),0) -> 0 | M31: =IF(A31>0,SUMPRODUCT(--(EGRESOS!$C$9:$C$12998=A31),--(EGRESOS!$AC$9:$AC$12998=$D$5),(EGRESOS!$P$9:$P$12998)),0) -> 0 | N31: =IF(A31>0,SUMPRODUCT(--(EGRESOS!$C$9:$C$12998=A31),--(EGRESOS!$AC$9:$AC$12998=$D$5),(EGRESOS!$Q$9:$Q$12998)),0) -> 0 | O31: 0 | P31: =IF(A31>0,SUMPRODUCT(--(EGRESOS!$C$9:$C$12998=A31),--(EGRESOS!$AC$9:$AC$12998=$D$5),(EGRESOS!$T$9:$T$12998)),0) -> 0 | Q31: 0
A32: 023 | B32: =VLOOKUP(A32,CATALOGO!$E$3:$F$13000,2) -> 0 | D32: =IF(A32>0,VLOOKUP(A32,CATALOGO!$E$3:$G$13000,3),"") -> 0 | G32: =IF(A32>0,SUMPRODUCT(--(EGRESOS!$C$9:$C$12998=A32),--(EGRESOS!$AC$9:$AC$12998=$D$5),(EGRESOS!$D$9:$D$12998)),0) -> 0 | H32: =IF(A32>0,SUMPRODUCT(--(EGRESOS!$C$9:$C$12998=A32),--(EGRESOS!$AC$9:$AC$12998=$D$5),(EGRESOS!$K$9:$K$12998)),0) -> 0 | I32: =IF(A32>0,SUMPRODUCT(--(EGRESOS!$C$9:$C$12998=A32),--(EGRESOS!$AC$9:$AC$12998=$D$5),(EGRESOS!$L$9:$L$12998)),0) -> 0 | J32: =IF(A32>0,SUMPRODUCT(--(EGRESOS!$C$9:$C$12998=A32),--(EGRESOS!$AC$9:$AC$12998=$D$5),(EGRESOS!$M$9:$M$12998)),0) -> 0 | K32: =IF(A32>0,SUMPRODUCT(--(EGRESOS!$C$9:$C$12998=A32),--(EGRESOS!$AC$9:$AC$12998=$D$5),(EGRESOS!$N$9:$N$12998)),0) -> 0 | L32: =IF(A32>0,SUMPRODUCT(--(EGRESOS!$C$9:$C$12998=A32),--(EGRESOS!$AC$9:$AC$12998=$D$5),(EGRESOS!$O$9:$O$12998)),0) -> 0 | M32: =IF(A32>0,SUMPRODUCT(--(EGRESOS!$C$9:$C$12998=A32),--(EGRESOS!$AC$9:$AC$12998=$D$5),(EGRESOS!$P$9:$P$12998)),0) -> 0 | N32: =IF(A32>0,SUMPRODUCT(--(EGRESOS!$C$9:$C$12998=A32),--(EGRESOS!$AC$9:$AC$12998=$D$5),(EGRESOS!$Q$9:$Q$12998)),0) -> 0 | O32: 0 | P32: =IF(A32>0,SUMPRODUCT(--(EGRESOS!$C$9:$C$12998=A32),--(EGRESOS!$AC$9:$AC$12998=$D$5),(EGRESOS!$T$9:$T$12998)),0) -> 0 | Q32: 0
A33: 024 | B33: =VLOOKUP(A33,CATALOGO!$E$3:$F$13000,2) -> 0 | D33: =IF(A33>0,VLOOKUP(A33,CATALOGO!$E$3:$G$13000,3),"") -> 0 | G33: =IF(A33>0,SUMPRODUCT(--(EGRESOS!$C$9:$C$12998=A33),--(EGRESOS!$AC$9:$AC$12998=$D$5),(EGRESOS!$D$9:$D$12998)),0) -> 0 | H33: =IF(A33>0,SUMPRODUCT(--(EGRESOS!$C$9:$C$12998=A33),--(EGRESOS!$AC$9:$AC$12998=$D$5),(EGRESOS!$K$9:$K$12998)),0) -> 0 | I33: =IF(A33>0,SUMPRODUCT(--(EGRESOS!$C$9:$C$12998=A33),--(EGRESOS!$AC$9:$AC$12998=$D$5),(EGRESOS!$L$9:$L$12998)),0) -> 0 | J33: =IF(A33>0,SUMPRODUCT(--(EGRESOS!$C$9:$C$12998=A33),--(EGRESOS!$AC$9:$AC$12998=$D$5),(EGRESOS!$M$9:$M$12998)),0) -> 0 | K33: =IF(A33>0,SUMPRODUCT(--(EGRESOS!$C$9:$C$12998=A33),--(EGRESOS!$AC$9:$AC$12998=$D$5),(EGRESOS!$N$9:$N$12998)),0) -> 0 | L33: =IF(A33>0,SUMPRODUCT(--(EGRESOS!$C$9:$C$12998=A33),--(EGRESOS!$AC$9:$AC$12998=$D$5),(EGRESOS!$O$9:$O$12998)),0) -> 0 | M33: =IF(A33>0,SUMPRODUCT(--(EGRESOS!$C$9:$C$12998=A33),--(EGRESOS!$AC$9:$AC$12998=$D$5),(EGRESOS!$P$9:$P$12998)),0) -> 0 | N33: =IF(A33>0,SUMPRODUCT(--(EGRESOS!$C$9:$C$12998=A33),--(EGRESOS!$AC$9:$AC$12998=$D$5),(EGRESOS!$Q$9:$Q$12998)),0) -> 0 | O33: 0 | P33: =IF(A33>0,SUMPRODUCT(--(EGRESOS!$C$9:$C$12998=A33),--(EGRESOS!$AC$9:$AC$12998=$D$5),(EGRESOS!$T$9:$T$12998)),0) -> 0 | Q33: 0
A34: 025 | B34: =VLOOKUP(A34,CATALOGO!$E$3:$F$13000,2) -> 0 | D34: =IF(A34>0,VLOOKUP(A34,CATALOGO!$E$3:$G$13000,3),"") -> 0 | G34: =IF(A34>0,SUMPRODUCT(--(EGRESOS!$C$9:$C$12998=A34),--(EGRESOS!$AC$9:$AC$12998=$D$5),(EGRESOS!$D$9:$D$12998)),0) -> 0 | H34: =IF(A34>0,SUMPRODUCT(--(EGRESOS!$C$9:$C$12998=A34),--(EGRESOS!$AC$9:$AC$12998=$D$5),(EGRESOS!$K$9:$K$12998)),0) -> 0 | I34: =IF(A34>0,SUMPRODUCT(--(EGRESOS!$C$9:$C$12998=A34),--(EGRESOS!$AC$9:$AC$12998=$D$5),(EGRESOS!$L$9:$L$12998)),0) -> 0 | J34: =IF(A34>0,SUMPRODUCT(--(EGRESOS!$C$9:$C$12998=A34),--(EGRESOS!$AC$9:$AC$12998=$D$5),(EGRESOS!$M$9:$M$12998)),0) -> 0 | K34: =IF(A34>0,SUMPRODUCT(--(EGRESOS!$C$9:$C$12998=A34),--(EGRESOS!$AC$9:$AC$12998=$D$5),(EGRESOS!$N$9:$N$12998)),0) -> 0 | L34: =IF(A34>0,SUMPRODUCT(--(EGRESOS!$C$9:$C$12998=A34),--(EGRESOS!$AC$9:$AC$12998=$D$5),(EGRESOS!$O$9:$O$12998)),0) -> 0 | M34: =IF(A34>0,SUMPRODUCT(--(EGRESOS!$C$9:$C$12998=A34),--(EGRESOS!$AC$9:$AC$12998=$D$5),(EGRESOS!$P$9:$P$12998)),0) -> 0 | N34: =IF(A34>0,SUMPRODUCT(--(EGRESOS!$C$9:$C$12998=A34),--(EGRESOS!$AC$9:$AC$12998=$D$5),(EGRESOS!$Q$9:$Q$12998)),0) -> 0 | O34: 0 | P34: =IF(A34>0,SUMPRODUCT(--(EGRESOS!$C$9:$C$12998=A34),--(EGRESOS!$AC$9:$AC$12998=$D$5),(EGRESOS!$T$9:$T$12998)),0) -> 0 | Q34: 0
A35: 026 | B35: =VLOOKUP(A35,CATALOGO!$E$3:$F$13000,2) -> 0 | D35: =IF(A35>0,VLOOKUP(A35,CATALOGO!$E$3:$G$13000,3),"") -> 0 | G35: =IF(A35>0,SUMPRODUCT(--(EGRESOS!$C$9:$C$12998=A35),--(EGRESOS!$AC$9:$AC$12998=$D$5),(EGRESOS!$D$9:$D$12998)),0) -> 0 | H35: =IF(A35>0,SUMPRODUCT(--(EGRESOS!$C$9:$C$12998=A35),--(EGRESOS!$AC$9:$AC$12998=$D$5),(EGRESOS!$K$9:$K$12998)),0) -> 0 | I35: =IF(A35>0,SUMPRODUCT(--(EGRESOS!$C$9:$C$12998=A35),--(EGRESOS!$AC$9:$AC$12998=$D$5),(EGRESOS!$L$9:$L$12998)),0) -> 0 | J35: =IF(A35>0,SUMPRODUCT(--(EGRESOS!$C$9:$C$12998=A35),--(EGRESOS!$AC$9:$AC$12998=$D$5),(EGRESOS!$M$9:$M$12998)),0) -> 0 | K35: =IF(A35>0,SUMPRODUCT(--(EGRESOS!$C$9:$C$12998=A35),--(EGRESOS!$AC$9:$AC$12998=$D$5),(EGRESOS!$N$9:$N$12998)),0) -> 0 | L35: =IF(A35>0,SUMPRODUCT(--(EGRESOS!$C$9:$C$12998=A35),--(EGRESOS!$AC$9:$AC$12998=$D$5),(EGRESOS!$O$9:$O$12998)),0) -> 0 | M35: =IF(A35>0,SUMPRODUCT(--(EGRESOS!$C$9:$C$12998=A35),--(EGRESOS!$AC$9:$AC$12998=$D$5),(EGRESOS!$P$9:$P$12998)),0) -> 0 | N35: =IF(A35>0,SUMPRODUCT(--(EGRESOS!$C$9:$C$12998=A35),--(EGRESOS!$AC$9:$AC$12998=$D$5),(EGRESOS!$Q$9:$Q$12998)),0) -> 0 | O35: 0 | P35: =IF(A35>0,SUMPRODUCT(--(EGRESOS!$C$9:$C$12998=A35),--(EGRESOS!$AC$9:$AC$12998=$D$5),(EGRESOS!$T$9:$T$12998)),0) -> 0 | Q35: 0
A36: 027 | B36: =VLOOKUP(A36,CATALOGO!$E$3:$F$13000,2) -> 0 | D36: =IF(A36>0,VLOOKUP(A36,CATALOGO!$E$3:$G$13000,3),"") -> 0 | G36: =IF(A36>0,SUMPRODUCT(--(EGRESOS!$C$9:$C$12998=A36),--(EGRESOS!$AC$9:$AC$12998=$D$5),(EGRESOS!$D$9:$D$12998)),0) -> 0 | H36: =IF(A36>0,SUMPRODUCT(--(EGRESOS!$C$9:$C$12998=A36),--(EGRESOS!$AC$9:$AC$12998=$D$5),(EGRESOS!$K$9:$K$12998)),0) -> 0 | I36: =IF(A36>0,SUMPRODUCT(--(EGRESOS!$C$9:$C$12998=A36),--(EGRESOS!$AC$9:$AC$12998=$D$5),(EGRESOS!$L$9:$L$12998)),0) -> 0 | J36: =IF(A36>0,SUMPRODUCT(--(EGRESOS!$C$9:$C$12998=A36),--(EGRESOS!$AC$9:$AC$12998=$D$5),(EGRESOS!$M$9:$M$12998)),0) -> 0 | K36: =IF(A36>0,SUMPRODUCT(--(EGRESOS!$C$9:$C$12998=A36),--(EGRESOS!$AC$9:$AC$12998=$D$5),(EGRESOS!$N$9:$N$12998)),0) -> 0 | L36: =IF(A36>0,SUMPRODUCT(--(EGRESOS!$C$9:$C$12998=A36),--(EGRESOS!$AC$9:$AC$12998=$D$5),(EGRESOS!$O$9:$O$12998)),0) -> 0 | M36: =IF(A36>0,SUMPRODUCT(--(EGRESOS!$C$9:$C$12998=A36),--(EGRESOS!$AC$9:$AC$12998=$D$5),(EGRESOS!$P$9:$P$12998)),0) -> 0 | N36: =IF(A36>0,SUMPRODUCT(--(EGRESOS!$C$9:$C$12998=A36),--(EGRESOS!$AC$9:$AC$12998=$D$5),(EGRESOS!$Q$9:$Q$12998)),0) -> 0 | O36: 0 | P36: =IF(A36>0,SUMPRODUCT(--(EGRESOS!$C$9:$C$12998=A36),--(EGRESOS!$AC$9:$AC$12998=$D$5),(EGRESOS!$T$9:$T$12998)),0) -> 0 | Q36: 0
A37: 028 | B37: =VLOOKUP(A37,CATALOGO!$E$3:$F$13000,2) -> 0 | D37: =IF(A37>0,VLOOKUP(A37,CATALOGO!$E$3:$G$13000,3),"") -> 0 | G37: =IF(A37>0,SUMPRODUCT(--(EGRESOS!$C$9:$C$12998=A37),--(EGRESOS!$AC$9:$AC$12998=$D$5),(EGRESOS!$D$9:$D$12998)),0) -> 0 | H37: =IF(A37>0,SUMPRODUCT(--(EGRESOS!$C$9:$C$12998=A37),--(EGRESOS!$AC$9:$AC$12998=$D$5),(EGRESOS!$K$9:$K$12998)),0) -> 0 | I37: =IF(A37>0,SUMPRODUCT(--(EGRESOS!$C$9:$C$12998=A37),--(EGRESOS!$AC$9:$AC$12998=$D$5),(EGRESOS!$L$9:$L$12998)),0) -> 0 | J37: =IF(A37>0,SUMPRODUCT(--(EGRESOS!$C$9:$C$12998=A37),--(EGRESOS!$AC$9:$AC$12998=$D$5),(EGRESOS!$M$9:$M$12998)),0) -> 0 | K37: =IF(A37>0,SUMPRODUCT(--(EGRESOS!$C$9:$C$12998=A37),--(EGRESOS!$AC$9:$AC$12998=$D$5),(EGRESOS!$N$9:$N$12998)),0) -> 0 | L37: =IF(A37>0,SUMPRODUCT(--(EGRESOS!$C$9:$C$12998=A37),--(EGRESOS!$AC$9:$AC$12998=$D$5),(EGRESOS!$O$9:$O$12998)),0) -> 0 | M37: =IF(A37>0,SUMPRODUCT(--(EGRESOS!$C$9:$C$12998=A37),--(EGRESOS!$AC$9:$AC$12998=$D$5),(EGRESOS!$P$9:$P$12998)),0) -> 0 | N37: =IF(A37>0,SUMPRODUCT(--(EGRESOS!$C$9:$C$12998=A37),--(EGRESOS!$AC$9:$AC$12998=$D$5),(EGRESOS!$Q$9:$Q$12998)),0) -> 0 | O37: 0 | P37: =IF(A37>0,SUMPRODUCT(--(EGRESOS!$C$9:$C$12998=A37),--(EGRESOS!$AC$9:$AC$12998=$D$5),(EGRESOS!$T$9:$T$12998)),0) -> 0 | Q37: 0
A38: 029 | B38: =VLOOKUP(A38,CATALOGO!$E$3:$F$13000,2) -> 0 | D38: =IF(A38>0,VLOOKUP(A38,CATALOGO!$E$3:$G$13000,3),"") -> 0 | G38: =IF(A38>0,SUMPRODUCT(--(EGRESOS!$C$9:$C$12998=A38),--(EGRESOS!$AC$9:$AC$12998=$D$5),(EGRESOS!$D$9:$D$12998)),0) -> 0 | H38: =IF(A38>0,SUMPRODUCT(--(EGRESOS!$C$9:$C$12998=A38),--(EGRESOS!$AC$9:$AC$12998=$D$5),(EGRESOS!$K$9:$K$12998)),0) -> 0 | I38: =IF(A38>0,SUMPRODUCT(--(EGRESOS!$C$9:$C$12998=A38),--(EGRESOS!$AC$9:$AC$12998=$D$5),(EGRESOS!$L$9:$L$12998)),0) -> 0 | J38: =IF(A38>0,SUMPRODUCT(--(EGRESOS!$C$9:$C$12998=A38),--(EGRESOS!$AC$9:$AC$12998=$D$5),(EGRESOS!$M$9:$M$12998)),0) -> 0 | K38: =IF(A38>0,SUMPRODUCT(--(EGRESOS!$C$9:$C$12998=A38),--(EGRESOS!$AC$9:$AC$12998=$D$5),(EGRESOS!$N$9:$N$12998)),0) -> 0 | L38: =IF(A38>0,SUMPRODUCT(--(EGRESOS!$C$9:$C$12998=A38),--(EGRESOS!$AC$9:$AC$12998=$D$5),(EGRESOS!$O$9:$O$12998)),0) -> 0 | M38: =IF(A38>0,SUMPRODUCT(--(EGRESOS!$C$9:$C$12998=A38),--(EGRESOS!$AC$9:$AC$12998=$D$5),(EGRESOS!$P$9:$P$12998)),0) -> 0 | N38: =IF(A38>0,SUMPRODUCT(--(EGRESOS!$C$9:$C$12998=A38),--(EGRESOS!$AC$9:$AC$12998=$D$5),(EGRESOS!$Q$9:$Q$12998)),0) -> 0 | O38: 0 | P38: =IF(A38>0,SUMPRODUCT(--(EGRESOS!$C$9:$C$12998=A38),--(EGRESOS!$AC$9:$AC$12998=$D$5),(EGRESOS!$T$9:$T$12998)),0) -> 0 | Q38: 0
A39: 030 | B39: =VLOOKUP(A39,CATALOGO!$E$3:$F$13000,2) -> 0 | D39: =IF(A39>0,VLOOKUP(A39,CATALOGO!$E$3:$G$13000,3),"") -> 0 | G39: =IF(A39>0,SUMPRODUCT(--(EGRESOS!$C$9:$C$12998=A39),--(EGRESOS!$AC$9:$AC$12998=$D$5),(EGRESOS!$D$9:$D$12998)),0) -> 0 | H39: =IF(A39>0,SUMPRODUCT(--(EGRESOS!$C$9:$C$12998=A39),--(EGRESOS!$AC$9:$AC$12998=$D$5),(EGRESOS!$K$9:$K$12998)),0) -> 0 | I39: =IF(A39>0,SUMPRODUCT(--(EGRESOS!$C$9:$C$12998=A39),--(EGRESOS!$AC$9:$AC$12998=$D$5),(EGRESOS!$L$9:$L$12998)),0) -> 0 | J39: =IF(A39>0,SUMPRODUCT(--(EGRESOS!$C$9:$C$12998=A39),--(EGRESOS!$AC$9:$AC$12998=$D$5),(EGRESOS!$M$9:$M$12998)),0) -> 0 | K39: =IF(A39>0,SUMPRODUCT(--(EGRESOS!$C$9:$C$12998=A39),--(EGRESOS!$AC$9:$AC$12998=$D$5),(EGRESOS!$N$9:$N$12998)),0) -> 0 | L39: =IF(A39>0,SUMPRODUCT(--(EGRESOS!$C$9:$C$12998=A39),--(EGRESOS!$AC$9:$AC$12998=$D$5),(EGRESOS!$O$9:$O$12998)),0) -> 0 | M39: =IF(A39>0,SUMPRODUCT(--(EGRESOS!$C$9:$C$12998=A39),--(EGRESOS!$AC$9:$AC$12998=$D$5),(EGRESOS!$P$9:$P$12998)),0) -> 0 | N39: =IF(A39>0,SUMPRODUCT(--(EGRESOS!$C$9:$C$12998=A39),--(EGRESOS!$AC$9:$AC$12998=$D$5),(EGRESOS!$Q$9:$Q$12998)),0) -> 0 | O39: 0 | P39: =IF(A39>0,SUMPRODUCT(--(EGRESOS!$C$9:$C$12998=A39),--(EGRESOS!$AC$9:$AC$12998=$D$5),(EGRESOS!$T$9:$T$12998)),0) -> 0 | Q39: 0
A40: 031 | B40: =VLOOKUP(A40,CATALOGO!$E$3:$F$13000,2) -> 0 | D40: =IF(A40>0,VLOOKUP(A40,CATALOGO!$E$3:$G$13000,3),"") -> 0 | G40: =IF(A40>0,SUMPRODUCT(--(EGRESOS!$C$9:$C$12998=A40),--(EGRESOS!$AC$9:$AC$12998=$D$5),(EGRESOS!$D$9:$D$12998)),0) -> 0 | H40: =IF(A40>0,SUMPRODUCT(--(EGRESOS!$C$9:$C$12998=A40),--(EGRESOS!$AC$9:$AC$12998=$D$5),(EGRESOS!$K$9:$K$12998)),0) -> 0 | I40: =IF(A40>0,SUMPRODUCT(--(EGRESOS!$C$9:$C$12998=A40),--(EGRESOS!$AC$9:$AC$12998=$D$5),(EGRESOS!$L$9:$L$12998)),0) -> 0 | J40: =IF(A40>0,SUMPRODUCT(--(EGRESOS!$C$9:$C$12998=A40),--(EGRESOS!$AC$9:$AC$12998=$D$5),(EGRESOS!$M$9:$M$12998)),0) -> 0 | K40: =IF(A40>0,SUMPRODUCT(--(EGRESOS!$C$9:$C$12998=A40),--(EGRESOS!$AC$9:$AC$12998=$D$5),(EGRESOS!$N$9:$N$12998)),0) -> 0 | L40: =IF(A40>0,SUMPRODUCT(--(EGRESOS!$C$9:$C$12998=A40),--(EGRESOS!$AC$9:$AC$12998=$D$5),(EGRESOS!$O$9:$O$12998)),0) -> 0 | M40: =IF(A40>0,SUMPRODUCT(--(EGRESOS!$C$9:$C$12998=A40),--(EGRESOS!$AC$9:$AC$12998=$D$5),(EGRESOS!$P$9:$P$12998)),0) -> 0 | N40: =IF(A40>0,SUMPRODUCT(--(EGRESOS!$C$9:$C$12998=A40),--(EGRESOS!$AC$9:$AC$12998=$D$5),(EGRESOS!$Q$9:$Q$12998)),0) -> 0 | O40: 0 | P40: =IF(A40>0,SUMPRODUCT(--(EGRESOS!$C$9:$C$12998=A40),--(EGRESOS!$AC$9:$AC$12998=$D$5),(EGRESOS!$T$9:$T$12998)),0) -> 0 | Q40: 0
A41: 032 | B41: =VLOOKUP(A41,CATALOGO!$E$3:$F$13000,2) -> 0 | D41: =IF(A41>0,VLOOKUP(A41,CATALOGO!$E$3:$G$13000,3),"") -> 0 | G41: =IF(A41>0,SUMPRODUCT(--(EGRESOS!$C$9:$C$12998=A41),--(EGRESOS!$AC$9:$AC$12998=$D$5),(EGRESOS!$D$9:$D$12998)),0) -> 0 | H41: =IF(A41>0,SUMPRODUCT(--(EGRESOS!$C$9:$C$12998=A41),--(EGRESOS!$AC$9:$AC$12998=$D$5),(EGRESOS!$K$9:$K$12998)),0) -> 0 | I41: =IF(A41>0,SUMPRODUCT(--(EGRESOS!$C$9:$C$12998=A41),--(EGRESOS!$AC$9:$AC$12998=$D$5),(EGRESOS!$L$9:$L$12998)),0) -> 0 | J41: =IF(A41>0,SUMPRODUCT(--(EGRESOS!$C$9:$C$12998=A41),--(EGRESOS!$AC$9:$AC$12998=$D$5),(EGRESOS!$M$9:$M$12998)),0) -> 0 | K41: =IF(A41>0,SUMPRODUCT(--(EGRESOS!$C$9:$C$12998=A41),--(EGRESOS!$AC$9:$AC$12998=$D$5),(EGRESOS!$N$9:$N$12998)),0) -> 0 | L41: =IF(A41>0,SUMPRODUCT(--(EGRESOS!$C$9:$C$12998=A41),--(EGRESOS!$AC$9:$AC$12998=$D$5),(EGRESOS!$O$9:$O$12998)),0) -> 0 | M41: =IF(A41>0,SUMPRODUCT(--(EGRESOS!$C$9:$C$12998=A41),--(EGRESOS!$AC$9:$AC$12998=$D$5),(EGRESOS!$P$9:$P$12998)),0) -> 0 | N41: =IF(A41>0,SUMPRODUCT(--(EGRESOS!$C$9:$C$12998=A41),--(EGRESOS!$AC$9:$AC$12998=$D$5),(EGRESOS!$Q$9:$Q$12998)),0) -> 0 | O41: 0 | P41: =IF(A41>0,SUMPRODUCT(--(EGRESOS!$C$9:$C$12998=A41),--(EGRESOS!$AC$9:$AC$12998=$D$5),(EGRESOS!$T$9:$T$12998)),0) -> 0 | Q41: 0
A42: 033 | B42: =VLOOKUP(A42,CATALOGO!$E$3:$F$13000,2) -> 0 | D42: =IF(A42>0,VLOOKUP(A42,CATALOGO!$E$3:$G$13000,3),"") -> 0 | G42: =IF(A42>0,SUMPRODUCT(--(EGRESOS!$C$9:$C$12998=A42),--(EGRESOS!$AC$9:$AC$12998=$D$5),(EGRESOS!$D$9:$D$12998)),0) -> 0 | H42: =IF(A42>0,SUMPRODUCT(--(EGRESOS!$C$9:$C$12998=A42),--(EGRESOS!$AC$9:$AC$12998=$D$5),(EGRESOS!$K$9:$K$12998)),0) -> 0 | I42: =IF(A42>0,SUMPRODUCT(--(EGRESOS!$C$9:$C$12998=A42),--(EGRESOS!$AC$9:$AC$12998=$D$5),(EGRESOS!$L$9:$L$12998)),0) -> 0 | J42: =IF(A42>0,SUMPRODUCT(--(EGRESOS!$C$9:$C$12998=A42),--(EGRESOS!$AC$9:$AC$12998=$D$5),(EGRESOS!$M$9:$M$12998)),0) -> 0 | K42: =IF(A42>0,SUMPRODUCT(--(EGRESOS!$C$9:$C$12998=A42),--(EGRESOS!$AC$9:$AC$12998=$D$5),(EGRESOS!$N$9:$N$12998)),0) -> 0 | L42: =IF(A42>0,SUMPRODUCT(--(EGRESOS!$C$9:$C$12998=A42),--(EGRESOS!$AC$9:$AC$12998=$D$5),(EGRESOS!$O$9:$O$12998)),0) -> 0 | M42: =IF(A42>0,SUMPRODUCT(--(EGRESOS!$C$9:$C$12998=A42),--(EGRESOS!$AC$9:$AC$12998=$D$5),(EGRESOS!$P$9:$P$12998)),0) -> 0 | N42: =IF(A42>0,SUMPRODUCT(--(EGRESOS!$C$9:$C$12998=A42),--(EGRESOS!$AC$9:$AC$12998=$D$5),(EGRESOS!$Q$9:$Q$12998)),0) -> 0 | O42: 0 | P42: =IF(A42>0,SUMPRODUCT(--(EGRESOS!$C$9:$C$12998=A42),--(EGRESOS!$AC$9:$AC$12998=$D$5),(EGRESOS!$T$9:$T$12998)),0) -> 0 | Q42: 0
B43: =VLOOKUP(A43,CATALOGO!$E$3:$F$13000,2) ->  | D43: =IF(A43>0,VLOOKUP(A43,CATALOGO!$E$3:$G$13000,3),"") ->  | G43: =IF(A43>0,SUMPRODUCT(--(EGRESOS!$C$9:$C$12998=A43),--(EGRESOS!$AC$9:$AC$12998=$D$5),(EGRESOS!$D$9:$D$12998)),0) -> 0 | H43: =IF(A43>0,SUMPRODUCT(--(EGRESOS!$C$9:$C$12998=A43),--(EGRESOS!$AC$9:$AC$12998=$D$5),(EGRESOS!$K$9:$K$12998)),0) -> 0 | I43: =IF(A43>0,SUMPRODUCT(--(EGRESOS!$C$9:$C$12998=A43),--(EGRESOS!$AC$9:$AC$12998=$D$5),(EGRESOS!$L$9:$L$12998)),0) -> 0 | J43: =IF(A43>0,SUMPRODUCT(--(EGRESOS!$C$9:$C$12998=A43),--(EGRESOS!$AC$9:$AC$12998=$D$5),(EGRESOS!$M$9:$M$12998)),0) -> 0 | K43: =IF(A43>0,SUMPRODUCT(--(EGRESOS!$C$9:$C$12998=A43),--(EGRESOS!$AC$9:$AC$12998=$D$5),(EGRESOS!$N$9:$N$12998)),0) -> 0 | L43: =IF(A43>0,SUMPRODUCT(--(EGRESOS!$C$9:$C$12998=A43),--(EGRESOS!$AC$9:$AC$12998=$D$5),(EGRESOS!$O$9:$O$12998)),0) -> 0 | M43: =IF(A43>0,SUMPRODUCT(--(EGRESOS!$C$9:$C$12998=A43),--(EGRESOS!$AC$9:$AC$12998=$D$5),(EGRESOS!$P$9:$P$12998)),0) -> 0 | N43: =IF(A43>0,SUMPRODUCT(--(EGRESOS!$C$9:$C$12998=A43),--(EGRESOS!$AC$9:$AC$12998=$D$5),(EGRESOS!$Q$9:$Q$12998)),0) -> 0 | O43: 0 | P43: =IF(A43>0,SUMPRODUCT(--(EGRESOS!$C$9:$C$12998=A43),--(EGRESOS!$AC$9:$AC$12998=$D$5),(EGRESOS!$T$9:$T$12998)),0) -> 0 | Q43: 0
B44: =VLOOKUP(A44,CATALOGO!$E$3:$F$13000,2) ->  | D44: =IF(A44>0,VLOOKUP(A44,CATALOGO!$E$3:$G$13000,3),"") ->  | G44: =IF(A44>0,SUMPRODUCT(--(EGRESOS!$C$9:$C$12998=A44),--(EGRESOS!$AC$9:$AC$12998=$D$5),(EGRESOS!$D$9:$D$12998)),0) -> 0 | H44: =IF(A44>0,SUMPRODUCT(--(EGRESOS!$C$9:$C$12998=A44),--(EGRESOS!$AC$9:$AC$12998=$D$5),(EGRESOS!$K$9:$K$12998)),0) -> 0 | I44: =IF(A44>0,SUMPRODUCT(--(EGRESOS!$C$9:$C$12998=A44),--(EGRESOS!$AC$9:$AC$12998=$D$5),(EGRESOS!$L$9:$L$12998)),0) -> 0 | J44: =IF(A44>0,SUMPRODUCT(--(EGRESOS!$C$9:$C$12998=A44),--(EGRESOS!$AC$9:$AC$12998=$D$5),(EGRESOS!$M$9:$M$12998)),0) -> 0 | K44: =IF(A44>0,SUMPRODUCT(--(EGRESOS!$C$9:$C$12998=A44),--(EGRESOS!$AC$9:$AC$12998=$D$5),(EGRESOS!$N$9:$N$12998)),0) -> 0 | L44: =IF(A44>0,SUMPRODUCT(--(EGRESOS!$C$9:$C$12998=A44),--(EGRESOS!$AC$9:$AC$12998=$D$5),(EGRESOS!$O$9:$O$12998)),0) -> 0 | M44: =IF(A44>0,SUMPRODUCT(--(EGRESOS!$C$9:$C$12998=A44),--(EGRESOS!$AC$9:$AC$12998=$D$5),(EGRESOS!$P$9:$P$12998)),0) -> 0 | N44: =IF(A44>0,SUMPRODUCT(--(EGRESOS!$C$9:$C$12998=A44),--(EGRESOS!$AC$9:$AC$12998=$D$5),(EGRESOS!$Q$9:$Q$12998)),0) -> 0 | O44: 0 | P44: =IF(A44>0,SUMPRODUCT(--(EGRESOS!$C$9:$C$12998=A44),--(EGRESOS!$AC$9:$AC$12998=$D$5),(EGRESOS!$T$9:$T$12998)),0) -> 0 | Q44: 0
B45: =VLOOKUP(A45,CATALOGO!$E$3:$F$13000,2) ->  | D45: =IF(A45>0,VLOOKUP(A45,CATALOGO!$E$3:$G$13000,3),"") ->  | G45: =IF(A45>0,SUMPRODUCT(--(EGRESOS!$C$9:$C$12998=A45),--(EGRESOS!$AC$9:$AC$12998=$D$5),(EGRESOS!$D$9:$D$12998)),0) -> 0 | H45: =IF(A45>0,SUMPRODUCT(--(EGRESOS!$C$9:$C$12998=A45),--(EGRESOS!$AC$9:$AC$12998=$D$5),(EGRESOS!$K$9:$K$12998)),0) -> 0 | I45: =IF(A45>0,SUMPRODUCT(--(EGRESOS!$C$9:$C$12998=A45),--(EGRESOS!$AC$9:$AC$12998=$D$5),(EGRESOS!$L$9:$L$12998)),0) -> 0 | J45: =IF(A45>0,SUMPRODUCT(--(EGRESOS!$C$9:$C$12998=A45),--(EGRESOS!$AC$9:$AC$12998=$D$5),(EGRESOS!$M$9:$M$12998)),0) -> 0 | K45: =IF(A45>0,SUMPRODUCT(--(EGRESOS!$C$9:$C$12998=A45),--(EGRESOS!$AC$9:$AC$12998=$D$5),(EGRESOS!$N$9:$N$12998)),0) -> 0 | L45: =IF(A45>0,SUMPRODUCT(--(EGRESOS!$C$9:$C$12998=A45),--(EGRESOS!$AC$9:$AC$12998=$D$5),(EGRESOS!$O$9:$O$12998)),0) -> 0 | M45: =IF(A45>0,SUMPRODUCT(--(EGRESOS!$C$9:$C$12998=A45),--(EGRESOS!$AC$9:$AC$12998=$D$5),(EGRESOS!$P$9:$P$12998)),0) -> 0 | N45: =IF(A45>0,SUMPRODUCT(--(EGRESOS!$C$9:$C$12998=A45),--(EGRESOS!$AC$9:$AC$12998=$D$5),(EGRESOS!$Q$9:$Q$12998)),0) -> 0 | O45: 0 | P45: =IF(A45>0,SUMPRODUCT(--(EGRESOS!$C$9:$C$12998=A45),--(EGRESOS!$AC$9:$AC$12998=$D$5),(EGRESOS!$T$9:$T$12998)),0) -> 0 | Q45: 0
B46: =VLOOKUP(A46,CATALOGO!$E$3:$F$13000,2) ->  | D46: =IF(A46>0,VLOOKUP(A46,CATALOGO!$E$3:$G$13000,3),"") ->  | G46: =IF(A46>0,SUMPRODUCT(--(EGRESOS!$C$9:$C$12998=A46),--(EGRESOS!$AC$9:$AC$12998=$D$5),(EGRESOS!$D$9:$D$12998)),0) -> 0 | H46: =IF(A46>0,SUMPRODUCT(--(EGRESOS!$C$9:$C$12998=A46),--(EGRESOS!$AC$9:$AC$12998=$D$5),(EGRESOS!$K$9:$K$12998)),0) -> 0 | I46: =IF(A46>0,SUMPRODUCT(--(EGRESOS!$C$9:$C$12998=A46),--(EGRESOS!$AC$9:$AC$12998=$D$5),(EGRESOS!$L$9:$L$12998)),0) -> 0 | J46: =IF(A46>0,SUMPRODUCT(--(EGRESOS!$C$9:$C$12998=A46),--(EGRESOS!$AC$9:$AC$12998=$D$5),(EGRESOS!$M$9:$M$12998)),0) -> 0 | K46: =IF(A46>0,SUMPRODUCT(--(EGRESOS!$C$9:$C$12998=A46),--(EGRESOS!$AC$9:$AC$12998=$D$5),(EGRESOS!$N$9:$N$12998)),0) -> 0 | L46: =IF(A46>0,SUMPRODUCT(--(EGRESOS!$C$9:$C$12998=A46),--(EGRESOS!$AC$9:$AC$12998=$D$5),(EGRESOS!$O$9:$O$12998)),0) -> 0 | M46: =IF(A46>0,SUMPRODUCT(--(EGRESOS!$C$9:$C$12998=A46),--(EGRESOS!$AC$9:$AC$12998=$D$5),(EGRESOS!$P$9:$P$12998)),0) -> 0 | N46: =IF(A46>0,SUMPRODUCT(--(EGRESOS!$C$9:$C$12998=A46),--(EGRESOS!$AC$9:$AC$12998=$D$5),(EGRESOS!$Q$9:$Q$12998)),0) -> 0 | O46: 0 | P46: =IF(A46>0,SUMPRODUCT(--(EGRESOS!$C$9:$C$12998=A46),--(EGRESOS!$AC$9:$AC$12998=$D$5),(EGRESOS!$T$9:$T$12998)),0) -> 0 | Q46: 0
B47: =VLOOKUP(A47,CATALOGO!$E$3:$F$13000,2) ->  | D47: =IF(A47>0,VLOOKUP(A47,CATALOGO!$E$3:$G$13000,3),"") ->  | G47: =IF(A47>0,SUMPRODUCT(--(EGRESOS!$C$9:$C$12998=A47),--(EGRESOS!$AC$9:$AC$12998=$D$5),(EGRESOS!$D$9:$D$12998)),0) -> 0 | H47: =IF(A47>0,SUMPRODUCT(--(EGRESOS!$C$9:$C$12998=A47),--(EGRESOS!$AC$9:$AC$12998=$D$5),(EGRESOS!$K$9:$K$12998)),0) -> 0 | I47: =IF(A47>0,SUMPRODUCT(--(EGRESOS!$C$9:$C$12998=A47),--(EGRESOS!$AC$9:$AC$12998=$D$5),(EGRESOS!$L$9:$L$12998)),0) -> 0 | J47: =IF(A47>0,SUMPRODUCT(--(EGRESOS!$C$9:$C$12998=A47),--(EGRESOS!$AC$9:$AC$12998=$D$5),(EGRESOS!$M$9:$M$12998)),0) -> 0 | K47: =IF(A47>0,SUMPRODUCT(--(EGRESOS!$C$9:$C$12998=A47),--(EGRESOS!$AC$9:$AC$12998=$D$5),(EGRESOS!$N$9:$N$12998)),0) -> 0 | L47: =IF(A47>0,SUMPRODUCT(--(EGRESOS!$C$9:$C$12998=A47),--(EGRESOS!$AC$9:$AC$12998=$D$5),(EGRESOS!$O$9:$O$12998)),0) -> 0 | M47: =IF(A47>0,SUMPRODUCT(--(EGRESOS!$C$9:$C$12998=A47),--(EGRESOS!$AC$9:$AC$12998=$D$5),(EGRESOS!$P$9:$P$12998)),0) -> 0 | N47: =IF(A47>0,SUMPRODUCT(--(EGRESOS!$C$9:$C$12998=A47),--(EGRESOS!$AC$9:$AC$12998=$D$5),(EGRESOS!$Q$9:$Q$12998)),0) -> 0 | O47: 0 | P47: =IF(A47>0,SUMPRODUCT(--(EGRESOS!$C$9:$C$12998=A47),--(EGRESOS!$AC$9:$AC$12998=$D$5),(EGRESOS!$T$9:$T$12998)),0) -> 0 | Q47: 0
B48: =VLOOKUP(A48,CATALOGO!$E$3:$F$13000,2) ->  | D48: =IF(A48>0,VLOOKUP(A48,CATALOGO!$E$3:$G$13000,3),"") ->  | G48: =IF(A48>0,SUMPRODUCT(--(EGRESOS!$C$9:$C$12998=A48),--(EGRESOS!$AC$9:$AC$12998=$D$5),(EGRESOS!$D$9:$D$12998)),0) -> 0 | H48: =IF(A48>0,SUMPRODUCT(--(EGRESOS!$C$9:$C$12998=A48),--(EGRESOS!$AC$9:$AC$12998=$D$5),(EGRESOS!$K$9:$K$12998)),0) -> 0 | I48: =IF(A48>0,SUMPRODUCT(--(EGRESOS!$C$9:$C$12998=A48),--(EGRESOS!$AC$9:$AC$12998=$D$5),(EGRESOS!$L$9:$L$12998)),0) -> 0 | J48: =IF(A48>0,SUMPRODUCT(--(EGRESOS!$C$9:$C$12998=A48),--(EGRESOS!$AC$9:$AC$12998=$D$5),(EGRESOS!$M$9:$M$12998)),0) -> 0 | K48: =IF(A48>0,SUMPRODUCT(--(EGRESOS!$C$9:$C$12998=A48),--(EGRESOS!$AC$9:$AC$12998=$D$5),(EGRESOS!$N$9:$N$12998)),0) -> 0 | L48: =IF(A48>0,SUMPRODUCT(--(EGRESOS!$C$9:$C$12998=A48),--(EGRESOS!$AC$9:$AC$12998=$D$5),(EGRESOS!$O$9:$O$12998)),0) -> 0 | M48: =IF(A48>0,SUMPRODUCT(--(EGRESOS!$C$9:$C$12998=A48),--(EGRESOS!$AC$9:$AC$12998=$D$5),(EGRESOS!$P$9:$P$12998)),0) -> 0 | N48: =IF(A48>0,SUMPRODUCT(--(EGRESOS!$C$9:$C$12998=A48),--(EGRESOS!$AC$9:$AC$12998=$D$5),(EGRESOS!$Q$9:$Q$12998)),0) -> 0 | O48: 0 | P48: =IF(A48>0,SUMPRODUCT(--(EGRESOS!$C$9:$C$12998=A48),--(EGRESOS!$AC$9:$AC$12998=$D$5),(EGRESOS!$T$9:$T$12998)),0) -> 0 | Q48: 0
B49: =VLOOKUP(A49,CATALOGO!$E$3:$F$13000,2) ->  | D49: =IF(A49>0,VLOOKUP(A49,CATALOGO!$E$3:$G$13000,3),"") ->  | G49: =IF(A49>0,SUMPRODUCT(--(EGRESOS!$C$9:$C$12998=A49),--(EGRESOS!$AC$9:$AC$12998=$D$5),(EGRESOS!$D$9:$D$12998)),0) -> 0 | H49: =IF(A49>0,SUMPRODUCT(--(EGRESOS!$C$9:$C$12998=A49),--(EGRESOS!$AC$9:$AC$12998=$D$5),(EGRESOS!$K$9:$K$12998)),0) -> 0 | I49: =IF(A49>0,SUMPRODUCT(--(EGRESOS!$C$9:$C$12998=A49),--(EGRESOS!$AC$9:$AC$12998=$D$5),(EGRESOS!$L$9:$L$12998)),0) -> 0 | J49: =IF(A49>0,SUMPRODUCT(--(EGRESOS!$C$9:$C$12998=A49),--(EGRESOS!$AC$9:$AC$12998=$D$5),(EGRESOS!$M$9:$M$12998)),0) -> 0 | K49: =IF(A49>0,SUMPRODUCT(--(EGRESOS!$C$9:$C$12998=A49),--(EGRESOS!$AC$9:$AC$12998=$D$5),(EGRESOS!$N$9:$N$12998)),0) -> 0 | L49: =IF(A49>0,SUMPRODUCT(--(EGRESOS!$C$9:$C$12998=A49),--(EGRESOS!$AC$9:$AC$12998=$D$5),(EGRESOS!$O$9:$O$12998)),0) -> 0 | M49: =IF(A49>0,SUMPRODUCT(--(EGRESOS!$C$9:$C$12998=A49),--(EGRESOS!$AC$9:$AC$12998=$D$5),(EGRESOS!$P$9:$P$12998)),0) -> 0 | N49: =IF(A49>0,SUMPRODUCT(--(EGRESOS!$C$9:$C$12998=A49),--(EGRESOS!$AC$9:$AC$12998=$D$5),(EGRESOS!$Q$9:$Q$12998)),0) -> 0 | O49: 0 | P49: =IF(A49>0,SUMPRODUCT(--(EGRESOS!$C$9:$C$12998=A49),--(EGRESOS!$AC$9:$AC$12998=$D$5),(EGRESOS!$T$9:$T$12998)),0) -> 0 | Q49: 0
B50: =VLOOKUP(A50,CATALOGO!$E$3:$F$13000,2) ->  | D50: =IF(A50>0,VLOOKUP(A50,CATALOGO!$E$3:$G$13000,3),"") ->  | G50: =IF(A50>0,SUMPRODUCT(--(EGRESOS!$C$9:$C$12998=A50),--(EGRESOS!$AC$9:$AC$12998=$D$5),(EGRESOS!$D$9:$D$12998)),0) -> 0 | H50: =IF(A50>0,SUMPRODUCT(--(EGRESOS!$C$9:$C$12998=A50),--(EGRESOS!$AC$9:$AC$12998=$D$5),(EGRESOS!$K$9:$K$12998)),0) -> 0 | I50: =IF(A50>0,SUMPRODUCT(--(EGRESOS!$C$9:$C$12998=A50),--(EGRESOS!$AC$9:$AC$12998=$D$5),(EGRESOS!$L$9:$L$12998)),0) -> 0 | J50: =IF(A50>0,SUMPRODUCT(--(EGRESOS!$C$9:$C$12998=A50),--(EGRESOS!$AC$9:$AC$12998=$D$5),(EGRESOS!$M$9:$M$12998)),0) -> 0 | K50: =IF(A50>0,SUMPRODUCT(--(EGRESOS!$C$9:$C$12998=A50),--(EGRESOS!$AC$9:$AC$12998=$D$5),(EGRESOS!$N$9:$N$12998)),0) -> 0 | L50: =IF(A50>0,SUMPRODUCT(--(EGRESOS!$C$9:$C$12998=A50),--(EGRESOS!$AC$9:$AC$12998=$D$5),(EGRESOS!$O$9:$O$12998)),0) -> 0 | M50: =IF(A50>0,SUMPRODUCT(--(EGRESOS!$C$9:$C$12998=A50),--(EGRESOS!$AC$9:$AC$12998=$D$5),(EGRESOS!$P$9:$P$12998)),0) -> 0 | N50: =IF(A50>0,SUMPRODUCT(--(EGRESOS!$C$9:$C$12998=A50),--(EGRESOS!$AC$9:$AC$12998=$D$5),(EGRESOS!$Q$9:$Q$12998)),0) -> 0 | O50: 0 | P50: =IF(A50>0,SUMPRODUCT(--(EGRESOS!$C$9:$C$12998=A50),--(EGRESOS!$AC$9:$AC$12998=$D$5),(EGRESOS!$T$9:$T$12998)),0) -> 0 | Q50: 0
B51: =VLOOKUP(A51,CATALOGO!$E$3:$F$13000,2) ->  | D51: =IF(A51>0,VLOOKUP(A51,CATALOGO!$E$3:$G$13000,3),"") ->  | G51: =IF(A51>0,SUMPRODUCT(--(EGRESOS!$C$9:$C$12998=A51),--(EGRESOS!$AC$9:$AC$12998=$D$5),(EGRESOS!$D$9:$D$12998)),0) -> 0 | H51: =IF(A51>0,SUMPRODUCT(--(EGRESOS!$C$9:$C$12998=A51),--(EGRESOS!$AC$9:$AC$12998=$D$5),(EGRESOS!$K$9:$K$12998)),0) -> 0 | I51: =IF(A51>0,SUMPRODUCT(--(EGRESOS!$C$9:$C$12998=A51),--(EGRESOS!$AC$9:$AC$12998=$D$5),(EGRESOS!$L$9:$L$12998)),0) -> 0 | J51: =IF(A51>0,SUMPRODUCT(--(EGRESOS!$C$9:$C$12998=A51),--(EGRESOS!$AC$9:$AC$12998=$D$5),(EGRESOS!$M$9:$M$12998)),0) -> 0 | K51: =IF(A51>0,SUMPRODUCT(--(EGRESOS!$C$9:$C$12998=A51),--(EGRESOS!$AC$9:$AC$12998=$D$5),(EGRESOS!$N$9:$N$12998)),0) -> 0 | L51: =IF(A51>0,SUMPRODUCT(--(EGRESOS!$C$9:$C$12998=A51),--(EGRESOS!$AC$9:$AC$12998=$D$5),(EGRESOS!$O$9:$O$12998)),0) -> 0 | M51: =IF(A51>0,SUMPRODUCT(--(EGRESOS!$C$9:$C$12998=A51),--(EGRESOS!$AC$9:$AC$12998=$D$5),(EGRESOS!$P$9:$P$12998)),0) -> 0 | N51: =IF(A51>0,SUMPRODUCT(--(EGRESOS!$C$9:$C$12998=A51),--(EGRESOS!$AC$9:$AC$12998=$D$5),(EGRESOS!$Q$9:$Q$12998)),0) -> 0 | O51: 0 | P51: =IF(A51>0,SUMPRODUCT(--(EGRESOS!$C$9:$C$12998=A51),--(EGRESOS!$AC$9:$AC$12998=$D$5),(EGRESOS!$T$9:$T$12998)),0) -> 0 | Q51: 0
B52: =VLOOKUP(A52,CATALOGO!$E$3:$F$13000,2) ->  | D52: =IF(A52>0,VLOOKUP(A52,CATALOGO!$E$3:$G$13000,3),"") ->  | G52: =IF(A52>0,SUMPRODUCT(--(EGRESOS!$C$9:$C$12998=A52),--(EGRESOS!$AC$9:$AC$12998=$D$5),(EGRESOS!$D$9:$D$12998)),0) -> 0 | H52: =IF(A52>0,SUMPRODUCT(--(EGRESOS!$C$9:$C$12998=A52),--(EGRESOS!$AC$9:$AC$12998=$D$5),(EGRESOS!$K$9:$K$12998)),0) -> 0 | I52: =IF(A52>0,SUMPRODUCT(--(EGRESOS!$C$9:$C$12998=A52),--(EGRESOS!$AC$9:$AC$12998=$D$5),(EGRESOS!$L$9:$L$12998)),0) -> 0 | J52: =IF(A52>0,SUMPRODUCT(--(EGRESOS!$C$9:$C$12998=A52),--(EGRESOS!$AC$9:$AC$12998=$D$5),(EGRESOS!$M$9:$M$12998)),0) -> 0 | K52: =IF(A52>0,SUMPRODUCT(--(EGRESOS!$C$9:$C$12998=A52),--(EGRESOS!$AC$9:$AC$12998=$D$5),(EGRESOS!$N$9:$N$12998)),0) -> 0 | L52: =IF(A52>0,SUMPRODUCT(--(EGRESOS!$C$9:$C$12998=A52),--(EGRESOS!$AC$9:$AC$12998=$D$5),(EGRESOS!$O$9:$O$12998)),0) -> 0 | M52: =IF(A52>0,SUMPRODUCT(--(EGRESOS!$C$9:$C$12998=A52),--(EGRESOS!$AC$9:$AC$12998=$D$5),(EGRESOS!$P$9:$P$12998)),0) -> 0 | N52: =IF(A52>0,SUMPRODUCT(--(EGRESOS!$C$9:$C$12998=A52),--(EGRESOS!$AC$9:$AC$12998=$D$5),(EGRESOS!$Q$9:$Q$12998)),0) -> 0 | O52: 0 | P52: =IF(A52>0,SUMPRODUCT(--(EGRESOS!$C$9:$C$12998=A52),--(EGRESOS!$AC$9:$AC$12998=$D$5),(EGRESOS!$T$9:$T$12998)),0) -> 0 | Q52: 0
B53: =VLOOKUP(A53,CATALOGO!$E$3:$F$13000,2) ->  | D53: =IF(A53>0,VLOOKUP(A53,CATALOGO!$E$3:$G$13000,3),"") ->  | G53: =IF(A53>0,SUMPRODUCT(--(EGRESOS!$C$9:$C$12998=A53),--(EGRESOS!$AC$9:$AC$12998=$D$5),(EGRESOS!$D$9:$D$12998)),0) -> 0 | H53: =IF(A53>0,SUMPRODUCT(--(EGRESOS!$C$9:$C$12998=A53),--(EGRESOS!$AC$9:$AC$12998=$D$5),(EGRESOS!$K$9:$K$12998)),0) -> 0 | I53: =IF(A53>0,SUMPRODUCT(--(EGRESOS!$C$9:$C$12998=A53),--(EGRESOS!$AC$9:$AC$12998=$D$5),(EGRESOS!$L$9:$L$12998)),0) -> 0 | J53: =IF(A53>0,SUMPRODUCT(--(EGRESOS!$C$9:$C$12998=A53),--(EGRESOS!$AC$9:$AC$12998=$D$5),(EGRESOS!$M$9:$M$12998)),0) -> 0 | K53: =IF(A53>0,SUMPRODUCT(--(EGRESOS!$C$9:$C$12998=A53),--(EGRESOS!$AC$9:$AC$12998=$D$5),(EGRESOS!$N$9:$N$12998)),0) -> 0 | L53: =IF(A53>0,SUMPRODUCT(--(EGRESOS!$C$9:$C$12998=A53),--(EGRESOS!$AC$9:$AC$12998=$D$5),(EGRESOS!$O$9:$O$12998)),0) -> 0 | M53: =IF(A53>0,SUMPRODUCT(--(EGRESOS!$C$9:$C$12998=A53),--(EGRESOS!$AC$9:$AC$12998=$D$5),(EGRESOS!$P$9:$P$12998)),0) -> 0 | N53: =IF(A53>0,SUMPRODUCT(--(EGRESOS!$C$9:$C$12998=A53),--(EGRESOS!$AC$9:$AC$12998=$D$5),(EGRESOS!$Q$9:$Q$12998)),0) -> 0 | O53: 0 | P53: =IF(A53>0,SUMPRODUCT(--(EGRESOS!$C$9:$C$12998=A53),--(EGRESOS!$AC$9:$AC$12998=$D$5),(EGRESOS!$T$9:$T$12998)),0) -> 0 | Q53: 0
B54: =VLOOKUP(A54,CATALOGO!$E$3:$F$13000,2) ->  | D54: =IF(A54>0,VLOOKUP(A54,CATALOGO!$E$3:$G$13000,3),"") ->  | G54: =IF(A54>0,SUMPRODUCT(--(EGRESOS!$C$9:$C$12998=A54),--(EGRESOS!$AC$9:$AC$12998=$D$5),(EGRESOS!$D$9:$D$12998)),0) -> 0 | H54: =IF(A54>0,SUMPRODUCT(--(EGRESOS!$C$9:$C$12998=A54),--(EGRESOS!$AC$9:$AC$12998=$D$5),(EGRESOS!$K$9:$K$12998)),0) -> 0 | I54: =IF(A54>0,SUMPRODUCT(--(EGRESOS!$C$9:$C$12998=A54),--(EGRESOS!$AC$9:$AC$12998=$D$5),(EGRESOS!$L$9:$L$12998)),0) -> 0 | J54: =IF(A54>0,SUMPRODUCT(--(EGRESOS!$C$9:$C$12998=A54),--(EGRESOS!$AC$9:$AC$12998=$D$5),(EGRESOS!$M$9:$M$12998)),0) -> 0 | K54: =IF(A54>0,SUMPRODUCT(--(EGRESOS!$C$9:$C$12998=A54),--(EGRESOS!$AC$9:$AC$12998=$D$5),(EGRESOS!$N$9:$N$12998)),0) -> 0 | L54: =IF(A54>0,SUMPRODUCT(--(EGRESOS!$C$9:$C$12998=A54),--(EGRESOS!$AC$9:$AC$12998=$D$5),(EGRESOS!$O$9:$O$12998)),0) -> 0 | M54: =IF(A54>0,SUMPRODUCT(--(EGRESOS!$C$9:$C$12998=A54),--(EGRESOS!$AC$9:$AC$12998=$D$5),(EGRESOS!$P$9:$P$12998)),0) -> 0 | N54: =IF(A54>0,SUMPRODUCT(--(EGRESOS!$C$9:$C$12998=A54),--(EGRESOS!$AC$9:$AC$12998=$D$5),(EGRESOS!$Q$9:$Q$12998)),0) -> 0 | O54: 0 | P54: =IF(A54>0,SUMPRODUCT(--(EGRESOS!$C$9:$C$12998=A54),--(EGRESOS!$AC$9:$AC$12998=$D$5),(EGRESOS!$T$9:$T$12998)),0) -> 0 | Q54: 0
B55: =VLOOKUP(A55,CATALOGO!$E$3:$F$13000,2) ->  | D55: =IF(A55>0,VLOOKUP(A55,CATALOGO!$E$3:$G$13000,3),"") ->  | G55: =IF(A55>0,SUMPRODUCT(--(EGRESOS!$C$9:$C$12998=A55),--(EGRESOS!$AC$9:$AC$12998=$D$5),(EGRESOS!$D$9:$D$12998)),0) -> 0 | H55: =IF(A55>0,SUMPRODUCT(--(EGRESOS!$C$9:$C$12998=A55),--(EGRESOS!$AC$9:$AC$12998=$D$5),(EGRESOS!$K$9:$K$12998)),0) -> 0 | I55: =IF(A55>0,SUMPRODUCT(--(EGRESOS!$C$9:$C$12998=A55),--(EGRESOS!$AC$9:$AC$12998=$D$5),(EGRESOS!$L$9:$L$12998)),0) -> 0 | J55: =IF(A55>0,SUMPRODUCT(--(EGRESOS!$C$9:$C$12998=A55),--(EGRESOS!$AC$9:$AC$12998=$D$5),(EGRESOS!$M$9:$M$12998)),0) -> 0 | K55: =IF(A55>0,SUMPRODUCT(--(EGRESOS!$C$9:$C$12998=A55),--(EGRESOS!$AC$9:$AC$12998=$D$5),(EGRESOS!$N$9:$N$12998)),0) -> 0 | L55: =IF(A55>0,SUMPRODUCT(--(EGRESOS!$C$9:$C$12998=A55),--(EGRESOS!$AC$9:$AC$12998=$D$5),(EGRESOS!$O$9:$O$12998)),0) -> 0 | M55: =IF(A55>0,SUMPRODUCT(--(EGRESOS!$C$9:$C$12998=A55),--(EGRESOS!$AC$9:$AC$12998=$D$5),(EGRESOS!$P$9:$P$12998)),0) -> 0 | N55: =IF(A55>0,SUMPRODUCT(--(EGRESOS!$C$9:$C$12998=A55),--(EGRESOS!$AC$9:$AC$12998=$D$5),(EGRESOS!$Q$9:$Q$12998)),0) -> 0 | O55: 0 | P55: =IF(A55>0,SUMPRODUCT(--(EGRESOS!$C$9:$C$12998=A55),--(EGRESOS!$AC$9:$AC$12998=$D$5),(EGRESOS!$T$9:$T$12998)),0) -> 0 | Q55: 0
B56: =VLOOKUP(A56,CATALOGO!$E$3:$F$13000,2) ->  | D56: =IF(A56>0,VLOOKUP(A56,CATALOGO!$E$3:$G$13000,3),"") ->  | G56: =IF(A56>0,SUMPRODUCT(--(EGRESOS!$C$9:$C$12998=A56),--(EGRESOS!$AC$9:$AC$12998=$D$5),(EGRESOS!$D$9:$D$12998)),0) -> 0 | H56: =IF(A56>0,SUMPRODUCT(--(EGRESOS!$C$9:$C$12998=A56),--(EGRESOS!$AC$9:$AC$12998=$D$5),(EGRESOS!$K$9:$K$12998)),0) -> 0 | I56: =IF(A56>0,SUMPRODUCT(--(EGRESOS!$C$9:$C$12998=A56),--(EGRESOS!$AC$9:$AC$12998=$D$5),(EGRESOS!$L$9:$L$12998)),0) -> 0 | J56: =IF(A56>0,SUMPRODUCT(--(EGRESOS!$C$9:$C$12998=A56),--(EGRESOS!$AC$9:$AC$12998=$D$5),(EGRESOS!$M$9:$M$12998)),0) -> 0 | K56: =IF(A56>0,SUMPRODUCT(--(EGRESOS!$C$9:$C$12998=A56),--(EGRESOS!$AC$9:$AC$12998=$D$5),(EGRESOS!$N$9:$N$12998)),0) -> 0 | L56: =IF(A56>0,SUMPRODUCT(--(EGRESOS!$C$9:$C$12998=A56),--(EGRESOS!$AC$9:$AC$12998=$D$5),(EGRESOS!$O$9:$O$12998)),0) -> 0 | M56: =IF(A56>0,SUMPRODUCT(--(EGRESOS!$C$9:$C$12998=A56),--(EGRESOS!$AC$9:$AC$12998=$D$5),(EGRESOS!$P$9:$P$12998)),0) -> 0 | N56: =IF(A56>0,SUMPRODUCT(--(EGRESOS!$C$9:$C$12998=A56),--(EGRESOS!$AC$9:$AC$12998=$D$5),(EGRESOS!$Q$9:$Q$12998)),0) -> 0 | O56: 0 | P56: =IF(A56>0,SUMPRODUCT(--(EGRESOS!$C$9:$C$12998=A56),--(EGRESOS!$AC$9:$AC$12998=$D$5),(EGRESOS!$T$9:$T$12998)),0) -> 0 | Q56: 0
G57: =IF(A57>0,SUMPRODUCT(--(EGRESOS!$C$9:$C$12998=A57),--(EGRESOS!$AC$9:$AC$12998=$D$5),(EGRESOS!$D$9:$D$12998)),0) -> 0 | H57: =IF(A57>0,SUMPRODUCT(--(EGRESOS!$C$9:$C$12998=A57),--(EGRESOS!$AC$9:$AC$12998=$D$5),(EGRESOS!$K$9:$K$12998)),0) -> 0 | I57: =IF(A57>0,SUMPRODUCT(--(EGRESOS!$C$9:$C$12998=A57),--(EGRESOS!$AC$9:$AC$12998=$D$5),(EGRESOS!$L$9:$L$12998)),0) -> 0 | J57: =IF(A57>0,SUMPRODUCT(--(EGRESOS!$C$9:$C$12998=A57),--(EGRESOS!$AC$9:$AC$12998=$D$5),(EGRESOS!$M$9:$M$12998)),0) -> 0 | K57: =IF(A57>0,SUMPRODUCT(--(EGRESOS!$C$9:$C$12998=A57),--(EGRESOS!$AC$9:$AC$12998=$D$5),(EGRESOS!$N$9:$N$12998)),0) -> 0 | L57: =IF(A57>0,SUMPRODUCT(--(EGRESOS!$C$9:$C$12998=A57),--(EGRESOS!$AC$9:$AC$12998=$D$5),(EGRESOS!$O$9:$O$12998)),0) -> 0 | M57: =IF(A57>0,SUMPRODUCT(--(EGRESOS!$C$9:$C$12998=A57),--(EGRESOS!$AC$9:$AC$12998=$D$5),(EGRESOS!$P$9:$P$12998)),0) -> 0 | N57: =IF(A57>0,SUMPRODUCT(--(EGRESOS!$C$9:$C$12998=A57),--(EGRESOS!$AC$9:$AC$12998=$D$5),(EGRESOS!$Q$9:$Q$12998)),0) -> 0 | O57: 0 | P57: =IF(A57>0,SUMPRODUCT(--(EGRESOS!$C$9:$C$12998=A57),--(EGRESOS!$AC$9:$AC$12998=$D$5),(EGRESOS!$T$9:$T$12998)),0) -> 0 | Q57: =IF(O57>0,+(O57+P57),0) -> 0
G58: =IF(A58>0,SUMPRODUCT(--(EGRESOS!$C$9:$C$12998=A58),--(EGRESOS!$AC$9:$AC$12998=$D$5),(EGRESOS!$D$9:$D$12998)),0) -> 0 | H58: =IF(A58>0,SUMPRODUCT(--(EGRESOS!$C$9:$C$12998=A58),--(EGRESOS!$AC$9:$AC$12998=$D$5),(EGRESOS!$K$9:$K$12998)),0) -> 0 | I58: =IF(A58>0,SUMPRODUCT(--(EGRESOS!$C$9:$C$12998=A58),--(EGRESOS!$AC$9:$AC$12998=$D$5),(EGRESOS!$L$9:$L$12998)),0) -> 0 | J58: =IF(A58>0,SUMPRODUCT(--(EGRESOS!$C$9:$C$12998=A58),--(EGRESOS!$AC$9:$AC$12998=$D$5),(EGRESOS!$M$9:$M$12998)),0) -> 0 | K58: =IF(A58>0,SUMPRODUCT(--(EGRESOS!$C$9:$C$12998=A58),--(EGRESOS!$AC$9:$AC$12998=$D$5),(EGRESOS!$N$9:$N$12998)),0) -> 0 | L58: =IF(A58>0,SUMPRODUCT(--(EGRESOS!$C$9:$C$12998=A58),--(EGRESOS!$AC$9:$AC$12998=$D$5),(EGRESOS!$O$9:$O$12998)),0) -> 0 | M58: =IF(A58>0,SUMPRODUCT(--(EGRESOS!$C$9:$C$12998=A58),--(EGRESOS!$AC$9:$AC$12998=$D$5),(EGRESOS!$P$9:$P$12998)),0) -> 0 | N58: =IF(A58>0,SUMPRODUCT(--(EGRESOS!$C$9:$C$12998=A58),--(EGRESOS!$AC$9:$AC$12998=$D$5),(EGRESOS!$Q$9:$Q$12998)),0) -> 0 | O58: 0 | P58: =IF(A58>0,SUMPRODUCT(--(EGRESOS!$C$9:$C$12998=A58),--(EGRESOS!$AC$9:$AC$12998=$D$5),(EGRESOS!$T$9:$T$12998)),0) -> 0 | Q58: =IF(O58>0,+(O58+P58),0) -> 0
E61: TOTAL GENERAL: | H61: =SUM(H10:H58) -> 0 | I61: 800000 | J61: 0 | K61: 0 | L61: 0 | M61: 0 | N61: 0 | O61: 800000 | P61: 128000 | Q61: 928000

Sheet PROVEEDORES ANUALES
B1: PROVEEDORES | K1: PRESENTACION
A2: =+Hoja4!B4 -> carlos baez medina
A3: CONCENTRADO DE PROVEEDORES
B5: MES | D5: 1901-10-01
B7: AÑO | D7: 2012
H8: COMPRAS (GASTOS)
A9: NUM DEL PROVEEDOR | B9: PROVEEDOR | D9: R.F.C | E9: DIRECCION | F9: TELEFONO | G9: MOVIMIENTOS | H9: INGRESOS EXENTOS | I9: INGRESOS GRAVADOS | J9: IMPORTE | K9: IVA | L9: TOTAL
A10: 001 | B10: =VLOOKUP(A10,CATALOGO!$E$3:$F$13000,2) -> CARLOS | D10: =IF(A10>0,VLOOKUP(A10,CATALOGO!$E$3:$G$13000,3),"") -> 0 | G10: =IF(A10>0,COUNTIF(EGRESOS!C:C,A10),0) -> 1 | H10: =SUMIF(EGRESOS!C:C,'PROVEEDORES ANUALES'!A10,EGRESOS!K:K) -> 0 | I10: =SUMIF(EGRESOS!C:C,'PROVEEDORES ANUALES'!A10,EGRESOS!L:L) -> 800000 | J10: =+H10+I10 -> 800000 | K10: =SUMIF(EGRESOS!C:C,'PROVEEDORES ANUALES'!A10,EGRESOS!T:T) -> 128000 | L10: =IF(J10>0,+(J10+K10),0) -> 928000
A11: 002 | B11: =VLOOKUP(A11,CATALOGO!$E$3:$F$13000,2) -> 0 | D11: =IF(A11>0,VLOOKUP(A11,CATALOGO!$E$3:$G$13000,3),"") -> 0 | G11: =IF(A11>0,COUNTIF(EGRESOS!C:C,A11),0) -> 0 | H11: =SUMIF(EGRESOS!C:C,'PROVEEDORES ANUALES'!A11,EGRESOS!K:K) -> 0 | I11: =SUMIF(EGRESOS!C:C,'PROVEEDORES ANUALES'!A11,EGRESOS!L:L) -> 0 | J11: =+H11+I11 -> 0 | K11: =SUMIF(EGRESOS!C:C,'PROVEEDORES ANUALES'!A11,EGRESOS!T:T) -> 0 | L11: =IF(J11>0,+(J11+K11),0) -> 0 | N11: 1901-01-01
A12: 003 | B12: =VLOOKUP(A12,CATALOGO!$E$3:$F$13000,2) -> 0 | D12: =IF(A12>0,VLOOKUP(A12,CATALOGO!$E$3:$G$13000,3),"") -> 0 | G12: =IF(A12>0,COUNTIF(EGRESOS!C:C,A12),0) -> 0 | H12: =SUMIF(EGRESOS!C:C,'PROVEEDORES ANUALES'!A12,EGRESOS!K:K) -> 0 | I12: =SUMIF(EGRESOS!C:C,'PROVEEDORES ANUALES'!A12,EGRESOS!L:L) -> 0 | J12: 0 | K12: =SUMIF(EGRESOS!C:C,'PROVEEDORES ANUALES'!A12,EGRESOS!T:T) -> 0 | L12: 0 | N12: 1901-02-01
A13: 004 | B13: =VLOOKUP(A13,CATALOGO!$E$3:$F$13000,2) -> 0 | D13: =IF(A13>0,VLOOKUP(A13,CATALOGO!$E$3:$G$13000,3),"") -> 0 | G13: =IF(A13>0,COUNTIF(EGRESOS!C:C,A13),0) -> 0 | H13: =SUMIF(EGRESOS!C:C,'PROVEEDORES ANUALES'!A13,EGRESOS!K:K) -> 0 | I13: =SUMIF(EGRESOS!C:C,'PROVEEDORES ANUALES'!A13,EGRESOS!L:L) -> 0 | J13: 0 | K13: =SUMIF(EGRESOS!C:C,'PROVEEDORES ANUALES'!A13,EGRESOS!T:T) -> 0 | L13: 0 | N13: 1901-03-01
A14: 005 | B14: =VLOOKUP(A14,CATALOGO!$E$3:$F$13000,2) -> 0 | D14: =IF(A14>0,VLOOKUP(A14,CATALOGO!$E$3:$G$13000,3),"") -> 0 | G14: =IF(A14>0,COUNTIF(EGRESOS!C:C,A14),0) -> 0 | H14: =SUMIF(EGRESOS!C:C,'PROVEEDORES ANUALES'!A14,EGRESOS!K:K) -> 0 | I14: =SUMIF(EGRESOS!C:C,'PROVEEDORES ANUALES'!A14,EGRESOS!L:L) -> 0 | J14: 0 | K14: =SUMIF(EGRESOS!C:C,'PROVEEDORES ANUALES'!A14,EGRESOS!T:T) -> 0 | L14: 0 | N14: 1901-04-01
A15: 006 | B15: =VLOOKUP(A15,CATALOGO!$E$3:$F$13000,2) -> 0 | D15: =IF(A15>0,VLOOKUP(A15,CATALOGO!$E$3:$G$13000,3),"") -> 0 | G15: =IF(A15>0,COUNTIF(EGRESOS!C:C,A15),0) -> 0 | H15: =SUMIF(EGRESOS!C:C,'PROVEEDORES ANUALES'!A15,EGRESOS!K:K) -> 0 | I15: =SUMIF(EGRESOS!C:C,'PROVEEDORES ANUALES'!A15,EGRESOS!L:L) -> 0 | J15: 0 | K15: =SUMIF(EGRESOS!C:C,'PROVEEDORES ANUALES'!A15,EGRESOS!T:T) -> 0 | L15: 0 | N15: 1901-05-01
A16: 007 | B16: =VLOOKUP(A16,CATALOGO!$E$3:$F$13000,2) -> 0 | D16: =IF(A16>0,VLOOKUP(A16,CATALOGO!$E$3:$G$13000,3),"") -> 0 | G16: =IF(A16>0,COUNTIF(EGRESOS!C:C,A16),0) -> 0 | H16: =SUMIF(EGRESOS!C:C,'PROVEEDORES ANUALES'!A16,EGRESOS!K:K) -> 0 | I16: =SUMIF(EGRESOS!C:C,'PROVEEDORES ANUALES'!A16,EGRESOS!L:L) -> 0 | J16: 0 | K16: =SUMIF(EGRESOS!C:C,'PROVEEDORES ANUALES'!A16,EGRESOS!T:T) -> 0 | L16: 0 | N16: 1901-06-01
A17: 008 | B17: =VLOOKUP(A17,CATALOGO!$E$3:$F$13000,2) -> 0 | D17: =IF(A17>0,VLOOKUP(A17,CATALOGO!$E$3:$G$13000,3),"") -> 0 | G17: =IF(A17>0,COUNTIF(EGRESOS!C:C,A17),0) -> 0 | H17: =SUMIF(EGRESOS!C:C,'PROVEEDORES ANUALES'!A17,EGRESOS!K:K) -> 0 | I17: =SUMIF(EGRESOS!C:C,'PROVEEDORES ANUALES'!A17,EGRESOS!L:L) -> 0 | J17: 0 | K17: =SUMIF(EGRESOS!C:C,'PROVEEDORES ANUALES'!A17,EGRESOS!T:T) -> 0 | L17: 0 | N17: 1901-07-01
A18: 009 | B18: =VLOOKUP(A18,CATALOGO!$E$3:$F$13000,2) -> 0 | D18: =IF(A18>0,VLOOKUP(A18,CATALOGO!$E$3:$G$13000,3),"") -> 0 | G18: =IF(A18>0,COUNTIF(EGRESOS!C:C,A18),0) -> 0 | H18: =SUMIF(EGRESOS!C:C,'PROVEEDORES ANUALES'!A18,EGRESOS!K:K) -> 0 | I18: =SUMIF(EGRESOS!C:C,'PROVEEDORES ANUALES'!A18,EGRESOS!L:L) -> 0 | J18: 0 | K18: =SUMIF(EGRESOS!C:C,'PROVEEDORES ANUALES'!A18,EGRESOS!T:T) -> 0 | L18: 0 | N18: 1901-08-01
A19: 010 | B19: =VLOOKUP(A19,CATALOGO!$E$3:$F$13000,2) -> 0 | D19: =IF(A19>0,VLOOKUP(A19,CATALOGO!$E$3:$G$13000,3),"") -> 0 | G19: =IF(A19>0,COUNTIF(EGRESOS!C:C,A19),0) -> 0 | H19: =SUMIF(EGRESOS!C:C,'PROVEEDORES ANUALES'!A19,EGRESOS!K:K) -> 0 | I19: =SUMIF(EGRESOS!C:C,'PROVEEDORES ANUALES'!A19,EGRESOS!L:L) -> 0 | J19: 0 | K19: =SUMIF(EGRESOS!C:C,'PROVEEDORES ANUALES'!A19,EGRESOS!T:T) -> 0 | L19: 0 | N19: 1901-09-01
A20: 011 | B20: =VLOOKUP(A20,CATALOGO!$E$3:$F$13000,2) -> 0 | D20: =IF(A20>0,VLOOKUP(A20,CATALOGO!$E$3:$G$13000,3),"") -> 0 | G20: =IF(A20>0,COUNTIF(EGRESOS!C:C,A20),0) -> 0 | H20: =SUMIF(EGRESOS!C:C,'PROVEEDORES ANUALES'!A20,EGRESOS!K:K) -> 0 | I20: =SUMIF(EGRESOS!C:C,'PROVEEDORES ANUALES'!A20,EGRESOS!L:L) -> 0 | J20: 0 | K20: =SUMIF(EGRESOS!C:C,'PROVEEDORES ANUALES'!A20,EGRESOS!T:T) -> 0 | L20: 0 | N20: 1901-10-01
A21: 012 | B21: =VLOOKUP(A21,CATALOGO!$E$3:$F$13000,2) -> 0 | D21: =IF(A21>0,VLOOKUP(A21,CATALOGO!$E$3:$G$13000,3),"") -> 0 | G21: =IF(A21>0,COUNTIF(EGRESOS!C:C,A21),0) -> 0 | H21: =SUMIF(EGRESOS!C:C,'PROVEEDORES ANUALES'!A21,EGRESOS!K:K) -> 0 | I21: =SUMIF(EGRESOS!C:C,'PROVEEDORES ANUALES'!A21,EGRESOS!L:L) -> 0 | J21: 0 | K21: =SUMIF(EGRESOS!C:C,'PROVEEDORES ANUALES'!A21,EGRESOS!T:T) -> 0 | L21: 0 | N21: 1901-11-01
A22: 013 | B22: =VLOOKUP(A22,CATALOGO!$E$3:$F$13000,2) -> 0 | D22: =IF(A22>0,VLOOKUP(A22,CATALOGO!$E$3:$G$13000,3),"") -> 0 | G22: =IF(A22>0,COUNTIF(EGRESOS!C:C,A22),0) -> 0 | H22: =SUMIF(EGRESOS!C:C,'PROVEEDORES ANUALES'!A22,EGRESOS!K:K) -> 0 | I22: =SUMIF(EGRESOS!C:C,'PROVEEDORES ANUALES'!A22,EGRESOS!L:L) -> 0 | J22: 0 | K22: =SUMIF(EGRESOS!C:C,'PROVEEDORES ANUALES'!A22,EGRESOS!T:T) -> 0 | L22: 0 | N22: 1901-12-01
A23: 014 | B23: =VLOOKUP(A23,CATALOGO!$E$3:$F$13000,2) -> 0 | D23: =IF(A23>0,VLOOKUP(A23,CATALOGO!$E$3:$G$13000,3),"") -> 0 | G23: =IF(A23>0,COUNTIF(EGRESOS!C:C,A23),0) -> 0 | H23: =SUMIF(EGRESOS!C:C,'PROVEEDORES ANUALES'!A23,EGRESOS!K:K) -> 0 | I23: =SUMIF(EGRESOS!C:C,'PROVEEDORES ANUALES'!A23,EGRESOS!L:L) -> 0 | J23: 0 | K23: =SUMIF(EGRESOS!C:C,'PROVEEDORES ANUALES'!A23,EGRESOS!T:T) -> 0 | L23: 0
A24: 015 | B24: =VLOOKUP(A24,CATALOGO!$E$3:$F$13000,2) -> 0 | D24: =IF(A24>0,VLOOKUP(A24,CATALOGO!$E$3:$G$13000,3),"") -> 0 | G24: =IF(A24>0,COUNTIF(EGRESOS!C:C,A24),0) -> 0 | H24: =SUMIF(EGRESOS!C:C,'PROVEEDORES ANUALES'!A24,EGRESOS!K:K) -> 0 | I24: =SUMIF(EGRESOS!C:C,'PROVEEDORES ANUALES'!A24,EGRESOS!L:L) -> 0 | J24: 0 | K24: =SUMIF(EGRESOS!C:C,'PROVEEDORES ANUALES'!A24,EGRESOS!T:T) -> 0 | L24: 0
A25: 016 | B25: =VLOOKUP(A25,CATALOGO!$E$3:$F$13000,2) -> 0 | D25: =IF(A25>0,VLOOKUP(A25,CATALOGO!$E$3:$G$13000,3),"") -> 0 | G25: =IF(A25>0,COUNTIF(EGRESOS!C:C,A25),0) -> 0 | H25: =SUMIF(EGRESOS!C:C,'PROVEEDORES ANUALES'!A25,EGRESOS!K:K) -> 0 | I25: =SUMIF(EGRESOS!C:C,'PROVEEDORES ANUALES'!A25,EGRESOS!L:L) -> 0 | J25: 0 | K25: =SUMIF(EGRESOS!C:C,'PROVEEDORES ANUALES'!A25,EGRESOS!T:T) -> 0 | L25: 0
A26: 017 | B26: =VLOOKUP(A26,CATALOGO!$E$3:$F$13000,2) -> 0 | D26: =IF(A26>0,VLOOKUP(A26,CATALOGO!$E$3:$G$13000,3),"") -> 0 | G26: =IF(A26>0,COUNTIF(EGRESOS!C:C,A26),0) -> 0 | H26: =SUMIF(EGRESOS!C:C,'PROVEEDORES ANUALES'!A26,EGRESOS!K:K) -> 0 | I26: =SUMIF(EGRESOS!C:C,'PROVEEDORES ANUALES'!A26,EGRESOS!L:L) -> 0 | J26: 0 | K26: =SUMIF(EGRESOS!C:C,'PROVEEDORES ANUALES'!A26,EGRESOS!T:T) -> 0 | L26: 0
A27: 018 | B27: =VLOOKUP(A27,CATALOGO!$E$3:$F$13000,2) -> 0 | D27: =IF(A27>0,VLOOKUP(A27,CATALOGO!$E$3:$G$13000,3),"") -> 0 | G27: =IF(A27>0,COUNTIF(EGRESOS!C:C,A27),0) -> 0 | H27: =SUMIF(EGRESOS!C:C,'PROVEEDORES ANUALES'!A27,EGRESOS!K:K) -> 0 | I27: =SUMIF(EGRESOS!C:C,'PROVEEDORES ANUALES'!A27,EGRESOS!L:L) -> 0 | J27: 0 | K27: =SUMIF(EGRESOS!C:C,'PROVEEDORES ANUALES'!A27,EGRESOS!T:T) -> 0 | L27: 0
A28: 019 | B28: =VLOOKUP(A28,CATALOGO!$E$3:$F$13000,2) -> 0 | D28: =IF(A28>0,VLOOKUP(A28,CATALOGO!$E$3:$G$13000,3),"") -> 0 | G28: =IF(A28>0,COUNTIF(EGRESOS!C:C,A28),0) -> 0 | H28: =SUMIF(EGRESOS!C:C,'PROVEEDORES ANUALES'!A28,EGRESOS!K:K) -> 0 | I28: =SUMIF(EGRESOS!C:C,'PROVEEDORES ANUALES'!A28,EGRESOS!L:L) -> 0 | J28: 0 | K28: =SUMIF(EGRESOS!C:C,'PROVEEDORES ANUALES'!A28,EGRESOS!T:T) -> 0 | L28: 0
A29: 020 | B29: =VLOOKUP(A29,CATALOGO!$E$3:$F$13000,2) -> 0 | D29: =IF(A29>0,VLOOKUP(A29,CATALOGO!$E$3:$G$13000,3),"") -> 0 | G29: =IF(A29>0,COUNTIF(EGRESOS!C:C,A29),0) -> 0 | H29: =SUMIF(EGRESOS!C:C,'PROVEEDORES ANUALES'!A29,EGRESOS!K:K) -> 0 | I29: =SUMIF(EGRESOS!C:C,'PROVEEDORES ANUALES'!A29,EGRESOS!L:L) -> 0 | J29: 0 | K29: =SUMIF(EGRESOS!C:C,'PROVEEDORES ANUALES'!A29,EGRESOS!T:T) -> 0 | L29: 0
A30: 021 | B30: =VLOOKUP(A30,CATALOGO!$E$3:$F$13000,2) -> 0 | D30: =IF(A30>0,VLOOKUP(A30,CATALOGO!$E$3:$G$13000,3),"") -> 0 | G30: =IF(A30>0,COUNTIF(EGRESOS!C:C,A30),0) -> 0 | H30: =SUMIF(EGRESOS!C:C,'PROVEEDORES ANUALES'!A30,EGRESOS!K:K) -> 0 | I30: =SUMIF(EGRESOS!C:C,'PROVEEDORES ANUALES'!A30,EGRESOS!L:L) -> 0 | J30: 0 | K30: =SUMIF(EGRESOS!C:C,'PROVEEDORES ANUALES'!A30,EGRESOS!T:T) -> 0 | L30: 0
A31: 022 | B31: =VLOOKUP(A31,CATALOGO!$E$3:$F$13000,2) -> 0 | D31: =IF(A31>0,VLOOKUP(A31,CATALOGO!$E$3:$G$13000,3),"") -> 0 | G31: =IF(A31>0,COUNTIF(EGRESOS!C:C,A31),0) -> 0 | H31: =SUMIF(EGRESOS!C:C,'PROVEEDORES ANUALES'!A31,EGRESOS!K:K) -> 0 | I31: =SUMIF(EGRESOS!C:C,'PROVEEDORES ANUALES'!A31,EGRESOS!L:L) -> 0 | J31: 0 | K31: =SUMIF(EGRESOS!C:C,'PROVEEDORES ANUALES'!A31,EGRESOS!T:T) -> 0 | L31: 0
A32: 023 | B32: =VLOOKUP(A32,CATALOGO!$E$3:$F$13000,2) -> 0 | D32: =IF(A32>0,VLOOKUP(A32,CATALOGO!$E$3:$G$13000,3),"") -> 0 | G32: =IF(A32>0,COUNTIF(EGRESOS!C:C,A32),0) -> 0 | H32: =SUMIF(EGRESOS!C:C,'PROVEEDORES ANUALES'!A32,EGRESOS!K:K) -> 0 | I32: =SUMIF(EGRESOS!C:C,'PROVEEDORES ANUALES'!A32,EGRESOS!L:L) -> 0 | J32: 0 | K32: =SUMIF(EGRESOS!C:C,'PROVEEDORES ANUALES'!A32,EGRESOS!T:T) -> 0 | L32: 0
A33: 024 | B33: =VLOOKUP(A33,CATALOGO!$E$3:$F$13000,2) -> 0 | D33: =IF(A33>0,VLOOKUP(A33,CATALOGO!$E$3:$G$13000,3),"") -> 0 | G33: =IF(A33>0,COUNTIF(EGRESOS!C:C,A33),0) -> 0 | H33: =SUMIF(EGRESOS!C:C,'PROVEEDORES ANUALES'!A33,EGRESOS!K:K) -> 0 | I33: =SUMIF(EGRESOS!C:C,'PROVEEDORES ANUALES'!A33,EGRESOS!L:L) -> 0 | J33: 0 | K33: =SUMIF(EGRESOS!C:C,'PROVEEDORES ANUALES'!A33,EGRESOS!T:T) -> 0 | L33: 0
A34: 025 | B34: =VLOOKUP(A34,CATALOGO!$E$3:$F$13000,2) -> 0 | D34: =IF(A34>0,VLOOKUP(A34,CATALOGO!$E$3:$G$13000,3),"") -> 0 | G34: =IF(A34>0,COUNTIF(EGRESOS!C:C,A34),0) -> 0 | H34: =SUMIF(EGRESOS!C:C,'PROVEEDORES ANUALES'!A34,EGRESOS!K:K) -> 0 | I34: =SUMIF(EGRESOS!C:C,'PROVEEDORES ANUALES'!A34,EGRESOS!L:L) -> 0 | J34: 0 | K34: =SUMIF(EGRESOS!C:C,'PROVEEDORES ANUALES'!A34,EGRESOS!T:T) -> 0 | L34: 0
A35: 026 | B35: =VLOOKUP(A35,CATALOGO!$E$3:$F$13000,2) -> 0 | D35: =IF(A35>0,VLOOKUP(A35,CATALOGO!$E$3:$G$13000,3),"") -> 0 | G35: =IF(A35>0,COUNTIF(EGRESOS!C:C,A35),0) -> 0 | H35: =SUMIF(EGRESOS!C:C,'PROVEEDORES ANUALES'!A35,EGRESOS!K:K) -> 0 | I35: =SUMIF(EGRESOS!C:C,'PROVEEDORES ANUALES'!A35,EGRESOS!L:L) -> 0 | J35: 0 | K35: =SUMIF(EGRESOS!C:C,'PROVEEDORES ANUALES'!A35,EGRESOS!T:T) -> 0 | L35: 0
A36: 027 | B36: =VLOOKUP(A36,CATALOGO!$E$3:$F$13000,2) -> 0 | D36: =IF(A36>0,VLOOKUP(A36,CATALOGO!$E$3:$G$13000,3),"") -> 0 | G36: =IF(A36>0,COUNTIF(EGRESOS!C:C,A36),0) -> 0 | H36: =SUMIF(EGRESOS!C:C,'PROVEEDORES ANUALES'!A36,EGRESOS!K:K) -> 0 | I36: =SUMIF(EGRESOS!C:C,'PROVEEDORES ANUALES'!A36,EGRESOS!L:L) -> 0 | J36: 0 | K36: =SUMIF(EGRESOS!C:C,'PROVEEDORES ANUALES'!A36,EGRESOS!T:T) -> 0 | L36: 0
A37: 028 | B37: =VLOOKUP(A37,CATALOGO!$E$3:$F$13000,2) -> 0 | D37: =IF(A37>0,VLOOKUP(A37,CATALOGO!$E$3:$G$13000,3),"") -> 0 | G37: =IF(A37>0,COUNTIF(EGRESOS!C:C,A37),0) -> 0 | H37: =SUMIF(EGRESOS!C:C,'PROVEEDORES ANUALES'!A37,EGRESOS!K:K) -> 0 | I37: =SUMIF(EGRESOS!C:C,'PROVEEDORES ANUALES'!A37,EGRESOS!L:L) -> 0 | J37: 0 | K37: =SUMIF(EGRESOS!C:C,'PROVEEDORES ANUALES'!A37,EGRESOS!T:T) -> 0 | L37: 0
A38: 029 | B38: =VLOOKUP(A38,CATALOGO!$E$3:$F$13000,2) -> 0 | D38: =IF(A38>0,VLOOKUP(A38,CATALOGO!$E$3:$G$13000,3),"") -> 0 | G38: =IF(A38>0,COUNTIF(EGRESOS!C:C,A38),0) -> 0 | H38: =SUMIF(EGRESOS!C:C,'PROVEEDORES ANUALES'!A38,EGRESOS!K:K) -> 0 | I38: =SUMIF(EGRESOS!C:C,'PROVEEDORES ANUALES'!A38,EGRESOS!L:L) -> 0 | J38: 0 | K38: =SUMIF(EGRESOS!C:C,'PROVEEDORES ANUALES'!A38,EGRESOS!T:T) -> 0 | L38: 0
A39: 030 | B39: =VLOOKUP(A39,CATALOGO!$E$3:$F$13000,2) -> 0 | D39: =IF(A39>0,VLOOKUP(A39,CATALOGO!$E$3:$G$13000,3),"") -> 0 | G39: =IF(A39>0,COUNTIF(EGRESOS!C:C,A39),0) -> 0 | H39: =SUMIF(EGRESOS!C:C,'PROVEEDORES ANUALES'!A39,EGRESOS!K:K) -> 0 | I39: =SUMIF(EGRESOS!C:C,'PROVEEDORES ANUALES'!A39,EGRESOS!L:L) -> 0 | J39: 0 | K39: =SUMIF(EGRESOS!C:C,'PROVEEDORES ANUALES'!A39,EGRESOS!T:T) -> 0 | L39: 0
A40: 031 | B40: =VLOOKUP(A40,CATALOGO!$E$3:$F$13000,2) -> 0 | D40: =IF(A40>0,VLOOKUP(A40,CATALOGO!$E$3:$G$13000,3),"") -> 0 | G40: =IF(A40>0,COUNTIF(EGRESOS!C:C,A40),0) -> 0 | H40: =SUMIF(EGRESOS!C:C,'PROVEEDORES ANUALES'!A40,EGRESOS!K:K) -> 0 | I40: =SUMIF(EGRESOS!C:C,'PROVEEDORES ANUALES'!A40,EGRESOS!L:L) -> 0 | J40: 0 | K40: =SUMIF(EGRESOS!C:C,'PROVEEDORES ANUALES'!A40,EGRESOS!T:T) -> 0 | L40: 0
A41: 032 | B41: =VLOOKUP(A41,CATALOGO!$E$3:$F$13000,2) -> 0 | D41: =IF(A41>0,VLOOKUP(A41,CATALOGO!$E$3:$G$13000,3),"") -> 0 | G41: =IF(A41>0,COUNTIF(EGRESOS!C:C,A41),0) -> 0 | H41: =SUMIF(EGRESOS!C:C,'PROVEEDORES ANUALES'!A41,EGRESOS!K:K) -> 0 | I41: =SUMIF(EGRESOS!C:C,'PROVEEDORES ANUALES'!A41,EGRESOS!L:L) -> 0 | J41: 0 | K41: =SUMIF(EGRESOS!C:C,'PROVEEDORES ANUALES'!A41,EGRESOS!T:T) -> 0 | L41: 0
A42: 033 | B42: =VLOOKUP(A42,CATALOGO!$E$3:$F$13000,2) -> 0 | D42: =IF(A42>0,VLOOKUP(A42,CATALOGO!$E$3:$G$13000,3),"") -> 0 | G42: =IF(A42>0,COUNTIF(EGRESOS!C:C,A42),0) -> 0 | H42: =SUMIF(EGRESOS!C:C,'PROVEEDORES ANUALES'!A42,EGRESOS!K:K) -> 0 | I42: =SUMIF(EGRESOS!C:C,'PROVEEDORES ANUALES'!A42,EGRESOS!L:L) -> 0 | J42: 0 | K42: =SUMIF(EGRESOS!C:C,'PROVEEDORES ANUALES'!A42,EGRESOS!T:T) -> 0 | L42: 0
B43: =VLOOKUP(A43,CATALOGO!$E$3:$F$13000,2) ->  | D43: =IF(A43>0,VLOOKUP(A43,CATALOGO!$E$3:$G$13000,3),"") ->  | G43: =IF(A43>0,COUNTIF(EGRESOS!C:C,A43),0) -> 0 | H43: =SUMIF(EGRESOS!C:C,'PROVEEDORES ANUALES'!A43,EGRESOS!K:K) -> 0 | I43: =SUMIF(EGRESOS!C:C,'PROVEEDORES ANUALES'!A43,EGRESOS!L:L) -> 0 | J43: 0 | K43: =SUMIF(EGRESOS!C:C,'PROVEEDORES ANUALES'!A43,EGRESOS!T:T) -> 0 | L43: 0
B44: =VLOOKUP(A44,CATALOGO!$E$3:$F$13000,2) ->  | D44: =IF(A44>0,VLOOKUP(A44,CATALOGO!$E$3:$G$13000,3),"") ->  | G44: =IF(A44>0,COUNTIF(EGRESOS!C:C,A44),0) -> 0 | H44: =SUMIF(EGRESOS!C:C,'PROVEEDORES ANUALES'!A44,EGRESOS!K:K) -> 0 | I44: =SUMIF(EGRESOS!C:C,'PROVEEDORES ANUALES'!A44,EGRESOS!L:L) -> 0 | J44: 0 | K44: =SUMIF(EGRESOS!C:C,'PROVEEDORES ANUALES'!A44,EGRESOS!T:T) -> 0 | L44: 0
B45: =VLOOKUP(A45,CATALOGO!$E$3:$F$13000,2) ->  | D45: =IF(A45>0,VLOOKUP(A45,CATALOGO!$E$3:$G$13000,3),"") ->  | G45: =IF(A45>0,COUNTIF(EGRESOS!C:C,A45),0) -> 0 | H45: =SUMIF(EGRESOS!C:C,'PROVEEDORES ANUALES'!A45,EGRESOS!K:K) -> 0 | I45: =SUMIF(EGRESOS!C:C,'PROVEEDORES ANUALES'!A45,EGRESOS!L:L) -> 0 | J45: 0 | K45: =SUMIF(EGRESOS!C:C,'PROVEEDORES ANUALES'!A45,EGRESOS!T:T) -> 0 | L45: 0
B46: =VLOOKUP(A46,CATALOGO!$E$3:$F$13000,2) ->  | D46: =IF(A46>0,VLOOKUP(A46,CATALOGO!$E$3:$G$13000,3),"") ->  | G46: =IF(A46>0,COUNTIF(EGRESOS!C:C,A46),0) -> 0 | H46: =SUMIF(EGRESOS!C:C,'PROVEEDORES ANUALES'!A46,EGRESOS!K:K) -> 0 | I46: =SUMIF(EGRESOS!C:C,'PROVEEDORES ANUALES'!A46,EGRESOS!L:L) -> 0 | J46: 0 | K46: =SUMIF(EGRESOS!C:C,'PROVEEDORES ANUALES'!A46,EGRESOS!T:T) -> 0 | L46: 0
B47: =VLOOKUP(A47,CATALOGO!$E$3:$F$13000,2) ->  | D47: =IF(A47>0,VLOOKUP(A47,CATALOGO!$E$3:$G$13000,3),"") ->  | G47: =IF(A47>0,COUNTIF(EGRESOS!C:C,A47),0) -> 0 | H47: =SUMIF(EGRESOS!C:C,'PROVEEDORES ANUALES'!A47,EGRESOS!K:K) -> 0 | I47: =SUMIF(EGRESOS!C:C,'PROVEEDORES ANUALES'!A47,EGRESOS!L:L) -> 0 | J47: 0 | K47: =SUMIF(EGRESOS!C:C,'PROVEEDORES ANUALES'!A47,EGRESOS!T:T) -> 0 | L47: 0
B48: =VLOOKUP(A48,CATALOGO!$E$3:$F$13000,2) ->  | D48: =IF(A48>0,VLOOKUP(A48,CATALOGO!$E$3:$G$13000,3),"") ->  | G48: =IF(A48>0,COUNTIF(EGRESOS!C:C,A48),0) -> 0 | H48: =SUMIF(EGRESOS!C:C,'PROVEEDORES ANUALES'!A48,EGRESOS!K:K) -> 0 | I48: =SUMIF(EGRESOS!C:C,'PROVEEDORES ANUALES'!A48,EGRESOS!L:L) -> 0 | J48: 0 | K48: =SUMIF(EGRESOS!C:C,'PROVEEDORES ANUALES'!A48,EGRESOS!T:T) -> 0 | L48: 0
B49: =VLOOKUP(A49,CATALOGO!$E$3:$F$13000,2) ->  | D49: =IF(A49>0,VLOOKUP(A49,CATALOGO!$E$3:$G$13000,3),"") ->  | G49: =IF(A49>0,COUNTIF(EGRESOS!C:C,A49),0) -> 0 | H49: =SUMIF(EGRESOS!C:C,'PROVEEDORES ANUALES'!A49,EGRESOS!K:K) -> 0 | I49: =SUMIF(EGRESOS!C:C,'PROVEEDORES ANUALES'!A49,EGRESOS!L:L) -> 0 | J49: 0 | K49: =SUMIF(EGRESOS!C:C,'PROVEEDORES ANUALES'!A49,EGRESOS!T:T) -> 0 | L49: 0
B50: =VLOOKUP(A50,CATALOGO!$E$3:$F$13000,2) ->  | D50: =IF(A50>0,VLOOKUP(A50,CATALOGO!$E$3:$G$13000,3),"") ->  | G50: =IF(A50>0,COUNTIF(EGRESOS!C:C,A50),0) -> 0 | H50: =SUMIF(EGRESOS!C:C,'PROVEEDORES ANUALES'!A50,EGRESOS!K:K) -> 0 | I50: =SUMIF(EGRESOS!C:C,'PROVEEDORES ANUALES'!A50,EGRESOS!L:L) -> 0 | J50: 0 | K50: =SUMIF(EGRESOS!C:C,'PROVEEDORES ANUALES'!A50,EGRESOS!T:T) -> 0 | L50: 0
B51: =VLOOKUP(A51,CATALOGO!$E$3:$F$13000,2) ->  | D51: =IF(A51>0,VLOOKUP(A51,CATALOGO!$E$3:$G$13000,3),"") ->  | G51: =IF(A51>0,COUNTIF(EGRESOS!C:C,A51),0) -> 0 | H51: =SUMIF(EGRESOS!C:C,'PROVEEDORES ANUALES'!A51,EGRESOS!K:K) -> 0 | I51: =SUMIF(EGRESOS!C:C,'PROVEEDORES ANUALES'!A51,EGRESOS!L:L) -> 0 | J51: 0 | K51: =SUMIF(EGRESOS!C:C,'PROVEEDORES ANUALES'!A51,EGRESOS!T:T) -> 0 | L51: 0
B52: =VLOOKUP(A52,CATALOGO!$E$3:$F$13000,2) ->  | D52: =IF(A52>0,VLOOKUP(A52,CATALOGO!$E$3:$G$13000,3),"") ->  | G52: =IF(A52>0,COUNTIF(EGRESOS!C:C,A52),0) -> 0 | H52: =SUMIF(EGRESOS!C:C,'PROVEEDORES ANUALES'!A52,EGRESOS!K:K) -> 0 | I52: =SUMIF(EGRESOS!C:C,'PROVEEDORES ANUALES'!A52,EGRESOS!L:L) -> 0 | J52: 0 | K52: =SUMIF(EGRESOS!C:C,'PROVEEDORES ANUALES'!A52,EGRESOS!T:T) -> 0 | L52: 0
B53: =VLOOKUP(A53,CATALOGO!$E$3:$F$13000,2) ->  | D53: =IF(A53>0,VLOOKUP(A53,CATALOGO!$E$3:$G$13000,3),"") ->  | G53: =IF(A53>0,COUNTIF(EGRESOS!C:C,A53),0) -> 0 | H53: =SUMIF(EGRESOS!C:C,'PROVEEDORES ANUALES'!A53,EGRESOS!K:K) -> 0 | I53: =SUMIF(EGRESOS!C:C,'PROVEEDORES ANUALES'!A53,EGRESOS!L:L) -> 0 | J53: 0 | K53: =SUMIF(EGRESOS!C:C,'PROVEEDORES ANUALES'!A53,EGRESOS!T:T) -> 0 | L53: 0
B54: =VLOOKUP(A54,CATALOGO!$E$3:$F$13000,2) ->  | D54: =IF(A54>0,VLOOKUP(A54,CATALOGO!$E$3:$G$13000,3),"") ->  | G54: =IF(A54>0,COUNTIF(EGRESOS!C:C,A54),0) -> 0 | H54: =SUMIF(EGRESOS!C:C,'PROVEEDORES ANUALES'!A54,EGRESOS!K:K) -> 0 | I54: =SUMIF(EGRESOS!C:C,'PROVEEDORES ANUALES'!A54,EGRESOS!L:L) -> 0 | J54: 0 | K54: =SUMIF(EGRESOS!C:C,'PROVEEDORES ANUALES'!A54,EGRESOS!T:T) -> 0 | L54: 0
B55: =VLOOKUP(A55,CATALOGO!$E$3:$F$13000,2) ->  | D55: =IF(A55>0,VLOOKUP(A55,CATALOGO!$E$3:$G$13000,3),"") ->  | G55: =IF(A55>0,COUNTIF(EGRESOS!C:C,A55),0) -> 0 | H55: =SUMIF(EGRESOS!C:C,'PROVEEDORES ANUALES'!A55,EGRESOS!K:K) -> 0 | I55: =SUMIF(EGRESOS!C:C,'PROVEEDORES ANUALES'!A55,EGRESOS!L:L) -> 0 | J55: 0 | K55: =SUMIF(EGRESOS!C:C,'PROVEEDORES ANUALES'!A55,EGRESOS!T:T) -> 0 | L55: 0
B56: =VLOOKUP(A56,CATALOGO!$E$3:$F$13000,2) ->  | D56: =IF(A56>0,VLOOKUP(A56,CATALOGO!$E$3:$G$13000,3),"") ->  | G56: =IF(A56>0,COUNTIF(EGRESOS!C:C,A56),0) -> 0 | H56: =SUMIF(EGRESOS!C:C,'PROVEEDORES ANUALES'!A56,EGRESOS!K:K) -> 0 | I56: =SUMIF(EGRESOS!C:C,'PROVEEDORES ANUALES'!A56,EGRESOS!L:L) -> 0 | J56: 0 | K56: =SUMIF(EGRESOS!C:C,'PROVEEDORES ANUALES'!A56,EGRESOS!T:T) -> 0 | L56: 0
G57: =IF(A57>0,COUNTIF(EGRESOS!C:C,A57),0) -> 0 | H57: =SUMIF(EGRESOS!C:C,'PROVEEDORES ANUALES'!A57,EGRESOS!K:K) -> 0 | I57: =SUMIF(EGRESOS!C:C,'PROVEEDORES ANUALES'!A57,EGRESOS!L:L) -> 0 | J57: 0 | K57: =SUMIF(EGRESOS!C:C,'PROVEEDORES ANUALES'!A57,EGRESOS!T:T) -> 0 | L57: =IF(J57>0,+(J57+K57),0) -> 0
G58: =IF(A58>0,COUNTIF(EGRESOS!C:C,A58),0) -> 0 | H58: =SUMIF(EGRESOS!C:C,'PROVEEDORES ANUALES'!A58,EGRESOS!K:K) -> 0 | I58: =SUMIF(EGRESOS!C:C,'PROVEEDORES ANUALES'!A58,EGRESOS!L:L) -> 0 | J58: 0 | K58: =SUMIF(EGRESOS!C:C,'PROVEEDORES ANUALES'!A58,EGRESOS!T:T) -> 0 | L58: =IF(J58>0,+(J58+K58),0) -> 0
G59: =IF(A59>0,COUNTIF(EGRESOS!C:C,A59),0) -> 0
E61: TOTAL GENERAL: | J61: =SUM(J10:J58) -> 800000 | K61: =SUM(K10:K58) -> 128000 | L61: =SUM(L10:L58) -> 928000

Sheet Calculo automatico
B1: PRESENTACION
B4: =+LLENAR!F2 -> carlos baez medina
F5: =+LLENAR!F3 -> EJERCICIO FISCAL DEL 2012
B6: Calculo de ISR De La Federacion
C8: TRUE | D8: TRUE | E8: TRUE | F8: TRUE | G8: TRUE | H8: TRUE | I8: TRUE | J8: TRUE | K8: TRUE | L8: TRUE | M8: TRUE | N8: TRUE
C10: ENERO | D10: FEBRERO | E10: MARZO | F10: ABRIL | G10: MAYO | H10: JUNIO | I10: JULIO | J10: AGOSTO | K10: SEPTIEMBRE | L10: OCTUBRE | M10: NOVIEMBRE | N10: DICIEMBRE | O10: TOTAL GENERAL
B11: Calculo de Impuesto
A12: (-) | B12: INGRESOS ACUMULABLES | C12: =IF(C8,+LLENAR!F7+LLENAR!D26,0) -> 950000 | D12: =IF(D8,+LLENAR!$F$8+LLENAR!$D$27+C12,0) -> 1031000 | E12: =IF(E8,+LLENAR!$F$9+LLENAR!$D$28+D12,0) -> 1067300 | F12: =IF(F8,+LLENAR!$F$10+LLENAR!$D$29+E12,0) -> 1072200 | G12: =IF(G8,+LLENAR!$F$11+LLENAR!$D$30+F12,0) -> 1861200 | H12: =IF(H8,+LLENAR!$F$12+LLENAR!$D$31+G12,0) -> 2650220 | I12: =IF(I8,+LLENAR!$F$13+LLENAR!$D$32+H12,0) -> 3438940 | J12: =IF(J8,+LLENAR!$F$14+LLENAR!$D$33+I12,0) -> 3438940 | K12: =IF(K8,+LLENAR!$F$15+LLENAR!$D$34+J12,0) -> 3438940 | L12: =IF(L8,+LLENAR!$F$16+LLENAR!$D$35+K12,0) -> 3438940 | M12: =IF(M8,+LLENAR!$F$17+LLENAR!$D$36+L12,0) -> 3438940 | N12: =IF(N8,+LLENAR!$F$18+LLENAR!$D$37+M12,0) -> 3438940
B13: INGRESOS DEL PERIODO | C13: =IF(C8,+LLENAR!F7+LLENAR!D26,0) -> 950000 | D13: =IF(D8,+LLENAR!$F$8+LLENAR!$D$27,0) -> 81000 | E13: =IF(E8,+LLENAR!$F$9+LLENAR!$D$28,0) -> 36300 | F13: =IF(F8,+LLENAR!$F$10+LLENAR!$D$29,0) -> 4900 | G13: =IF(G8,+LLENAR!$F$11+LLENAR!$D$30,0) -> 789000 | H13: =IF(H8,+LLENAR!$F$12+LLENAR!$D$31,0) -> 789020 | I13: =IF(I8,+LLENAR!$F$13+LLENAR!$D$32,0) -> 788720 | J13: =IF(J8,+LLENAR!$F$14+LLENAR!$D$33,0) -> 0 | K13: =IF(K8,+LLENAR!$F$15+LLENAR!$D$34,0) -> 0 | L13: =IF(L8,+LLENAR!$F$16+LLENAR!$D$35,0) -> 0 | M13: =IF(M8,+LLENAR!$F$17+LLENAR!$D$36,0) -> 0 | N13: =IF(N8,+LLENAR!$F$18+LLENAR!$D$37,0) -> 0
B14: DEDUCCIONES ACUMULABLES | C14: =IF($C$8,+LLENAR!$S$26,0) -> 800000 | D14: =IF($D$8,+LLENAR!$S$27+C14,0) -> 1650000 | E14: =IF(E8,+LLENAR!$S$28+D14,0) -> 2480000 | F14: =IF($F$8,+LLENAR!$S$29+E14,0) -> 2480000 | G14: =IF(G8,+LLENAR!$S$30+F14,0) -> 2480000 | H14: =IF($H$8,+LLENAR!$S$31+G14,0) -> 2480000 | I14: =IF($H$8,+LLENAR!$S$32+H14,0) -> 2480000 | J14: =IF(J8,+LLENAR!$S$33+$I$14,0) -> 2480000 | K14: =IF($K$8,+LLENAR!$S$34+J14,0) -> 2480000 | L14: =IF($L$8,+LLENAR!$S$35+K14,0) -> 2480000 | M14: =IF($M$8,+LLENAR!$S$36+L14,0) -> 2480000 | N14: =IF($N$8,+LLENAR!$S$37+M14,0) -> 2480000
B15: DECUCCIONES DEL PERIODO | C15: =IF($C$8,+LLENAR!$S$26,0) -> 800000 | D15: =IF($D$8,+LLENAR!$S$27,0) -> 850000 | E15: =IF(E8,+LLENAR!$S$28,0) -> 830000 | F15: =IF($F$8,+LLENAR!$S$29,0) -> 0 | G15: =IF(G8,+LLENAR!$S$30,0) -> 0 | H15: =IF($H$8,+LLENAR!$S$31,0) -> 0 | I15: =IF($H$8,+LLENAR!$S$32,0) -> 0 | J15: =IF(J8,+LLENAR!$S$33,0) -> 0 | K15: =IF($K$8,+LLENAR!$S$34,0) -> 0 | L15: =IF($L$8,+LLENAR!$S$35,0) -> 0 | M15: =IF($M$8,+LLENAR!$S$36,0) -> 0 | N15: =IF($N$8,+LLENAR!$S$37,0) -> 0
A16: (=) | B16: Base Gravable | C16: =IF(C12>0,(C12-C14),0) -> 150000 | D16: =IF(D12>0,(D12-D14),0) -> -619000 | E16: -1412700 | F16: -1407800 | G16: -618800 | H16: 170220 | I16: 958940 | J16: 958940 | K16: 958940 | L16: 958940 | M16: 958940 | N16: 958940
A17: (-) | B17: Limite Inferiro | C17: =IF(C16>0,VLOOKUP(C16,TARIFAS!$A$7:A16,1),0) -> 32736.84 | D17: =IF(D16>0,VLOOKUP(D16,TARIFAS!$E$7:H16,1),0) -> 0 | E17: =IF(E16>0,VLOOKUP(E16,TARIFAS!$I$7:CL16,1),0) -> 0 | F17: =IF(F16>0,VLOOKUP(F16,TARIFAS!$M$7:P16,1),0) -> 0 | G17: =IF(G16>0,VLOOKUP(G16,TARIFAS!$Q$7:T16,1),0) -> 0 | H17: =IF(H16>0,VLOOKUP(H16,TARIFAS!$U$7:X16,1),0) -> 124621.75 | I17: =IF(I16>0,VLOOKUP(I16,TARIFAS!$A$27:D34,1),0) -> 229157.82 | J17: =IF(J16>0,VLOOKUP(J16,TARIFAS!$E$27:H35,1),0) -> 261894.65 | K17: =IF(K16>0,VLOOKUP(K16,TARIFAS!$I$27:L34,1),0) -> 294631.48 | L17: =IF(L16>0,VLOOKUP(L16,TARIFAS!$M$27:P34,1),0) -> 327368.31 | M17: =IF(M16>0,VLOOKUP(M16,TARIFAS!Q27:T34,1),0) -> 360105.14 | N17: =IF(N16>0,VLOOKUP(N16,TARIFAS!U27:X34,1),0) -> 392841.97
A18: (=) | B18: Exedente sobre limite inferior | C18: =C16-C17 -> 117263.16 | D18: =D16-D17 -> -619000 | E18: -1412700 | F18: -1407800 | G18: -618800 | H18: 45598.25 | I18: =I16-I17 -> 729782.18 | J18: 697045.35 | K18: 664308.52 | L18: 631571.69 | M18: 598834.86 | N18: 566098.03
A19: (x) | B19: % sobre excedente de limite inferior | C19: =IF(C16>0,VLOOKUP(C16,TARIFAS!A7:D16,4))/100 -> 0.3 | D19: =IF(D16>0,VLOOKUP(D16,TARIFAS!$E$2:H15,4))/100 -> 0 | E19: =IF(E16>0,VLOOKUP(E16,TARIFAS!$I$2:L15,4))/100 -> 0 | F19: =IF(F16>0,VLOOKUP(F16,TARIFAS!$M$2:P15,4))/100 -> 0 | G19: =IF(G16>0,VLOOKUP(G16,TARIFAS!$Q$2:T15,4))/100 -> 0 | H19: =IF(H16>0,VLOOKUP(H16,TARIFAS!$U$2:X15,4))/100 -> 0.2352 | I19: =IF(I16>0,VLOOKUP(I16,TARIFAS!$A$27:D34,4))/100 -> 0.3 | J19: =IF(J16>0,VLOOKUP(J16,TARIFAS!$E$27:H36,4))/100 -> 0.3 | K19: =IF(K16>0,VLOOKUP(K16,TARIFAS!I27:L34,4))/100 -> 0.3 | L19: =IF(L16>0,VLOOKUP(L16,TARIFAS!M27:P34,4))/100 -> 0.3 | M19: =IF(M16>0,VLOOKUP(M16,TARIFAS!Q27:T34,4))/100 -> 0.3 | N19: =IF(N16>0,VLOOKUP(N16,TARIFAS!U27:X34,4))/100 -> 0.3
A20: (=) | B20: Impuesto marginal | C20: =C18*C19 -> 35178.948 | D20: =D18*D19 -> 0 | E20: 0 | F20: 0 | G20: 0 | H20: 10724.7084 | I20: 218934.654 | J20: 209113.605 | K20: 199292.556 | L20: 189471.507 | M20: 179650.458 | N20: 169829.409
A21: (+) | B21: Cuota fija | C21: =IF(C18>0,VLOOKUP(C16,TARIFAS!$A$7:D16,3),0) -> 5805.2 | D21: =IF(D18>0,VLOOKUP(D16,TARIFAS!$E$2:H16,3),0) -> 0 | E21: =IF(E18>0,VLOOKUP(E16,TARIFAS!$I$2:L16,3),0) -> 0 | F21: =IF(F16>0,VLOOKUP(F16,TARIFAS!$M$8:P16,3),0) -> 0 | G21: =IF(G16>0,VLOOKUP(G16,TARIFAS!$Q$2:T16,3),0) -> 0 | H21: =IF(H16>0,VLOOKUP(H16,TARIFAS!$U$2:X16,3),0) -> 19964.52 | I21: =IF(I18>0,VLOOKUP(I16,TARIFAS!$A$27:D34,3),0) -> 40636.4 | J21: =IF(J18>0,VLOOKUP(J16,TARIFAS!$E$27:H35,3),0) -> 49135.6 | K21: =IF(K16>0,VLOOKUP(K16,TARIFAS!I27:L34,3),0) -> 52246.8 | L21: =IF(L18>0,VLOOKUP(L16,TARIFAS!M27:P34,3),0) -> 58052 | M21: =IF(M16>0,VLOOKUP(M16,TARIFAS!Q27:T34,3),0) -> 63857.2 | N21: =IF(N18>0,VLOOKUP(N16,TARIFAS!U27:X34,3),0) -> 69662.4
A22: (=) | B22: Impuesto Art. 113 LISR | C22: =C20+C21 -> 40984.148 | D22: =D20+D21 -> 0 | E22: 0 | F22: 0 | G22: 0 | H22: 30689.2284 | I22: 259571.054 | J22: 258249.205 | K22: 251539.356 | L22: 247523.507 | M22: 243507.658 | N22: 239491.809
B25: ISR DETERMINADO | C25: =C22 -> 40984.148 | D25: =D22 -> 0 | E25: 0 | F25: 0 | G25: 0 | H25: 30689.2284 | I25: 259571.054 | J25: 258249.205 | K25: =K22 -> 251539.356 | L25: 247523.507 | M25: 243507.658 | N25: 239491.809
A26: (-) | B26: ISR Pagado al estado Estasdo | C26: =IF(C25>0,C46,0) -> 7500 | D26: =IF(D25>0,(D46),0) -> 0 | E26: =IF(E25>0,(E46),0) -> 0 | F26: =IF(F25>0,(F46),0) -> 0 | G26: 0 | H26: 0 | I26: 0 | J26: 0 | K26: =IF(K25>0,(K46),0) -> 47947 | L26: 0 | M26: 0 | N26: 0
A27: (-) | B27: Pagos Provisionales | F27: 0 | G27: 0 | H27: 0 | I27: 0 | J27: 0 | K27: 0 | L27: 0 | M27: 0 | N27: 0
A28: (-) | B28: Retension de ISR | C28: =+LLENAR!J7 -> 0 | D28: =+LLENAR!J8 -> 0 | E28: =+LLENAR!J9 -> 0 | F28: =+LLENAR!J10 -> 0 | G28: =+LLENAR!J11 -> 0 | H28: =+LLENAR!J12 -> 0 | I28: =+LLENAR!J13 -> 0 | J28: =+LLENAR!J14 -> 0 | K28: =+LLENAR!J15 -> 0 | L28: =+LLENAR!J16 -> 0 | M28: =+LLENAR!J17 -> 0 | N28: =+LLENAR!J18 -> 0
A29: (-) | B29: Retension del IDE
A30: (=) | B30: IMPUESTO A CARGO O A FAVOR | C30: =+C25-C27-C28-C29-C26 -> 33484.148 | D30: =+D25-D27-D28-D29-D26 -> 0 | E30: 0 | F30: 0 | G30: 0 | H30: 30689.2284 | I30: 259571.054 | J30: 258249.205 | K30: 203592.356 | L30: 247523.507 | M30: 243507.658 | N30: 239491.809
B33: ISR A PAGAR SAT | C33: =+IF(C30>C50, "SAT","ESTADISTICA, INTERNET") -> SAT | D33: =+IF(D30>D50, "SAT","ESTADISTICA, INTERNET") -> ESTADISTICA, INTERNET | E33: ESTADISTICA, INTERNET | F33: ESTADISTICA, INTERNET | G33: ESTADISTICA, INTERNET | H33: SAT | I33: SAT | J33: SAT | K33: SAT | L33: SAT | M33: SAT | N33: SAT
B36: Calculo de ISR Del Estado
C38: 1901-01-01 | D38: 1901-02-01 | E38: 1901-03-01 | F38: 1901-04-01 | G38: 1901-05-01 | H38: 1901-06-01 | I38: 1901-07-01 | J38: 1901-08-01 | K38: 1901-09-01 | L38: 1901-10-01 | M38: 1901-11-01 | N38: 1901-12-01
B39: Calculo de Impuesto
B40: INGRESOS | C40: =+C12 -> 950000 | D40: =+D12 -> 1031000 | E40: 1067300 | F40: 1072200 | G40: 1861200 | H40: 2650220 | I40: 3438940 | J40: 3438940 | K40: 3438940 | L40: 3438940 | M40: 3438940 | N40: 3438940
A41: (-) | B41: DEDUCCIONES | C41: =+C14 -> 800000 | D41: =+D14 -> 1650000 | E41: 2480000 | F41: 2480000 | G41: 2480000 | H41: 2480000 | I41: 2480000 | J41: 2480000 | K41: 2480000 | L41: 2480000 | M41: 2480000 | N41: 2480000
A42: (=) | B42: Base Gravable | C42: =IF(C40>=0,(C40-C41),0) -> 150000 | D42: =IF(D40>0,(D40-D41),0) -> -619000 | E42: -1412700 | F42: -1407800 | G42: -618800 | H42: 170220 | I42: 958940 | J42: 958940 | K42: 958940 | L42: 958940 | M42: 958940 | N42: 958940
B44: Base Gravable | C44: =+C42 -> 150000 | D44: =+D42 -> -619000 | E44: -1412700 | F44: -1407800 | G44: -618800 | H44: 170220 | I44: 958940 | J44: 958940 | K44: 958940 | L44: 958940 | M44: 958940 | N44: 958940
A45: (x) | B45: POR LA TASA | C45: 0.05 | D45: 0.05 | E45: 0.05 | F45: 0.05 | G45: 0.05 | H45: 0.05 | I45: 0.05 | J45: 0.05 | K45: 0.05 | L45: 0.05 | M45: 0.05 | N45: 0.05
A46: (=) | B46: ISR ENTIDAD FEDERATIVA | C46: =IF(C44>0,(C44*C45),0) -> 7500 | D46: =IF(D44>0,(D44*D45),0) -> 0 | E46: =IF(E44>0,(E44*E45),0) -> 0 | F46: =IF(F44>0,(F44*F45),0) -> 0 | G46: 0 | H46: 8511 | I46: 47947 | J46: 47947 | K46: 47947 | L46: 47947 | M46: 47947 | N46: 47947
A47: (-) | B47: PAGOS PROCISIONALES | C47: 0 | D47: 0 | E47: 0 | F47: 0 | G47: 0 | H47: 0 | I47: 0 | J47: 0 | K47: 0 | L47: 0 | M47: 0 | N47: 0
A48: (-) | B48: 2% SOBRE NOMINA | C48: 0 | D48: 0 | E48: 0 | F48: 0 | G48: 0 | H48: 0 | I48: 0 | J48: 0 | K48: 0 | L48: 0 | M48: 0 | N48: 0
B50: total a pagar en el estado | C50: =+C46-C47-C48 -> 7500 | D50: =+D46-D47-D48 -> 0 | E50: 0 | F50: 0 | G50: 0 | H50: 8511 | I50: 47947 | J50: 47947 | K50: 47947 | L50: 47947 | M50: 47947 | N50: 47947
B53: ISR A PAGAR SEFIPLAN | C53: =+IF(C50>C30, "SEFIPLAN","ESTADISTICA, FORMATO") -> ESTADISTICA, FORMATO | D53: ESTADISTICA, FORMATO | E53: ESTADISTICA, FORMATO | F53: ESTADISTICA, FORMATO | G53: ESTADISTICA, FORMATO | H53: ESTADISTICA, FORMATO | I53: ESTADISTICA, FORMATO | J53: ESTADISTICA, FORMATO | K53: ESTADISTICA, FORMATO | L53: ESTADISTICA, FORMATO | M53: ESTADISTICA, FORMATO | N53: ESTADISTICA, FORMATO

Sheet CALCULO DEL IVA
A1: PRESENTACION
A2: =+'Calculo automatico '!B4 -> carlos baez medina
D3: =+LLENAR!F3 -> EJERCICIO FISCAL DEL 2012
A4: CALCULO MENSUAL DE IVA
A8: CONCEPTO | B8: ENERO | C8: FEBRERO | D8: MARZO | E8: ABRIL | F8: MAYO | G8: JUNIO | H8: JULIO | I8: AGOSTO | J8: SEPTIEMBRE | K8: OCTUBRE | L8: NOVIEMBRE | M8: DICIEMBRE
A10: IVA CAUSADO: (Captura Automatico) | B10: =+LLENAR!G7+LLENAR!E26 -> 152000 | C10: =+LLENAR!G8+LLENAR!E27 -> 12960 | D10: =+LLENAR!G9+LLENAR!E28 -> 5808 | E10: =+LLENAR!G10+LLENAR!E29 -> 784 | F10: =+LLENAR!G11+LLENAR!E30 -> 126240 | G10: =+LLENAR!G12+LLENAR!E31 -> 126243.2 | H10: =+LLENAR!G13+LLENAR!E32 -> 126195.2 | I10: =+LLENAR!G14+LLENAR!E33 -> 0 | J10: =+LLENAR!G15+LLENAR!E34 -> 0 | K10: =+LLENAR!G16+LLENAR!E35 -> 0 | L10: =+LLENAR!G17+LLENAR!E36 -> 0 | M10: =+LLENAR!G18+LLENAR!E37 -> 0
A11: IVA RETENIDO: (Captura Manual) | B11: =+LLENAR!I7 -> 0 | C11: =+LLENAR!I8 -> 0 | D11: =+LLENAR!I9 -> 0 | E11: =+LLENAR!I10 -> 0 | F11: =+LLENAR!I11 -> 0 | G11: =+LLENAR!I12 -> 0 | H11: =+LLENAR!I13 -> 0 | I11: =+LLENAR!I14 -> 0 | J11: =+LLENAR!I15 -> 0 | K11: =+LLENAR!I16 -> 0 | L11: =+LLENAR!I17 -> 0 | M11: =+LLENAR!I18 -> 0
A12: IVA ACREDITABLE (Captura Automatico) | B12: =+LLENAR!T26 -> 128000 | C12: =+LLENAR!T27 -> 136000 | D12: =+LLENAR!T28 -> 132800 | E12: =+LLENAR!T29 -> 0 | F12: =+LLENAR!T30 -> 0 | G12: =+LLENAR!T31 -> 0 | H12: =+LLENAR!T32 -> 0 | I12: =+LLENAR!T33 -> 0 | J12: =+LLENAR!T34 -> 0 | K12: =+LLENAR!T35 -> 0 | L12: =+LLENAR!T36 -> 0 | M12: =+LLENAR!T37 -> 0
A13: SUBTOTAL (Calculo Automatico) | B13: =+B10-B11-B12 -> 24000 | C13: =+C10-C11-C12 -> -123040 | D13: -126992 | E13: 784 | F13: 126240 | G13: 126243.2 | H13: 126195.2 | I13: 0 | J13: 0 | K13: 0 | L13: 0 | M13: 0
A14: SALDO A FAVOR PEND. DE ACREDITAR de periodos anteriores: (Captura Manual) | B14: 0 | C14: 0 | D14: 0 | E14: 0 | F14: 0 | G14: 0 | H14: 0 | I14: 0 | J14: 0 | K14: 0 | L14: 0 | M14: 0
A15: IVA A PAGAR (Calculo Automatico) | B15: =+IF(B14>B13,0,B13-B14) -> 24000 | C15: =+C10-C11-C12-C14 -> -123040 | D15: -126992 | E15: 784 | F15: 126240 | G15: 126243.2 | H15: 126195.2 | I15: 0 | J15: 0 | K15: 0 | L15: 0 | M15: 0
B16: =+IF(B15<>0, "BANCO","ESTADISTICA, INTERNET") -> BANCO | C16: BANCO | D16: BANCO | E16: =+IF(E15<>0, "BANCO","ESTADISTICA, INTERNET") -> BANCO | F16: BANCO | G16: BANCO | H16: BANCO | I16: ESTADISTICA, INTERNET | J16: ESTADISTICA, INTERNET | K16: ESTADISTICA, INTERNET | L16: ESTADISTICA, INTERNET | M16: ESTADISTICA, INTERNET

Sheet Calculo automatico (2)
C1: PRESENTACION
C4: =+LLENAR!F2 -> carlos baez medina
C6: Calculo de ISR De La Federacion
D9: S E M E S T R E
D10: PRIMERO | E10: SEGUNDO
C11: Calculo de Impuesto
B12: (-) | C12: INGRESOS | D12: =+'Calculo automatico '!H12 -> 2650220 | E12: =+'Calculo automatico '!N12 -> 3438940
C13: DEDUCCIONES | D13: =+'Calculo automatico '!H14 -> 2480000 | E13: =+'Calculo automatico '!N14 -> 2480000
B14: (=) | C14: Base Gravable | D14: =IF(D12>0,(D12-D13),0) -> 170220 | E14: =IF(E12>0,(E12-E13),0) -> 958940
B15: (-) | C15: Limite Inferiro | D15: =IF(D14>0,VLOOKUP(D14,TARIFAS!$U$7:X16,1),0) -> 124621.75 | E15: =IF(E14>0,VLOOKUP(E14,TARIFAS!U27:X31,1),0) -> 103218.01
B16: (=) | C16: Exedente sobre limite inferior | D16: =D14-D15 -> 45598.25 | E16: =E14-E15 -> 855721.99
B17: (x) | C17: % sobre excedente de limite inferior | D17: =IF(D14>0,VLOOKUP(D14,TARIFAS!$U$2:X15,4))/100 -> 0.2352 | E17: =IF(E14>0,VLOOKUP(E14,TARIFAS!U27:X31,4))/100 -> 0.1792
B18: (=) | C18: Impuesto marginal | D18: =D16*D17 -> 10724.7084 | E18: =E16*E17 -> 153345.3806
B19: (+) | C19: Cuota fija | D19: =IF(D14>0,VLOOKUP(D14,TARIFAS!$U$2:X16,3),0) -> 19964.52 | E19: =IF(E16>0,VLOOKUP(E14,TARIFAS!U27:X31,3),0) -> 9438.6
B20: (=) | C20: Impuesto Art. 113 LISR | D20: =D18+D19 -> 30689.2284 | E20: =E18+E19 -> 162783.9806
C23: ISR DETERMINADO | D23: =D20 -> 30689.2284 | E23: =E20 -> 162783.9806
B24: (-) | C24: ISR Pagado al estado Estasdo | D24: 0 | E24: 0
B25: (-) | C25: Pagos Provisionales | D25: 0 | E25: 0
B26: (-) | C26: Retension de ISR | D26: =+LLENAR!J12 -> 0 | E26: =+LLENAR!J18 -> 0
B27: (-) | C27: Retension del IDE
B28: (=) | C28: IMPUESTO A CARGO O A FAVOR | D28: =+D23-D25-D26-D27-D24 -> 30689.2284 | E28: =+E23-E25-E26-E27-E24 -> 162783.9806
C31: ISR A PAGAR SAT | D31: =+IF(D28>D48, "SAT","ESTADISTICA, INTERNET") -> SAT | E31: =+IF(E28>E48, "SAT","ESTADISTICA, INTERNET") -> SAT
C34: Calculo de ISR Del Estado
D36: 1901-06-01 | E36: 1901-12-01
C37: Calculo de Impuesto
C38: INGRESOS | D38: =+D12 -> 2650220 | E38: =+E12 -> 3438940
B39: (-) | C39: DEDUCCIONES | D39: =+D13 -> 2480000 | E39: =+E13 -> 2480000
B40: (=) | C40: Base Gravable | D40: =IF(D38>0,(D38-D39),0) -> 170220 | E40: =IF(E38>0,(E38-E39),0) -> 958940
C42: Base Gravable | D42: =+D40 -> 170220 | E42: =+E40 -> 958940
B43: (x) | C43: POR LA TASA | D43: 0.05 | E43: 0.05
B44: (=) | C44: ISR ENTIDAD FEDERATIVA | D44: =IF(D42>0,(D42*D43),0) -> 8511 | E44: =IF(E42>0,(E42*E43),0) -> 47947
B45: (-) | C45: PAGOS PROCISIONALES | D45: 0 | E45: 0
B46: (-) | C46: 2% SOBRE NOMINA | D46: 0 | E46: 0
C48: total a pagar en el estado | D48: =+D44-D45-D46 -> 8511 | E48: =+E44-E45-E46 -> 47947
C51: ISR A PAGAR SEFIPLAN | D51: =+IF(D48>D28, "SEFIPLAN","ESTADISTICA, FORMATO") -> ESTADISTICA, FORMATO | E51: =+IF(E48>E28, "SEFIPLAN","ESTADISTICA, FORMATO") -> ESTADISTICA, FORMATO

Sheet GASTOSNO DEDUCIBLES IETU
B4: =+Hoja4!B4 -> carlos baez medina
B5: DEDUCCIONES QUE NO SE CONSIDERAN PARA EL CALCULO DEL IETU
B8: CONCEPTO | D8: ENERO | E8: FEBRERO | F8: MARZO | G8: ABRIL | H8: MAYO | I8: JUNIO | J8: JULIO | K8: AGOSTO | L8: SEPTIEMBRE | M8: OCTUBRE | N8: NOVIEMBRE | O8: DICIEMBRE
B10: Ingresos Afectos con Anterioridad al 1 de enero de 2008 | D10: 0
B12: Erogaciones Efectuadas con Anterioridad al 1 de enero de 2008 | D12: 0
B14: Salarios y demas Prestasiones | D14: 0
B16: Cuotas IMSS | D16: 0
B18: Aportaciones Cesantia y Vejez | D18: 0
B20: Aportaciones Retiro | D20: 0
B22: Aportaciones Infonavit | D22: 0
B24: TOTAL APORTACIONES DE SEGURIDAD SOCIAL | D24: =+D14+D16+D18+D20+D22 -> 0 | E24: =+E14+E16+E18+E20+E22 -> 0 | F24: =+F14+F16+F18+F20+F22 -> 0 | G24: 0 | H24: 0 | I24: 0 | J24: 0 | K24: 0 | L24: 0 | M24: 0 | N24: 0 | O24: 0
B27: TOTAL DE DEDUCCIONES NO CONSIDERADAS PARA EL IETU | D27: =+D12+D24 -> 0 | E27: =+E12+E24 -> 0 | F27: =+F12+F24 -> 0 | G27: 0 | H27: 0 | I27: 0 | J27: 0 | K27: 0 | L27: 0 | M27: 0 | N27: 0 | O27: 0

Sheet LLENAR
J1: PRESENTACION
F2: =+EGRESOS!A3 -> carlos baez medina
F3: =+EGRESOS!A4 -> EJERCICIO FISCAL DEL 2012
F4: RELACION DE INGRESOS FACTURADOS
C6: mes | D6: INGRESOS EXENTOS | E6: INGRESOS GRAVADOS | F6: importe | G6: iva | H6: total | I6: iva retenido 11% | J6: isr retenido11% | K6: retencion 4% | L6: total
A7: ENERO | C7: 1901-01-01 | D7: =SUMIF('INGRESOS FACT'!Q:Q,LLENAR!C7,'INGRESOS FACT'!G:G) -> 0 | E7: =SUMIF('INGRESOS FACT'!Q:Q,LLENAR!C7,'INGRESOS FACT'!H:H) -> 950000 | F7: =SUM(D7:E7) -> 950000 | G7: =SUM(SUMIF('INGRESOS FACT'!$Q:$Q,LLENAR!C7,'INGRESOS FACT'!$J:$J)) -> 152000 | H7: =+G7+F7 -> 1102000 | I7: =SUMIF('INGRESOS FACT'!Q:Q,LLENAR!C7,'INGRESOS FACT'!L:L) -> 0 | J7: =SUMIF('INGRESOS FACT'!Q:Q,LLENAR!C7,'INGRESOS FACT'!N:N) -> 0 | L7: =+H7-I7-J7-K7 -> 1102000
A8: FEBRERO | C8: 1901-02-01 | D8: =SUMIF('INGRESOS FACT'!Q:Q,LLENAR!C8,'INGRESOS FACT'!G:G) -> 0 | E8: =SUMIF('INGRESOS FACT'!Q:Q,LLENAR!C8,'INGRESOS FACT'!H:H) -> 81000 | F8: =SUM(D8:E8) -> 81000 | G8: =SUM(SUMIF('INGRESOS FACT'!$Q:$Q,LLENAR!C8,'INGRESOS FACT'!$J:$J)) -> 12960 | H8: 93960 | I8: =SUMIF('INGRESOS FACT'!Q:Q,LLENAR!C8,'INGRESOS FACT'!L:L) -> 0 | J8: =SUMIF('INGRESOS FACT'!Q:Q,LLENAR!C8,'INGRESOS FACT'!N:N) -> 0 | L8: =+H8-I8-J8 -> 93960
A9: MARZO | C9: 1901-03-01 | D9: =SUMIF('INGRESOS FACT'!Q:Q,LLENAR!C9,'INGRESOS FACT'!G:G) -> 0 | E9: =SUMIF('INGRESOS FACT'!Q:Q,LLENAR!C9,'INGRESOS FACT'!H:H) -> 36300 | F9: =SUM(D9:E9) -> 36300 | G9: =SUM(SUMIF('INGRESOS FACT'!$Q:$Q,LLENAR!C9,'INGRESOS FACT'!$J:$J)) -> 5808 | H9: 42108 | I9: =SUMIF('INGRESOS FACT'!Q:Q,LLENAR!C9,'INGRESOS FACT'!L:L) -> 0 | J9: =SUMIF('INGRESOS FACT'!Q:Q,LLENAR!C9,'INGRESOS FACT'!N:N) -> 0 | L9: 42108
A10: ABRIL | C10: 1901-04-01 | D10: =SUMIF('INGRESOS FACT'!Q:Q,LLENAR!C10,'INGRESOS FACT'!G:G) -> 0 | E10: =SUMIF('INGRESOS FACT'!Q:Q,LLENAR!C10,'INGRESOS FACT'!H:H) -> 4900 | F10: =SUM(D10:E10) -> 4900 | G10: =SUM(SUMIF('INGRESOS FACT'!$Q:$Q,LLENAR!C10,'INGRESOS FACT'!$J:$J)) -> 784 | H10: 5684 | I10: =SUMIF('INGRESOS FACT'!Q:Q,LLENAR!C10,'INGRESOS FACT'!L:L) -> 0 | J10: =SUMIF('INGRESOS FACT'!Q:Q,LLENAR!C10,'INGRESOS FACT'!N:N) -> 0 | L10: 5684
A11: MAYO | C11: 1901-05-01 | D11: =SUMIF('INGRESOS FACT'!Q:Q,LLENAR!C11,'INGRESOS FACT'!G:G) -> 0 | E11: =SUMIF('INGRESOS FACT'!Q:Q,LLENAR!C11,'INGRESOS FACT'!H:H) -> 789000 | F11: =SUM(D11:E11) -> 789000 | G11: =SUM(SUMIF('INGRESOS FACT'!$Q:$Q,LLENAR!C11,'INGRESOS FACT'!$J:$J)) -> 126240 | H11: 915240 | I11: =SUMIF('INGRESOS FACT'!Q:Q,LLENAR!C11,'INGRESOS FACT'!L:L) -> 0 | J11: =SUMIF('INGRESOS FACT'!Q:Q,LLENAR!C11,'INGRESOS FACT'!N:N) -> 0 | L11: 915240
A12: JUNIO | C12: 1901-06-01 | D12: =SUMIF('INGRESOS FACT'!Q:Q,LLENAR!C12,'INGRESOS FACT'!G:G) -> 0 | E12: =SUMIF('INGRESOS FACT'!Q:Q,LLENAR!C12,'INGRESOS FACT'!H:H) -> 789020 | F12: 789020 | G12: =SUM(SUMIF('INGRESOS FACT'!$Q:$Q,LLENAR!C12,'INGRESOS FACT'!$J:$J)) -> 126243.2 | H12: 915263.2 | I12: =SUMIF('INGRESOS FACT'!Q:Q,LLENAR!C12,'INGRESOS FACT'!L:L) -> 0 | J12: =SUMIF('INGRESOS FACT'!Q:Q,LLENAR!C12,'INGRESOS FACT'!N:N) -> 0 | L12: 915263.2
A13: JULIO | C13: 1901-07-01 | D13: =SUMIF('INGRESOS FACT'!Q:Q,LLENAR!C13,'INGRESOS FACT'!G:G) -> 0 | E13: =SUMIF('INGRESOS FACT'!Q:Q,LLENAR!C13,'INGRESOS FACT'!H:H) -> 788720 | F13: 788720 | G13: =SUM(SUMIF('INGRESOS FACT'!$Q:$Q,LLENAR!C13,'INGRESOS FACT'!$J:$J)) -> 126195.2 | H13: 914915.2 | I13: =SUMIF('INGRESOS FACT'!Q:Q,LLENAR!C13,'INGRESOS FACT'!L:L) -> 0 | J13: =SUMIF('INGRESOS FACT'!Q:Q,LLENAR!C13,'INGRESOS FACT'!N:N) -> 0 | L13: 914915.2
A14: AGOSTO | C14: 1901-08-01 | D14: =SUMIF('INGRESOS FACT'!Q:Q,LLENAR!C14,'INGRESOS FACT'!G:G) -> 0 | E14: =SUMIF('INGRESOS FACT'!Q:Q,LLENAR!C14,'INGRESOS FACT'!H:H) -> 0 | F14: 0 | G14: =SUM(SUMIF('INGRESOS FACT'!$Q:$Q,LLENAR!C14,'INGRESOS FACT'!$J:$J)) -> 0 | H14: 0 | I14: =SUMIF('INGRESOS FACT'!Q:Q,LLENAR!C14,'INGRESOS FACT'!L:L) -> 0 | J14: =SUMIF('INGRESOS FACT'!Q:Q,LLENAR!C14,'INGRESOS FACT'!N:N) -> 0 | L14: 0
A15: SEPTIEMBRE | C15: 1901-09-01 | D15: =SUMIF('INGRESOS FACT'!Q:Q,LLENAR!C15,'INGRESOS FACT'!G:G) -> 0 | E15: =SUMIF('INGRESOS FACT'!Q:Q,LLENAR!C15,'INGRESOS FACT'!H:H) -> 0 | F15: 0 | G15: =SUM(SUMIF('INGRESOS FACT'!$Q:$Q,LLENAR!C15,'INGRESOS FACT'!$J:$J)) -> 0 | H15: 0 | I15: =SUMIF('INGRESOS FACT'!Q:Q,LLENAR!C15,'INGRESOS FACT'!L:L) -> 0 | J15: =SUMIF('INGRESOS FACT'!Q:Q,LLENAR!C15,'INGRESOS FACT'!N:N) -> 0 | L15: 0
A16: OCTUBRE | C16: 1901-10-01 | D16: =SUMIF('INGRESOS FACT'!Q:Q,LLENAR!C16,'INGRESOS FACT'!G:G) -> 0 | E16: =SUMIF('INGRESOS FACT'!Q:Q,LLENAR!C16,'INGRESOS FACT'!H:H) -> 0 | F16: 0 | G16: =SUM(SUMIF('INGRESOS FACT'!$Q:$Q,LLENAR!C16,'INGRESOS FACT'!$J:$J)) -> 0 | H16: 0 | I16: =SUMIF('INGRESOS FACT'!Q:Q,LLENAR!C16,'INGRESOS FACT'!L:L) -> 0 | J16: =SUMIF('INGRESOS FACT'!Q:Q,LLENAR!C16,'INGRESOS FACT'!N:N) -> 0 | L16: 0
A17: NOVIEMBRE | C17: 1901-11-01 | D17: =SUMIF('INGRESOS FACT'!Q:Q,LLENAR!C17,'INGRESOS FACT'!G:G) -> 0 | E17: =SUMIF('INGRESOS FACT'!Q:Q,LLENAR!C17,'INGRESOS FACT'!H:H) -> 0 | F17: 0 | G17: =SUM(SUMIF('INGRESOS FACT'!$Q:$Q,LLENAR!C17,'INGRESOS FACT'!$J:$J)) -> 0 | H17: 0 | I17: =SUMIF('INGRESOS FACT'!Q:Q,LLENAR!C17,'INGRESOS FACT'!L:L) -> 0 | J17: =SUMIF('INGRESOS FACT'!Q:Q,LLENAR!C17,'INGRESOS FACT'!N:N) -> 0 | L17: 0
A18: DICIEMBRE | C18: 1901-12-01 | D18: =SUMIF('INGRESOS FACT'!Q:Q,LLENAR!C18,'INGRESOS FACT'!G:G) -> 0 | E18: =SUMIF('INGRESOS FACT'!Q:Q,LLENAR!C18,'INGRESOS FACT'!H:H) -> 0 | F18: 0 | G18: =SUM(SUMIF('INGRESOS FACT'!$Q:$Q,LLENAR!C18,'INGRESOS FACT'!$J:$J)) -> 0 | H18: 0 | I18: =SUMIF('INGRESOS FACT'!Q:Q,LLENAR!C18,'INGRESOS FACT'!L:L) -> 0 | J18: =SUMIF('INGRESOS FACT'!Q:Q,LLENAR!C18,'INGRESOS FACT'!N:N) -> 0 | L18: 0
C20: TOTAL GRAL: | F20: =SUM(F7:F19) -> 3438940 | G20: =SUM(G7:G19) -> 550230.4 | H20: =SUM(H7:H18) -> 3989170.4 | I20: =SUM(I7:I18) -> 0 | J20: =SUM(J7:J18) -> 0 | L20: =SUM(L7:L18) -> 3989170.4
K22: CONCENTRADO ANUAN DE GASTOS
F23: INGRESOS DIARIOS
L24: GASTOS. | N24: COMPRAS. | P24: DESCUENTOS
C25: mes | D25: importe | E25: iva | F25: total | G25: Gastos Exentos | H25: Gastos Gravados | I25: BASE DEL IMPUESTO MENSUAL | K25: mes | L25: Gastos Exentos | M25: Gastos Gravados | N25: Compras Exentos | O25: Compras Gravados | P25: Descuento Exentos | Q25: Descuento Gravados | R25: I.S.P.T | S25: importe | T25: iva | U25: total | V25: iva retenido 10% | W25: isr retenido10% | X25: retencion 4% | Y25: total
A26: ENERO | C26: 1901-01-01 | D26: =+F26/1.16 -> 0 | E26: =SUMIF('INGRESOS DIARIOS'!N:N,LLENAR!C26,'INGRESOS DIARIOS'!J:J) -> 0 | F26: =+G26+H26 -> 0 | G26: =SUMIF('INGRESOS DIARIOS'!N:N,LLENAR!C26,'INGRESOS DIARIOS'!K:K) -> 0 | H26: =SUMIF('INGRESOS DIARIOS'!N:N,LLENAR!C26,'INGRESOS DIARIOS'!L:L) -> 0 | I26: =+D26+F7-S26 -> 150000 | K26: 1901-01-01 | L26: =SUMIF(EGRESOS!AC:AC,LLENAR!K26,EGRESOS!K:K) -> 0 | M26: =SUMIF(EGRESOS!AC:AC,LLENAR!K26,EGRESOS!L:L) -> 800000 | N26: =SUMIF(EGRESOS!AC:AC,LLENAR!K26,EGRESOS!M:M) -> 0 | O26: =SUMIF(EGRESOS!AC:AC,LLENAR!K26,EGRESOS!N:N) -> 0 | P26: =SUMIF(EGRESOS!AC:AC,LLENAR!K26,EGRESOS!O:O) -> 0 | Q26: =SUMIF(EGRESOS!AC:AC,LLENAR!K26,EGRESOS!P:P) -> 0 | R26: =SUMIF(EGRESOS!AC:AC,LLENAR!K26,EGRESOS!R:R) -> 0 | S26: =+L26+M26+N26+O26-P26-Q26-R26 -> 800000 | T26: =SUMIF(EGRESOS!AC:AC,LLENAR!K26,EGRESOS!T:T) -> 128000 | U26: =+T26+S26 -> 928000 | V26: =SUMIF(EGRESOS!AH:AH,LLENAR!K26,EGRESOS!AD:AD) -> 0 | W26: =SUMIF(EGRESOS!AH:AH,LLENAR!K26,EGRESOS!AB:AB) -> 0 | X26: =SUMIF(EGRESOS!AH:AH,LLENAR!K26,EGRESOS!AF:AF) -> 0 | Y26: =+U26-V26-W26-X26 -> 928000
A27: FEBRERO | C27: 1901-02-01 | D27: =+F27/1.16 -> 0 | E27: =SUMIF('INGRESOS DIARIOS'!N:N,LLENAR!C27,'INGRESOS DIARIOS'!J:J) -> 0 | F27: =+G27+H27 -> 0 | G27: =SUMIF('INGRESOS DIARIOS'!N:N,LLENAR!C27,'INGRESOS DIARIOS'!K:K) -> 0 | H27: =SUMIF('INGRESOS DIARIOS'!N:N,LLENAR!C27,'INGRESOS DIARIOS'!L:L) -> 0 | I27: -769000 | K27: 1901-02-01 | L27: =SUMIF(EGRESOS!AC:AC,LLENAR!K27,EGRESOS!K:K) -> 0 | M27: =SUMIF(EGRESOS!AC:AC,LLENAR!K27,EGRESOS!L:L) -> 0 | N27: =SUMIF(EGRESOS!AC:AC,LLENAR!K27,EGRESOS!M:M) -> 0 | O27: =SUMIF(EGRESOS!AC:AC,LLENAR!K27,EGRESOS!N:N) -> 850000 | P27: =SUMIF(EGRESOS!AC:AC,LLENAR!K27,EGRESOS!O:O) -> 0 | Q27: =SUMIF(EGRESOS!AC:AC,LLENAR!K27,EGRESOS!P:P) -> 0 | R27: =SUMIF(EGRESOS!AC:AC,LLENAR!K27,EGRESOS!R:R) -> 0 | S27: =+L27+M27+N27+O27-P27-Q27-R27 -> 850000 | T27: =SUMIF(EGRESOS!AC:AC,LLENAR!K27,EGRESOS!T:T) -> 136000 | U27: =+T27+S27 -> 986000 | V27: =SUMIF(EGRESOS!AH:AH,LLENAR!K27,EGRESOS!AD:AD) -> 0 | W27: =SUMIF(EGRESOS!AH:AH,LLENAR!K27,EGRESOS!AB:AB) -> 0 | X27: =SUMIF(EGRESOS!AH:AH,LLENAR!K27,EGRESOS!AF:AF) -> 0 | Y27: =+S27+T27 -> 986000
A28: MARZO | C28: 1901-03-01 | D28: 0 | E28: =SUMIF('INGRESOS DIARIOS'!N:N,LLENAR!C28,'INGRESOS DIARIOS'!J:J) -> 0 | F28: =+G28+H28 -> 0 | G28: =SUMIF('INGRESOS DIARIOS'!N:N,LLENAR!C28,'INGRESOS DIARIOS'!K:K) -> 0 | H28: =SUMIF('INGRESOS DIARIOS'!N:N,LLENAR!C28,'INGRESOS DIARIOS'!L:L) -> 0 | I28: -793700 | K28: 1901-03-01 | L28: =SUMIF(EGRESOS!AC:AC,LLENAR!K28,EGRESOS!K:K) -> 0 | M28: =SUMIF(EGRESOS!AC:AC,LLENAR!K28,EGRESOS!L:L) -> 830000 | N28: =SUMIF(EGRESOS!AC:AC,LLENAR!K28,EGRESOS!M:M) -> 0 | O28: =SUMIF(EGRESOS!AC:AC,LLENAR!K28,EGRESOS!N:N) -> 0 | P28: =SUMIF(EGRESOS!AC:AC,LLENAR!K28,EGRESOS!O:O) -> 0 | Q28: =SUMIF(EGRESOS!AC:AC,LLENAR!K28,EGRESOS!P:P) -> 0 | R28: =SUMIF(EGRESOS!AC:AC,LLENAR!K28,EGRESOS!R:R) -> 0 | S28: 830000 | T28: =SUMIF(EGRESOS!AC:AC,LLENAR!K28,EGRESOS!T:T) -> 132800 | U28: 962800 | V28: =SUMIF(EGRESOS!AH:AH,LLENAR!K28,EGRESOS!AD:AD) -> 0 | W28: =SUMIF(EGRESOS!AH:AH,LLENAR!K28,EGRESOS!AB:AB) -> 0 | X28: =SUMIF(EGRESOS!AH:AH,LLENAR!K28,EGRESOS!AF:AF) -> 0 | Y28: 962800
A29: ABRIL | C29: 1901-04-01 | D29: 0 | E29: =SUMIF('INGRESOS DIARIOS'!N:N,LLENAR!C29,'INGRESOS DIARIOS'!J:J) -> 0 | F29: 0 | G29: =SUMIF('INGRESOS DIARIOS'!N:N,LLENAR!C29,'INGRESOS DIARIOS'!K:K) -> 0 | H29: =SUMIF('INGRESOS DIARIOS'!N:N,LLENAR!C29,'INGRESOS DIARIOS'!L:L) -> 0 | I29: 4900 | K29: 1901-04-01 | L29: =SUMIF(EGRESOS!AC:AC,LLENAR!K29,EGRESOS!K:K) -> 0 | M29: =SUMIF(EGRESOS!AC:AC,LLENAR!K29,EGRESOS!L:L) -> 0 | N29: =SUMIF(EGRESOS!AC:AC,LLENAR!K29,EGRESOS!M:M) -> 0 | O29: =SUMIF(EGRESOS!AC:AC,LLENAR!K29,EGRESOS!N:N) -> 0 | P29: =SUMIF(EGRESOS!AC:AC,LLENAR!K29,EGRESOS!O:O) -> 0 | Q29: =SUMIF(EGRESOS!AC:AC,LLENAR!K29,EGRESOS!P:P) -> 0 | R29: =SUMIF(EGRESOS!AC:AC,LLENAR!K29,EGRESOS!R:R) -> 0 | S29: 0 | T29: =SUMIF(EGRESOS!AC:AC,LLENAR!K29,EGRESOS!T:T) -> 0 | U29: 0 | V29: =SUMIF(EGRESOS!AH:AH,LLENAR!K29,EGRESOS!AD:AD) -> 0 | W29: =SUMIF(EGRESOS!AH:AH,LLENAR!K29,EGRESOS!AB:AB) -> 0 | X29: =SUMIF(EGRESOS!AH:AH,LLENAR!K29,EGRESOS!AF:AF) -> 0 | Y29: 0
A30: MAYO | C30: 1901-05-01 | D30: 0 | E30: =SUMIF('INGRESOS DIARIOS'!N:N,LLENAR!C30,'INGRESOS DIARIOS'!J:J) -> 0 | F30: 0 | G30: =SUMIF('INGRESOS DIARIOS'!N:N,LLENAR!C30,'INGRESOS DIARIOS'!K:K) -> 0 | H30: =SUMIF('INGRESOS DIARIOS'!N:N,LLENAR!C30,'INGRESOS DIARIOS'!L:L) -> 0 | I30: 789000 | K30: 1901-05-01 | L30: =SUMIF(EGRESOS!AC:AC,LLENAR!K30,EGRESOS!K:K) -> 0 | M30: =SUMIF(EGRESOS!AC:AC,LLENAR!K30,EGRESOS!L:L) -> 0 | N30: =SUMIF(EGRESOS!AC:AC,LLENAR!K30,EGRESOS!M:M) -> 0 | O30: =SUMIF(EGRESOS!AC:AC,LLENAR!K30,EGRESOS!N:N) -> 0 | P30: =SUMIF(EGRESOS!AC:AC,LLENAR!K30,EGRESOS!O:O) -> 0 | Q30: =SUMIF(EGRESOS!AC:AC,LLENAR!K30,EGRESOS!P:P) -> 0 | R30: =SUMIF(EGRESOS!AC:AC,LLENAR!K30,EGRESOS!R:R) -> 0 | S30: 0 | T30: =SUMIF(EGRESOS!AC:AC,LLENAR!K30,EGRESOS!T:T) -> 0 | U30: 0 | V30: =SUMIF(EGRESOS!AH:AH,LLENAR!K30,EGRESOS!AD:AD) -> 0 | W30: =SUMIF(EGRESOS!AH:AH,LLENAR!K30,EGRESOS!AB:AB) -> 0 | X30: =SUMIF(EGRESOS!AH:AH,LLENAR!K30,EGRESOS!AF:AF) -> 0 | Y30: 0
A31: JUNIO | C31: 1901-06-01 | D31: 0 | E31: =SUMIF('INGRESOS DIARIOS'!N:N,LLENAR!C31,'INGRESOS DIARIOS'!J:J) -> 0 | F31: 0 | G31: =SUMIF('INGRESOS DIARIOS'!N:N,LLENAR!C31,'INGRESOS DIARIOS'!K:K) -> 0 | H31: =SUMIF('INGRESOS DIARIOS'!N:N,LLENAR!C31,'INGRESOS DIARIOS'!L:L) -> 0 | I31: 789020 | K31: 1901-06-01 | L31: =SUMIF(EGRESOS!AC:AC,LLENAR!K31,EGRESOS!K:K) -> 0 | M31: =SUMIF(EGRESOS!AC:AC,LLENAR!K31,EGRESOS!L:L) -> 0 | N31: =SUMIF(EGRESOS!AC:AC,LLENAR!K31,EGRESOS!M:M) -> 0 | O31: =SUMIF(EGRESOS!AC:AC,LLENAR!K31,EGRESOS!N:N) -> 0 | P31: =SUMIF(EGRESOS!AC:AC,LLENAR!K31,EGRESOS!O:O) -> 0 | Q31: =SUMIF(EGRESOS!AC:AC,LLENAR!K31,EGRESOS!P:P) -> 0 | R31: =SUMIF(EGRESOS!AC:AC,LLENAR!K31,EGRESOS!R:R) -> 0 | S31: 0 | T31: =SUMIF(EGRESOS!AC:AC,LLENAR!K31,EGRESOS!T:T) -> 0 | U31: 0 | V31: =SUMIF(EGRESOS!AH:AH,LLENAR!K31,EGRESOS!AD:AD) -> 0 | W31: =SUMIF(EGRESOS!AH:AH,LLENAR!K31,EGRESOS!AB:AB) -> 0 | X31: =SUMIF(EGRESOS!AH:AH,LLENAR!K31,EGRESOS!AF:AF) -> 0 | Y31: 0
A32: JULIO | C32: 1901-07-01 | D32: 0 | E32: =SUMIF('INGRESOS DIARIOS'!N:N,LLENAR!C32,'INGRESOS DIARIOS'!J:J) -> 0 | F32: 0 | G32: =SUMIF('INGRESOS DIARIOS'!N:N,LLENAR!C32,'INGRESOS DIARIOS'!K:K) -> 0 | H32: =SUMIF('INGRESOS DIARIOS'!N:N,LLENAR!C32,'INGRESOS DIARIOS'!L:L) -> 0 | I32: 788720 | K32: 1901-07-01 | L32: =SUMIF(EGRESOS!AC:AC,LLENAR!K32,EGRESOS!K:K) -> 0 | M32: =SUMIF(EGRESOS!AC:AC,LLENAR!K32,EGRESOS!L:L) -> 0 | N32: =SUMIF(EGRESOS!AC:AC,LLENAR!K32,EGRESOS!M:M) -> 0 | O32: =SUMIF(EGRESOS!AC:AC,LLENAR!K32,EGRESOS!N:N) -> 0 | P32: =SUMIF(EGRESOS!AC:AC,LLENAR!K32,EGRESOS!O:O) -> 0 | Q32: =SUMIF(EGRESOS!AC:AC,LLENAR!K32,EGRESOS!P:P) -> 0 | R32: =SUMIF(EGRESOS!AC:AC,LLENAR!K32,EGRESOS!R:R) -> 0 | S32: 0 | T32: =SUMIF(EGRESOS!AC:AC,LLENAR!K32,EGRESOS!T:T) -> 0 | U32: 0 | V32: =SUMIF(EGRESOS!AH:AH,LLENAR!K32,EGRESOS!AD:AD) -> 0 | W32: =SUMIF(EGRESOS!AH:AH,LLENAR!K32,EGRESOS!AB:AB) -> 0 | X32: =SUMIF(EGRESOS!AH:AH,LLENAR!K32,EGRESOS!AF:AF) -> 0 | Y32: 0
A33: AGOSTO | C33: 1901-08-01 | D33: 0 | E33: =SUMIF('INGRESOS DIARIOS'!N:N,LLENAR!C33,'INGRESOS DIARIOS'!J:J) -> 0 | F33: 0 | G33: =SUMIF('INGRESOS DIARIOS'!N:N,LLENAR!C33,'INGRESOS DIARIOS'!K:K) -> 0 | H33: =SUMIF('INGRESOS DIARIOS'!N:N,LLENAR!C33,'INGRESOS DIARIOS'!L:L) -> 0 | I33: 0 | K33: 1901-08-01 | L33: =SUMIF(EGRESOS!AC:AC,LLENAR!K33,EGRESOS!K:K) -> 0 | M33: =SUMIF(EGRESOS!AC:AC,LLENAR!K33,EGRESOS!L:L) -> 0 | N33: =SUMIF(EGRESOS!AC:AC,LLENAR!K33,EGRESOS!M:M) -> 0 | O33: =SUMIF(EGRESOS!AC:AC,LLENAR!K33,EGRESOS!N:N) -> 0 | P33: =SUMIF(EGRESOS!AC:AC,LLENAR!K33,EGRESOS!O:O) -> 0 | Q33: =SUMIF(EGRESOS!AC:AC,LLENAR!K33,EGRESOS!P:P) -> 0 | R33: =SUMIF(EGRESOS!AC:AC,LLENAR!K33,EGRESOS!R:R) -> 0 | S33: 0 | T33: =SUMIF(EGRESOS!AC:AC,LLENAR!K33,EGRESOS!T:T) -> 0 | U33: 0 | V33: =SUMIF(EGRESOS!AH:AH,LLENAR!K33,EGRESOS!AD:AD) -> 0 | W33: =SUMIF(EGRESOS!AH:AH,LLENAR!K33,EGRESOS!AB:AB) -> 0 | X33: =SUMIF(EGRESOS!AH:AH,LLENAR!K33,EGRESOS!AF:AF) -> 0 | Y33: 0
A34: SEPTIEMBRE | C34: 1901-09-01 | D34: 0 | E34: =SUMIF('INGRESOS DIARIOS'!N:N,LLENAR!C34,'INGRESOS DIARIOS'!J:J) -> 0 | F34: 0 | G34: =SUMIF('INGRESOS DIARIOS'!N:N,LLENAR!C34,'INGRESOS DIARIOS'!K:K) -> 0 | H34: =SUMIF('INGRESOS DIARIOS'!N:N,LLENAR!C34,'INGRESOS DIARIOS'!L:L) -> 0 | I34: 0 | K34: 1901-09-01 | L34: =SUMIF(EGRESOS!AC:AC,LLENAR!K34,EGRESOS!K:K) -> 0 | M34: =SUMIF(EGRESOS!AC:AC,LLENAR!K34,EGRESOS!L:L) -> 0 | N34: =SUMIF(EGRESOS!AC:AC,LLENAR!K34,EGRESOS!M:M) -> 0 | O34: =SUMIF(EGRESOS!AC:AC,LLENAR!K34,EGRESOS!N:N) -> 0 | P34: =SUMIF(EGRESOS!AC:AC,LLENAR!K34,EGRESOS!O:O) -> 0 | Q34: =SUMIF(EGRESOS!AC:AC,LLENAR!K34,EGRESOS!P:P) -> 0 | R34: =SUMIF(EGRESOS!AC:AC,LLENAR!K34,EGRESOS!R:R) -> 0 | S34: 0 | T34: =SUMIF(EGRESOS!AC:AC,LLENAR!K34,EGRESOS!T:T) -> 0 | U34: 0 | V34: =SUMIF(EGRESOS!AH:AH,LLENAR!K34,EGRESOS!AD:AD) -> 0 | W34: =SUMIF(EGRESOS!AH:AH,LLENAR!K34,EGRESOS!AB:AB) -> 0 | X34: =SUMIF(EGRESOS!AH:AH,LLENAR!K34,EGRESOS!AF:AF) -> 0 | Y34: 0
A35: OCTUBRE | C35: 1901-10-01 | D35: 0 | E35: =SUMIF('INGRESOS DIARIOS'!N:N,LLENAR!C35,'INGRESOS DIARIOS'!J:J) -> 0 | F35: 0 | G35: =SUMIF('INGRESOS DIARIOS'!N:N,LLENAR!C35,'INGRESOS DIARIOS'!K:K) -> 0 | H35: =SUMIF('INGRESOS DIARIOS'!N:N,LLENAR!C35,'INGRESOS DIARIOS'!L:L) -> 0 | I35: 0 | K35: 1901-10-01 | L35: =SUMIF(EGRESOS!AC:AC,LLENAR!K35,EGRESOS!K:K) -> 0 | M35: =SUMIF(EGRESOS!AC:AC,LLENAR!K35,EGRESOS!L:L) -> 0 | N35: =SUMIF(EGRESOS!AC:AC,LLENAR!K35,EGRESOS!M:M) -> 0 | O35: =SUMIF(EGRESOS!AC:AC,LLENAR!K35,EGRESOS!N:N) -> 0 | P35: =SUMIF(EGRESOS!AC:AC,LLENAR!K35,EGRESOS!O:O) -> 0 | Q35: =SUMIF(EGRESOS!AC:AC,LLENAR!K35,EGRESOS!P:P) -> 0 | R35: =SUMIF(EGRESOS!AC:AC,LLENAR!K35,EGRESOS!R:R) -> 0 | S35: 0 | T35: =SUMIF(EGRESOS!AC:AC,LLENAR!K35,EGRESOS!T:T) -> 0 | U35: 0 | V35: =SUMIF(EGRESOS!AH:AH,LLENAR!K35,EGRESOS!AD:AD) -> 0 | W35: =SUMIF(EGRESOS!AH:AH,LLENAR!K35,EGRESOS!AB:AB) -> 0 | X35: =SUMIF(EGRESOS!AH:AH,LLENAR!K35,EGRESOS!AF:AF) -> 0 | Y35: 0
A36: NOVIEMBRE | C36: 1901-11-01 | D36: 0 | E36: =SUMIF('INGRESOS DIARIOS'!N:N,LLENAR!C36,'INGRESOS DIARIOS'!J:J) -> 0 | F36: 0 | G36: =SUMIF('INGRESOS DIARIOS'!N:N,LLENAR!C36,'INGRESOS DIARIOS'!K:K) -> 0 | H36: =SUMIF('INGRESOS DIARIOS'!N:N,LLENAR!C36,'INGRESOS DIARIOS'!L:L) -> 0 | I36: 0 | K36: 1901-11-01 | L36: =SUMIF(EGRESOS!AC:AC,LLENAR!K36,EGRESOS!K:K) -> 0 | M36: =SUMIF(EGRESOS!AC:AC,LLENAR!K36,EGRESOS!L:L) -> 0 | N36: =SUMIF(EGRESOS!AC:AC,LLENAR!K36,EGRESOS!M:M) -> 0 | O36: =SUMIF(EGRESOS!AC:AC,LLENAR!K36,EGRESOS!N:N) -> 0 | P36: =SUMIF(EGRESOS!AC:AC,LLENAR!K36,EGRESOS!O:O) -> 0 | Q36: =SUMIF(EGRESOS!AC:AC,LLENAR!K36,EGRESOS!P:P) -> 0 | R36: =SUMIF(EGRESOS!AC:AC,LLENAR!K36,EGRESOS!R:R) -> 0 | S36: 0 | T36: =SUMIF(EGRESOS!AC:AC,LLENAR!K36,EGRESOS!T:T) -> 0 | U36: 0 | V36: =SUMIF(EGRESOS!AH:AH,LLENAR!K36,EGRESOS!AD:AD) -> 0 | W36: =SUMIF(EGRESOS!AH:AH,LLENAR!K36,EGRESOS!AB:AB) -> 0 | X36: =SUMIF(EGRESOS!AH:AH,LLENAR!K36,EGRESOS!AF:AF) -> 0 | Y36: 0
A37: DICIEMBRE | C37: 1901-12-01 | D37: 0 | E37: =SUMIF('INGRESOS DIARIOS'!N:N,LLENAR!C37,'INGRESOS DIARIOS'!J:J) -> 0 | F37: 0 | G37: =SUMIF('INGRESOS DIARIOS'!N:N,LLENAR!C37,'INGRESOS DIARIOS'!K:K) -> 0 | H37: =SUMIF('INGRESOS DIARIOS'!N:N,LLENAR!C37,'INGRESOS DIARIOS'!L:L) -> 0 | I37: 0 | K37: 1901-12-01 | L37: =SUMIF(EGRESOS!AC:AC,LLENAR!K37,EGRESOS!K:K) -> 0 | M37: =SUMIF(EGRESOS!AC:AC,LLENAR!K37,EGRESOS!L:L) -> 0 | N37: =SUMIF(EGRESOS!AC:AC,LLENAR!K37,EGRESOS!M:M) -> 0 | O37: =SUMIF(EGRESOS!AC:AC,LLENAR!K37,EGRESOS!N:N) -> 0 | P37: =SUMIF(EGRESOS!AC:AC,LLENAR!K37,EGRESOS!O:O) -> 0 | Q37: =SUMIF(EGRESOS!AC:AC,LLENAR!K37,EGRESOS!P:P) -> 0 | R37: =SUMIF(EGRESOS!AC:AC,LLENAR!K37,EGRESOS!R:R) -> 0 | S37: 0 | T37: =SUMIF(EGRESOS!AC:AC,LLENAR!K37,EGRESOS!T:T) -> 0 | U37: 0 | V37: =SUMIF(EGRESOS!AH:AH,LLENAR!K37,EGRESOS!AD:AD) -> 0 | W37: =SUMIF(EGRESOS!AH:AH,LLENAR!K37,EGRESOS!AB:AB) -> 0 | X37: =SUMIF(EGRESOS!AH:AH,LLENAR!K37,EGRESOS!AF:AF) -> 0 | Y37: 0
C39: TOTAL | D39: =SUM(D26:D37) -> 0 | E39: 0 | F39: 0 | G39: 0 | H39: 0 | I39: 958940 | K39: TOTAL | L39: =SUM(L26:L37) -> 0 | M39: 1630000 | N39: 0 | O39: 850000 | P39: 0 | Q39: 0 | R39: 0 | S39: =SUM(S26:S37) -> 2480000 | T39: 396800 | U39: 2876800 | V39: 0 | W39: 0 | X39: 0 | Y39: 2876800

Sheet IETU
B2: =+Hoja4!B4 -> carlos baez medina
B3: =+EGRESOS!A4 -> EJERCICIO FISCAL DEL 2012
B5: Calculo de IETU
C6: TRUE | D6: TRUE | E6: TRUE | F6: TRUE | G6: TRUE | H6: TRUE | I6: TRUE | J6: TRUE | K6: TRUE | L6: TRUE | M6: TRUE | N6: TRUE
C8: ENERO | D8: FEBRERO | E8: MARZO | F8: ABRIL | G8: MAYO | H8: JUNIO | I8: JULIO | J8: AGOSTO | K8: SEPTIEMBRE | L8: OCTUBRE | M8: NOVIEMBRE | N8: DICIEMBRE
B10: Calculo de Impuesto
B11: Ingresos Acumulables | C11: =IF($C$6,SUM(LLENAR!$F$7+LLENAR!$D$26)-('GASTOSNO DEDUCIBLES IETU'!$D$10),0) -> 950000 | D11: =IF($D$6,SUM(LLENAR!$F$8+LLENAR!$D$27+C11)-('GASTOSNO DEDUCIBLES IETU'!$E$10),0) -> 1031000 | E11: =IF($E$6,SUM(LLENAR!$F$9+LLENAR!$D$28+D11)-('GASTOSNO DEDUCIBLES IETU'!$F$10),0) -> 1067300 | F11: =IF($F$6,SUM(LLENAR!$F$10+LLENAR!$D$29+E11)-('GASTOSNO DEDUCIBLES IETU'!$G$10),0) -> 1072200 | G11: =IF($G$6,+(LLENAR!$D$30+LLENAR!$F$11+F11)-('GASTOSNO DEDUCIBLES IETU'!$H$10),0) -> 1861200 | H11: =IF($H$6,+(LLENAR!$F$12+LLENAR!$D$31+G11)-('GASTOSNO DEDUCIBLES IETU'!$I$10),0) -> 2650220 | I11: =IF($I$6,+(LLENAR!$F$13+LLENAR!$D$32+H11)-('GASTOSNO DEDUCIBLES IETU'!$J$10),0) -> 3438940 | J11: =IF(J6,+(LLENAR!$F$14+LLENAR!$D$33+I11)-('GASTOSNO DEDUCIBLES IETU'!$K$10),0) -> 3438940 | K11: =IF($K$6,+(LLENAR!$F$15+LLENAR!$D$34+J11)-('GASTOSNO DEDUCIBLES IETU'!$L$10),0) -> 3438940 | L11: =IF($L$6,+(LLENAR!$F$16+LLENAR!$D$35+K11)-('GASTOSNO DEDUCIBLES IETU'!$M$10),0) -> 3438940 | M11: =IF($M$6,+(LLENAR!$F$17+LLENAR!$D$36+L11)-('GASTOSNO DEDUCIBLES IETU'!$N$10),0) -> 3438940 | N11: =IF($N$6,+(LLENAR!$F$18+LLENAR!$D$37+M11)-('GASTOSNO DEDUCIBLES IETU'!$O$10),0) -> 3438940 | R11: 0.165
B12: Ingresos percibidos en el Periodo | C12: =IF($C$6,SUM(LLENAR!$F$7+LLENAR!$D$26)-('GASTOSNO DEDUCIBLES IETU'!$D$10),0) -> 950000 | D12: =IF($D$6,SUM(LLENAR!$F$8+LLENAR!$D$27)-('GASTOSNO DEDUCIBLES IETU'!$E$10),0) -> 81000 | E12: =IF($E$6,SUM(LLENAR!$F$9+LLENAR!$D$28)-('GASTOSNO DEDUCIBLES IETU'!$F$10),0) -> 36300 | F12: =IF($F$6,SUM(LLENAR!$F$10+LLENAR!$D$29)-('GASTOSNO DEDUCIBLES IETU'!$G$10),0) -> 4900 | G12: =IF($G$6,+(LLENAR!$D$30+LLENAR!$F$11)-('GASTOSNO DEDUCIBLES IETU'!$H$10),0) -> 789000 | H12: =IF($H$6,+(LLENAR!$F$12+LLENAR!$D$31)-('GASTOSNO DEDUCIBLES IETU'!$I$10),0) -> 789020 | I12: =IF($I$6,+(LLENAR!$F$13+LLENAR!$D$32)-('GASTOSNO DEDUCIBLES IETU'!$J$10),0) -> 788720 | J12: =IF(J6,+(LLENAR!$F$14+LLENAR!$D$33)-('GASTOSNO DEDUCIBLES IETU'!$K$10),0) -> 0 | K12: =IF($K$6,+(LLENAR!$F$15+LLENAR!$D$34)-('GASTOSNO DEDUCIBLES IETU'!$L$10),0) -> 0 | L12: =IF($L$6,+(LLENAR!$F$16+LLENAR!$D$35)-('GASTOSNO DEDUCIBLES IETU'!$M$10),0) -> 0 | M12: =IF($M$6,+(LLENAR!$F$17+LLENAR!$D$36)-('GASTOSNO DEDUCIBLES IETU'!$N$10),0) -> 0 | N12: =IF($N$6,+(LLENAR!$F$18+LLENAR!$D$37)-('GASTOSNO DEDUCIBLES IETU'!$O$10),0) -> 0
A13: (-) | B13: Deducciones Acumulables | C13: =IF($C$6,+LLENAR!$S$26-'GASTOSNO DEDUCIBLES IETU'!$D$24,0) -> 800000 | D13: =IF($D$6,SUM(LLENAR!$S$27+C13-'GASTOSNO DEDUCIBLES IETU'!$E$24),0) -> 1650000 | E13: =IF($E$6,SUM(LLENAR!S28+$D$13-'GASTOSNO DEDUCIBLES IETU'!$F$24),0) -> 2480000 | F13: =IF($F$6,SUM(LLENAR!$S$29+$E$13-'GASTOSNO DEDUCIBLES IETU'!$G$24),0) -> 2480000 | G13: =IF($G$6,SUM(LLENAR!$S$30+$F$13-'GASTOSNO DEDUCIBLES IETU'!$H$24),0) -> 2480000 | H13: =IF($H$6,SUM(LLENAR!$S$31+$G$13-'GASTOSNO DEDUCIBLES IETU'!$I$24),0) -> 2480000 | I13: =IF($I$6,SUM(LLENAR!$S$32+$H$13-'GASTOSNO DEDUCIBLES IETU'!$J$24),0) -> 2480000 | J13: =IF($J$6,SUM(LLENAR!S33+$I$13-'GASTOSNO DEDUCIBLES IETU'!$K$24),0) -> 2480000 | K13: =IF($K$6,SUM(LLENAR!S34+$J$13-'GASTOSNO DEDUCIBLES IETU'!$L$24),0) -> 2480000 | L13: =IF($L$6,SUM(LLENAR!$S$35+K13-'GASTOSNO DEDUCIBLES IETU'!$M$24),0) -> 2480000 | M13: =IF($M$6,SUM(LLENAR!$S$36+L13-'GASTOSNO DEDUCIBLES IETU'!$N$24),0) -> 2480000 | N13: =IF($N$6,SUM(LLENAR!$S$37+$M$13-'GASTOSNO DEDUCIBLES IETU'!$O$24),0) -> 2480000 | R13: 0.17
B14: Deducciones autorizadas pagadas | C14: =IF($C$6,+LLENAR!$S$26-'GASTOSNO DEDUCIBLES IETU'!$D$24,0) -> 800000 | D14: =IF($D$6,SUM(LLENAR!$S$27-'GASTOSNO DEDUCIBLES IETU'!$E$24),0) -> 850000 | E14: =IF($E$6,SUM(LLENAR!S28-'GASTOSNO DEDUCIBLES IETU'!$F$24),0) -> 830000 | F14: =IF($F$6,SUM(LLENAR!$S$29-'GASTOSNO DEDUCIBLES IETU'!$G$24),0) -> 0 | G14: =IF($G$6,SUM(LLENAR!$S$30-'GASTOSNO DEDUCIBLES IETU'!$H$24),0) -> 0 | H14: =IF($H$6,SUM(LLENAR!$S$31-'GASTOSNO DEDUCIBLES IETU'!$I$24),0) -> 0 | I14: =IF($I$6,SUM(LLENAR!$S$32-'GASTOSNO DEDUCIBLES IETU'!$J$24),0) -> 0 | J14: =IF($J$6,SUM(LLENAR!S33-'GASTOSNO DEDUCIBLES IETU'!$K$24),0) -> 0 | K14: =IF($K$6,SUM(LLENAR!S34-'GASTOSNO DEDUCIBLES IETU'!$L$24),0) -> 0 | L14: =IF($L$6,SUM(LLENAR!$S$35-'GASTOSNO DEDUCIBLES IETU'!$M$24),0) -> 0 | M14: =IF($M$6,SUM(LLENAR!$S$36-'GASTOSNO DEDUCIBLES IETU'!$N$24),0) -> 0 | N14: =IF($N$6,SUM(LLENAR!$S$37-'GASTOSNO DEDUCIBLES IETU'!$O$24),0) -> 0
A15: (=) | B15: Resultado | C15: =IF(C11>C13,(C11-C13),0) -> 150000 | D15: =IF(D11>D13,(D11-D13),0) -> 0 | E15: 0 | F15: 0 | G15: 0 | H15: 170220 | I15: 958940 | J15: 958940 | K15: 958940 | L15: 958940 | M15: 958940 | N15: 958940 | R15: 0.175
A16: (X) | B16: Tasa | C16: 0.175 | D16: =+C16 -> 0.175 | E16: =+C16 -> 0.175 | F16: =+E16 -> 0.175 | G16: 0.175 | H16: 0.175 | I16: 0.175 | J16: 0.175 | K16: 0.175 | L16: 0.175 | M16: 0.175 | N16: 0.175
A17: (=) | B17: Impuesto determinado | C17: =+C15*C16 -> 26250 | D17: =+D15*D16 -> 0 | E17: 0 | F17: 0 | G17: 0 | H17: 29788.5 | I17: 167814.5 | J17: 167814.5 | K17: 167814.5 | L17: 167814.5 | M17: 167814.5 | N17: 167814.5
A18: (-) | B18: Crédito fiscal | C18: 0 | D18: 0 | E18: 0 | F18: 0 | G18: 0 | H18: 0 | I18: 0 | J18: 0 | K18: 0 | L18: 0 | M18: 0 | N18: 0
A19: (-) | B19: Créd X salar y Aport de Seg. Social pagados | C19: =IF(C17>0,(+C44),0) -> 0 | D19: =+D44 -> 0 | E19: 0 | F19: 0 | G19: 0 | H19: 0 | I19: 0 | J19: 0 | K19: 0 | L19: 0 | M19: 0 | N19: 0
A20: (=) | B20: Resultado | C20: =+C17-C18-C19 -> 26250 | D20: =+D17-D18-D19 -> 0 | E20: 0 | F20: 0 | G20: 0 | H20: 29788.5 | I20: 167814.5 | J20: 167814.5 | K20: 167814.5 | L20: 167814.5 | M20: 167814.5 | N20: 167814.5
A21: (-) | B21: Pago Provisional del ISR propio pagado. | D21: 0 | E21: 0 | F21: 0 | G21: 0 | H21: 0 | I21: 0 | J21: 0 | K21: 0 | L21: 0 | M21: 0 | N21: 0
A22: (=) | B22: Impuesto determinado | C22: =+C20-C21 -> 26250 | D22: =+D20-D21 -> 0 | E22: 0 | F22: 0 | G22: 0 | H22: 29788.5 | I22: 167814.5 | J22: 167814.5 | K22: 167814.5 | L22: 167814.5 | M22: 167814.5 | N22: 167814.5
A23: (-) | B23: Pago Provisional de IETU pagados | C23: 0 | D23: 0 | E23: 0 | F23: 0 | G23: 0 | H23: 0 | I23: 0 | J23: 0 | K23: 0 | L23: 0 | M23: 0 | N23: 0
A24: (=) | B24: Impuesto a cargo / favor | C24: =+C22-C23 -> 26250 | D24: =+D22-D23 -> 0 | E24: 0 | F24: 0 | G24: 0 | H24: 29788.5 | I24: 167814.5 | J24: 167814.5 | K24: 167814.5 | L24: 167814.5 | M24: 167814.5 | N24: 167814.5
A29: Crédito por salarios y aportaciones de Seguridad Social
C31: ENERO | D31: FEBRERO | E31: MARZO | F31: ABRIL | G31: MAYO | H31: JUNIO | I31: JULIO | J31: AGOSTO | K31: SEPTIEMBRE | L31: OCTUBRE | M31: NOVIEMBRE | N31: DICIEMBRE
B33: Calculo de Impuesto
B34: Salarios y demas Prestasiones | C34: =+'GASTOSNO DEDUCIBLES IETU'!D14 -> 0 | D34: =+'GASTOSNO DEDUCIBLES IETU'!E14+C34 -> 0 | E34: =+'GASTOSNO DEDUCIBLES IETU'!F14+D34 -> 0 | F34: =+'GASTOSNO DEDUCIBLES IETU'!G14+E34 -> 0 | G34: =+'GASTOSNO DEDUCIBLES IETU'!H14+F34 -> 0 | H34: =+'GASTOSNO DEDUCIBLES IETU'!I14+G34 -> 0 | I34: =+'GASTOSNO DEDUCIBLES IETU'!J14+H34 -> 0 | J34: =+'GASTOSNO DEDUCIBLES IETU'!K14+I34 -> 0 | K34: =+'GASTOSNO DEDUCIBLES IETU'!L14+J34 -> 0 | L34: =+'GASTOSNO DEDUCIBLES IETU'!M14+K34 -> 0 | M34: =+'GASTOSNO DEDUCIBLES IETU'!N14+L34 -> 0 | N34: =+'GASTOSNO DEDUCIBLES IETU'!O14+M34 -> 0
A35: (-) | B35: Salarios y demas prestasiones Exentas
A36: (=) | B36: Sueldos y demas Prestasiones Gravadas | C36: =+C34-C35 -> 0 | D36: 0 | E36: 0 | F36: 0 | G36: 0 | H36: 0 | I36: 0 | J36: 0 | K36: 0 | L36: 0 | M36: 0 | N36: 0
A37: (+) | B37: Cuotas IMSS | C37: =+'GASTOSNO DEDUCIBLES IETU'!D16 -> 0 | D37: =+'GASTOSNO DEDUCIBLES IETU'!E16+C37 -> 0 | E37: =+'GASTOSNO DEDUCIBLES IETU'!F16+D37 -> 0 | F37: =+'GASTOSNO DEDUCIBLES IETU'!G16+E37 -> 0 | G37: =+'GASTOSNO DEDUCIBLES IETU'!H16+F37 -> 0 | H37: =+'GASTOSNO DEDUCIBLES IETU'!I16+G37 -> 0 | I37: =+'GASTOSNO DEDUCIBLES IETU'!J16+H37 -> 0 | J37: =+'GASTOSNO DEDUCIBLES IETU'!K16+I37 -> 0 | K37: =+'GASTOSNO DEDUCIBLES IETU'!L16+J37 -> 0 | L37: =+'GASTOSNO DEDUCIBLES IETU'!M16+K37 -> 0 | M37: =+'GASTOSNO DEDUCIBLES IETU'!N16+L37 -> 0 | N37: =+'GASTOSNO DEDUCIBLES IETU'!O16+M37 -> 0
A38: (+) | B38: Aportaciones Cesantia y Vejez | C38: =+'GASTOSNO DEDUCIBLES IETU'!D18 -> 0 | D38: =+'GASTOSNO DEDUCIBLES IETU'!E18+C38 -> 0 | E38: =+'GASTOSNO DEDUCIBLES IETU'!F18+D38 -> 0 | F38: =+'GASTOSNO DEDUCIBLES IETU'!G18+E38 -> 0 | G38: =+'GASTOSNO DEDUCIBLES IETU'!H18+F38 -> 0 | H38: =+'GASTOSNO DEDUCIBLES IETU'!I18+G38 -> 0 | I38: =+'GASTOSNO DEDUCIBLES IETU'!J18+H38 -> 0 | J38: =+'GASTOSNO DEDUCIBLES IETU'!K18+I38 -> 0 | K38: =+'GASTOSNO DEDUCIBLES IETU'!L18+J38 -> 0 | L38: =+'GASTOSNO DEDUCIBLES IETU'!M18+K38 -> 0 | M38: =+'GASTOSNO DEDUCIBLES IETU'!N18+L38 -> 0 | N38: =+'GASTOSNO DEDUCIBLES IETU'!O18+M38 -> 0
A39: (+) | B39: Aportaciones Retiro | C39: =+'GASTOSNO DEDUCIBLES IETU'!D20 -> 0 | D39: =+'GASTOSNO DEDUCIBLES IETU'!E20+C39 -> 0 | E39: =+'GASTOSNO DEDUCIBLES IETU'!F20+D39 -> 0 | F39: =+'GASTOSNO DEDUCIBLES IETU'!G20+E39 -> 0 | G39: =+'GASTOSNO DEDUCIBLES IETU'!H20+F39 -> 0 | H39: =+'GASTOSNO DEDUCIBLES IETU'!I20+G39 -> 0 | I39: =+'GASTOSNO DEDUCIBLES IETU'!J20+H39 -> 0 | J39: =+'GASTOSNO DEDUCIBLES IETU'!K20+I39 -> 0 | K39: =+'GASTOSNO DEDUCIBLES IETU'!L20+J39 -> 0 | L39: =+'GASTOSNO DEDUCIBLES IETU'!M20+K39 -> 0 | M39: =+'GASTOSNO DEDUCIBLES IETU'!N20+L39 -> 0 | N39: =+'GASTOSNO DEDUCIBLES IETU'!O20+M39 -> 0
A40: (+) | B40: Aportaciones Infonavit | C40: =+'GASTOSNO DEDUCIBLES IETU'!D22 -> 0 | D40: =+'GASTOSNO DEDUCIBLES IETU'!E22+C40 -> 0 | E40: =+'GASTOSNO DEDUCIBLES IETU'!F22+D40 -> 0 | F40: =+'GASTOSNO DEDUCIBLES IETU'!G22+E40 -> 0 | G40: =+'GASTOSNO DEDUCIBLES IETU'!H22+F40 -> 0 | H40: =+'GASTOSNO DEDUCIBLES IETU'!I22+G40 -> 0 | I40: =+'GASTOSNO DEDUCIBLES IETU'!J22+H40 -> 0 | J40: =+'GASTOSNO DEDUCIBLES IETU'!K22+I40 -> 0 | K40: =+'GASTOSNO DEDUCIBLES IETU'!L22+J40 -> 0 | L40: =+'GASTOSNO DEDUCIBLES IETU'!M22+K40 -> 0 | M40: =+'GASTOSNO DEDUCIBLES IETU'!N22+L40 -> 0 | N40: =+'GASTOSNO DEDUCIBLES IETU'!O22+M40 -> 0
B41: Aportaciones de seguridad social pagadas | C41: =SUM(C37:C40) -> 0 | D41: =SUM(D37:D40) -> 0 | E41: 0 | F41: 0 | G41: 0 | H41: 0 | I41: 0 | J41: 0 | K41: 0 | L41: 0 | M41: 0 | N41: 0
A42: (=) | B42: Resultado | C42: =+C36+C41 -> 0 | D42: =+D36+D41 -> 0 | E42: 0 | F42: 0 | G42: 0 | H42: 0 | I42: 0 | J42: 0 | K42: 0 | L42: 0 | M42: 0 | N42: 0
A43: (X) | B43: Factor | C43: =+C16 -> 0.175 | D43: =+C43 -> 0.175 | E43: =+D43 -> 0.175 | F43: 0.175 | G43: 0.175 | H43: 0.175 | I43: 0.175 | J43: 0.175 | K43: 0.175 | L43: 0.175 | M43: 0.175 | N43: 0.175
A44: (=) | B44: Cantidad acreditable | C44: =+C42*C43 -> 0 | D44: =+D42*D43 -> 0 | E44: =+E42*E43 -> 0 | F44: 0 | G44: 0 | H44: 0 | I44: 0 | J44: 0 | K44: 0 | L44: 0 | M44: 0 | N44: 0

Sheet IETU REF
B1: =+Hoja4!B4 -> carlos baez medina | D1: R.F.C. | F1: =+Hoja4!H4 -> BAMC791005K70 | G1: MES | H1: =+K4 -> ENERO | J1: ISR REFERENCIADOS | L1: Seleccional
B2: DETERMINACIÓN DEL IMPUESTO R54 | L2: SI
B3: Impuesto Empresarial a Tasa Única | L3: NO
J4: MES: | K4: ENERO
B6: IMPUESTO EMPRESARIAL A TASA ÚNICA
B8: Indique si es contribuyente que lleva a cabo operaciones de maquila de conformidad con el decreto para el fomento de la industria manufacturera, maquiladora y de servicios de exportación | D8: NO | K8: SELECCIONAR EL MES
B10: Determinación del Impuesto
O11: ENERO
B12: Suma de Ingresos percibidos de meses anteriores del ejercicio | D12: =HLOOKUP(K4,IETU!C8:N11,4,0)-D14 -> 0 | F12: Crédito fiscal de inventarios del periodo que declara | O12: FEBRERO
O13: MARZO
B14: Ingresos percibidos del periodo | D14: =HLOOKUP(K4,IETU!C8:N12,5,0) -> 950000 | F14: Crédito fiscal de deducción inmediata / pérdidas fiscales del periodo que declara | O14: ABRIL
O15: MAYO
B16: Total de Ingresos percibidos | D16: =+D12+D14 -> 950000 | F16: Crédito fiscal sobre pérdidas fiscales (Régimen simplificado) del periodo que declara | O16: JUNIO
O17: JULIO
B18: Ingresos por los que no se pagará el Impuesto (Exentos) | F18: Crédito fiscal por enajenaciones a plazos del periodo que declara | O18: AGOSTO
O19: SEPTIEMBRE
B20: Suma de Deducciones autorizadas de meses anteriores | D20: =HLOOKUP(K4,IETU!C8:N13,6,0)-D22 -> 0 | F20: Acreditamiento de pagos provisionales del ISR enterados ante las oficinas autorizadas del periodo que declara | O20: OCTUBRE
O21: NOVIEMBRE
B22: Deducciones Autorizadas | D22: =HLOOKUP(K4,IETU!C8:N16,7,0) -> 800000 | F22: Acreditamiento de pagos provisionales del ISR entregados a la controladora del periodo que declara | O22: DICIEMBRE
B24: Total de Deducciones del periodo | D24: =+D20+D22 -> 800000 | F24: Acreditamiento del ISR retenido del periodo que declara
B26: Base Gravable del Pago Provisional | D26: =IF(D24<D16,SUM(D16-D24),0) -> 150000 | F26: Impuesto a Cargo (1a Diferencia) | H26: =+D28-D30-D32-D34-D36-H12-H14-H16-H18-H20-H22-H24 -> 26250
B28: Impuesto causado del periodo que declara | D28: =+D26*17.5% -> 26250 | F28: Acreditamiento para empresas maquiladoras del periodo que declara
B30: Crédito Fiscal por deducciones mayores a los ingresos | F30: Pagos provisionales de IETU efectuados en el periodo anterior
B32: Acreditamiento por sueldos y salarios gravados del periodo que declara | F32: Otras cantidades a cargo del contribuyente del periodo que declara
B34: Acreditamiento por aportaciones de seguridad social patronales del periodo que declara | F34: Otras cantidades a favor del contribuyente del periodo que declara
B36: Crédito fiscal por inversiones (1998 a 2007) del periodo que declara | F36: Impuesto a cargo | H36: =+H26-H28-H30+H32-H34 -> 26250
B42: Parte proporcional del IETU por las actividades de maquila | F42: Monto total de pagos correspondientes a sueldos y salarios gravados del periodo que declara
B44: Parte proporcional del ISR propio por las actividades de maquila | F44: Monto total de aportaciones de seguridad social patronales pagadas del periodo que declara
B46: Contraprestaciones que efectivamente se cobren en el periodo que declara por las enajenaciones a plazo | F46: Monto total de los pagos provisionales del ISR enterados ante las oficinas autorizadas del periodo que declara
B48: Parte proporcional del ISR acreditable contra IETU del periodo que declara | F48: Monto total de los pagos provisionales del ISR entregados a la controladora del periodo que declara
B50: Utilidad fiscal para pagos provisionales en las actividades de maquila | F50: Monto total del ISR retenido del periodo que declara

Sheet ISR REF
B1: INICIO | H1: IVA REFERENCIADO | N1: IETU REFERENCIADO
B2: =+'IETU REF'!B1 -> carlos baez medina | D2: =+'IETU REF'!D1 -> R.F.C. | F2: =+'IETU REF'!F1 -> BAMC791005K70 | G2: =+'IETU REF'!G1 -> MES | H2: =+'IETU REF'!H1 -> ENERO
B3: DETERMINACIÓN DEL IMPUESTO | N3: MES: | O3: =+'IETU REF'!K4 -> ENERO
B4: R8 ISR personas físicas. Actividad empresarial Regimen intermedio para la Federacion
B7: Suma de ingresos de meses anteriores del ejercicio | D7: =HLOOKUP(O3,'Calculo automatico '!C10:N22,3,0)-D9 -> 0 | F7: Impuesto determinado del Periodo a la entidad Federativa | H7: =IF(D11>D23,((D11-D23)*5%),0) -> 7500
B9: Ingresos del Periodo | D9: =HLOOKUP(O3,'Calculo automatico '!C10:N24,4,0) -> 950000 | F9: Pagos provisionales correspondientes a los efectuados a la entidad federativa en el mismo ejercicio
B11: Total de ingresos | D11: =+D7+D9 -> 950000 | F11: Otras cantidades a cargo del contribuyente
B13: Ingresos exentos | F13: Otras cantidades a favor del contribuyente
B15: Suma de deducciones autorizadas de meses anteriores | D15: =HLOOKUP(O3,'Calculo automatico '!C10:N24,5,0)-D17 -> 0 | F15: Pago mensual a enterar a la entidad federativa | H15: =+H7-H9+H11-H13 -> 7500
B17: Deducciones Autorizadas | D17: =HLOOKUP(O3,'Calculo automatico '!C10:N32,6,0) -> 800000 | F17: Indique si enterara el impuesto a cargo directamente a la entidad federativa | H17: SI
B19: Deducción del Impuesto local o cedular | F19: Pagos provisionales efectuados con anterioridad a la federacion
B21: Deducción de inversiones (proporcional) | F21: Pago del mes a la federacion | H21: =IF(D33>H15,(+D33-H19-H9-H15),0) -> 27678.948
B23: Total de deducciones | D23: =+D15+D17+D19+D21 -> 800000 | F23: Impuesto retenido | L23: SI
L24: NO
B25: Participación de los trabajadores en la utilidad | F25: Otras cantidades a cargo del contribuyente
B27: Pérdidas fiscales de ejercicios anteriores pendientes de aplicar | F27: Otras cantidades a favor del contribuyente
B29: Deducción Adicional del Fomento al Primer Empleo | F29: Diferencia a cargo | H29: =+H21-H23+H25-H27 -> 27678.948
B31: ¿Desea el cálculo automático de su impuesto? | D31: SI | F31: Impuesto a la federacion | H31: =+H29 -> 27678.948
B33: Impuesto a cargo (art 113 lisr)(Impuesto determinado conforme al art 127 LISR) | D33: =HLOOKUP(O3,'Calculo automatico '!C10:N32,11,0) -> 35178.948
B38: DETERMINACIÓN DEL IMPUESTO
B39: R8 ISR personas físicas. Actividad empresarial Regimen intermedio para la Federacion
B42: A cargo | D42: =+H31 -> 27678.948 | F42: Diesel Marino
M43: Seleccionar
B44: Parte actualizada | F44: Total de aplicaciones | H44: =+D48-D50*D52*D54*D56*D58*D60*D62*D64*D66*H42 -> 27678.948 | M44: SI
M45: NO
B46: Recargos | F46: Fecha del pago realizado con anterioridad
B48: Multa por corrección | D48: =+D42+D44+D46 -> 27678.948 | F48: Monto pagado con anterioridad
B50: Total de contribuciones | F50: ¿Usted realizó en las últimas 48 horas un pago para este concepto? | H50: Seleccionar
B52: Crédito al salario | F52: Importe pagado en las últimas 48 horas
B54: Subsidio para el empleo | F54: Cantidad a cargo | H54: =+H44-H48 -> 27678.948
B56: Impuesto a los Depósitos en Efectivo acreditable | F56: ¿Aplica Primera Parcialidad? | H56: Seleccionar
B58: Compensaciones | F58: Importe sin la 1ra. parcialidad
B60: Crédito IEPS diesel sector primario y minero | F60: Cantidad a favor | H60: =IF(H54<1,H54,0) -> 0
B62: Diesel automotriz para transporte | F62: Cantidad a pagar | H62: =IF(H54>0,H54,0) -> 27678.948
B64: Uso de Infraestructura carretera de cuota
B66: Otros estímulos

Sheet IVA REF
C2: =+'ISR REF'!B2 -> carlos baez medina | E2: =+'ISR REF'!D2 -> R.F.C. | G2: =+'IETU REF'!F1 -> BAMC791005K70 | H2: =+'ISR REF'!G2 -> MES | I2: =+'ISR REF'!H2 -> ENERO | K2: ISR REFERENCIADO
C3: DETERMINACIÓN DEL IMPUESTO
C4: R21 Impuesto al Valor Agregado | K4: MES: | L4: =+'ISR REF'!O3 -> ENERO
C7: Montos de los actos o actividades pagados
C9: Total de los actos o actividades pagados a la tasa del 16% de IVA | E9: =VLOOKUP(L4,LLENAR!A26:T37,19) -> 800000 | G9: Total de los actos o actividades pagados incluyendo importaciones a la tasa del 15% de IVA (Vigente en 2009)
C11: Total de los actos o actividades pagados a la tasa del 11% de IVA | G11: Total de los actos o actividades pagados incluyendo importaciones a la tasa del 10% de IVA (Vigente en 2009)
C13: Total de los actos o actividades pagados en la importación de bienes y servicios a la tasa del 16% de IVA | G13: Total de los demás actos o actividades pagados a la tasa del 0% de IVA
C15: Total de los actos o actividades pagados en la importación de bienes y servicios a la tasa del 11% de IVA | G15: Total de los actos o actividades pagados por los que no se pagará el IVA (Exentos)
C19: Detalle del total de los actos o actividades pagados a la tasa del 16% de IVA
C21: Intereses pagados a la tasa del 16% | G21: Otros actos o actividades pagados a la tasa del 16% | I21: =VLOOKUP(L4,LLENAR!A26:T37,19) -> 800000
C23: Regalías pagadas entre partes relacionadas a la tasa del 16% | G23: Total de los actos o actividades pagados a la tasa del 16% | I23: =+I21 -> 800000
C26: Detalle del total de los actos o actividades pagados a la tasa del 11% de IVA
C28: Intereses pagados a la tasa del 11% | G28: Otros actos o actividades pagados a la tasa del 11%
C30: Regalías pagadas entre partes relacionadas a la tasa del 11% | G30: Total de los actos o actividades pagados a la tasa del 11%
C34: Detalle del total de los actos o actividades pagados en la importación de bienes y servicios a la tasa del 16% de IVA.
C36: Importación de bienes intangibles a la tasa del 16% | G36: Otros actos o actividades pagados en la importación de bienes y servicios a la tasa del 16%
C38: Importación de uso o goce temporal de bienes intangibles a la tasa del 16% | G38: Total de los actos o actividades pagados en la importación de bienes y servicios a la tasa del 16%
C40: Importación de servicios a la tasa del 16%
C44: Detalle del total de los actos o actividades pagados en la importación de bienes y servicios a la tasa del 11% de IVA
C46: Importación de bienes intangibles a la tasa del 11% | G46: Otros actos o actividades pagados en la importación de bienes y servicios a la tasa del 11%
C48: Importación de uso o goce temporal de bienes intangibles a la tasa del 11% | G48: Total de los actos o actividades pagados en la importación de bienes y servicios a la tasa del 11%
C50: Importación de servicios a la tasa del 11%
C54: Detalle del total de los actos o actividades pagados por los que no se pagará el IVA (Exentos)
C56: Adquisición de suelo y construcciones adheridas al suelo, destinadas o utilizadas para casa habitación | G56: Aseguramiento contra riesgos agropecuarios
C58: Adquisición de libros, periódicos o revistas (No editados por el contribuyente) | G58: Uso o goce temporal de fincas para fines agrícolas o ganaderos
C60: Regalías pagadas a los autores | G60: Actos o actividades pagados en la importación de bienes y servicios exentos
C62: Adquisición de bienes muebles usados excepto los adquiridos de empresas | G62: Otros actos o actividades pagados exentos
C64: Servicio de transporte público terrestre de personas | G64: Total de los actos o actividades pagados exentos
C66: Servicios profesionales de medicina
C75: DETERMINACION DEL IMPUESTO AL VALOR AGREGADO ACREDITABLE
C76: TOTAL DEL IVA DE ACTOS O ACTIVIDADES PAGADOS A LA TASA DEL 16% | E76: =+E9*16% -> 128000 | G76: TOTAL DE IVA CORRESPONDIENTE A ACTOS O ACTIVIDADES GRAVADOS | I76: =+E92 -> 128000
C78: TOTAL DEL IVA DE ACTOS O ACTIVIDADES PAGADOS A LA TASA DEL 11% | G78: IVA TRASLADADO O PAGADO EN LA IMPORTACION POR ADQUISICION DE BIENES DISTINTOS DE LAS INVERSIONES, ADQUISICION DE SERVICIOS O POR EL USO O GOCE TEMPORAL DE BIENES DESTINADOS EXCLUSIVAMENTE PARA REALIZAR ACTOS O ACTIVIDADES POR LOS QUE NO SE ESTA OBLIGADO AL PAGO DEL IMPUESTO.
C81: TOTAL DE IVA DE ACTOS O ACTIVIDADES PAGADOS EN LA IMPORTACION DE BIENES Y SERVICIOS A LA TASA DEL 16% | G81: IVA TRASLADADO O PAGADO EN LA IMPORTACION DE INVERSIONES DESTINADAS EXCLUSIVAMENTE PARA REALIZAR ACTOS O ACTIVIDADES POR LOS QUE NO SE ESTA OBLIGADO AL PAGO DE IMPUESTO.
C83: TOTAL DE IVA DE ACTOS O ACTIVIDADES PAGADOS EN LA IMPORTACION DE BIENES Y SERVICIOS A LA TASA DEL 11% | G83: IVA DE BIENES UTILIZADOS INDISTINTAMENTE PARA REALIZAR ACTOS O ACTIVIDADES GRAVADOS Y ACTOS O ACTIVIDADES POR LOS QUE NO SE ESTA OBLIGADO AL PAGO DEL IMPUESTO
C85: TOTAL DE IVA DE ACTOS O ACTIVIDADES PAGADOS INCLUYENDO IMPORTACIONES A LA TASA DEL 15% (VIGENTE AL 2009) | G85: PROPORCION UTILIZADA CONFORME AL ARTICULO 5 DE LA LIVA
C87: TOTAL DE IVA DE ACTOS O ACTIVIDADES PAGADOS INCLUYENDO IMPORTACIONES A LA TASA DEL 10% (VIGENTE AL 2009) | G87: PROPORCION UTILIZADA CONFORME AL ARTICULO 5-B DE LA LIVA
C90: TOTAL DE IVA TRASLADADO AL CONTRIBUYENTE (EFECTIVAMENTE PAGADO) | E90: =+E76 -> 128000 | G90: IVA ACREDITABLE DE BIENES UTILIZADOS INDISTINTAMENTE PARA REALIZAR ACTOS O ACTIVIDADES GRAVADOS Y ACTOS O ACTIVIDADES POR LOS QUE NO SE ESTA OBLIGADO AL PAGO DEL IMPUESTO
C92: IVA TRASLADADO POR ADQUISICIONES DE BIENES DISTINTOS DE LAS INVERSIONES, ADQUISICION DE SERVICIOS O POR EL USO O GOCE TEMPORAL DE BIENES QUE SE UTILIZAN EXCLUSIVAMENTE PARA REALIZAR ACTOS O ACTIVIDADES GRAVADOS. | E92: =+E90 -> 128000 | G92: IVA ACREDITABLE | I92: =+I76 -> 128000
C94: IVA PAGADO EN LA IMPORTACION POR ADQUISICIONES DE BIENES DISTINTOS DE LAS INVERSIONES, ADQUISICION DE SERVICIOS O POR EL USO O GOCE TEMPORAL DE BIENES QUE SE UTILIZAN EXCLUSIVAMENTE PARA REALIZAR ACTOS O ACTIVIDADES GRAVADOS. | G94: MONTO ACREDITALBE ACTUALIZADO A INCREMENTAR DERIVADO DEL AJUSTE
C96: IVA TRASLADADO POR LA ADQUISICION DE INVERSIONES DESTINADAS EXCLUSIVAMENTE PARA REALIZAR ACTOS O ACTIVIDADES GRAVADOS | G96: TOTAL DE IVA ACREDITABLE DEL PERIODO | I96: =+I92 -> 128000
C98: IVA PAGADO POR LA IMPORTACION DE INVERSIONES DESTINADAS EXCLUSIVAMENTE PARA REALIZAR ACTOS O ACTIVIDADES GRAVADOS
C103: DETERMINACION DE IMPUESTO AL VALOR AGREGADO
C105: VALOR DE LOS ACTOS O ACTIVIDADES GRAVADOS A LA TASA DEL 16 % | E105: =+I139 -> 950000 | G105: OTRAS CANTIDADES A CARGO DEL CONTRIBUYENTE
C107: VALOR DE LOS ACTOS O ACTIVIDADES GRAVADOS A LA TASA DEL 11 % | G107: OTRAS CANTIDADES A FAVOR DEL CONTRIBUYENTE
C109: VALOR DE LOS ACTOS O ACTIVIDADES GRAVADOS A LA TASA DEL 15 % (VIGENTES DEL 2009) | G109: CANTIDAD A CARGO | I109: =IF(E123-E127-E129>0,(+E123-E127-E129-I107+I105),0) -> 24000
C111: VALOR DE LOS ACTOS O ACTIVIDADES GRAVADOS A LA TASA DEL 10 % (VIGENTES DEL 2009) | G111: CANTIDAD A FAVOR | I111: =IF(E123-E129-E127<1,(E123-E127-E129),0) -> 0
C115: VALOR DE LOS ACTOS O ACTIVIDADES GRAVADOS A LA TASA DEL 0 % EXPORTACION | G115: DEVOLUCION INMEDIATA OBTENIDA.
C117: VALOR DE LOS ACTOS O ACTIVIDADES GRAVADOS A LA TASA DEL 0 % OTROS | G117: SALDO A FAVOR DEL PERIODO | I117: =+I111 -> 0
C119: SUMA DE LOS ACTOS O ACTIVIDADES GRAVADOS | E119: =+E105+E107+E109+E111+E115+E117 -> 950000 | G119: ACREDITMIENTO DEL SALDO A FAVOR DE PERIODOS ANTERIORES (SIN EXCEDER DE LA CANTIDAD A CARGO)
C121: VALOR DE LOS ACTOS O ACTIVIDADES POR LOS QUE NO SE DEBA PAGAR EL IMPUESTO (EXENTOS) | G121: DIFERENCIA A CARGO | I121: =+I109-I119 -> 24000
C123: IMPUESTO CAUSADO | E123: =+E119*16% -> 152000 | G123: IEPS ACREDITABLE DE ALCOHOL, ALCOHOL DESNATURALIZADO Y MIELES INCRISTALIZABLES DE PRODUCTOS DISTINTOS DE BEBIDAS ALCOHOLICAS
C125: CANTIDAD ACTUALIZADA A REINTEGRARSE DERIVADA DEL AJUSTE | G125: IMPUESTO A CARGO | I125: =+I121 -> 24000
C127: IVA RETENIDO AL CONTRIBUYENTE | G127: REMANENTE DE SALDO A FAVOR IEPS ACREDITABLE DE ALCOHOL, ALCOHOL DESNATURALIZADO Y MIELES INCRISTALIZABLES DE PRODUCTOS DISTINTOS DE BEBIDAS ALCOHOLICAS.
C129: TOTAL DE IVA ACREDITABLE | E129: =+I96 -> 128000
C135: DETALLE DEL VALOR DE LOS ACTOS O ACTIVIDADES GRAVADOS A LA TASA DEL 16%
C137: INTERESES COBRADOS A LA TASA DEL 16% | G137: OTROS ACTOS O ACTIVIDADES GRAVADOS A LA TASA DEL 16% | I137: =VLOOKUP(L4,LLENAR!A7:G18,6) -> 950000
C139: REGALIAS ENTRE PARTES RELACIONADAS A LA TASA DEL 16% | G139: TOTAL DE LOS ACTOS O ACTIVIDADES GRAVADOS A LA TASA DEL 16% | I139: =+I137 -> 950000
C143: DETALLE DEL VALOR DE LOS ACTOS O ACTIVIDADES GRAVADOS A LA TASA DEL 11%
C145: INTERESES COBRADOS A LA TASA DEL 11% | G145: OTROS ACTOS O ACTIVIDADES GRAVADOS A LA TASA DEL 11%
C147: REGALIAS ENTRE PARTES RELACIONADAS A LA TASA DEL 11% | G147: TOTAL DE LOS ACTOS O ACTIVIDADES GRAVADOS A LA TASA DEL 11%
C151: DETALLE DEL VALOR DE LOS ACTOS O ACTIVIDADES GRAVADOS A LA TASA DEL 0%
C153: ACTIVIDADES AGRICOLAS, GANADERAS, SERVICOLA O PESQUERAS A LA TASA DEL 0% | G153: TOTAL DE LOS ACTOS O ACTIVIDADES GRAVADOS A LA TASA DEL 0%
C155: OTROS ACTOS O ACTIVIDADES GRAVADOS A LA TASA DEL 0%
C159: DETALLES DEL PAGO
C160: R21 IMPUESTO AL VALOR AGREGADO
C162: A CARGO | E162: =IF(I125>0,(I125),0) -> 24000 | G162: CERTIFICADOS TESOFE
C164: A FAVOR | E164: =IF(I117<1,(I117),0) -> 0 | G164: DIESEL MARINO
C166: PARTE ACTUALIZADA | G166: TOTAL DE APLICACIONES | I166: =+E174+E176+E178+E180+E182+E184+I162+I164 -> 0
C168: RECARGOS | G168: FECHA DE PAGO REALIZADO CON ANTERIORIDAD
C170: MULTA POR CORRECIÓN | G170: MONTO PAGADO CON ANTERIORIDAD
C172: TOTAL DE CONTRIBUCIONES | E172: =IF(E162>0,(E162),E164) -> 24000 | G172: IMPORTE PAGADO EN LAS ULTIMAS 48 HORAS
C174: CRÉDITO AL SALARIO | G174: CANTIDAD A CARGO | I174: =IF(E162>0,(E162-I166),E164) -> 24000
C176: SUBSIDIO PARA EL EMPLEO | G176: ¿APLICA PRIMERA PARCIALIDAD?
C178: COMPENSACIONES | G178: IMPORTE DE LA 1RA PERCIALIDAD | I178: 0
C180: DIESEL AUTOMOTRIZ PARA TRANSPORTE | G180: IMPORTE SIN LA 1RA PARCIALIDAD | I180: 0
C182: USO DE INFRAESTRUCTURA CARRETERA DE CUOTA | G182: CANTIDAD A FAVOR | I182: =IF(E164<0,(I174),0) -> 0
C184: OTOS ESTÍMULOS | G184: CANTIDAD A PAGAR | I184: =IF(E162>0,(I174),0) -> 24000

Sheet GASTOS
C2: PRESENTACION
C4: =+PRESENTACION!I2 -> carlos baez medina
C5: EJERCICIO 2012
C8: CEDULA GASTOS
E10: 1901-01-01 | F10: 1901-02-01 | G10: 1901-03-01 | H10: 1901-04-01 | I10: 1901-05-01 | J10: 1901-06-01 | K10: 1901-07-01 | L10: 1901-08-01 | M10: 1901-09-01 | N10: 1901-10-01 | O10: 1901-11-01 | P10: 1901-12-01
C12: Concepto | E12: ENERO | F12: FEBRERO | G12: MARZO | H12: ABRIL | I12: MAYO | J12: JUNIO | K12: JULIO | L12: AGOSTO | M12: SEPTIEMBRE | N12: OCTUBRE | O12: NOVIEMBRE | P12: DICIEMBRE
C14: Deducciones autorizadas:
A16: (+) | B16: 001 | C16: =IF(B16>0,VLOOKUP(B16,CATALOGO!$H$3:$I$3660,2),"") -> 0 | E16: =IF(B16>0,SUMPRODUCT(--(EGRESOS!$I$9:$I$6320=B16),--(EGRESOS!$AC$9:$AC$6320=$E$10),(EGRESOS!$S$9:$S$6320)),0) -> 0 | F16: =IF(B16>0,SUMPRODUCT(--(EGRESOS!$I$9:$I$6320=B16),--(EGRESOS!$AC$9:$AC$6320=$F$10),(EGRESOS!$S$9:$S$6320)),0) -> 0 | G16: =IF(B16>0,SUMPRODUCT(--(EGRESOS!$I$9:$I$6320=B16),--(EGRESOS!$AC$9:$AC$6320=$G$10),(EGRESOS!$S$9:$S$6320)),0) -> 0 | H16: =IF(B16>0,SUMPRODUCT(--(EGRESOS!$I$9:$I$6320=B16),--(EGRESOS!$AC$9:$AC$6320=$H$10),(EGRESOS!$S$9:$S$6320)),0) -> 0 | I16: =IF(B16>0,SUMPRODUCT(--(EGRESOS!$I$9:$I$6320=B16),--(EGRESOS!$AC$9:$AC$6320=$I$10),(EGRESOS!$S$9:$S$6320)),0) -> 0 | J16: =IF(B16>0,SUMPRODUCT(--(EGRESOS!$I$9:$I$6320=B16),--(EGRESOS!$AC$9:$AC$6320=$J$10),(EGRESOS!$S$9:$S$6320)),0) -> 0 | K16: =IF(B16>0,SUMPRODUCT(--(EGRESOS!$I$9:$I$6320=B16),--(EGRESOS!$AC$9:$AC$6320=$L$10),(EGRESOS!$S$9:$S$6320)),0) -> 0 | L16: =IF(B16>0,SUMPRODUCT(--(EGRESOS!$I$9:$I$6320=B16),--(EGRESOS!$AC$9:$AC$6320=$L$10),(EGRESOS!$S$9:$S$6320)),0) -> 0 | M16: =IF(B16>0,SUMPRODUCT(--(EGRESOS!$I$9:$I$6320=B16),--(EGRESOS!$AC$9:$AC$6320=$M$10),(EGRESOS!$S$9:$S$6320)),0) -> 0 | N16: =IF(B16>0,SUMPRODUCT(--(EGRESOS!$I$9:$I$6320=B16),--(EGRESOS!$AC$9:$AC$6320=$N$10),(EGRESOS!$S$9:$S$6320)),0) -> 0 | O16: =IF(B16>0,SUMPRODUCT(--(EGRESOS!$I$9:$I$6320=B16),--(EGRESOS!$AC$9:$AC$6320=$O$10),(EGRESOS!$S$9:$S$6320)),0) -> 0 | P16: =IF(B16>0,SUMPRODUCT(--(EGRESOS!$I$9:$I$6320=B16),--(EGRESOS!$AC$9:$AC$6320=$P$10),(EGRESOS!$S$9:$S$6320)),0) -> 0
A17: (+) | B17: 002 | C17: =IF(B17>0,VLOOKUP(B17,CATALOGO!$H$3:$I$3660,2),"") -> 0 | E17: =IF(B17>0,SUMPRODUCT(--(EGRESOS!$I$9:$I$6320=B17),--(EGRESOS!$AC$9:$AC$6320=$E$10),(EGRESOS!$S$9:$S$6320)),0) -> 0 | F17: =IF(B17>0,SUMPRODUCT(--(EGRESOS!$I$9:$I$6320=B17),--(EGRESOS!$AC$9:$AC$6320=$F$10),(EGRESOS!$S$9:$S$6320)),0) -> 0 | G17: =IF(B17>0,SUMPRODUCT(--(EGRESOS!$I$9:$I$6320=B17),--(EGRESOS!$AC$9:$AC$6320=$G$10),(EGRESOS!$S$9:$S$6320)),0) -> 0 | H17: =IF(B17>0,SUMPRODUCT(--(EGRESOS!$I$9:$I$6320=B17),--(EGRESOS!$AC$9:$AC$6320=$H$10),(EGRESOS!$S$9:$S$6320)),0) -> 0 | I17: =IF(B17>0,SUMPRODUCT(--(EGRESOS!$I$9:$I$6320=B17),--(EGRESOS!$AC$9:$AC$6320=$I$10),(EGRESOS!$S$9:$S$6320)),0) -> 0 | J17: =IF(B17>0,SUMPRODUCT(--(EGRESOS!$I$9:$I$6320=B17),--(EGRESOS!$AC$9:$AC$6320=$J$10),(EGRESOS!$S$9:$S$6320)),0) -> 0 | K17: =IF(B17>0,SUMPRODUCT(--(EGRESOS!$I$9:$I$6320=B17),--(EGRESOS!$AC$9:$AC$6320=$L$10),(EGRESOS!$S$9:$S$6320)),0) -> 0 | L17: =IF(B17>0,SUMPRODUCT(--(EGRESOS!$I$9:$I$6320=B17),--(EGRESOS!$AC$9:$AC$6320=$L$10),(EGRESOS!$S$9:$S$6320)),0) -> 0 | M17: =IF(B17>0,SUMPRODUCT(--(EGRESOS!$I$9:$I$6320=B17),--(EGRESOS!$AC$9:$AC$6320=$M$10),(EGRESOS!$S$9:$S$6320)),0) -> 0 | N17: =IF(B17>0,SUMPRODUCT(--(EGRESOS!$I$9:$I$6320=B17),--(EGRESOS!$AC$9:$AC$6320=$N$10),(EGRESOS!$S$9:$S$6320)),0) -> 0 | O17: =IF(B17>0,SUMPRODUCT(--(EGRESOS!$I$9:$I$6320=B17),--(EGRESOS!$AC$9:$AC$6320=$O$10),(EGRESOS!$S$9:$S$6320)),0) -> 0 | P17: =IF(B17>0,SUMPRODUCT(--(EGRESOS!$I$9:$I$6320=B17),--(EGRESOS!$AC$9:$AC$6320=$P$10),(EGRESOS!$S$9:$S$6320)),0) -> 0
A18: (+) | B18: 003 | C18: =IF(B18>0,VLOOKUP(B18,CATALOGO!$H$3:$I$3660,2),"") -> 0 | E18: =IF(B18>0,SUMPRODUCT(--(EGRESOS!$I$9:$I$6320=B18),--(EGRESOS!$AC$9:$AC$6320=$E$10),(EGRESOS!$S$9:$S$6320)),0) -> 0 | F18: =IF(B18>0,SUMPRODUCT(--(EGRESOS!$I$9:$I$6320=B18),--(EGRESOS!$AC$9:$AC$6320=$F$10),(EGRESOS!$S$9:$S$6320)),0) -> 0 | G18: =IF(B18>0,SUMPRODUCT(--(EGRESOS!$I$9:$I$6320=B18),--(EGRESOS!$AC$9:$AC$6320=$G$10),(EGRESOS!$S$9:$S$6320)),0) -> 0 | H18: =IF(B18>0,SUMPRODUCT(--(EGRESOS!$I$9:$I$6320=B18),--(EGRESOS!$AC$9:$AC$6320=$H$10),(EGRESOS!$S$9:$S$6320)),0) -> 0 | I18: =IF(B18>0,SUMPRODUCT(--(EGRESOS!$I$9:$I$6320=B18),--(EGRESOS!$AC$9:$AC$6320=$I$10),(EGRESOS!$S$9:$S$6320)),0) -> 0 | J18: =IF(B18>0,SUMPRODUCT(--(EGRESOS!$I$9:$I$6320=B18),--(EGRESOS!$AC$9:$AC$6320=$J$10),(EGRESOS!$S$9:$S$6320)),0) -> 0 | K18: =IF(B18>0,SUMPRODUCT(--(EGRESOS!$I$9:$I$6320=B18),--(EGRESOS!$AC$9:$AC$6320=$L$10),(EGRESOS!$S$9:$S$6320)),0) -> 0 | L18: =IF(B18>0,SUMPRODUCT(--(EGRESOS!$I$9:$I$6320=B18),--(EGRESOS!$AC$9:$AC$6320=$L$10),(EGRESOS!$S$9:$S$6320)),0) -> 0 | M18: =IF(B18>0,SUMPRODUCT(--(EGRESOS!$I$9:$I$6320=B18),--(EGRESOS!$AC$9:$AC$6320=$M$10),(EGRESOS!$S$9:$S$6320)),0) -> 0 | N18: =IF(B18>0,SUMPRODUCT(--(EGRESOS!$I$9:$I$6320=B18),--(EGRESOS!$AC$9:$AC$6320=$N$10),(EGRESOS!$S$9:$S$6320)),0) -> 0 | O18: =IF(B18>0,SUMPRODUCT(--(EGRESOS!$I$9:$I$6320=B18),--(EGRESOS!$AC$9:$AC$6320=$O$10),(EGRESOS!$S$9:$S$6320)),0) -> 0 | P18: =IF(B18>0,SUMPRODUCT(--(EGRESOS!$I$9:$I$6320=B18),--(EGRESOS!$AC$9:$AC$6320=$P$10),(EGRESOS!$S$9:$S$6320)),0) -> 0
A19: (+) | B19: 004 | C19: =IF(B19>0,VLOOKUP(B19,CATALOGO!$H$3:$I$3660,2),"") -> 0 | E19: =IF(B19>0,SUMPRODUCT(--(EGRESOS!$I$9:$I$6320=B19),--(EGRESOS!$AC$9:$AC$6320=$E$10),(EGRESOS!$S$9:$S$6320)),0) -> 0 | F19: =IF(B19>0,SUMPRODUCT(--(EGRESOS!$I$9:$I$6320=B19),--(EGRESOS!$AC$9:$AC$6320=$F$10),(EGRESOS!$S$9:$S$6320)),0) -> 0 | G19: =IF(B19>0,SUMPRODUCT(--(EGRESOS!$I$9:$I$6320=B19),--(EGRESOS!$AC$9:$AC$6320=$G$10),(EGRESOS!$S$9:$S$6320)),0) -> 0 | H19: =IF(B19>0,SUMPRODUCT(--(EGRESOS!$I$9:$I$6320=B19),--(EGRESOS!$AC$9:$AC$6320=$H$10),(EGRESOS!$S$9:$S$6320)),0) -> 0 | I19: =IF(B19>0,SUMPRODUCT(--(EGRESOS!$I$9:$I$6320=B19),--(EGRESOS!$AC$9:$AC$6320=$I$10),(EGRESOS!$S$9:$S$6320)),0) -> 0 | J19: =IF(B19>0,SUMPRODUCT(--(EGRESOS!$I$9:$I$6320=B19),--(EGRESOS!$AC$9:$AC$6320=$J$10),(EGRESOS!$S$9:$S$6320)),0) -> 0 | K19: =IF(B19>0,SUMPRODUCT(--(EGRESOS!$I$9:$I$6320=B19),--(EGRESOS!$AC$9:$AC$6320=$L$10),(EGRESOS!$S$9:$S$6320)),0) -> 0 | L19: =IF(B19>0,SUMPRODUCT(--(EGRESOS!$I$9:$I$6320=B19),--(EGRESOS!$AC$9:$AC$6320=$L$10),(EGRESOS!$S$9:$S$6320)),0) -> 0 | M19: =IF(B19>0,SUMPRODUCT(--(EGRESOS!$I$9:$I$6320=B19),--(EGRESOS!$AC$9:$AC$6320=$M$10),(EGRESOS!$S$9:$S$6320)),0) -> 0 | N19: =IF(B19>0,SUMPRODUCT(--(EGRESOS!$I$9:$I$6320=B19),--(EGRESOS!$AC$9:$AC$6320=$N$10),(EGRESOS!$S$9:$S$6320)),0) -> 0 | O19: =IF(B19>0,SUMPRODUCT(--(EGRESOS!$I$9:$I$6320=B19),--(EGRESOS!$AC$9:$AC$6320=$O$10),(EGRESOS!$S$9:$S$6320)),0) -> 0 | P19: =IF(B19>0,SUMPRODUCT(--(EGRESOS!$I$9:$I$6320=B19),--(EGRESOS!$AC$9:$AC$6320=$P$10),(EGRESOS!$S$9:$S$6320)),0) -> 0
A20: (+) | B20: 005 | C20: =IF(B20>0,VLOOKUP(B20,CATALOGO!$H$3:$I$3660,2),"") -> 0 | E20: =IF(B20>0,SUMPRODUCT(--(EGRESOS!$I$9:$I$6320=B20),--(EGRESOS!$AC$9:$AC$6320=$E$10),(EGRESOS!$S$9:$S$6320)),0) -> 0 | F20: =IF(B20>0,SUMPRODUCT(--(EGRESOS!$I$9:$I$6320=B20),--(EGRESOS!$AC$9:$AC$6320=$F$10),(EGRESOS!$S$9:$S$6320)),0) -> 0 | G20: =IF(B20>0,SUMPRODUCT(--(EGRESOS!$I$9:$I$6320=B20),--(EGRESOS!$AC$9:$AC$6320=$G$10),(EGRESOS!$S$9:$S$6320)),0) -> 0 | H20: =IF(B20>0,SUMPRODUCT(--(EGRESOS!$I$9:$I$6320=B20),--(EGRESOS!$AC$9:$AC$6320=$H$10),(EGRESOS!$S$9:$S$6320)),0) -> 0 | I20: =IF(B20>0,SUMPRODUCT(--(EGRESOS!$I$9:$I$6320=B20),--(EGRESOS!$AC$9:$AC$6320=$I$10),(EGRESOS!$S$9:$S$6320)),0) -> 0 | J20: =IF(B20>0,SUMPRODUCT(--(EGRESOS!$I$9:$I$6320=B20),--(EGRESOS!$AC$9:$AC$6320=$J$10),(EGRESOS!$S$9:$S$6320)),0) -> 0 | K20: =IF(B20>0,SUMPRODUCT(--(EGRESOS!$I$9:$I$6320=B20),--(EGRESOS!$AC$9:$AC$6320=$L$10),(EGRESOS!$S$9:$S$6320)),0) -> 0 | L20: =IF(B20>0,SUMPRODUCT(--(EGRESOS!$I$9:$I$6320=B20),--(EGRESOS!$AC$9:$AC$6320=$L$10),(EGRESOS!$S$9:$S$6320)),0) -> 0 | M20: =IF(B20>0,SUMPRODUCT(--(EGRESOS!$I$9:$I$6320=B20),--(EGRESOS!$AC$9:$AC$6320=$M$10),(EGRESOS!$S$9:$S$6320)),0) -> 0 | N20: =IF(B20>0,SUMPRODUCT(--(EGRESOS!$I$9:$I$6320=B20),--(EGRESOS!$AC$9:$AC$6320=$N$10),(EGRESOS!$S$9:$S$6320)),0) -> 0 | O20: =IF(B20>0,SUMPRODUCT(--(EGRESOS!$I$9:$I$6320=B20),--(EGRESOS!$AC$9:$AC$6320=$O$10),(EGRESOS!$S$9:$S$6320)),0) -> 0 | P20: =IF(B20>0,SUMPRODUCT(--(EGRESOS!$I$9:$I$6320=B20),--(EGRESOS!$AC$9:$AC$6320=$P$10),(EGRESOS!$S$9:$S$6320)),0) -> 0
A21: (+) | B21: 006 | C21: =IF(B21>0,VLOOKUP(B21,CATALOGO!$H$3:$I$3660,2),"") -> 0 | E21: =IF(B21>0,SUMPRODUCT(--(EGRESOS!$I$9:$I$6320=B21),--(EGRESOS!$AC$9:$AC$6320=$E$10),(EGRESOS!$S$9:$S$6320)),0) -> 0 | F21: =IF(B21>0,SUMPRODUCT(--(EGRESOS!$I$9:$I$6320=B21),--(EGRESOS!$AC$9:$AC$6320=$F$10),(EGRESOS!$S$9:$S$6320)),0) -> 0 | G21: =IF(B21>0,SUMPRODUCT(--(EGRESOS!$I$9:$I$6320=B21),--(EGRESOS!$AC$9:$AC$6320=$G$10),(EGRESOS!$S$9:$S$6320)),0) -> 0 | H21: =IF(B21>0,SUMPRODUCT(--(EGRESOS!$I$9:$I$6320=B21),--(EGRESOS!$AC$9:$AC$6320=$H$10),(EGRESOS!$S$9:$S$6320)),0) -> 0 | I21: =IF(B21>0,SUMPRODUCT(--(EGRESOS!$I$9:$I$6320=B21),--(EGRESOS!$AC$9:$AC$6320=$I$10),(EGRESOS!$S$9:$S$6320)),0) -> 0 | J21: =IF(B21>0,SUMPRODUCT(--(EGRESOS!$I$9:$I$6320=B21),--(EGRESOS!$AC$9:$AC$6320=$J$10),(EGRESOS!$S$9:$S$6320)),0) -> 0 | K21: =IF(B21>0,SUMPRODUCT(--(EGRESOS!$I$9:$I$6320=B21),--(EGRESOS!$AC$9:$AC$6320=$L$10),(EGRESOS!$S$9:$S$6320)),0) -> 0 | L21: =IF(B21>0,SUMPRODUCT(--(EGRESOS!$I$9:$I$6320=B21),--(EGRESOS!$AC$9:$AC$6320=$L$10),(EGRESOS!$S$9:$S$6320)),0) -> 0 | M21: =IF(B21>0,SUMPRODUCT(--(EGRESOS!$I$9:$I$6320=B21),--(EGRESOS!$AC$9:$AC$6320=$M$10),(EGRESOS!$S$9:$S$6320)),0) -> 0 | N21: =IF(B21>0,SUMPRODUCT(--(EGRESOS!$I$9:$I$6320=B21),--(EGRESOS!$AC$9:$AC$6320=$N$10),(EGRESOS!$S$9:$S$6320)),0) -> 0 | O21: =IF(B21>0,SUMPRODUCT(--(EGRESOS!$I$9:$I$6320=B21),--(EGRESOS!$AC$9:$AC$6320=$O$10),(EGRESOS!$S$9:$S$6320)),0) -> 0 | P21: =IF(B21>0,SUMPRODUCT(--(EGRESOS!$I$9:$I$6320=B21),--(EGRESOS!$AC$9:$AC$6320=$P$10),(EGRESOS!$S$9:$S$6320)),0) -> 0
A22: (+) | B22: 010 | C22: =IF(B22>0,VLOOKUP(B22,CATALOGO!$H$3:$I$3660,2),"") -> 0 | E22: =IF(B22>0,SUMPRODUCT(--(EGRESOS!$I$9:$I$6320=B22),--(EGRESOS!$AC$9:$AC$6320=$E$10),(EGRESOS!$S$9:$S$6320)),0) -> 0 | F22: =IF(B22>0,SUMPRODUCT(--(EGRESOS!$I$9:$I$6320=B22),--(EGRESOS!$AC$9:$AC$6320=$F$10),(EGRESOS!$S$9:$S$6320)),0) -> 0 | G22: =IF(B22>0,SUMPRODUCT(--(EGRESOS!$I$9:$I$6320=B22),--(EGRESOS!$AC$9:$AC$6320=$G$10),(EGRESOS!$S$9:$S$6320)),0) -> 0 | H22: =IF(B22>0,SUMPRODUCT(--(EGRESOS!$I$9:$I$6320=B22),--(EGRESOS!$AC$9:$AC$6320=$H$10),(EGRESOS!$S$9:$S$6320)),0) -> 0 | I22: =IF(B22>0,SUMPRODUCT(--(EGRESOS!$I$9:$I$6320=B22),--(EGRESOS!$AC$9:$AC$6320=$I$10),(EGRESOS!$S$9:$S$6320)),0) -> 0 | J22: =IF(B22>0,SUMPRODUCT(--(EGRESOS!$I$9:$I$6320=B22),--(EGRESOS!$AC$9:$AC$6320=$J$10),(EGRESOS!$S$9:$S$6320)),0) -> 0 | K22: =IF(B22>0,SUMPRODUCT(--(EGRESOS!$I$9:$I$6320=B22),--(EGRESOS!$AC$9:$AC$6320=$L$10),(EGRESOS!$S$9:$S$6320)),0) -> 0 | L22: =IF(B22>0,SUMPRODUCT(--(EGRESOS!$I$9:$I$6320=B22),--(EGRESOS!$AC$9:$AC$6320=$L$10),(EGRESOS!$S$9:$S$6320)),0) -> 0 | M22: =IF(B22>0,SUMPRODUCT(--(EGRESOS!$I$9:$I$6320=B22),--(EGRESOS!$AC$9:$AC$6320=$M$10),(EGRESOS!$S$9:$S$6320)),0) -> 0 | N22: =IF(B22>0,SUMPRODUCT(--(EGRESOS!$I$9:$I$6320=B22),--(EGRESOS!$AC$9:$AC$6320=$N$10),(EGRESOS!$S$9:$S$6320)),0) -> 0 | O22: =IF(B22>0,SUMPRODUCT(--(EGRESOS!$I$9:$I$6320=B22),--(EGRESOS!$AC$9:$AC$6320=$O$10),(EGRESOS!$S$9:$S$6320)),0) -> 0 | P22: =IF(B22>0,SUMPRODUCT(--(EGRESOS!$I$9:$I$6320=B22),--(EGRESOS!$AC$9:$AC$6320=$P$10),(EGRESOS!$S$9:$S$6320)),0) -> 0
A23: (+) | B23: 011 | C23: =IF(B23>0,VLOOKUP(B23,CATALOGO!$H$3:$I$3660,2),"") -> 0 | E23: =IF(B23>0,SUMPRODUCT(--(EGRESOS!$I$9:$I$6320=B23),--(EGRESOS!$AC$9:$AC$6320=$E$10),(EGRESOS!$S$9:$S$6320)),0) -> 0 | F23: =IF(B23>0,SUMPRODUCT(--(EGRESOS!$I$9:$I$6320=B23),--(EGRESOS!$AC$9:$AC$6320=$F$10),(EGRESOS!$S$9:$S$6320)),0) -> 0 | G23: =IF(B23>0,SUMPRODUCT(--(EGRESOS!$I$9:$I$6320=B23),--(EGRESOS!$AC$9:$AC$6320=$G$10),(EGRESOS!$S$9:$S$6320)),0) -> 0 | H23: =IF(B23>0,SUMPRODUCT(--(EGRESOS!$I$9:$I$6320=B23),--(EGRESOS!$AC$9:$AC$6320=$H$10),(EGRESOS!$S$9:$S$6320)),0) -> 0 | I23: =IF(B23>0,SUMPRODUCT(--(EGRESOS!$I$9:$I$6320=B23),--(EGRESOS!$AC$9:$AC$6320=$I$10),(EGRESOS!$S$9:$S$6320)),0) -> 0 | J23: =IF(B23>0,SUMPRODUCT(--(EGRESOS!$I$9:$I$6320=B23),--(EGRESOS!$AC$9:$AC$6320=$J$10),(EGRESOS!$S$9:$S$6320)),0) -> 0 | K23: =IF(B23>0,SUMPRODUCT(--(EGRESOS!$I$9:$I$6320=B23),--(EGRESOS!$AC$9:$AC$6320=$L$10),(EGRESOS!$S$9:$S$6320)),0) -> 0 | L23: =IF(B23>0,SUMPRODUCT(--(EGRESOS!$I$9:$I$6320=B23),--(EGRESOS!$AC$9:$AC$6320=$L$10),(EGRESOS!$S$9:$S$6320)),0) -> 0 | M23: =IF(B23>0,SUMPRODUCT(--(EGRESOS!$I$9:$I$6320=B23),--(EGRESOS!$AC$9:$AC$6320=$M$10),(EGRESOS!$S$9:$S$6320)),0) -> 0 | N23: =IF(B23>0,SUMPRODUCT(--(EGRESOS!$I$9:$I$6320=B23),--(EGRESOS!$AC$9:$AC$6320=$N$10),(EGRESOS!$S$9:$S$6320)),0) -> 0 | O23: =IF(B23>0,SUMPRODUCT(--(EGRESOS!$I$9:$I$6320=B23),--(EGRESOS!$AC$9:$AC$6320=$O$10),(EGRESOS!$S$9:$S$6320)),0) -> 0 | P23: =IF(B23>0,SUMPRODUCT(--(EGRESOS!$I$9:$I$6320=B23),--(EGRESOS!$AC$9:$AC$6320=$P$10),(EGRESOS!$S$9:$S$6320)),0) -> 0
A24: (+) | B24: 012 | C24: =IF(B24>0,VLOOKUP(B24,CATALOGO!$H$3:$I$3660,2),"") -> 0 | E24: =IF(B24>0,SUMPRODUCT(--(EGRESOS!$I$9:$I$6320=B24),--(EGRESOS!$AC$9:$AC$6320=$E$10),(EGRESOS!$S$9:$S$6320)),0) -> 0 | F24: =IF(B24>0,SUMPRODUCT(--(EGRESOS!$I$9:$I$6320=B24),--(EGRESOS!$AC$9:$AC$6320=$F$10),(EGRESOS!$S$9:$S$6320)),0) -> 0 | G24: =IF(B24>0,SUMPRODUCT(--(EGRESOS!$I$9:$I$6320=B24),--(EGRESOS!$AC$9:$AC$6320=$G$10),(EGRESOS!$S$9:$S$6320)),0) -> 0 | H24: =IF(B24>0,SUMPRODUCT(--(EGRESOS!$I$9:$I$6320=B24),--(EGRESOS!$AC$9:$AC$6320=$H$10),(EGRESOS!$S$9:$S$6320)),0) -> 0 | I24: =IF(B24>0,SUMPRODUCT(--(EGRESOS!$I$9:$I$6320=B24),--(EGRESOS!$AC$9:$AC$6320=$I$10),(EGRESOS!$S$9:$S$6320)),0) -> 0 | J24: =IF(B24>0,SUMPRODUCT(--(EGRESOS!$I$9:$I$6320=B24),--(EGRESOS!$AC$9:$AC$6320=$J$10),(EGRESOS!$S$9:$S$6320)),0) -> 0 | K24: =IF(B24>0,SUMPRODUCT(--(EGRESOS!$I$9:$I$6320=B24),--(EGRESOS!$AC$9:$AC$6320=$L$10),(EGRESOS!$S$9:$S$6320)),0) -> 0 | L24: =IF(B24>0,SUMPRODUCT(--(EGRESOS!$I$9:$I$6320=B24),--(EGRESOS!$AC$9:$AC$6320=$L$10),(EGRESOS!$S$9:$S$6320)),0) -> 0 | M24: =IF(B24>0,SUMPRODUCT(--(EGRESOS!$I$9:$I$6320=B24),--(EGRESOS!$AC$9:$AC$6320=$M$10),(EGRESOS!$S$9:$S$6320)),0) -> 0 | N24: =IF(B24>0,SUMPRODUCT(--(EGRESOS!$I$9:$I$6320=B24),--(EGRESOS!$AC$9:$AC$6320=$N$10),(EGRESOS!$S$9:$S$6320)),0) -> 0 | O24: =IF(B24>0,SUMPRODUCT(--(EGRESOS!$I$9:$I$6320=B24),--(EGRESOS!$AC$9:$AC$6320=$O$10),(EGRESOS!$S$9:$S$6320)),0) -> 0 | P24: =IF(B24>0,SUMPRODUCT(--(EGRESOS!$I$9:$I$6320=B24),--(EGRESOS!$AC$9:$AC$6320=$P$10),(EGRESOS!$S$9:$S$6320)),0) -> 0
A25: (+) | B25: 013 | C25: =IF(B25>0,VLOOKUP(B25,CATALOGO!$H$3:$I$3660,2),"") -> 0 | E25: =IF(B25>0,SUMPRODUCT(--(EGRESOS!$I$9:$I$6320=B25),--(EGRESOS!$AC$9:$AC$6320=$E$10),(EGRESOS!$S$9:$S$6320)),0) -> 0 | F25: =IF(B25>0,SUMPRODUCT(--(EGRESOS!$I$9:$I$6320=B25),--(EGRESOS!$AC$9:$AC$6320=$F$10),(EGRESOS!$S$9:$S$6320)),0) -> 0 | G25: =IF(B25>0,SUMPRODUCT(--(EGRESOS!$I$9:$I$6320=B25),--(EGRESOS!$AC$9:$AC$6320=$G$10),(EGRESOS!$S$9:$S$6320)),0) -> 0 | H25: =IF(B25>0,SUMPRODUCT(--(EGRESOS!$I$9:$I$6320=B25),--(EGRESOS!$AC$9:$AC$6320=$H$10),(EGRESOS!$S$9:$S$6320)),0) -> 0 | I25: =IF(B25>0,SUMPRODUCT(--(EGRESOS!$I$9:$I$6320=B25),--(EGRESOS!$AC$9:$AC$6320=$I$10),(EGRESOS!$S$9:$S$6320)),0) -> 0 | J25: =IF(B25>0,SUMPRODUCT(--(EGRESOS!$I$9:$I$6320=B25),--(EGRESOS!$AC$9:$AC$6320=$J$10),(EGRESOS!$S$9:$S$6320)),0) -> 0 | K25: =IF(B25>0,SUMPRODUCT(--(EGRESOS!$I$9:$I$6320=B25),--(EGRESOS!$AC$9:$AC$6320=$L$10),(EGRESOS!$S$9:$S$6320)),0) -> 0 | L25: =IF(B25>0,SUMPRODUCT(--(EGRESOS!$I$9:$I$6320=B25),--(EGRESOS!$AC$9:$AC$6320=$L$10),(EGRESOS!$S$9:$S$6320)),0) -> 0 | M25: =IF(B25>0,SUMPRODUCT(--(EGRESOS!$I$9:$I$6320=B25),--(EGRESOS!$AC$9:$AC$6320=$M$10),(EGRESOS!$S$9:$S$6320)),0) -> 0 | N25: =IF(B25>0,SUMPRODUCT(--(EGRESOS!$I$9:$I$6320=B25),--(EGRESOS!$AC$9:$AC$6320=$N$10),(EGRESOS!$S$9:$S$6320)),0) -> 0 | O25: =IF(B25>0,SUMPRODUCT(--(EGRESOS!$I$9:$I$6320=B25),--(EGRESOS!$AC$9:$AC$6320=$O$10),(EGRESOS!$S$9:$S$6320)),0) -> 0 | P25: =IF(B25>0,SUMPRODUCT(--(EGRESOS!$I$9:$I$6320=B25),--(EGRESOS!$AC$9:$AC$6320=$P$10),(EGRESOS!$S$9:$S$6320)),0) -> 0
A26: (+) | B26: 014 | C26: =IF(B26>0,VLOOKUP(B26,CATALOGO!$H$3:$I$3660,2),"") -> 0 | E26: =IF(B26>0,SUMPRODUCT(--(EGRESOS!$I$9:$I$6320=B26),--(EGRESOS!$AC$9:$AC$6320=$E$10),(EGRESOS!$S$9:$S$6320)),0) -> 0 | F26: =IF(B26>0,SUMPRODUCT(--(EGRESOS!$I$9:$I$6320=B26),--(EGRESOS!$AC$9:$AC$6320=$F$10),(EGRESOS!$S$9:$S$6320)),0) -> 0 | G26: =IF(B26>0,SUMPRODUCT(--(EGRESOS!$I$9:$I$6320=B26),--(EGRESOS!$AC$9:$AC$6320=$G$10),(EGRESOS!$S$9:$S$6320)),0) -> 0 | H26: =IF(B26>0,SUMPRODUCT(--(EGRESOS!$I$9:$I$6320=B26),--(EGRESOS!$AC$9:$AC$6320=$H$10),(EGRESOS!$S$9:$S$6320)),0) -> 0 | I26: =IF(B26>0,SUMPRODUCT(--(EGRESOS!$I$9:$I$6320=B26),--(EGRESOS!$AC$9:$AC$6320=$I$10),(EGRESOS!$S$9:$S$6320)),0) -> 0 | J26: =IF(B26>0,SUMPRODUCT(--(EGRESOS!$I$9:$I$6320=B26),--(EGRESOS!$AC$9:$AC$6320=$J$10),(EGRESOS!$S$9:$S$6320)),0) -> 0 | K26: =IF(B26>0,SUMPRODUCT(--(EGRESOS!$I$9:$I$6320=B26),--(EGRESOS!$AC$9:$AC$6320=$L$10),(EGRESOS!$S$9:$S$6320)),0) -> 0 | L26: =IF(B26>0,SUMPRODUCT(--(EGRESOS!$I$9:$I$6320=B26),--(EGRESOS!$AC$9:$AC$6320=$L$10),(EGRESOS!$S$9:$S$6320)),0) -> 0 | M26: =IF(B26>0,SUMPRODUCT(--(EGRESOS!$I$9:$I$6320=B26),--(EGRESOS!$AC$9:$AC$6320=$M$10),(EGRESOS!$S$9:$S$6320)),0) -> 0 | N26: =IF(B26>0,SUMPRODUCT(--(EGRESOS!$I$9:$I$6320=B26),--(EGRESOS!$AC$9:$AC$6320=$N$10),(EGRESOS!$S$9:$S$6320)),0) -> 0 | O26: =IF(B26>0,SUMPRODUCT(--(EGRESOS!$I$9:$I$6320=B26),--(EGRESOS!$AC$9:$AC$6320=$O$10),(EGRESOS!$S$9:$S$6320)),0) -> 0 | P26: =IF(B26>0,SUMPRODUCT(--(EGRESOS!$I$9:$I$6320=B26),--(EGRESOS!$AC$9:$AC$6320=$P$10),(EGRESOS!$S$9:$S$6320)),0) -> 0
A27: (+) | B27: 015 | C27: =IF(B27>0,VLOOKUP(B27,CATALOGO!$H$3:$I$3660,2),"") -> 0 | E27: =IF(B27>0,SUMPRODUCT(--(EGRESOS!$I$9:$I$6320=B27),--(EGRESOS!$AC$9:$AC$6320=$E$10),(EGRESOS!$S$9:$S$6320)),0) -> 0 | F27: =IF(B27>0,SUMPRODUCT(--(EGRESOS!$I$9:$I$6320=B27),--(EGRESOS!$AC$9:$AC$6320=$F$10),(EGRESOS!$S$9:$S$6320)),0) -> 0 | G27: =IF(B27>0,SUMPRODUCT(--(EGRESOS!$I$9:$I$6320=B27),--(EGRESOS!$AC$9:$AC$6320=$G$10),(EGRESOS!$S$9:$S$6320)),0) -> 0 | H27: =IF(B27>0,SUMPRODUCT(--(EGRESOS!$I$9:$I$6320=B27),--(EGRESOS!$AC$9:$AC$6320=$H$10),(EGRESOS!$S$9:$S$6320)),0) -> 0 | I27: =IF(B27>0,SUMPRODUCT(--(EGRESOS!$I$9:$I$6320=B27),--(EGRESOS!$AC$9:$AC$6320=$I$10),(EGRESOS!$S$9:$S$6320)),0) -> 0 | J27: =IF(B27>0,SUMPRODUCT(--(EGRESOS!$I$9:$I$6320=B27),--(EGRESOS!$AC$9:$AC$6320=$J$10),(EGRESOS!$S$9:$S$6320)),0) -> 0 | K27: =IF(B27>0,SUMPRODUCT(--(EGRESOS!$I$9:$I$6320=B27),--(EGRESOS!$AC$9:$AC$6320=$L$10),(EGRESOS!$S$9:$S$6320)),0) -> 0 | L27: =IF(B27>0,SUMPRODUCT(--(EGRESOS!$I$9:$I$6320=B27),--(EGRESOS!$AC$9:$AC$6320=$L$10),(EGRESOS!$S$9:$S$6320)),0) -> 0 | M27: =IF(B27>0,SUMPRODUCT(--(EGRESOS!$I$9:$I$6320=B27),--(EGRESOS!$AC$9:$AC$6320=$M$10),(EGRESOS!$S$9:$S$6320)),0) -> 0 | N27: =IF(B27>0,SUMPRODUCT(--(EGRESOS!$I$9:$I$6320=B27),--(EGRESOS!$AC$9:$AC$6320=$N$10),(EGRESOS!$S$9:$S$6320)),0) -> 0 | O27: =IF(B27>0,SUMPRODUCT(--(EGRESOS!$I$9:$I$6320=B27),--(EGRESOS!$AC$9:$AC$6320=$O$10),(EGRESOS!$S$9:$S$6320)),0) -> 0 | P27: =IF(B27>0,SUMPRODUCT(--(EGRESOS!$I$9:$I$6320=B27),--(EGRESOS!$AC$9:$AC$6320=$P$10),(EGRESOS!$S$9:$S$6320)),0) -> 0
A28: (+) | B28: 007 | C28: =IF(B28>0,VLOOKUP(B28,CATALOGO!$H$3:$I$3660,2),"") -> 0 | E28: =IF(B28>0,SUMPRODUCT(--(EGRESOS!$I$9:$I$6320=B28),--(EGRESOS!$AC$9:$AC$6320=$E$10),(EGRESOS!$S$9:$S$6320)),0) -> 0 | F28: =IF(B28>0,SUMPRODUCT(--(EGRESOS!$I$9:$I$6320=B28),--(EGRESOS!$AC$9:$AC$6320=$F$10),(EGRESOS!$S$9:$S$6320)),0) -> 0 | G28: =IF(B28>0,SUMPRODUCT(--(EGRESOS!$I$9:$I$6320=B28),--(EGRESOS!$AC$9:$AC$6320=$G$10),(EGRESOS!$S$9:$S$6320)),0) -> 0 | H28: =IF(B28>0,SUMPRODUCT(--(EGRESOS!$I$9:$I$6320=B28),--(EGRESOS!$AC$9:$AC$6320=$H$10),(EGRESOS!$S$9:$S$6320)),0) -> 0 | I28: =IF(B28>0,SUMPRODUCT(--(EGRESOS!$I$9:$I$6320=B28),--(EGRESOS!$AC$9:$AC$6320=$I$10),(EGRESOS!$S$9:$S$6320)),0) -> 0 | J28: =IF(B28>0,SUMPRODUCT(--(EGRESOS!$I$9:$I$6320=B28),--(EGRESOS!$AC$9:$AC$6320=$J$10),(EGRESOS!$S$9:$S$6320)),0) -> 0 | K28: =IF(B28>0,SUMPRODUCT(--(EGRESOS!$I$9:$I$6320=B28),--(EGRESOS!$AC$9:$AC$6320=$L$10),(EGRESOS!$S$9:$S$6320)),0) -> 0 | L28: =IF(B28>0,SUMPRODUCT(--(EGRESOS!$I$9:$I$6320=B28),--(EGRESOS!$AC$9:$AC$6320=$L$10),(EGRESOS!$S$9:$S$6320)),0) -> 0 | M28: =IF(B28>0,SUMPRODUCT(--(EGRESOS!$I$9:$I$6320=B28),--(EGRESOS!$AC$9:$AC$6320=$M$10),(EGRESOS!$S$9:$S$6320)),0) -> 0 | N28: =IF(B28>0,SUMPRODUCT(--(EGRESOS!$I$9:$I$6320=B28),--(EGRESOS!$AC$9:$AC$6320=$N$10),(EGRESOS!$S$9:$S$6320)),0) -> 0 | O28: =IF(B28>0,SUMPRODUCT(--(EGRESOS!$I$9:$I$6320=B28),--(EGRESOS!$AC$9:$AC$6320=$O$10),(EGRESOS!$S$9:$S$6320)),0) -> 0 | P28: =IF(B28>0,SUMPRODUCT(--(EGRESOS!$I$9:$I$6320=B28),--(EGRESOS!$AC$9:$AC$6320=$P$10),(EGRESOS!$S$9:$S$6320)),0) -> 0
A29: (+) | B29: 008 | C29: =IF(B29>0,VLOOKUP(B29,CATALOGO!$H$3:$I$3660,2),"") -> 0 | E29: =IF(B29>0,SUMPRODUCT(--(EGRESOS!$I$9:$I$6320=B29),--(EGRESOS!$AC$9:$AC$6320=$E$10),(EGRESOS!$S$9:$S$6320)),0) -> 0 | F29: =IF(B29>0,SUMPRODUCT(--(EGRESOS!$I$9:$I$6320=B29),--(EGRESOS!$AC$9:$AC$6320=$F$10),(EGRESOS!$S$9:$S$6320)),0) -> 0 | G29: =IF(B29>0,SUMPRODUCT(--(EGRESOS!$I$9:$I$6320=B29),--(EGRESOS!$AC$9:$AC$6320=$G$10),(EGRESOS!$S$9:$S$6320)),0) -> 0 | H29: =IF(B29>0,SUMPRODUCT(--(EGRESOS!$I$9:$I$6320=B29),--(EGRESOS!$AC$9:$AC$6320=$H$10),(EGRESOS!$S$9:$S$6320)),0) -> 0 | I29: =IF(B29>0,SUMPRODUCT(--(EGRESOS!$I$9:$I$6320=B29),--(EGRESOS!$AC$9:$AC$6320=$I$10),(EGRESOS!$S$9:$S$6320)),0) -> 0 | J29: =IF(B29>0,SUMPRODUCT(--(EGRESOS!$I$9:$I$6320=B29),--(EGRESOS!$AC$9:$AC$6320=$J$10),(EGRESOS!$S$9:$S$6320)),0) -> 0 | K29: =IF(B29>0,SUMPRODUCT(--(EGRESOS!$I$9:$I$6320=B29),--(EGRESOS!$AC$9:$AC$6320=$L$10),(EGRESOS!$S$9:$S$6320)),0) -> 0 | L29: =IF(B29>0,SUMPRODUCT(--(EGRESOS!$I$9:$I$6320=B29),--(EGRESOS!$AC$9:$AC$6320=$L$10),(EGRESOS!$S$9:$S$6320)),0) -> 0 | M29: =IF(B29>0,SUMPRODUCT(--(EGRESOS!$I$9:$I$6320=B29),--(EGRESOS!$AC$9:$AC$6320=$M$10),(EGRESOS!$S$9:$S$6320)),0) -> 0 | N29: =IF(B29>0,SUMPRODUCT(--(EGRESOS!$I$9:$I$6320=B29),--(EGRESOS!$AC$9:$AC$6320=$N$10),(EGRESOS!$S$9:$S$6320)),0) -> 0 | O29: =IF(B29>0,SUMPRODUCT(--(EGRESOS!$I$9:$I$6320=B29),--(EGRESOS!$AC$9:$AC$6320=$O$10),(EGRESOS!$S$9:$S$6320)),0) -> 0 | P29: =IF(B29>0,SUMPRODUCT(--(EGRESOS!$I$9:$I$6320=B29),--(EGRESOS!$AC$9:$AC$6320=$P$10),(EGRESOS!$S$9:$S$6320)),0) -> 0
A30: (+) | B30: 009 | C30: =IF(B30>0,VLOOKUP(B30,CATALOGO!$H$3:$I$3660,2),"") -> 0 | E30: =IF(B30>0,SUMPRODUCT(--(EGRESOS!$I$9:$I$6320=B30),--(EGRESOS!$AC$9:$AC$6320=$E$10),(EGRESOS!$S$9:$S$6320)),0) -> 0 | F30: =IF(B30>0,SUMPRODUCT(--(EGRESOS!$I$9:$I$6320=B30),--(EGRESOS!$AC$9:$AC$6320=$F$10),(EGRESOS!$S$9:$S$6320)),0) -> 0 | G30: =IF(B30>0,SUMPRODUCT(--(EGRESOS!$I$9:$I$6320=B30),--(EGRESOS!$AC$9:$AC$6320=$G$10),(EGRESOS!$S$9:$S$6320)),0) -> 0 | H30: =IF(B30>0,SUMPRODUCT(--(EGRESOS!$I$9:$I$6320=B30),--(EGRESOS!$AC$9:$AC$6320=$H$10),(EGRESOS!$S$9:$S$6320)),0) -> 0 | I30: =IF(B30>0,SUMPRODUCT(--(EGRESOS!$I$9:$I$6320=B30),--(EGRESOS!$AC$9:$AC$6320=$I$10),(EGRESOS!$S$9:$S$6320)),0) -> 0 | J30: =IF(B30>0,SUMPRODUCT(--(EGRESOS!$I$9:$I$6320=B30),--(EGRESOS!$AC$9:$AC$6320=$J$10),(EGRESOS!$S$9:$S$6320)),0) -> 0 | K30: =IF(B30>0,SUMPRODUCT(--(EGRESOS!$I$9:$I$6320=B30),--(EGRESOS!$AC$9:$AC$6320=$L$10),(EGRESOS!$S$9:$S$6320)),0) -> 0 | L30: =IF(B30>0,SUMPRODUCT(--(EGRESOS!$I$9:$I$6320=B30),--(EGRESOS!$AC$9:$AC$6320=$L$10),(EGRESOS!$S$9:$S$6320)),0) -> 0 | M30: =IF(B30>0,SUMPRODUCT(--(EGRESOS!$I$9:$I$6320=B30),--(EGRESOS!$AC$9:$AC$6320=$M$10),(EGRESOS!$S$9:$S$6320)),0) -> 0 | N30: =IF(B30>0,SUMPRODUCT(--(EGRESOS!$I$9:$I$6320=B30),--(EGRESOS!$AC$9:$AC$6320=$N$10),(EGRESOS!$S$9:$S$6320)),0) -> 0 | O30: =IF(B30>0,SUMPRODUCT(--(EGRESOS!$I$9:$I$6320=B30),--(EGRESOS!$AC$9:$AC$6320=$O$10),(EGRESOS!$S$9:$S$6320)),0) -> 0 | P30: =IF(B30>0,SUMPRODUCT(--(EGRESOS!$I$9:$I$6320=B30),--(EGRESOS!$AC$9:$AC$6320=$P$10),(EGRESOS!$S$9:$S$6320)),0) -> 0
A31: (+) | C31: =IF(B31>0,VLOOKUP(B31,CATALOGO!$H$3:$I$3660,2),"") ->  | E31: =IF(B31>0,SUMPRODUCT(--(EGRESOS!$I$9:$I$6320=B31),--(EGRESOS!$AC$9:$AC$6320=$E$10),(EGRESOS!$S$9:$S$6320)),0) -> 0 | F31: =IF(B31>0,SUMPRODUCT(--(EGRESOS!$I$9:$I$6320=B31),--(EGRESOS!$AC$9:$AC$6320=$F$10),(EGRESOS!$S$9:$S$6320)),0) -> 0 | G31: =IF(B31>0,SUMPRODUCT(--(EGRESOS!$I$9:$I$6320=B31),--(EGRESOS!$AC$9:$AC$6320=$G$10),(EGRESOS!$S$9:$S$6320)),0) -> 0 | H31: =IF(B31>0,SUMPRODUCT(--(EGRESOS!$I$9:$I$6320=B31),--(EGRESOS!$AC$9:$AC$6320=$H$10),(EGRESOS!$S$9:$S$6320)),0) -> 0 | I31: =IF(B31>0,SUMPRODUCT(--(EGRESOS!$I$9:$I$6320=B31),--(EGRESOS!$AC$9:$AC$6320=$I$10),(EGRESOS!$S$9:$S$6320)),0) -> 0 | J31: =IF(B31>0,SUMPRODUCT(--(EGRESOS!$I$9:$I$6320=B31),--(EGRESOS!$AC$9:$AC$6320=$J$10),(EGRESOS!$S$9:$S$6320)),0) -> 0 | K31: =IF(B31>0,SUMPRODUCT(--(EGRESOS!$I$9:$I$6320=B31),--(EGRESOS!$AC$9:$AC$6320=$L$10),(EGRESOS!$S$9:$S$6320)),0) -> 0 | L31: =IF(B31>0,SUMPRODUCT(--(EGRESOS!$I$9:$I$6320=B31),--(EGRESOS!$AC$9:$AC$6320=$L$10),(EGRESOS!$S$9:$S$6320)),0) -> 0 | M31: =IF(B31>0,SUMPRODUCT(--(EGRESOS!$I$9:$I$6320=B31),--(EGRESOS!$AC$9:$AC$6320=$M$10),(EGRESOS!$S$9:$S$6320)),0) -> 0 | N31: =IF(B31>0,SUMPRODUCT(--(EGRESOS!$I$9:$I$6320=B31),--(EGRESOS!$AC$9:$AC$6320=$N$10),(EGRESOS!$S$9:$S$6320)),0) -> 0 | O31: =IF(B31>0,SUMPRODUCT(--(EGRESOS!$I$9:$I$6320=B31),--(EGRESOS!$AC$9:$AC$6320=$O$10),(EGRESOS!$S$9:$S$6320)),0) -> 0 | P31: =IF(B31>0,SUMPRODUCT(--(EGRESOS!$I$9:$I$6320=B31),--(EGRESOS!$AC$9:$AC$6320=$P$10),(EGRESOS!$S$9:$S$6320)),0) -> 0
A32: (+) | C32: =IF(B32>0,VLOOKUP(B32,CATALOGO!$H$3:$I$3660,2),"") ->  | E32: =IF(B32>0,SUMPRODUCT(--(EGRESOS!$I$9:$I$6320=B32),--(EGRESOS!$AC$9:$AC$6320=$E$10),(EGRESOS!$S$9:$S$6320)),0) -> 0 | F32: =IF(B32>0,SUMPRODUCT(--(EGRESOS!$I$9:$I$6320=B32),--(EGRESOS!$AC$9:$AC$6320=$F$10),(EGRESOS!$S$9:$S$6320)),0) -> 0 | G32: =IF(B32>0,SUMPRODUCT(--(EGRESOS!$I$9:$I$6320=B32),--(EGRESOS!$AC$9:$AC$6320=$G$10),(EGRESOS!$S$9:$S$6320)),0) -> 0 | H32: =IF(B32>0,SUMPRODUCT(--(EGRESOS!$I$9:$I$6320=B32),--(EGRESOS!$AC$9:$AC$6320=$H$10),(EGRESOS!$S$9:$S$6320)),0) -> 0 | I32: =IF(B32>0,SUMPRODUCT(--(EGRESOS!$I$9:$I$6320=B32),--(EGRESOS!$AC$9:$AC$6320=$I$10),(EGRESOS!$S$9:$S$6320)),0) -> 0 | J32: =IF(B32>0,SUMPRODUCT(--(EGRESOS!$I$9:$I$6320=B32),--(EGRESOS!$AC$9:$AC$6320=$J$10),(EGRESOS!$S$9:$S$6320)),0) -> 0 | K32: =IF(B32>0,SUMPRODUCT(--(EGRESOS!$I$9:$I$6320=B32),--(EGRESOS!$AC$9:$AC$6320=$L$10),(EGRESOS!$S$9:$S$6320)),0) -> 0 | L32: =IF(B32>0,SUMPRODUCT(--(EGRESOS!$I$9:$I$6320=B32),--(EGRESOS!$AC$9:$AC$6320=$L$10),(EGRESOS!$S$9:$S$6320)),0) -> 0 | M32: =IF(B32>0,SUMPRODUCT(--(EGRESOS!$I$9:$I$6320=B32),--(EGRESOS!$AC$9:$AC$6320=$M$10),(EGRESOS!$S$9:$S$6320)),0) -> 0 | N32: =IF(B32>0,SUMPRODUCT(--(EGRESOS!$I$9:$I$6320=B32),--(EGRESOS!$AC$9:$AC$6320=$N$10),(EGRESOS!$S$9:$S$6320)),0) -> 0 | O32: =IF(B32>0,SUMPRODUCT(--(EGRESOS!$I$9:$I$6320=B32),--(EGRESOS!$AC$9:$AC$6320=$O$10),(EGRESOS!$S$9:$S$6320)),0) -> 0 | P32: =IF(B32>0,SUMPRODUCT(--(EGRESOS!$I$9:$I$6320=B32),--(EGRESOS!$AC$9:$AC$6320=$P$10),(EGRESOS!$S$9:$S$6320)),0) -> 0
A33: (+) | C33: =IF(B33>0,VLOOKUP(B33,CATALOGO!$H$3:$I$3660,2),"") ->  | E33: =IF(B33>0,SUMPRODUCT(--(EGRESOS!$I$9:$I$6320=B33),--(EGRESOS!$AC$9:$AC$6320=$E$10),(EGRESOS!$S$9:$S$6320)),0) -> 0 | F33: =IF(B33>0,SUMPRODUCT(--(EGRESOS!$I$9:$I$6320=B33),--(EGRESOS!$AC$9:$AC$6320=$F$10),(EGRESOS!$S$9:$S$6320)),0) -> 0 | G33: =IF(B33>0,SUMPRODUCT(--(EGRESOS!$I$9:$I$6320=B33),--(EGRESOS!$AC$9:$AC$6320=$G$10),(EGRESOS!$S$9:$S$6320)),0) -> 0 | H33: =IF(B33>0,SUMPRODUCT(--(EGRESOS!$I$9:$I$6320=B33),--(EGRESOS!$AC$9:$AC$6320=$H$10),(EGRESOS!$S$9:$S$6320)),0) -> 0 | I33: =IF(B33>0,SUMPRODUCT(--(EGRESOS!$I$9:$I$6320=B33),--(EGRESOS!$AC$9:$AC$6320=$I$10),(EGRESOS!$S$9:$S$6320)),0) -> 0 | J33: =IF(B33>0,SUMPRODUCT(--(EGRESOS!$I$9:$I$6320=B33),--(EGRESOS!$AC$9:$AC$6320=$J$10),(EGRESOS!$S$9:$S$6320)),0) -> 0 | K33: =IF(B33>0,SUMPRODUCT(--(EGRESOS!$I$9:$I$6320=B33),--(EGRESOS!$AC$9:$AC$6320=$L$10),(EGRESOS!$S$9:$S$6320)),0) -> 0 | L33: =IF(B33>0,SUMPRODUCT(--(EGRESOS!$I$9:$I$6320=B33),--(EGRESOS!$AC$9:$AC$6320=$L$10),(EGRESOS!$S$9:$S$6320)),0) -> 0 | M33: =IF(B33>0,SUMPRODUCT(--(EGRESOS!$I$9:$I$6320=B33),--(EGRESOS!$AC$9:$AC$6320=$M$10),(EGRESOS!$S$9:$S$6320)),0) -> 0 | N33: =IF(B33>0,SUMPRODUCT(--(EGRESOS!$I$9:$I$6320=B33),--(EGRESOS!$AC$9:$AC$6320=$N$10),(EGRESOS!$S$9:$S$6320)),0) -> 0 | O33: =IF(B33>0,SUMPRODUCT(--(EGRESOS!$I$9:$I$6320=B33),--(EGRESOS!$AC$9:$AC$6320=$O$10),(EGRESOS!$S$9:$S$6320)),0) -> 0 | P33: =IF(B33>0,SUMPRODUCT(--(EGRESOS!$I$9:$I$6320=B33),--(EGRESOS!$AC$9:$AC$6320=$P$10),(EGRESOS!$S$9:$S$6320)),0) -> 0
A34: (+) | C34: =IF(B34>0,VLOOKUP(B34,CATALOGO!$H$3:$I$3660,2),"") ->  | E34: =IF(B34>0,SUMPRODUCT(--(EGRESOS!$I$9:$I$6320=B34),--(EGRESOS!$AC$9:$AC$6320=$E$10),(EGRESOS!$S$9:$S$6320)),0) -> 0 | F34: =IF(B34>0,SUMPRODUCT(--(EGRESOS!$I$9:$I$6320=B34),--(EGRESOS!$AC$9:$AC$6320=$F$10),(EGRESOS!$S$9:$S$6320)),0) -> 0 | G34: =IF(B34>0,SUMPRODUCT(--(EGRESOS!$I$9:$I$6320=B34),--(EGRESOS!$AC$9:$AC$6320=$G$10),(EGRESOS!$S$9:$S$6320)),0) -> 0 | H34: =IF(B34>0,SUMPRODUCT(--(EGRESOS!$I$9:$I$6320=B34),--(EGRESOS!$AC$9:$AC$6320=$H$10),(EGRESOS!$S$9:$S$6320)),0) -> 0 | I34: =IF(B34>0,SUMPRODUCT(--(EGRESOS!$I$9:$I$6320=B34),--(EGRESOS!$AC$9:$AC$6320=$I$10),(EGRESOS!$S$9:$S$6320)),0) -> 0 | J34: =IF(B34>0,SUMPRODUCT(--(EGRESOS!$I$9:$I$6320=B34),--(EGRESOS!$AC$9:$AC$6320=$J$10),(EGRESOS!$S$9:$S$6320)),0) -> 0 | K34: =IF(B34>0,SUMPRODUCT(--(EGRESOS!$I$9:$I$6320=B34),--(EGRESOS!$AC$9:$AC$6320=$L$10),(EGRESOS!$S$9:$S$6320)),0) -> 0 | L34: =IF(B34>0,SUMPRODUCT(--(EGRESOS!$I$9:$I$6320=B34),--(EGRESOS!$AC$9:$AC$6320=$L$10),(EGRESOS!$S$9:$S$6320)),0) -> 0 | M34: =IF(B34>0,SUMPRODUCT(--(EGRESOS!$I$9:$I$6320=B34),--(EGRESOS!$AC$9:$AC$6320=$M$10),(EGRESOS!$S$9:$S$6320)),0) -> 0 | N34: =IF(B34>0,SUMPRODUCT(--(EGRESOS!$I$9:$I$6320=B34),--(EGRESOS!$AC$9:$AC$6320=$N$10),(EGRESOS!$S$9:$S$6320)),0) -> 0 | O34: =IF(B34>0,SUMPRODUCT(--(EGRESOS!$I$9:$I$6320=B34),--(EGRESOS!$AC$9:$AC$6320=$O$10),(EGRESOS!$S$9:$S$6320)),0) -> 0 | P34: =IF(B34>0,SUMPRODUCT(--(EGRESOS!$I$9:$I$6320=B34),--(EGRESOS!$AC$9:$AC$6320=$P$10),(EGRESOS!$S$9:$S$6320)),0) -> 0
A35: (+) | C35: =IF(B35>0,VLOOKUP(B35,CATALOGO!$H$3:$I$3660,2),"") ->  | E35: =IF(B35>0,SUMPRODUCT(--(EGRESOS!$I$9:$I$6320=B35),--(EGRESOS!$AC$9:$AC$6320=$E$10),(EGRESOS!$S$9:$S$6320)),0) -> 0 | F35: =IF(B35>0,SUMPRODUCT(--(EGRESOS!$I$9:$I$6320=B35),--(EGRESOS!$AC$9:$AC$6320=$F$10),(EGRESOS!$S$9:$S$6320)),0) -> 0 | G35: =IF(B35>0,SUMPRODUCT(--(EGRESOS!$I$9:$I$6320=B35),--(EGRESOS!$AC$9:$AC$6320=$G$10),(EGRESOS!$S$9:$S$6320)),0) -> 0 | H35: =IF(B35>0,SUMPRODUCT(--(EGRESOS!$I$9:$I$6320=B35),--(EGRESOS!$AC$9:$AC$6320=$H$10),(EGRESOS!$S$9:$S$6320)),0) -> 0 | I35: =IF(B35>0,SUMPRODUCT(--(EGRESOS!$I$9:$I$6320=B35),--(EGRESOS!$AC$9:$AC$6320=$I$10),(EGRESOS!$S$9:$S$6320)),0) -> 0 | J35: =IF(B35>0,SUMPRODUCT(--(EGRESOS!$I$9:$I$6320=B35),--(EGRESOS!$AC$9:$AC$6320=$J$10),(EGRESOS!$S$9:$S$6320)),0) -> 0 | K35: =IF(B35>0,SUMPRODUCT(--(EGRESOS!$I$9:$I$6320=B35),--(EGRESOS!$AC$9:$AC$6320=$L$10),(EGRESOS!$S$9:$S$6320)),0) -> 0 | L35: =IF(B35>0,SUMPRODUCT(--(EGRESOS!$I$9:$I$6320=B35),--(EGRESOS!$AC$9:$AC$6320=$L$10),(EGRESOS!$S$9:$S$6320)),0) -> 0 | M35: =IF(B35>0,SUMPRODUCT(--(EGRESOS!$I$9:$I$6320=B35),--(EGRESOS!$AC$9:$AC$6320=$M$10),(EGRESOS!$S$9:$S$6320)),0) -> 0 | N35: =IF(B35>0,SUMPRODUCT(--(EGRESOS!$I$9:$I$6320=B35),--(EGRESOS!$AC$9:$AC$6320=$N$10),(EGRESOS!$S$9:$S$6320)),0) -> 0 | O35: =IF(B35>0,SUMPRODUCT(--(EGRESOS!$I$9:$I$6320=B35),--(EGRESOS!$AC$9:$AC$6320=$O$10),(EGRESOS!$S$9:$S$6320)),0) -> 0 | P35: =IF(B35>0,SUMPRODUCT(--(EGRESOS!$I$9:$I$6320=B35),--(EGRESOS!$AC$9:$AC$6320=$P$10),(EGRESOS!$S$9:$S$6320)),0) -> 0
A36: (+) | C36: =IF(B36>0,VLOOKUP(B36,CATALOGO!$H$3:$I$3660,2),"") ->  | E36: =IF(B36>0,SUMPRODUCT(--(EGRESOS!$I$9:$I$6320=B36),--(EGRESOS!$AC$9:$AC$6320=$E$10),(EGRESOS!$S$9:$S$6320)),0) -> 0 | F36: =IF(B36>0,SUMPRODUCT(--(EGRESOS!$I$9:$I$6320=B36),--(EGRESOS!$AC$9:$AC$6320=$F$10),(EGRESOS!$S$9:$S$6320)),0) -> 0 | G36: =IF(B36>0,SUMPRODUCT(--(EGRESOS!$I$9:$I$6320=B36),--(EGRESOS!$AC$9:$AC$6320=$G$10),(EGRESOS!$S$9:$S$6320)),0) -> 0 | H36: =IF(B36>0,SUMPRODUCT(--(EGRESOS!$I$9:$I$6320=B36),--(EGRESOS!$AC$9:$AC$6320=$H$10),(EGRESOS!$S$9:$S$6320)),0) -> 0 | I36: =IF(B36>0,SUMPRODUCT(--(EGRESOS!$I$9:$I$6320=B36),--(EGRESOS!$AC$9:$AC$6320=$I$10),(EGRESOS!$S$9:$S$6320)),0) -> 0 | J36: =IF(B36>0,SUMPRODUCT(--(EGRESOS!$I$9:$I$6320=B36),--(EGRESOS!$AC$9:$AC$6320=$J$10),(EGRESOS!$S$9:$S$6320)),0) -> 0 | K36: =IF(B36>0,SUMPRODUCT(--(EGRESOS!$I$9:$I$6320=B36),--(EGRESOS!$AC$9:$AC$6320=$L$10),(EGRESOS!$S$9:$S$6320)),0) -> 0 | L36: =IF(B36>0,SUMPRODUCT(--(EGRESOS!$I$9:$I$6320=B36),--(EGRESOS!$AC$9:$AC$6320=$L$10),(EGRESOS!$S$9:$S$6320)),0) -> 0 | M36: =IF(B36>0,SUMPRODUCT(--(EGRESOS!$I$9:$I$6320=B36),--(EGRESOS!$AC$9:$AC$6320=$M$10),(EGRESOS!$S$9:$S$6320)),0) -> 0 | N36: =IF(B36>0,SUMPRODUCT(--(EGRESOS!$I$9:$I$6320=B36),--(EGRESOS!$AC$9:$AC$6320=$N$10),(EGRESOS!$S$9:$S$6320)),0) -> 0 | O36: =IF(B36>0,SUMPRODUCT(--(EGRESOS!$I$9:$I$6320=B36),--(EGRESOS!$AC$9:$AC$6320=$O$10),(EGRESOS!$S$9:$S$6320)),0) -> 0 | P36: =IF(B36>0,SUMPRODUCT(--(EGRESOS!$I$9:$I$6320=B36),--(EGRESOS!$AC$9:$AC$6320=$P$10),(EGRESOS!$S$9:$S$6320)),0) -> 0
A37: (+) | C37: =IF(B37>0,VLOOKUP(B37,CATALOGO!$H$3:$I$3660,2),"") ->  | E37: =IF(B37>0,SUMPRODUCT(--(EGRESOS!$I$9:$I$6320=B37),--(EGRESOS!$AC$9:$AC$6320=$E$10),(EGRESOS!$S$9:$S$6320)),0) -> 0 | F37: =IF(B37>0,SUMPRODUCT(--(EGRESOS!$I$9:$I$6320=B37),--(EGRESOS!$AC$9:$AC$6320=$F$10),(EGRESOS!$S$9:$S$6320)),0) -> 0 | G37: =IF(B37>0,SUMPRODUCT(--(EGRESOS!$I$9:$I$6320=B37),--(EGRESOS!$AC$9:$AC$6320=$G$10),(EGRESOS!$S$9:$S$6320)),0) -> 0 | H37: =IF(B37>0,SUMPRODUCT(--(EGRESOS!$I$9:$I$6320=B37),--(EGRESOS!$AC$9:$AC$6320=$H$10),(EGRESOS!$S$9:$S$6320)),0) -> 0 | I37: =IF(B37>0,SUMPRODUCT(--(EGRESOS!$I$9:$I$6320=B37),--(EGRESOS!$AC$9:$AC$6320=$I$10),(EGRESOS!$S$9:$S$6320)),0) -> 0 | J37: =IF(B37>0,SUMPRODUCT(--(EGRESOS!$I$9:$I$6320=B37),--(EGRESOS!$AC$9:$AC$6320=$J$10),(EGRESOS!$S$9:$S$6320)),0) -> 0 | K37: =IF(B37>0,SUMPRODUCT(--(EGRESOS!$I$9:$I$6320=B37),--(EGRESOS!$AC$9:$AC$6320=$L$10),(EGRESOS!$S$9:$S$6320)),0) -> 0 | L37: =IF(B37>0,SUMPRODUCT(--(EGRESOS!$I$9:$I$6320=B37),--(EGRESOS!$AC$9:$AC$6320=$L$10),(EGRESOS!$S$9:$S$6320)),0) -> 0 | M37: =IF(B37>0,SUMPRODUCT(--(EGRESOS!$I$9:$I$6320=B37),--(EGRESOS!$AC$9:$AC$6320=$M$10),(EGRESOS!$S$9:$S$6320)),0) -> 0 | N37: =IF(B37>0,SUMPRODUCT(--(EGRESOS!$I$9:$I$6320=B37),--(EGRESOS!$AC$9:$AC$6320=$N$10),(EGRESOS!$S$9:$S$6320)),0) -> 0 | O37: =IF(B37>0,SUMPRODUCT(--(EGRESOS!$I$9:$I$6320=B37),--(EGRESOS!$AC$9:$AC$6320=$O$10),(EGRESOS!$S$9:$S$6320)),0) -> 0 | P37: =IF(B37>0,SUMPRODUCT(--(EGRESOS!$I$9:$I$6320=B37),--(EGRESOS!$AC$9:$AC$6320=$P$10),(EGRESOS!$S$9:$S$6320)),0) -> 0
A38: (+) | C38: =IF(B38>0,VLOOKUP(B38,CATALOGO!$H$3:$I$3660,2),"") ->  | E38: =IF(B38>0,SUMPRODUCT(--(EGRESOS!$I$9:$I$6320=B38),--(EGRESOS!$AC$9:$AC$6320=$E$10),(EGRESOS!$S$9:$S$6320)),0) -> 0 | F38: =IF(B38>0,SUMPRODUCT(--(EGRESOS!$I$9:$I$6320=B38),--(EGRESOS!$AC$9:$AC$6320=$F$10),(EGRESOS!$S$9:$S$6320)),0) -> 0 | G38: =IF(B38>0,SUMPRODUCT(--(EGRESOS!$I$9:$I$6320=B38),--(EGRESOS!$AC$9:$AC$6320=$G$10),(EGRESOS!$S$9:$S$6320)),0) -> 0 | H38: =IF(B38>0,SUMPRODUCT(--(EGRESOS!$I$9:$I$6320=B38),--(EGRESOS!$AC$9:$AC$6320=$H$10),(EGRESOS!$S$9:$S$6320)),0) -> 0 | I38: =IF(B38>0,SUMPRODUCT(--(EGRESOS!$I$9:$I$6320=B38),--(EGRESOS!$AC$9:$AC$6320=$I$10),(EGRESOS!$S$9:$S$6320)),0) -> 0 | J38: =IF(B38>0,SUMPRODUCT(--(EGRESOS!$I$9:$I$6320=B38),--(EGRESOS!$AC$9:$AC$6320=$J$10),(EGRESOS!$S$9:$S$6320)),0) -> 0 | K38: =IF(B38>0,SUMPRODUCT(--(EGRESOS!$I$9:$I$6320=B38),--(EGRESOS!$AC$9:$AC$6320=$L$10),(EGRESOS!$S$9:$S$6320)),0) -> 0 | L38: =IF(B38>0,SUMPRODUCT(--(EGRESOS!$I$9:$I$6320=B38),--(EGRESOS!$AC$9:$AC$6320=$L$10),(EGRESOS!$S$9:$S$6320)),0) -> 0 | M38: =IF(B38>0,SUMPRODUCT(--(EGRESOS!$I$9:$I$6320=B38),--(EGRESOS!$AC$9:$AC$6320=$M$10),(EGRESOS!$S$9:$S$6320)),0) -> 0 | N38: =IF(B38>0,SUMPRODUCT(--(EGRESOS!$I$9:$I$6320=B38),--(EGRESOS!$AC$9:$AC$6320=$N$10),(EGRESOS!$S$9:$S$6320)),0) -> 0 | O38: =IF(B38>0,SUMPRODUCT(--(EGRESOS!$I$9:$I$6320=B38),--(EGRESOS!$AC$9:$AC$6320=$O$10),(EGRESOS!$S$9:$S$6320)),0) -> 0 | P38: =IF(B38>0,SUMPRODUCT(--(EGRESOS!$I$9:$I$6320=B38),--(EGRESOS!$AC$9:$AC$6320=$P$10),(EGRESOS!$S$9:$S$6320)),0) -> 0
A39: (+) | E39: =IF(B39>0,SUMPRODUCT(--(EGRESOS!$I$9:$I$6320=B39),--(EGRESOS!$AC$9:$AC$6320=$E$10),(EGRESOS!$S$9:$S$6320)),0) -> 0 | F39: =IF(B39>0,SUMPRODUCT(--(EGRESOS!$I$9:$I$6320=B39),--(EGRESOS!$AC$9:$AC$6320=$F$10),(EGRESOS!$S$9:$S$6320)),0) -> 0 | G39: =IF(B39>0,SUMPRODUCT(--(EGRESOS!$I$9:$I$6320=B39),--(EGRESOS!$AC$9:$AC$6320=$G$10),(EGRESOS!$S$9:$S$6320)),0) -> 0 | H39: =IF(B39>0,SUMPRODUCT(--(EGRESOS!$I$9:$I$6320=B39),--(EGRESOS!$AC$9:$AC$6320=$H$10),(EGRESOS!$S$9:$S$6320)),0) -> 0 | I39: =IF(B39>0,SUMPRODUCT(--(EGRESOS!$I$9:$I$6320=B39),--(EGRESOS!$AC$9:$AC$6320=$I$10),(EGRESOS!$S$9:$S$6320)),0) -> 0 | J39: =IF(B39>0,SUMPRODUCT(--(EGRESOS!$I$9:$I$6320=B39),--(EGRESOS!$AC$9:$AC$6320=$J$10),(EGRESOS!$S$9:$S$6320)),0) -> 0 | K39: =IF(B39>0,SUMPRODUCT(--(EGRESOS!$I$9:$I$6320=B39),--(EGRESOS!$AC$9:$AC$6320=$L$10),(EGRESOS!$S$9:$S$6320)),0) -> 0 | L39: =IF(B39>0,SUMPRODUCT(--(EGRESOS!$I$9:$I$6320=B39),--(EGRESOS!$AC$9:$AC$6320=$L$10),(EGRESOS!$S$9:$S$6320)),0) -> 0 | M39: =IF(B39>0,SUMPRODUCT(--(EGRESOS!$I$9:$I$6320=B39),--(EGRESOS!$AC$9:$AC$6320=$M$10),(EGRESOS!$S$9:$S$6320)),0) -> 0 | N39: =IF(B39>0,SUMPRODUCT(--(EGRESOS!$I$9:$I$6320=B39),--(EGRESOS!$AC$9:$AC$6320=$N$10),(EGRESOS!$S$9:$S$6320)),0) -> 0 | O39: =IF(B39>0,SUMPRODUCT(--(EGRESOS!$I$9:$I$6320=B39),--(EGRESOS!$AC$9:$AC$6320=$O$10),(EGRESOS!$S$9:$S$6320)),0) -> 0 | P39: =IF(B39>0,SUMPRODUCT(--(EGRESOS!$I$9:$I$6320=B39),--(EGRESOS!$AC$9:$AC$6320=$P$10),(EGRESOS!$S$9:$S$6320)),0) -> 0
A41: (=) | C41: Total de deducciones autorizadas | E41: =SUM(E16:E39) -> 0 | F41: 0 | G41: 0 | H41: 0 | I41: 0 | J41: 0 | K41: 0 | L41: 0 | M41: 0 | N41: 0 | O41: 0 | P41: 0

Sheet RETE CON TERC
C1: PRESENTACION
B2: =+Hoja4!B4 -> carlos baez medina | F2: Declaración Informativa de Operaciones con terceros DIOT
B3: =+Hoja4!H4 -> BAMC791005K70
B4: MES | D4: 1901-12-01 | W4: MONTO DEL IVA PAGADO
B5: EJERCICIO | D5: 2012 | K5: NACIONAL | Q5: EXTRANJERO | W5: NO ACREDITABLE
K6: VALOR DE LOS ACTOS O ACTIVIDADES PAGADOS | O6: IVA RETENIDO | Q6: VALOR DE LOS ACTOS O ACTIVIDADES PAGADOS | U6: IVA DE | W6: (CORRESPONDIENTE EN LA PROPORCION DE LAS DEDUCCIONES AUTORIZADAS)
F7: TIPO DE | H7: PAIS | K7: A LA TASA DEL | L7: A LA TASA DEL | M7: A LA TASA DEL | O7: POR EL | Q7: EN LA IMPORTACION DE BIENES Y SERVICIOS DEL IVA | U7: DEV. DESC | W7: A LA TASA DEL | Y7: POR LA IMPORTACION
B8: NUM | C8: RFC | D8: NOMBRE | E8: TIPO DE TERCERO | F8: DE OPERACIÓN | G8: ID FISCAL | H8: DE RESIDENCIA | I8: NACIONALIDAD | K8: 0.16 | L8: 11% DEL IVA | M8: 0% DEL IVA | N8: EXENTOS | O8: CONTRIBUYENTE | Q8: A LA TASA DEL 16% | R8: A LA TASA DEL 11% | S8: EXENTOS | U8: Y BONIF S/COMPRAS | W8: 0.16 | X8: 0.11 | Y8: A LA TASA DEL 16% | Z8: A LA TASA DEL 11%
D9: =VLOOKUP(B9,CATALOGO!$E$3:$F$758,2) ->  | K9: =IF(B9>0,SUMPRODUCT(--(EGRESOS!$C$9:$C$6320=B9),--(EGRESOS!$AC$9:$AC$6320=$D$4),(EGRESOS!$L$9:$L$6320)),0) -> 0
D10: =VLOOKUP(B10,CATALOGO!$E$3:$F$758,2) ->  | K10: =IF(B10>0,SUMPRODUCT(--(EGRESOS!$C$9:$C$6320=B10),--(EGRESOS!$AC$9:$AC$6320=$D$4),(EGRESOS!$L$9:$L$6320)),0) -> 0
D11: =VLOOKUP(B11,CATALOGO!$E$3:$F$758,2) ->  | K11: =IF(B11>0,SUMPRODUCT(--(EGRESOS!$C$9:$C$6320=B11),--(EGRESOS!$AC$9:$AC$6320=$D$4),(EGRESOS!$L$9:$L$6320)),0) -> 0
D12: =VLOOKUP(B12,CATALOGO!$E$3:$F$758,2) ->  | K12: =IF(B12>0,SUMPRODUCT(--(EGRESOS!$C$9:$C$6320=B12),--(EGRESOS!$AC$9:$AC$6320=$D$4),(EGRESOS!$L$9:$L$6320)),0) -> 0
D13: =VLOOKUP(B13,CATALOGO!$E$3:$F$758,2) ->  | K13: =IF(B13>0,SUMPRODUCT(--(EGRESOS!$C$9:$C$6320=B13),--(EGRESOS!$AC$9:$AC$6320=$D$4),(EGRESOS!$L$9:$L$6320)),0) -> 0
D14: =VLOOKUP(B14,CATALOGO!$E$3:$F$758,2) ->  | K14: =IF(B14>0,SUMPRODUCT(--(EGRESOS!$C$9:$C$6320=B14),--(EGRESOS!$AC$9:$AC$6320=$D$4),(EGRESOS!$L$9:$L$6320)),0) -> 0
D15: =VLOOKUP(B15,CATALOGO!$E$3:$F$758,2) ->  | K15: =IF(B15>0,SUMPRODUCT(--(EGRESOS!$C$9:$C$6320=B15),--(EGRESOS!$AC$9:$AC$6320=$D$4),(EGRESOS!$L$9:$L$6320)),0) -> 0
D16: =VLOOKUP(B16,CATALOGO!$E$3:$F$758,2) ->  | K16: =IF(B16>0,SUMPRODUCT(--(EGRESOS!$C$9:$C$6320=B16),--(EGRESOS!$AC$9:$AC$6320=$D$4),(EGRESOS!$L$9:$L$6320)),0) -> 0
D17: =VLOOKUP(B17,CATALOGO!$E$3:$F$758,2) ->  | K17: =IF(B17>0,SUMPRODUCT(--(EGRESOS!$C$9:$C$6320=B17),--(EGRESOS!$AC$9:$AC$6320=$D$4),(EGRESOS!$L$9:$L$6320)),0) -> 0
D18: =VLOOKUP(B18,CATALOGO!$E$3:$F$758,2) ->  | K18: =IF(B18>0,SUMPRODUCT(--(EGRESOS!$C$9:$C$6320=B18),--(EGRESOS!$AC$9:$AC$6320=$D$4),(EGRESOS!$L$9:$L$6320)),0) -> 0
D19: =VLOOKUP(B19,CATALOGO!$E$3:$F$758,2) ->  | K19: =IF(B19>0,SUMPRODUCT(--(EGRESOS!$C$9:$C$6320=B19),--(EGRESOS!$AC$9:$AC$6320=$D$4),(EGRESOS!$L$9:$L$6320)),0) -> 0
D20: =VLOOKUP(B20,CATALOGO!$E$3:$F$758,2) ->  | K20: =IF(B20>0,SUMPRODUCT(--(EGRESOS!$C$9:$C$6320=B20),--(EGRESOS!$AC$9:$AC$6320=$D$4),(EGRESOS!$L$9:$L$6320)),0) -> 0
D21: =VLOOKUP(B21,CATALOGO!$E$3:$F$758,2) ->  | K21: =IF(B21>0,SUMPRODUCT(--(EGRESOS!$C$9:$C$6320=B21),--(EGRESOS!$AC$9:$AC$6320=$D$4),(EGRESOS!$L$9:$L$6320)),0) -> 0
D22: =VLOOKUP(B22,CATALOGO!$E$3:$F$758,2) ->  | K22: =IF(B22>0,SUMPRODUCT(--(EGRESOS!$C$9:$C$6320=B22),--(EGRESOS!$AC$9:$AC$6320=$D$4),(EGRESOS!$L$9:$L$6320)),0) -> 0
D23: =VLOOKUP(B23,CATALOGO!$E$3:$F$758,2) ->  | K23: =IF(B23>0,SUMPRODUCT(--(EGRESOS!$C$9:$C$6320=B23),--(EGRESOS!$AC$9:$AC$6320=$D$4),(EGRESOS!$L$9:$L$6320)),0) -> 0
D24: =VLOOKUP(B24,CATALOGO!$E$3:$F$758,2) ->  | K24: =IF(B24>0,SUMPRODUCT(--(EGRESOS!$C$9:$C$6320=B24),--(EGRESOS!$AC$9:$AC$6320=$D$4),(EGRESOS!$L$9:$L$6320)),0) -> 0
